Workbook

Sheet Доп комплектация
A1: Базовая комплектация | AY1: 1
A2: 1. Каркас модулей изготовлен из ЛДСП оклеенной кромкой ПВХ 0,4 мм. Задняя стенка модулей из облагороженной ХДФ;
A3: 2. Фасад; | AY3: 1
A4: 3. Амортизатор (демпфер) Hettich для плавного закрывания в столах трапециях радиусных L=800;
A5: 4. Петли Hattich Sensys (с доводчиком) за усключением стола углового радиусного, шкафов антресольных. ВНИМАНИЕ! В случае выбора механизма Push to open петли Hettich Sensys меняются на петли без доводчика
A6: 5. Верхние шкафы высотой 600, 720 и 920 мм с нишей, а также рабочие столы комплектуются одной полкой. Шкаф высотой 920 мм комплектуется двумя полками;
A7: 6. Выкатные механизмы Hettich в рабочих столах с выкатными ящиками, за исключением столов РОЛ;
A8: 7. Ручка скоба 96 мм;
A9: 8. Стекло "Простое";
A10: 9. Регулируемые опоры высотой 100мм и с цоколем ЛДСП в цвет каркаса для столов торцевых, трапеция;
A11: 10. Регулируемые навесы Hettich для навесных шкафов;
A12: 11. Антресольные шкафы комплектуются газлифтами или, в зависимости от типа шкафа, механизмами BLUM Aventos;
A13: 12. По умолчанию рамки фасадов изготавливаются с крестом, за исключением фасадов с фрезеровкой: Вега, Карат,
B14: Квадро, Квадро 2, Техно, Мыло, Мыло 2, Мыло 3, Лира, Тоскана, Сканди, Retro, Andrea, Patricia, Dallas
A15: Обращаем внимание, в случае заказа позиции кухонной мебели с креплением "twister" нужно добавить к стоимости каркаса около 100 руб.
A16: Классификация цветов и материалов
A18: Классификация цветов фасадов МДФ в пленке ПВХ
A20: 1 ценовая категория
A21: Древесные матовые | I21: Белая сосна, Сандал белый, Оливковое дерево, Лазурное дерево, Дуб Венге, Дуб Сонома, Кремовый Ясень, Ель сизая, Крымское дерево, Дримвуд Латте, Софора канзати, Софора давиди, Карельская береза, Снежное дерево, Миндаль
A22: Однотонные матовые | I22: Черные цветы, Белая матовая, Моти, Макарун
A24: 2 ценовая категория
A25: Супер матовые | I25: Графит, Шафран, Тирамиссу, Пикрит, Керамик, Миррис, Пудра, Риолит, Базальт, Магнолия, Рубелит, Селенит, Нефрит, Обсидиан
A26: Древесные матовые | I26: Дуб филадельфия, Сосна фактурная, Зеленый патина белая, Стоун*, Тис, Квазар, Темное дерево
A28: Однотонные глянцевые | I28: Белый металлик, Белый глянец, Черный глянец, Латте, Макиотти глянец
A31: 3 ценовая категория
A32: Древесные матовые | I32: Томан, Московский ясень
A33: Супер матовые | I33: Авери*, Шелк аметист, Желтый пик, Космический оранжевый
A34: Фантазийные | I34: Камень гранж светлый Бруклин
A35: ВНИМАНИЕ!!! Возможны незначительные изменения в тональности пленки ПВХ (2-3 тона), что не является браком
A36: Классификация цветов фасадов МДФ в пленке ПВХ+ патина срок изготовления 21 день
A37: 1 ценовая категория
A38: Матовые | I38: Белая матовая/светло-коричневая
A39: Древесные матовые | I39: Белая Сосна/золото, Сандал белый+золото/серебро, Кремовый ясень/коричневая, Тик/золотая патина
A40: 2 ценовая категория
A41: Однотонные матовые | I41: Пикрит/белая
A42: Однотонные глянцевые | I42: Белый глянец/золото
A43: Древесные матовые | I43: Дуб бирюзовый/золото-коричневая, Лазурное дерево/белая
A44: 3 ценовая категория
A45: Однотонные матовые | I45: Синяя волня/белое серебро
A46: * - выполняется только с фрезеровкой "Мыло", "Мыло2"
A47: Сочетание фрезеровки и патинированной пленки ПВХ
A48: София | M48: Карат | AE48: Глория
A53: Cандал белый/серебро-золото | M53: Кремовый Ясень | Y53: Белый глянец | AE53: Белая сосна
M54: /коричневая | S54: /золото | Y54: /золото | AE54: /золото
A55: Изабелла | Q55: Тоскана | AB55: Ретро
A60: Белая сосна | Q60: Кр. Ясень | V60: Лазурное дерево | AB60: Белая мат | AG60: Пикрит
A61: /золото | F61: /серебрянная | K61: /светло-кор | Q61: золото | V61: белая | AB61: светло-кор | AG61: белая
A62: ВНИМАНИЕ!!! Патинированные фасады могут незначительно отличаться.
N63: Стоимость патины | U63: к стоимости фасада | AD63: + | AE63: =CEILING('Дополнительная комплектация 2'!AE61:AF61*'Доп комплектация'!$AY$1,'Доп комплектация'!$AY$3) -> 3850 | AH63: руб/кв.м. | AL63: + | AM63: =CEILING('Дополнительная комплектация 2'!AM61:AN61*'Доп комплектация'!$AY$1,'Доп комплектация'!$AY$3) -> 100 | AQ63: руб/1 фасад | AV63: - "косичка"
A64: Таблица патинированных фасадов
A65: Цвет пленки | F65: Фрезеровка | P65: Цвет патины | AC65: Цвет пленки | AI65: Фрезеровка | AS65: Цвет патины
F66: Основная | J66: Дополнительная | P66: Основной | T66: Дополнительный | AI66: Основная | AM66: Дополнительная | AS66: Основной | AW66: Доп
A67: Белая сосна | F67: Глория | J67: Карат | P67: Золото | T67: Коричневая/Серебро | AC67: Кремовый ясень | AI67: Карат | AS67: Коричневая | AX67: Золото
F68: Изабелла | P68: Золото | T68: Светло-коричневая/серерро | AI68: Тоскана | AS68: Золото
A69: Пикрит | F69: Ретро | P69: Белая | AI69: (Александрия)
A70: Синяя волна | P70: Белое серебро | AI70: Ретро | AS70: Золото | AX70: Светло-Коричневая
A71: Белая матовая | P71: Светло - кор | AC71: Сандал белый | AI71: Карат | AN71: София | AS71: Серебро | AX71: Золото
A72: Графит | P72: Медь
A73: Белый глянец | F73: Карат | J73: - | P73: Золото
A75: Лазурное дерево | F75: Тоскана | J75: Карат | P75: Белая | T75: Коричневая
A78: Классификация цветов каркаса и фасадов ЛДСП толщиной 16 мм.
A80: 1 ценовая категория | L80: 1 ценовая категория | X80: 2 ценовая категория | AK80: 3 ценовая категория | AT80: 3 ценовая категория | BC80: 4 ценовая категория
A81: Антрацит | L81: Дуб гранж колон-ный+ | X81: Бежевый | AK81: Винтаж+ | AT81: Зеленый эвкалипт | BC81: Дуб Хантон EG
A82: Белая шагрень+ | L82: Дуб эвок приб-ный + | X82: Сонома+ | AK82: Сосна Касцина EG | AT82: Зеленый шалфей | BC82: Дуб Галифакс натур-й EG
A83: Венге+ | L83: Выбеленное дерево+ | X83: Дуб шамони светлый+ | AK83: Чикаго серый EG | AT83: Желтый песок | BC83: Дуб каселла коричневый
A84: Капучино | L84: Лаванда | X84: Дуб шамони темный+ | AK84: Чикаго темный EG | AT84: Кашемир серый | BC84: Дуб каселла натуральный
A85: Зеленый лайм+ | L85: Серый | X85: Цемент+ | AK85: Дуб барона светлый | AT85: Хюгге
A86: Черный | AK86: Крафт | AT86: Рейн
X87: 2-я Ц.К. | AA87: =CEILING('Дополнительная комплектация 2'!AA87:AC87*'Доп комплектация'!$AY$1,'Доп комплектация'!$AY$3) -> 2100 | AD87: руб/кв.м. | AK87: 3-я Ц.К. | AN87: =CEILING('Дополнительная комплектация 2'!AN87:AP87*'Доп комплектация'!$AY$1,'Доп комплектация'!$AY$3) -> 2400 | AQ87: руб/кв.м. | BC87: 4-я Ц.К. | BF87: =CEILING('Дополнительная комплектация 2'!BF87:BH87*'Доп комплектация'!$AY$1,'Доп комплектация'!$AY$3) -> 3200 | BI87: руб/кв.м.
A88: 1-я Ц.К. | D88: =CEILING('Дополнительная комплектация 2'!D86:E86*'Доп комплектация'!$AY$1,'Доп комплектация'!$AY$3) -> 2000 | G88: руб/кв.м. | AA88: 0.05 | AN88: 0.2 | BE88: 0.6
A89: + Кромяться кромкой толщиной 1 мм. | O89: В случае заказа каркаса в цветах не 1-й ц.к., нужно к стоимости каркаса прибавить % соответсвующей категории
A91: Схема расположения стекла на фасадах шкафов. | AD91: глухой фасад | AL91: Фасад со стеклом
AR92: размер стекла
AR93: H=83 мм.
AR94: L= ширина фасада
AF100: ***Фасады ЛДСП кромяться кромкой ПВХ 1 мм.
AF101: в цвет фасада.
A102: Классификация цветов фасадов ЛДСП22
A103: Фасад 22 - рамочный фасад, изготавливается ил ЛДСП толщиной 22 мм. Фасад кромиться кромкой ПВХ толщиной 1 мм.
A104: Цветовое исполнение
A105: 1 ЦК
B106: Дуб шамони темный | AJ106: Фасад ящиков и дверей
B107: Дуб шамони светлый | J107: Сонома | X107: глухой фасад | AC107: Фасад со стеклом | AJ107: высотой/шириной менее 300 мм.
A108: ВНИМАНИЕ!!! Не принимаются заказы на кухни, в которых присутствуют угловые позиции: шкафы и столы угловые трапеция, шкафы угловые прямые. Кроме столов и шкафов с обозначением "Ф22".
A109: Классификация цветов фасадов Пластик | AY109: CLEO
A110: Фасад "Пластик" изготавливается из МДФ толщиной 16 мм. покрытый с лицевой стороны пластиком высокого давления, с обратной
A111: стороны белым пластиком низкого давления. Общая толщина фасада 18 мм.
A112: Clen touch | L112: 1 ценовая категория | W112: 2 ценовая категория | AG112: 3 ценовая категория | AY112: Cleo WOOD | BG112: Cleo matt
A113: Black | L113: 001 Арпа Белый гл | W113: 0011 Светлый бетон | AG113: FB34 Шерсть | AY113: Дуб беленый | BG113: Альпийский белый
A114: Burgundy | L114: 0200 Ваниль | W114: 4585 Дуб скальный | AG114: LR32 Дуб медовый | AY114: Дуб черный | BG114: Кашемир серый
A115: Charcoal | W115: 4587 Славянский дуб | AY115: Дуб темно-корич | BG115: Серый пыльный
A116: Grey | W116: 3413 Бетон | AY116: Каштан серый | BG116: Графит черный
A117: Powder pink | W117: 0700 Антрацит | AI117: =CEILING('Дополнительная комплектация 2'!AI117:AJ117*'Доп комплектация'!$AY$1,'Доп комплектация'!$AY$3) -> 8330 | AL117: - кв.метр | BG117: Черный
A118: Sapphire | AY118: =CEILING('Дополнительная комплектация 2'!AY118:BA118*'Доп комплектация'!$AY$1,'Доп комплектация'!$AY$3) -> 7168 | BB118: - кв.метр
A119: White | N119: + | O119: =CEILING('Дополнительная комплектация 2'!O119:P119*'Доп комплектация'!$AY$1,'Доп комплектация'!$AY$3) -> 170 | R119: - руб/м.п. за кромку для пластика 1, 2 и 3 категории | BG119: =CEILING('Дополнительная комплектация 2'!BG119:BI119*'Доп комплектация'!$AY$1,'Доп комплектация'!$AY$3) -> 9410 | BJ119: - кв.метр
C120: =CEILING('Дополнительная комплектация 2'!C120:D120*'Доп комплектация'!$AY$1,'Доп комплектация'!$AY$3) -> 13800 | O120: =CEILING('Дополнительная комплектация 2'!O120:P120*'Доп комплектация'!$AY$1,'Доп комплектация'!$AY$3) -> 6790 | R120: - кв.метр | Z120: =CEILING('Дополнительная комплектация 2'!Z120:AA120*'Доп комплектация'!$AY$1,'Доп комплектация'!$AY$3) -> 7470 | AC120: - кв.метр | AH120: ВНИМАНИЕ!!! Фасасы Пластик 1 и 2 категории кромятся в цвет фасада кромкой ABS толщиной 1 мм. | AY120: + | AZ120: =O119 -> 170 | BC120: - руб/м.п. за кромку
B121: + | C121: =CEILING('Дополнительная комплектация 2'!C121:D121*'Доп комплектация'!$AY$1,'Доп комплектация'!$AY$3) -> 170 | F121: - руб/м.п. за кромку в цвет каркаса
A122: Классификация цветов фасадов UV-лак
A123: Наименование | K123: Кромка ABS | P123: Кромка 3D | V123: Наименование | AF123: Кромка ABS | AK123: Кромка 3D | AY123: глухой фасад | BD123: Фасад со стеклом
A124: 1127 Винный красный | K124: + | P124: + | V124: 3540 Капучино | AF124: + | AK124: + | BI124: размер стекла
A125: 0800 Черный | K125: + | P125: + | V125: 0435 Желтый нарцисс | AF125: + | BI125: H=83 мм.
A126: 1655 Белый сканд | K126: + | P126: + | BI126: L= ширина фасада
A127: 8985 Оранжевый | K127: + | P127: + | V127: 0440 Серый шелк | AF127: +
A128: 9410 Крем | K128: + | P128: + | V128: Макиато | AF128: +
A129: =CEILING('Дополнительная комплектация 2'!A134:B134*'Доп комплектация'!$AY$1,'Доп комплектация'!$AY$3) -> 6300 | D129: руб/кв.м. | K129: + | L129: =CEILING('Дополнительная комплектация 2'!L134:M134*'Доп комплектация'!$AY$1,'Доп комплектация'!$AY$3) -> 170 | O129: руб/м.п. | T129: + | U129: =CEILING('Дополнительная комплектация 2'!U134:V134*'Доп комплектация'!$AY$1,'Доп комплектация'!$AY$3) -> 360 | X129: руб/м.п. | AD129: + | AE129: =CEILING('Дополнительная комплектация 2'!AE134:AF134*'Доп комплектация'!$AY$1,'Доп комплектация'!$AY$3) -> 170 | AH129: руб/м.п.
A130: глухого фасада
A131: Классификация цветов фасадов Saviola
A132: Фасад TSS SM'Art изготовлены из ДСП оклеенного пластиком с двух сторон. Фасад оклеивается кромкой ABS толщиной 1 мм., толщина фасада 19 мм.
A133: 1 ценовая категория | L133: 2 ценовая категория | AQ133: глухой фасад | AV133: Фасад со стеклом
A134: DC7 Portland | L134: DN4 Artstone | V134: DP8 Tigerwood | AF134: P44 Atlas | BA134: размер стекла
L135: TR9 Artstone | V135: A63 Manavi | AF135: P20Gessato | BA135: H=83 мм.
A136: 2 ценовая категория | L136: DN8 Artstone | V136: A65 Manavi | BA136: L= ширина фасада
A137: D90 Laguna | L137: 308 Atlas | V137: A66 Manavi
A138: DA4 Laguna | L138: OSS Atlas | V138: DS7 Duanto
A139: DC1 Artstone | L139: DS2 Tigerwood | V139: DZ3 Madera
A140: =CEILING('Дополнительная комплектация 2'!A137:B137*'Доп комплектация'!$AY$1,'Доп комплектация'!$AY$3) -> 5200 | D140: руб/кв.м. - 1 ц.к. | L140: =CEILING('Дополнительная комплектация 2'!L137:M137*'Доп комплектация'!$AY$1,'Доп комплектация'!$AY$3) -> 6960 | O140: руб/кв.м. - 2 ц.к. | X140: + | Y140: кромка | AC140: =CEILING('Дополнительная комплектация 2'!AC137:AD137*'Доп комплектация'!$AY$1,'Доп комплектация'!$AY$3) -> 170 | AF140: руб/м.п.
A142: Классификация цветов столешниц
A143: 1 ценовая категория | L143: 2 ценовая категория | X143: 3 ценовая категория | AJ143: 4 ценовая категория | AV143: 8 ценовая категория | BH143: 9 ценовая категория
A144: 2182 Мейсен ваниль+ | L144: 4026 Аламбра+ | X144: 0140Г КАСТИЛЛО ТЕМНЫЙ+ | AJ144: 2326 Винтаж+ | BH144: ЭГ Дуб Галифакс натуральный
A145: 2231 Оникс кл. бежевый+ | L145: 4045 Кастилло + | X145: 0148Г ПАЛАДИНА+ | AJ145: 0237 Белая ночь+ | BH145: 0100 Светлая доска
L146: 2430 Антарес+ | X146: 905Г Белые камни | AJ146: 5 ценовая категория | BH146: 0101 Потертая доска
A147: 3029 Марквина черный+ | L147: 2338 Лунный металл+ | X147: 0224 Береза*+ | AJ147: 0223 Уника+ | BH147: 0125 Каштан
A148: 3031К Мрамор серый+ | L148: 2236 Семолина бежевая+ | X148: 0232 Космос | AJ148: 0240 Грецкий орех+ | BH148: 0126 Панга-панга
A149: 3034 Марквина синий+ | L149: 2052 Дуб вотан | X149: 0186 Мегаполис | AJ149: 0241 Ирида+ | BH149: 0180 Северная Ель
A150: 5022 Дуб выбеленный+ | L150: 0184 Мрамор тиффани+ | X150: 707Г Королевский опал светлый | AJ150: 3259 Дуб французкий+ | BH150: 0199 Версаль серый
A151: 5004 Цветочный сатин+ | L151: 4035К Аламбра темная+ | X151: 4 ценовая категория | AJ151: 5012 Лофт+ | BH151: 0204 Скиф
A152: 3842 Дуглас светлый*+ | L152: 2233 Марокканский кам.+ | X152: 704Г Сланец | AJ152: 6 ценовая категория | BH152: 0265 Дуб медовый
A153: 3844 Дуглас темный*+ | L153: 0235 Сохо+ | X153: 713Г Гранит черный | AJ153: ЭГ Дуб Хантон темный | BH153: 0268 Лира графит
L154: 0286 Шоколадный дуб+ | X154: 0218 Индиго+ | AJ154: ЭГ Сосна Касцина | BH154: 0269 Лира грей
A155: 2 ценовая категория→ | L155: 2047 Кантри+ | X155: 1021Q Черный+ | AJ155: 7 ценовая категория | BH155: 0011 Светлый бетон
A156: 2235 Семолина серая+ | L156: 3 ценовая категория→ | X156: 1111Q Белый+ | AJ156: 0150Г Андромеда | BH156: FC13 Белый мрамор
A157: 4039 Таурус + | L157: 0219 Ретро светлый+ | X157: 0217 Антарктида+
A158: 3521 Тростник+ | L158: 0220 Ретро темный + | X158: 0246 Семолина карамельная+ | AV158: СМ'art
A159: Данные цвета доступны только без завала. | AV159: N005 Ferro
A160: * - Данные цвета менее стойкие к истиранию, под воздействием тепла и пара склонны к образованию пятен, поэтому не рекомендуется их использовать для горизонтальных поверхностей!!! | AV160: N004 Zinco
A161: + - Данные цвета доступны к заказу столешниц (38) свыше 3000 мм. до 4180 мм. | AV161: N002 Mercurio
A162: ВНИМАНИЕ! Столежници с кодом ЭГ - столешницы Эггер. Доступны к заказу длиной 4000 мм. Стоимость указана за хлыст. Столешницы ЭГ Дуб хантон темный и ЭГ Сосна касцина изготавливаются только с завалом радиусом скругления 3 мм,
A163: а столешница ЭГ Дуб галифакс натуральный изготавливается только без завала. К столешницам ЭГ доступны к заказу стеновые панели толщиной 8 мм. высотой 600 мм и длиной 4100 мм.
A164: Фасады МДФ в пленке ПВХ
A165: Мы предлагаем несколько типов фрезеровок:
AK170: Лира | AN170: Тоскана | AQ170: Косичка** | AT170: Сканди
A171: * рамки с крестом | H171: ** отличается по стоимости
A172: Стандартные размеры
A173: Высота | C173: Ширина
C174: 146* | E174: 196 | G174: 246 | I174: 262 | K174: 276 | M174: 282 | O174: 286 | Q174: 296 | S174: 316 | U174: 326 | W174: 346 | Y174: 376 | AA174: 396 | AC174: 404 | AE174: 426 | AG174: 446 | AI174: 476 | AK174: 496 | AM174: 546 | AO174: 596 | AQ174: 696 | AS174: 796 | AU174: 896 | AW174: 996
A175: 116* | AG175: ** | AO175: **
A176: 141
A177: 176
A178: 266
A179: 283
A180: 296
A181: 356
A182: 396
A183: 456
A184: 536
A185: 573
A186: 596
A187: 716 | C187: ***
A188: 916 | C188: ***
A189: 956
A190: 1096
A191: 1296
A192: 1316
A193: 1466
A194: 1516
D195: - размеры, на которые принимаются заявки по двойной цене
D196: - размеры, на которые не принимаются заявки
B197: * | D197: - фасад без рисунка
B198: ** | D198: - фасад ящика стол под встр. техн. выполняется с рисунком.
B199: *** | D199: - фасад бутылочницы выполняется с рисунком.
H201: 1 Ц.К. | J201: =CEILING('Дополнительная комплектация 2'!J206:K206*'Доп комплектация'!$AY$1,'Доп комплектация'!$AY$3) -> 3730 | L201: р. | N201: 2 Ц.К. | P201: =CEILING('Дополнительная комплектация 2'!P206:Q206*'Доп комплектация'!$AY$1,'Доп комплектация'!$AY$3) -> 4310 | R201: р. | T201: 3 Ц.К. | V201: =CEILING('Дополнительная комплектация 2'!V206:W206*'Доп комплектация'!$AY$1,'Доп комплектация'!$AY$3) -> 5750 | X201: р. | AA201: не рассчитывается в калькулятор | AN201: + | AO201: =CEILING('Дополнительная комплектация 2'!AO206:AP206*'Доп комплектация'!$AY$1,'Доп комплектация'!$AY$3) -> 100 | AQ201: руб/1 фасад | AU201: - "косичка"
A202: DALLAS срок изготовления 21 день
A203: Dallas | F203: Фасады МДФ толщиной 16 мм. покрыты эмалью по таблице RAL и матовым лаком. Внутренняя сторона фасадов всегда белая.
F204: Срок изготовления - 21 день. | R204: По желанию заказчика обратную сторону фасада тоже можно покрыть эмалью, стоимость | AX204: 4000 | AZ204: руб.кв.
J205: H min = 176 мм. | V205: H = 716 / 916 мм. | AH205: H = 596 мм.
B215: Глухой фасад | N215: Фасад с 2 перекрестием | Z215: Фасад с 1 перекрестием | AK215: Фасад РБК
B216: L = 196 - 596 мм. | N216: L = 296 - 596 мм. | Z216: L = 296 - 596 мм. | AK216: L = 246 - 596 мм.
B217: =CEILING('Дополнительная комплектация 2'!D210*'Доп комплектация'!$AY$1,'Доп комплектация'!$AY$3) -> 10400 | G217: м\ кв. р.
N218: H=356/396/456 | AD218: H=356/396/456
A223: Фасад антр. шкафа с 2 перекрестием | Q223: Фасад антр. шкафа с 1 перекрестием
B224: L = 696 / 796 / 896 / 996 мм. | R224: L = 396 - 596 мм.
A226: Декоративные элементы
G232: Опора колонны Dallac | R232: Багет Dallas, L=2200 H-75 мм. | AD232: Багет нижний Dallas, L=2200 Н-50мм | AQ232: Цоколь Dallas, L=2200
G233: Цена, руб | R233: =CEILING('Дополнительная комплектация 2'!R228:U228*'Доп комплектация'!$AY$1,'Доп комплектация'!$AY$3) -> 1610 | V233: руб./шт. | AD233: =CEILING('Дополнительная комплектация 2'!AD228:AG228*'Доп комплектация'!$AY$1,'Доп комплектация'!$AY$3) -> 1100 | AH233: руб./шт. | AO233: h-100 | AQ233: =CEILING('Дополнительная комплектация 2'!AQ228:AT228*'Доп комплектация'!$AY$1,'Доп комплектация'!$AY$3) -> 1670 | AU233: руб./шт.
G234: L\H | I234: 100 мм | L234: 150 мм | AO234: h-150 | AQ234: =CEILING('Дополнительная комплектация 2'!AQ229:AT229*'Доп комплектация'!$AY$1,'Доп комплектация'!$AY$3) -> 2560 | AU234: руб./шт.
G235: 50мм | AO235: Багет универ-ный Dallas Торц R*
G236: 75мм | AO236: =CEILING('Дополнительная комплектация 2'!AO231:AR231*'Доп комплектация'!$AY$1,'Доп комплектация'!$AY$3) -> 8462
G237: 100 мм | AO237: Багет универ-ный Dallas Трап R600*
AO238: =CEILING('Дополнительная комплектация 2'!AO233:AR233*'Доп комплектация'!$AY$1,'Доп комплектация'!$AY$3) -> 8542
R239: Багет 16, L=2200 мм. | AD239: Таблица эмалей CHROMA | AO239: Багет универсальный Dallas, L=2200
A240: Колонна Dallas | R240: =CEILING('Дополнительная комплектация 2'!R235:U235*'Доп комплектация'!$AY$1,'Доп комплектация'!$AY$3) -> 1500 | V240: руб./шт. | AD240: =CEILING('Дополнительная комплектация 2'!AD235:AG235*'Доп комплектация'!$AY$1,'Доп комплектация'!$AY$3) -> 1200 | AI240: руб. /шт. | AO240: =CEILING('Дополнительная комплектация 2'!AO235:AR235*'Доп комплектация'!$AY$1,'Доп комплектация'!$AY$3) -> 3110
A241: L = 50 / 75 / 100 мм | J241: * - крепеж в стоимости
A242: Piatto скрок изготовления 21 день
A243: Фасад МДФ\Эмаль. Эмаль может быть глянцевой и матовой, а так же фасад может покрываться специальным составом, который придает эффект бетона.
U244: Покрытие фасада с эффектом "Бетон" наносится в ручную, следовательно фасады могут
U245: отличаться по текстуре.
U246: По желанию заказчика обратную сторону фасада тоже можно покрыть эмалью, стоимость | AZ246: 4000 | BB246: руб.кв.
A249: Глухой фасад | H249: Фасад рамка | N249: Покрытие Бетон
O250: Стоимость фасада в эмали руб\м\кв.
... 281 more rows

Sheet Дополнительная комплектация 2 (hidden)
A1: Базовая комплектация
A2: 1. Каркас модулей изготовлен из ЛДСП оклеенной кромкой ПВХ 0,4 мм. Задняя стенка модулей из облагороженной ХДФ;
A3: 2. Фасад;
A4: 3. Амортизатор (демпфер) Hettich для плавного закрывания;
A6: 4. Верхние шкафы высотой 600, 720, 920 мм с нишей и рабочие столы комплектуются одной полкой. Шкаф высотой 920 мм комплектуется двумя полками;
A7: 5. Метабоксы Hettich в выкатных ящиках рабочих столов;
A8: 6. Ручка скоба 96 мм;
A9: 7. Стекло "Простое";
A10: 8. Регулируемые опоры высотой 100мм с цоколем ЛДСП в цвет каркаса;
A11: 9. Регулируемые навесы Hettich для навесных шкафов;
A12: 10. Антресольные шкафы комплектуются газлифтами;
A13: 11. По умолчанию рамки фасадов изготавливаются с крестом, за исключением фасадов с фрезеровкой: Вега, Карат,
B14: Квадро, Квадро 2, Техно, Мыло, Мыло 2, Мыло 3, Кантри, Лира, Тоскана
A16: Классификация цветов и материалов
A18: Классификация цветов фасадов МДФ в пленке ПВХ
A20: Базовая ценовая категория
A21: Древесные матовые | I21: Дуб сокальский, Чайное дерево
A23: 1 ценовая категория
A24: Древесные матовые | I24: Ольха, Тик, Дуб канадский, Сандал белый, Дуб беленый, Дуб солнечный, Каштан золотистый, Яблоня Тадж, Тёмный Венге, Бежевый холст, Коричневый холст, Дуб Сонома
A25: Однотонные матовые | I25: Черные цветы
A27: 2 ценовая категория
A28: Супер матовые | I28: Лайм, Индиго, Фиолет, Фуксия
A29: Древесные матовые | I29: Патина Радиал
A30: Древесные глянцевые | I30: Вишня глянец, Клен глянец, Платан глянец, Жемчужное Дерево глянец
A31: Однотонные глянцевые | I31: Красный металлик, Чёрный металлик, Белый металлик, Оранжевый металлик, Фиолетовый металлик, Салатовый металлик, Серый металлик, Золотой металлик, Корица металлик, Хамелеон Коричневый металлик, Белый глянец, Оливковый глянец, Бордо глянец, Ваниль глянец, Оранжевый глянец, Желтый глянец, Черный глянец, Латте, Белый дым глянец
A32: Фантазийные | I32: Мрамор глянцевый, Кожа крокодила, Огни Нью-Йорка, Цветы, Серебряный дождь.
A34: 3 ценовая категория
A35: Древесные матовые | I35: Эффект старения, Вяз седой
A36: Фантазийные | I36: Синга-крем, Синга-аметист, Шелк-крем, Шелк-аметист
A37: ВНИМАНИЕ!!! Возможны незначительные изменения в тональности пленки ПВХ (2-3 тона), что не является браком
A39: Классификация цветов фасадов МДФ в пленке ПВХ+ патина
A41: 1 ценовая категория
A42: Древесные матовые | I42: Сандал белый+золото/серебро, Каштан золотистый+золото,
A44: 2 ценовая категория
A48: Рекомендуемое сочетание фрезеровки и патинированной пленки ПВХ
A49: ТИП рисунка | I49: Цвет пленки ПХ+Патина
A50: София | I50: Сандал белый+патина
A51: Квадро-2 | I51: Каштан золотистый+патина
A52: Квадро | I52: Эффект старения
A53: Карат | I53: Шелк-крем+золото
A60: ВНИМАНИЕ!!! Патинированные фасады могут незначительно отличаться.
AE61: 3850 | AM61: 100
AK78: Фасад ЛДСП 16 мм.
AO81: 1420
D86: 2000 | O86: 1830 | AX86: 2960
AA87: 2100 | AN87: 2400 | BF87: 3200
B115: по пластику
AI117: 8330
AY118: 7168
O119: 170 | BG119: 9410
C120: 13800 | O120: 6790 | Z120: 7470
C121: 170
B132: УВ ЛАК
A134: 6300 | L134: 170 | U134: 360 | AE134: 170
B136: савиола
A137: 5200 | L137: 6960 | AC137: 170
A144: Классификация цветов столешниц
A146: 1 ценовая категория | K146: 3 ценовая категория | V146: 4 ценовая категория | AG146: 5 ценовая категория
A147: 4037 Тасмания | K147: 2182 Мейсен ваниль | V147: 1111Q Белый | AG147: 3210 Кремовый кашемир
A148: 2 ценовая категория | K148: 2233 Марокканский камень | V148: 2237 Семолина карамельная | AG148: 4484 Мокрый зебрано
A149: 2231 Оникс клас-кий бежевый | K149: 2235 Семолина серая | V149: 2326 Винтаж | AG149: 7732А Коричневый камень
A150: 2338 Лунный металл | K150: 3842 Дуглас светлый* | V150: 3255 Коко боло | AG150: 0100 Светлая доска
A151: 2411 Оникс серый | K151: 3844 Дуглас темный* | V151: 3845 Дуглас мокко* | AG151: 0101 Потертая доска
A152: 2430 Антарес | K152: 4035К Аламбра темная | V152: 4401R Металлик | AG152: 0102 Белый бархат
A153: 3521 Тростник | K153: 5004 Цветочный сатин | V153: 5568Г Гранит черный | AG153: 0103 Черный бархат
V154: 700М Роза Альба
V155: 905Г Белые камни | AG155: 6 ценовая категория
V156: 912Г Коперфильд серый | AG156: 5212 Белый кварц
AG157: 9171Г Вечерний салют
AG158: 4071Г Выбеленный дуб
AG159: 4494Г Каштановый феникс
AG160: 4496Г Лаутер
AG161: 3329 Вулканический камень
A163: * - Данные цвета менее стойкие к истиранию, под воздействием тепла и пара склонны к образованию пятен, поэтому не рекомендуется их использовать для горизонтальных поверхностей!!!
A164: Цветовое исполнение каркасов
A165: Белый, Серый, Бук Бавария, Орех итальянский, Гварнери, Венге, Дуб млечный, Выбеленное дерево, Капучино
A167: Фасады МДФ в пленке ПВХ
A168: Мы предлагаем несколько типов фрезеровок:
AK173: Лира | AN173: Тоскана
A174: * рамки с крестом
A176: Стандартные размеры
A177: Высота | C177: Ширина
C179: 146* | E179: 196 | G179: 246 | I179: 262 | K179: 276 | M179: 282 | O179: 286 | Q179: 296 | S179: 316 | U179: 326 | W179: 346 | Y179: 376 | AA179: 396 | AC179: 404 | AE179: 426 | AG179: 446 | AI179: 496 | AK179: 546 | AM179: 596 | AO179: 696 | AQ179: 796 | AS179: 896 | AU179: 996
A180: 116* | AG180: ** | AM180: **
A181: 141
A182: 176
A183: 266
A184: 283
A185: 296
A186: 356
A187: 396
A188: 456
A189: 536
A190: 573
A191: 596
A192: 716 | C192: ***
A193: 916 | C193: ***
A194: 1096
A195: 1296
A196: 1466
D198: - размеры, на которые принимаются заявки по двойной цене
D200: - размеры, на которые не принимаются заявки
B202: * | D202: - фасад без рисунка
B203: ** | D203: - фасад ящика стол под встр. техн. выполняется с рисунком.
B204: *** | D204: - фасад бутылочницы выполняется с рисунком.
B205: Стоимсоть изготовления стандартных фасадов МДФ в пленке ПВХ м.кв., нестандарт +100%
H206: 1 Ц.К. | J206: 3730 | L206: р. | N206: 2 Ц.К. | P206: 4310 | R206: р. | T206: 3 Ц.К. | V206: 5750 | X206: р. | AO206: 100
B210: Даллас | D210: 10400
A212: Piatto | D212: матовая эмаль | K212: 10400
D213: Глянцевая эмаль | K213: 12000
D214: Бетон | K214: 11190
R227: Багет Dallas, L=2200 H-75 мм. | AD227: Багет нижний Dallas, L=2200 Н-50мм | AQ227: Цоколь Dallas
R228: 1610 | V228: руб./шт. | AD228: 1100 | AH228: руб./шт. | AQ228: 1670 | AU228: руб./шт.
AQ229: 2560
R230: Цоколь Dallas торц | AA230: стол БС рад | AG230: Трапец рад | AO230: Багет универ-ный Dallas Торц R*
R231: Н100 | U231: 760 | AA231: 350 | AG231: 590 | AO231: 8462
R232: Н150 | U232: 0 | AO232: Багет универ-ный Dallas Трап R600*
AO233: 8542
R234: Багет 16, L=2200 мм. | AD234: Таблица эмалей RAL | AO234: Багет универсальный Dallas, L=2200
R235: 1500 | V235: руб./шт. | AD235: 1200 | AI235: руб. /шт. | AO235: 3110
A237: Piatto скрок изготовления 30 дней
Q246: Матовое | X246: Глянцевое | AE246: Бетон
Q247: =K212 -> 10400 | X247: =K213 -> 12000 | AE247: =K214 -> 11190
P248: радиусный | Q248: 20910 | X248: 27930 | AE248: 22400
A249: Griff скрок изготовления 30 дней
A250: Фасад МДФ, толщиной 19 мм., с фрезерованной ручкой. Может изготавливаться в следующих типах покрытия:
... 254 more rows

Sheet Шкафы
B1: Шкафы высотой 600, 720, 920 мм.
B2: ЭСКИЗ | C2: ГРУППА | D2: РАЗМЕР | E2: ПВХ | J2: Эмаль | M2: Patricia | O2: Фасад 22 | Q2: ЛДСП | V2: UV-лак | X2: Плита ТСС | Z2: Плита ТСС сб | AA2: Плита FM | AB2: Пластик | AF2: Saviola | AH2: Плита AGT | AK2: Стекла МДФ-ПВХ | AT2: Стекла Фасад-22, Пластик | BA2: ЛДСП
E3: 1-я ц.к. | F3: 1-я ц.к. + патина | G3: 2-я ц.к. | H3: 2-я ц.к. + патина | I3: 3-я ц.к. | J3: RAL матов | K3: RAL глянец | L3: Stone | M3: RAL матов + патина | N3: RAL глянец + патина | O3: 22 сборный 1 ц.к. | P3: 22 сборный 2 ц.к. | Q3: 1-я ц.к. | R3: 2-я ц.к. | S3: 3-я ц.к. | T3: 4-я ц.к. | U3: 5-я ц.к. | V3: кромка ABC | W3: кромка 3D акр | X3: 1-я ц.к. | Y3: 2-я ц.к. | AB3: 1-я ц.к. | AC3: 2-я ц.к. | AD3: 3-я ц.к. | AE3: clen touch | AF3: 1-я ц.к. | AG3: 2-я ц.к. | AH3: 1-я ц.к. | AI3: 1-я ц.к. | AJ3: 5-я ц.к. | AK3: Миллениум | AL3: Тониров,Жасм,КВ-1,КВ-2 | AM3: Гр(св),Мер(св),Сат(св) | AN3: Гр(тем),Мер(тем),Сат(тем) | AO3: Lacobel | AP3: Фреза сатин, Ромб | AQ3: Елизавета | AR3: Изабель | AS3: Решетка | AT3: Миллениум | AU3: Тониров,Жасм,КВ-1,КВ-2 | AV3: Гр(св),Мер(св),Сат(св) | AW3: Гр(тем),Мер(тем),Сат(тем) | AX3: Lacobel | AY3: Фреза сатин | AZ3: Елизавета | BA3: Тониров,Жасм,КВ-1,КВ-2 | BB3: Гр(св),Мер(св),Сат(св) | BC3: Гр(тем),Мер(тем),Сат(тем) | BD3: Lacobel
C4: Шкаф 1дв Н=360 | D4: L-300 | E4: =CEILING('Шкафы (2)'!E4*'Доп комплектация'!$AY$1,'Доп комплектация'!$AY$3) -> 2875 | F4: =CEILING('Шкафы (2)'!F4*'Доп комплектация'!$AY$1,'Доп комплектация'!$AY$3) -> 3285 | G4: =CEILING('Шкафы (2)'!G4*'Доп комплектация'!$AY$1,'Доп комплектация'!$AY$3) -> 2935 | H4: =CEILING('Шкафы (2)'!H4*'Доп комплектация'!$AY$1,'Доп комплектация'!$AY$3) -> 3345 | I4: =CEILING('Шкафы (2)'!I4*'Доп комплектация'!$AY$1,'Доп комплектация'!$AY$3) -> 3095 | J4: =CEILING('Шкафы (2)'!J4*'Доп комплектация'!$AY$1,'Доп комплектация'!$AY$3) -> 3635 | K4: =CEILING('Шкафы (2)'!K4*'Доп комплектация'!$AY$1,'Доп комплектация'!$AY$3) -> 3815 | L4: =CEILING('Шкафы (2)'!L4*'Доп комплектация'!$AY$1,'Доп комплектация'!$AY$3) -> 0 | M4: =CEILING('Шкафы (2)'!M4*'Доп комплектация'!$AY$1,'Доп комплектация'!$AY$3) -> 4045 | N4: =CEILING('Шкафы (2)'!N4*'Доп комплектация'!$AY$1,'Доп комплектация'!$AY$3) -> 4215 | O4: =CEILING('Шкафы (2)'!O4*'Доп комплектация'!$AY$1,'Доп комплектация'!$AY$3) -> 3125 | P4: =CEILING('Шкафы (2)'!P4*'Доп комплектация'!$AY$1,'Доп комплектация'!$AY$3) -> 0 | Q4: =CEILING('Шкафы (2)'!Q4*'Доп комплектация'!$AY$1,'Доп комплектация'!$AY$3) -> 2695 | R4: =CEILING('Шкафы (2)'!R4*'Доп комплектация'!$AY$1,'Доп комплектация'!$AY$3) -> 2705 | S4: =CEILING('Шкафы (2)'!S4*'Доп комплектация'!$AY$1,'Доп комплектация'!$AY$3) -> 2735 | T4: =CEILING('Шкафы (2)'!T4*'Доп комплектация'!$AY$1,'Доп комплектация'!$AY$3) -> 2825 | U4: =CEILING('Шкафы (2)'!U4*'Доп комплектация'!$AY$1,'Доп комплектация'!$AY$3) -> 0 | V4: =CEILING('Шкафы (2)'!V4*'Доп комплектация'!$AY$1,'Доп комплектация'!$AY$3) -> 3375 | W4: =CEILING('Шкафы (2)'!W4*'Доп комплектация'!$AY$1,'Доп комплектация'!$AY$3) -> 3615 | X4: =CEILING('Шкафы (2)'!X4*'Доп комплектация'!$AY$1,'Доп комплектация'!$AY$3) -> 3515 | Y4: =CEILING('Шкафы (2)'!Y4*'Доп комплектация'!$AY$1,'Доп комплектация'!$AY$3) -> 3685 | Z4: =CEILING('Шкафы (2)'!Z4*'Доп комплектация'!$AY$1,'Доп комплектация'!$AY$3) -> 4115 | AA4: =CEILING('Шкафы (2)'!AA4*'Доп комплектация'!$AY$1,'Доп комплектация'!$AY$3) -> 4025 | AB4: =CEILING('Шкафы (2)'!AB4*'Доп комплектация'!$AY$1,'Доп комплектация'!$AY$3) -> 3405 | AC4: =CEILING('Шкафы (2)'!AC4*'Доп комплектация'!$AY$1,'Доп комплектация'!$AY$3) -> 3485 | AD4: =CEILING('Шкафы (2)'!AD4*'Доп комплектация'!$AY$1,'Доп комплектация'!$AY$3) -> 3575 | AE4: =CEILING('Шкафы (2)'!AE4*'Доп комплектация'!$AY$1,'Доп комплектация'!$AY$3) -> 4145 | AF4: =CEILING('Шкафы (2)'!AF4*'Доп комплектация'!$AY$1,'Доп комплектация'!$AY$3) -> 3255 | AG4: =CEILING('Шкафы (2)'!AG4*'Доп комплектация'!$AY$1,'Доп комплектация'!$AY$3) -> 3445 | AH4: =CEILING('Шкафы (2)'!AH4*'Доп комплектация'!$AY$1,'Доп комплектация'!$AY$3) -> 0 | AI4: =CEILING('Шкафы (2)'!AI4*'Доп комплектация'!$AY$1,'Доп комплектация'!$AY$3) -> 3125 | AJ4: =CEILING('Шкафы (2)'!AJ4*'Доп комплектация'!$AY$1,'Доп комплектация'!$AY$3) -> 3435 | AK4: - | AL4: - | AM4: - | AN4: - | AO4: - | AP4: - | AQ4: - | AR4: - | AS4: - | AT4: - | AU4: - | AV4: - | AW4: - | AX4: - | AY4: - | AZ4: - | BA4: - | BB4: - | BC4: - | BD4: -
D5: L-350 | E5: =CEILING('Шкафы (2)'!E5*'Доп комплектация'!$AY$1,'Доп комплектация'!$AY$3) -> 2993 | F5: =CEILING('Шкафы (2)'!F5*'Доп комплектация'!$AY$1,'Доп комплектация'!$AY$3) -> 3463 | G5: =CEILING('Шкафы (2)'!G5*'Доп комплектация'!$AY$1,'Доп комплектация'!$AY$3) -> 3063 | H5: =CEILING('Шкафы (2)'!H5*'Доп комплектация'!$AY$1,'Доп комплектация'!$AY$3) -> 3543 | I5: =CEILING('Шкафы (2)'!I5*'Доп комплектация'!$AY$1,'Доп комплектация'!$AY$3) -> 3243 | J5: =CEILING('Шкафы (2)'!J5*'Доп комплектация'!$AY$1,'Доп комплектация'!$AY$3) -> 3883 | K5: =CEILING('Шкафы (2)'!K5*'Доп комплектация'!$AY$1,'Доп комплектация'!$AY$3) -> 4083 | L5: =CEILING('Шкафы (2)'!L5*'Доп комплектация'!$AY$1,'Доп комплектация'!$AY$3) -> 0 | M5: =CEILING('Шкафы (2)'!M5*'Доп комплектация'!$AY$1,'Доп комплектация'!$AY$3) -> 4353 | N5: =CEILING('Шкафы (2)'!N5*'Доп комплектация'!$AY$1,'Доп комплектация'!$AY$3) -> 4563 | O5: =CEILING('Шкафы (2)'!O5*'Доп комплектация'!$AY$1,'Доп комплектация'!$AY$3) -> 3203 | P5: =CEILING('Шкафы (2)'!P5*'Доп комплектация'!$AY$1,'Доп комплектация'!$AY$3) -> 0 | Q5: =CEILING('Шкафы (2)'!Q5*'Доп комплектация'!$AY$1,'Доп комплектация'!$AY$3) -> 2783 | R5: =CEILING('Шкафы (2)'!R5*'Доп комплектация'!$AY$1,'Доп комплектация'!$AY$3) -> 2793 | S5: =CEILING('Шкафы (2)'!S5*'Доп комплектация'!$AY$1,'Доп комплектация'!$AY$3) -> 2833 | T5: =CEILING('Шкафы (2)'!T5*'Доп комплектация'!$AY$1,'Доп комплектация'!$AY$3) -> 2923 | U5: =CEILING('Шкафы (2)'!U5*'Доп комплектация'!$AY$1,'Доп комплектация'!$AY$3) -> 0 | V5: =CEILING('Шкафы (2)'!V5*'Доп комплектация'!$AY$1,'Доп комплектация'!$AY$3) -> 3543 | W5: =CEILING('Шкафы (2)'!W5*'Доп комплектация'!$AY$1,'Доп комплектация'!$AY$3) -> 3813 | X5: =CEILING('Шкафы (2)'!X5*'Доп комплектация'!$AY$1,'Доп комплектация'!$AY$3) -> 3713 | Y5: =CEILING('Шкафы (2)'!Y5*'Доп комплектация'!$AY$1,'Доп комплектация'!$AY$3) -> 3913 | Z5: =CEILING('Шкафы (2)'!Z5*'Доп комплектация'!$AY$1,'Доп комплектация'!$AY$3) -> 4313 | AA5: =CEILING('Шкафы (2)'!AA5*'Доп комплектация'!$AY$1,'Доп комплектация'!$AY$3) -> 4303 | AB5: =CEILING('Шкафы (2)'!AB5*'Доп комплектация'!$AY$1,'Доп комплектация'!$AY$3) -> 3593 | AC5: =CEILING('Шкафы (2)'!AC5*'Доп комплектация'!$AY$1,'Доп комплектация'!$AY$3) -> 3673 | AD5: =CEILING('Шкафы (2)'!AD5*'Доп комплектация'!$AY$1,'Доп комплектация'!$AY$3) -> 3783 | AE5: =CEILING('Шкафы (2)'!AE5*'Доп комплектация'!$AY$1,'Доп комплектация'!$AY$3) -> 4453 | AF5: =CEILING('Шкафы (2)'!AF5*'Доп комплектация'!$AY$1,'Доп комплектация'!$AY$3) -> 3413 | AG5: =CEILING('Шкафы (2)'!AG5*'Доп комплектация'!$AY$1,'Доп комплектация'!$AY$3) -> 3633 | AH5: =CEILING('Шкафы (2)'!AH5*'Доп комплектация'!$AY$1,'Доп комплектация'!$AY$3) -> 0 | AI5: =CEILING('Шкафы (2)'!AI5*'Доп комплектация'!$AY$1,'Доп комплектация'!$AY$3) -> 3273 | AJ5: =CEILING('Шкафы (2)'!AJ5*'Доп комплектация'!$AY$1,'Доп комплектация'!$AY$3) -> 3633 | AK5: - | AL5: - | AM5: - | AN5: - | AO5: - | AP5: - | AQ5: - | AR5: - | AS5: - | AT5: - | AU5: - | AV5: - | AW5: - | AX5: - | AY5: - | AZ5: - | BA5: - | BB5: - | BC5: - | BD5: -
D6: L-400 | E6: =CEILING('Шкафы (2)'!E6*'Доп комплектация'!$AY$1,'Доп комплектация'!$AY$3) -> 3112 | F6: =CEILING('Шкафы (2)'!F6*'Доп комплектация'!$AY$1,'Доп комплектация'!$AY$3) -> 3652 | G6: =CEILING('Шкафы (2)'!G6*'Доп комплектация'!$AY$1,'Доп комплектация'!$AY$3) -> 3192 | H6: =CEILING('Шкафы (2)'!H6*'Доп комплектация'!$AY$1,'Доп комплектация'!$AY$3) -> 3732 | I6: =CEILING('Шкафы (2)'!I6*'Доп комплектация'!$AY$1,'Доп комплектация'!$AY$3) -> 3392 | J6: =CEILING('Шкафы (2)'!J6*'Доп комплектация'!$AY$1,'Доп комплектация'!$AY$3) -> 4122 | K6: =CEILING('Шкафы (2)'!K6*'Доп комплектация'!$AY$1,'Доп комплектация'!$AY$3) -> 4362 | L6: =CEILING('Шкафы (2)'!L6*'Доп комплектация'!$AY$1,'Доп комплектация'!$AY$3) -> 0 | M6: =CEILING('Шкафы (2)'!M6*'Доп комплектация'!$AY$1,'Доп комплектация'!$AY$3) -> 4662 | N6: =CEILING('Шкафы (2)'!N6*'Доп комплектация'!$AY$1,'Доп комплектация'!$AY$3) -> 4902 | O6: =CEILING('Шкафы (2)'!O6*'Доп комплектация'!$AY$1,'Доп комплектация'!$AY$3) -> 3292 | P6: =CEILING('Шкафы (2)'!P6*'Доп комплектация'!$AY$1,'Доп комплектация'!$AY$3) -> 0 | Q6: =CEILING('Шкафы (2)'!Q6*'Доп комплектация'!$AY$1,'Доп комплектация'!$AY$3) -> 2862 | R6: =CEILING('Шкафы (2)'!R6*'Доп комплектация'!$AY$1,'Доп комплектация'!$AY$3) -> 2882 | S6: =CEILING('Шкафы (2)'!S6*'Доп комплектация'!$AY$1,'Доп комплектация'!$AY$3) -> 2922 | T6: =CEILING('Шкафы (2)'!T6*'Доп комплектация'!$AY$1,'Доп комплектация'!$AY$3) -> 3032 | U6: =CEILING('Шкафы (2)'!U6*'Доп комплектация'!$AY$1,'Доп комплектация'!$AY$3) -> 0 | V6: =CEILING('Шкафы (2)'!V6*'Доп комплектация'!$AY$1,'Доп комплектация'!$AY$3) -> 3722 | W6: =CEILING('Шкафы (2)'!W6*'Доп комплектация'!$AY$1,'Доп комплектация'!$AY$3) -> 4012 | X6: =CEILING('Шкафы (2)'!X6*'Доп комплектация'!$AY$1,'Доп комплектация'!$AY$3) -> 3922 | Y6: =CEILING('Шкафы (2)'!Y6*'Доп комплектация'!$AY$1,'Доп комплектация'!$AY$3) -> 4152 | Z6: =CEILING('Шкафы (2)'!Z6*'Доп комплектация'!$AY$1,'Доп комплектация'!$AY$3) -> 4552 | AA6: =CEILING('Шкафы (2)'!AA6*'Доп комплектация'!$AY$1,'Доп комплектация'!$AY$3) -> 4582 | AB6: =CEILING('Шкафы (2)'!AB6*'Доп комплектация'!$AY$1,'Доп комплектация'!$AY$3) -> 3782 | AC6: =CEILING('Шкафы (2)'!AC6*'Доп комплектация'!$AY$1,'Доп комплектация'!$AY$3) -> 3872 | AD6: =CEILING('Шкафы (2)'!AD6*'Доп комплектация'!$AY$1,'Доп комплектация'!$AY$3) -> 3992 | AE6: =CEILING('Шкафы (2)'!AE6*'Доп комплектация'!$AY$1,'Доп комплектация'!$AY$3) -> 4772 | AF6: =CEILING('Шкафы (2)'!AF6*'Доп комплектация'!$AY$1,'Доп комплектация'!$AY$3) -> 3572 | AG6: =CEILING('Шкафы (2)'!AG6*'Доп комплектация'!$AY$1,'Доп комплектация'!$AY$3) -> 3822 | AH6: =CEILING('Шкафы (2)'!AH6*'Доп комплектация'!$AY$1,'Доп комплектация'!$AY$3) -> 0 | AI6: =CEILING('Шкафы (2)'!AI6*'Доп комплектация'!$AY$1,'Доп комплектация'!$AY$3) -> 3422 | AJ6: =CEILING('Шкафы (2)'!AJ6*'Доп комплектация'!$AY$1,'Доп комплектация'!$AY$3) -> 3842 | AK6: - | AL6: - | AM6: - | AN6: - | AO6: - | AP6: - | AQ6: - | AR6: - | AS6: - | AT6: - | AU6: - | AV6: - | AW6: - | AX6: - | AY6: - | AZ6: - | BA6: - | BB6: - | BC6: - | BD6: -
D7: L-450 | E7: =CEILING('Шкафы (2)'!E7*'Доп комплектация'!$AY$1,'Доп комплектация'!$AY$3) -> 3221 | F7: =CEILING('Шкафы (2)'!F7*'Доп комплектация'!$AY$1,'Доп комплектация'!$AY$3) -> 3831 | G7: =CEILING('Шкафы (2)'!G7*'Доп комплектация'!$AY$1,'Доп комплектация'!$AY$3) -> 3311 | H7: =CEILING('Шкафы (2)'!H7*'Доп комплектация'!$AY$1,'Доп комплектация'!$AY$3) -> 3931 | I7: =CEILING('Шкафы (2)'!I7*'Доп комплектация'!$AY$1,'Доп комплектация'!$AY$3) -> 3541 | J7: =CEILING('Шкафы (2)'!J7*'Доп комплектация'!$AY$1,'Доп комплектация'!$AY$3) -> 4361 | K7: =CEILING('Шкафы (2)'!K7*'Доп комплектация'!$AY$1,'Доп комплектация'!$AY$3) -> 4631 | L7: =CEILING('Шкафы (2)'!L7*'Доп комплектация'!$AY$1,'Доп комплектация'!$AY$3) -> 0 | M7: =CEILING('Шкафы (2)'!M7*'Доп комплектация'!$AY$1,'Доп комплектация'!$AY$3) -> 4981 | N7: =CEILING('Шкафы (2)'!N7*'Доп комплектация'!$AY$1,'Доп комплектация'!$AY$3) -> 5241 | O7: =CEILING('Шкафы (2)'!O7*'Доп комплектация'!$AY$1,'Доп комплектация'!$AY$3) -> 3381 | P7: =CEILING('Шкафы (2)'!P7*'Доп комплектация'!$AY$1,'Доп комплектация'!$AY$3) -> 0 | Q7: =CEILING('Шкафы (2)'!Q7*'Доп комплектация'!$AY$1,'Доп комплектация'!$AY$3) -> 2951 | R7: =CEILING('Шкафы (2)'!R7*'Доп комплектация'!$AY$1,'Доп комплектация'!$AY$3) -> 2961 | S7: =CEILING('Шкафы (2)'!S7*'Доп комплектация'!$AY$1,'Доп комплектация'!$AY$3) -> 3011 | T7: =CEILING('Шкафы (2)'!T7*'Доп комплектация'!$AY$1,'Доп комплектация'!$AY$3) -> 3141 | U7: =CEILING('Шкафы (2)'!U7*'Доп комплектация'!$AY$1,'Доп комплектация'!$AY$3) -> 0 | V7: =CEILING('Шкафы (2)'!V7*'Доп комплектация'!$AY$1,'Доп комплектация'!$AY$3) -> 3901 | W7: =CEILING('Шкафы (2)'!W7*'Доп комплектация'!$AY$1,'Доп комплектация'!$AY$3) -> 4211 | X7: =CEILING('Шкафы (2)'!X7*'Доп комплектация'!$AY$1,'Доп комплектация'!$AY$3) -> 4121 | Y7: =CEILING('Шкафы (2)'!Y7*'Доп комплектация'!$AY$1,'Доп комплектация'!$AY$3) -> 4381 | Z7: =CEILING('Шкафы (2)'!Z7*'Доп комплектация'!$AY$1,'Доп комплектация'!$AY$3) -> 4781 | AA7: =CEILING('Шкафы (2)'!AA7*'Доп комплектация'!$AY$1,'Доп комплектация'!$AY$3) -> 4861 | AB7: =CEILING('Шкафы (2)'!AB7*'Доп комплектация'!$AY$1,'Доп комплектация'!$AY$3) -> 3961 | AC7: =CEILING('Шкафы (2)'!AC7*'Доп комплектация'!$AY$1,'Доп комплектация'!$AY$3) -> 4071 | AD7: =CEILING('Шкафы (2)'!AD7*'Доп комплектация'!$AY$1,'Доп комплектация'!$AY$3) -> 4211 | AE7: =CEILING('Шкафы (2)'!AE7*'Доп комплектация'!$AY$1,'Доп комплектация'!$AY$3) -> 5081 | AF7: =CEILING('Шкафы (2)'!AF7*'Доп комплектация'!$AY$1,'Доп комплектация'!$AY$3) -> 3731 | AG7: =CEILING('Шкафы (2)'!AG7*'Доп комплектация'!$AY$1,'Доп комплектация'!$AY$3) -> 4011 | AH7: =CEILING('Шкафы (2)'!AH7*'Доп комплектация'!$AY$1,'Доп комплектация'!$AY$3) -> 0 | AI7: =CEILING('Шкафы (2)'!AI7*'Доп комплектация'!$AY$1,'Доп комплектация'!$AY$3) -> 3571 | AJ7: =CEILING('Шкафы (2)'!AJ7*'Доп комплектация'!$AY$1,'Доп комплектация'!$AY$3) -> 4041 | AK7: - | AL7: - | AM7: - | AN7: - | AO7: - | AP7: - | AQ7: - | AR7: - | AS7: - | AT7: - | AU7: - | AV7: - | AW7: - | AX7: - | AY7: - | AZ7: - | BA7: - | BB7: - | BC7: - | BD7: -
D8: L-500 | E8: =CEILING('Шкафы (2)'!E8*'Доп комплектация'!$AY$1,'Доп комплектация'!$AY$3) -> 3339 | F8: =CEILING('Шкафы (2)'!F8*'Доп комплектация'!$AY$1,'Доп комплектация'!$AY$3) -> 4019 | G8: =CEILING('Шкафы (2)'!G8*'Доп комплектация'!$AY$1,'Доп комплектация'!$AY$3) -> 3439 | H8: =CEILING('Шкафы (2)'!H8*'Доп комплектация'!$AY$1,'Доп комплектация'!$AY$3) -> 4119 | I8: =CEILING('Шкафы (2)'!I8*'Доп комплектация'!$AY$1,'Доп комплектация'!$AY$3) -> 3699 | J8: =CEILING('Шкафы (2)'!J8*'Доп комплектация'!$AY$1,'Доп комплектация'!$AY$3) -> 4609 | K8: =CEILING('Шкафы (2)'!K8*'Доп комплектация'!$AY$1,'Доп комплектация'!$AY$3) -> 4899 | L8: =CEILING('Шкафы (2)'!L8*'Доп комплектация'!$AY$1,'Доп комплектация'!$AY$3) -> 0 | M8: =CEILING('Шкафы (2)'!M8*'Доп комплектация'!$AY$1,'Доп комплектация'!$AY$3) -> 5289 | N8: =CEILING('Шкафы (2)'!N8*'Доп комплектация'!$AY$1,'Доп комплектация'!$AY$3) -> 5579 | O8: =CEILING('Шкафы (2)'!O8*'Доп комплектация'!$AY$1,'Доп комплектация'!$AY$3) -> 3469 | P8: =CEILING('Шкафы (2)'!P8*'Доп комплектация'!$AY$1,'Доп комплектация'!$AY$3) -> 0 | Q8: =CEILING('Шкафы (2)'!Q8*'Доп комплектация'!$AY$1,'Доп комплектация'!$AY$3) -> 3029 | R8: =CEILING('Шкафы (2)'!R8*'Доп комплектация'!$AY$1,'Доп комплектация'!$AY$3) -> 3049 | S8: =CEILING('Шкафы (2)'!S8*'Доп комплектация'!$AY$1,'Доп комплектация'!$AY$3) -> 3099 | T8: =CEILING('Шкафы (2)'!T8*'Доп комплектация'!$AY$1,'Доп комплектация'!$AY$3) -> 3249 | U8: =CEILING('Шкафы (2)'!U8*'Доп комплектация'!$AY$1,'Доп комплектация'!$AY$3) -> 0 | V8: =CEILING('Шкафы (2)'!V8*'Доп комплектация'!$AY$1,'Доп комплектация'!$AY$3) -> 4079 | W8: =CEILING('Шкафы (2)'!W8*'Доп комплектация'!$AY$1,'Доп комплектация'!$AY$3) -> 4409 | X8: =CEILING('Шкафы (2)'!X8*'Доп комплектация'!$AY$1,'Доп комплектация'!$AY$3) -> 4329 | Y8: =CEILING('Шкафы (2)'!Y8*'Доп комплектация'!$AY$1,'Доп комплектация'!$AY$3) -> 4609 | Z8: =CEILING('Шкафы (2)'!Z8*'Доп комплектация'!$AY$1,'Доп комплектация'!$AY$3) -> 5019 | AA8: =CEILING('Шкафы (2)'!AA8*'Доп комплектация'!$AY$1,'Доп комплектация'!$AY$3) -> 5139 | AB8: =CEILING('Шкафы (2)'!AB8*'Доп комплектация'!$AY$1,'Доп комплектация'!$AY$3) -> 4149 | AC8: =CEILING('Шкафы (2)'!AC8*'Доп комплектация'!$AY$1,'Доп комплектация'!$AY$3) -> 4269 | AD8: =CEILING('Шкафы (2)'!AD8*'Доп комплектация'!$AY$1,'Доп комплектация'!$AY$3) -> 4419 | AE8: =CEILING('Шкафы (2)'!AE8*'Доп комплектация'!$AY$1,'Доп комплектация'!$AY$3) -> 5389 | AF8: =CEILING('Шкафы (2)'!AF8*'Доп комплектация'!$AY$1,'Доп комплектация'!$AY$3) -> 3889 | AG8: =CEILING('Шкафы (2)'!AG8*'Доп комплектация'!$AY$1,'Доп комплектация'!$AY$3) -> 4199 | AH8: =CEILING('Шкафы (2)'!AH8*'Доп комплектация'!$AY$1,'Доп комплектация'!$AY$3) -> 0 | AI8: =CEILING('Шкафы (2)'!AI8*'Доп комплектация'!$AY$1,'Доп комплектация'!$AY$3) -> 3719 | AJ8: =CEILING('Шкафы (2)'!AJ8*'Доп комплектация'!$AY$1,'Доп комплектация'!$AY$3) -> 4239 | AK8: - | AL8: - | AM8: - | AN8: - | AO8: - | AP8: - | AQ8: - | AR8: - | AS8: - | AT8: - | AU8: - | AV8: - | AW8: - | AX8: - | AY8: - | AZ8: - | BA8: - | BB8: - | BC8: - | BD8: -
D9: L-550 | E9: =CEILING('Шкафы (2)'!E9*'Доп комплектация'!$AY$1,'Доп комплектация'!$AY$3) -> 3458 | F9: =CEILING('Шкафы (2)'!F9*'Доп комплектация'!$AY$1,'Доп комплектация'!$AY$3) -> 4198 | G9: =CEILING('Шкафы (2)'!G9*'Доп комплектация'!$AY$1,'Доп комплектация'!$AY$3) -> 3568 | H9: =CEILING('Шкафы (2)'!H9*'Доп комплектация'!$AY$1,'Доп комплектация'!$AY$3) -> 4318 | I9: =CEILING('Шкафы (2)'!I9*'Доп комплектация'!$AY$1,'Доп комплектация'!$AY$3) -> 3848 | J9: =CEILING('Шкафы (2)'!J9*'Доп комплектация'!$AY$1,'Доп комплектация'!$AY$3) -> 4848 | K9: =CEILING('Шкафы (2)'!K9*'Доп комплектация'!$AY$1,'Доп комплектация'!$AY$3) -> 5178 | L9: =CEILING('Шкафы (2)'!L9*'Доп комплектация'!$AY$1,'Доп комплектация'!$AY$3) -> 0 | M9: =CEILING('Шкафы (2)'!M9*'Доп комплектация'!$AY$1,'Доп комплектация'!$AY$3) -> 5598 | N9: =CEILING('Шкафы (2)'!N9*'Доп комплектация'!$AY$1,'Доп комплектация'!$AY$3) -> 5928 | O9: =CEILING('Шкафы (2)'!O9*'Доп комплектация'!$AY$1,'Доп комплектация'!$AY$3) -> 3558 | P9: =CEILING('Шкафы (2)'!P9*'Доп комплектация'!$AY$1,'Доп комплектация'!$AY$3) -> 0 | Q9: =CEILING('Шкафы (2)'!Q9*'Доп комплектация'!$AY$1,'Доп комплектация'!$AY$3) -> 3118 | R9: =CEILING('Шкафы (2)'!R9*'Доп комплектация'!$AY$1,'Доп комплектация'!$AY$3) -> 3138 | S9: =CEILING('Шкафы (2)'!S9*'Доп комплектация'!$AY$1,'Доп комплектация'!$AY$3) -> 3198 | T9: =CEILING('Шкафы (2)'!T9*'Доп комплектация'!$AY$1,'Доп комплектация'!$AY$3) -> 3348 | U9: =CEILING('Шкафы (2)'!U9*'Доп комплектация'!$AY$1,'Доп комплектация'!$AY$3) -> 0 | V9: =CEILING('Шкафы (2)'!V9*'Доп комплектация'!$AY$1,'Доп комплектация'!$AY$3) -> 4258 | W9: =CEILING('Шкафы (2)'!W9*'Доп комплектация'!$AY$1,'Доп комплектация'!$AY$3) -> 4598 | X9: =CEILING('Шкафы (2)'!X9*'Доп комплектация'!$AY$1,'Доп комплектация'!$AY$3) -> 4528 | Y9: =CEILING('Шкафы (2)'!Y9*'Доп комплектация'!$AY$1,'Доп комплектация'!$AY$3) -> 4838 | Z9: =CEILING('Шкафы (2)'!Z9*'Доп комплектация'!$AY$1,'Доп комплектация'!$AY$3) -> 5248 | AA9: =CEILING('Шкафы (2)'!AA9*'Доп комплектация'!$AY$1,'Доп комплектация'!$AY$3) -> 5418 | AB9: =CEILING('Шкафы (2)'!AB9*'Доп комплектация'!$AY$1,'Доп комплектация'!$AY$3) -> 4338 | AC9: =CEILING('Шкафы (2)'!AC9*'Доп комплектация'!$AY$1,'Доп комплектация'!$AY$3) -> 4468 | AD9: =CEILING('Шкафы (2)'!AD9*'Доп комплектация'!$AY$1,'Доп комплектация'!$AY$3) -> 4638 | AE9: =CEILING('Шкафы (2)'!AE9*'Доп комплектация'!$AY$1,'Доп комплектация'!$AY$3) -> 5698 | AF9: =CEILING('Шкафы (2)'!AF9*'Доп комплектация'!$AY$1,'Доп комплектация'!$AY$3) -> 4048 | AG9: =CEILING('Шкафы (2)'!AG9*'Доп комплектация'!$AY$1,'Доп комплектация'!$AY$3) -> 4388 | AH9: =CEILING('Шкафы (2)'!AH9*'Доп комплектация'!$AY$1,'Доп комплектация'!$AY$3) -> 0 | AI9: =CEILING('Шкафы (2)'!AI9*'Доп комплектация'!$AY$1,'Доп комплектация'!$AY$3) -> 3868 | AJ9: =CEILING('Шкафы (2)'!AJ9*'Доп комплектация'!$AY$1,'Доп комплектация'!$AY$3) -> 4438 | AK9: - | AL9: - | AM9: - | AN9: - | AO9: - | AP9: - | AQ9: - | AR9: - | AS9: - | AT9: - | AU9: - | AV9: - | AW9: - | AX9: - | AY9: - | AZ9: - | BA9: - | BB9: - | BC9: - | BD9: -
C10: Шкаф 1дв Н=400 | D10: L-300 | E10: =CEILING('Шкафы (2)'!E10*'Доп комплектация'!$AY$1,'Доп комплектация'!$AY$3) -> 2963 | F10: =CEILING('Шкафы (2)'!F10*'Доп комплектация'!$AY$1,'Доп комплектация'!$AY$3) -> 3413 | G10: =CEILING('Шкафы (2)'!G10*'Доп комплектация'!$AY$1,'Доп комплектация'!$AY$3) -> 3033 | H10: =CEILING('Шкафы (2)'!H10*'Доп комплектация'!$AY$1,'Доп комплектация'!$AY$3) -> 3483 | I10: =CEILING('Шкафы (2)'!I10*'Доп комплектация'!$AY$1,'Доп комплектация'!$AY$3) -> 3193 | J10: =CEILING('Шкафы (2)'!J10*'Доп комплектация'!$AY$1,'Доп комплектация'!$AY$3) -> 3803 | K10: =CEILING('Шкафы (2)'!K10*'Доп комплектация'!$AY$1,'Доп комплектация'!$AY$3) -> 4003 | L10: =CEILING('Шкафы (2)'!L10*'Доп комплектация'!$AY$1,'Доп комплектация'!$AY$3) -> 0 | M10: =CEILING('Шкафы (2)'!M10*'Доп комплектация'!$AY$1,'Доп комплектация'!$AY$3) -> 4253 | N10: =CEILING('Шкафы (2)'!N10*'Доп комплектация'!$AY$1,'Доп комплектация'!$AY$3) -> 4453 | O10: =CEILING('Шкафы (2)'!O10*'Доп комплектация'!$AY$1,'Доп комплектация'!$AY$3) -> 3203 | P10: =CEILING('Шкафы (2)'!P10*'Доп комплектация'!$AY$1,'Доп комплектация'!$AY$3) -> 0 | Q10: =CEILING('Шкафы (2)'!Q10*'Доп комплектация'!$AY$1,'Доп комплектация'!$AY$3) -> 2753 | R10: =CEILING('Шкафы (2)'!R10*'Доп комплектация'!$AY$1,'Доп комплектация'!$AY$3) -> 2773 | S10: =CEILING('Шкафы (2)'!S10*'Доп комплектация'!$AY$1,'Доп комплектация'!$AY$3) -> 2803 | T10: =CEILING('Шкафы (2)'!T10*'Доп комплектация'!$AY$1,'Доп комплектация'!$AY$3) -> 2903 | U10: =CEILING('Шкафы (2)'!U10*'Доп комплектация'!$AY$1,'Доп комплектация'!$AY$3) -> 0 | V10: =CEILING('Шкафы (2)'!V10*'Доп комплектация'!$AY$1,'Доп комплектация'!$AY$3) -> 3493 | W10: =CEILING('Шкафы (2)'!W10*'Доп комплектация'!$AY$1,'Доп комплектация'!$AY$3) -> 3763 | X10: =CEILING('Шкафы (2)'!X10*'Доп комплектация'!$AY$1,'Доп комплектация'!$AY$3) -> 3663 | Y10: =CEILING('Шкафы (2)'!Y10*'Доп комплектация'!$AY$1,'Доп комплектация'!$AY$3) -> 3843 | Z10: =CEILING('Шкафы (2)'!Z10*'Доп комплектация'!$AY$1,'Доп комплектация'!$AY$3) -> 4283 | AA10: =CEILING('Шкафы (2)'!AA10*'Доп комплектация'!$AY$1,'Доп комплектация'!$AY$3) -> 4223 | AB10: =CEILING('Шкафы (2)'!AB10*'Доп комплектация'!$AY$1,'Доп комплектация'!$AY$3) -> 3543 | AC10: =CEILING('Шкафы (2)'!AC10*'Доп комплектация'!$AY$1,'Доп комплектация'!$AY$3) -> 3623 | AD10: =CEILING('Шкафы (2)'!AD10*'Доп комплектация'!$AY$1,'Доп комплектация'!$AY$3) -> 3723 | AE10: =CEILING('Шкафы (2)'!AE10*'Доп комплектация'!$AY$1,'Доп комплектация'!$AY$3) -> 4363 | AF10: =CEILING('Шкафы (2)'!AF10*'Доп комплектация'!$AY$1,'Доп комплектация'!$AY$3) -> 3363 | AG10: =CEILING('Шкафы (2)'!AG10*'Доп комплектация'!$AY$1,'Доп комплектация'!$AY$3) -> 3573 | AH10: =CEILING('Шкафы (2)'!AH10*'Доп комплектация'!$AY$1,'Доп комплектация'!$AY$3) -> 0 | AI10: =CEILING('Шкафы (2)'!AI10*'Доп комплектация'!$AY$1,'Доп комплектация'!$AY$3) -> 3233 | AJ10: =CEILING('Шкафы (2)'!AJ10*'Доп комплектация'!$AY$1,'Доп комплектация'!$AY$3) -> 3573 | AK10: - | AL10: - | AM10: - | AN10: - | AO10: - | AP10: - | AQ10: - | AR10: - | AS10: - | AT10: - | AU10: - | AV10: - | AW10: - | AX10: - | AY10: - | AZ10: - | BA10: - | BB10: - | BC10: - | BD10: -
D11: L-350 | E11: =CEILING('Шкафы (2)'!E11*'Доп комплектация'!$AY$1,'Доп комплектация'!$AY$3) -> 3083 | F11: =CEILING('Шкафы (2)'!F11*'Доп комплектация'!$AY$1,'Доп комплектация'!$AY$3) -> 3613 | G11: =CEILING('Шкафы (2)'!G11*'Доп комплектация'!$AY$1,'Доп комплектация'!$AY$3) -> 3163 | H11: =CEILING('Шкафы (2)'!H11*'Доп комплектация'!$AY$1,'Доп комплектация'!$AY$3) -> 3693 | I11: =CEILING('Шкафы (2)'!I11*'Доп комплектация'!$AY$1,'Доп комплектация'!$AY$3) -> 3363 | J11: =CEILING('Шкафы (2)'!J11*'Доп комплектация'!$AY$1,'Доп комплектация'!$AY$3) -> 4073 | K11: =CEILING('Шкафы (2)'!K11*'Доп комплектация'!$AY$1,'Доп комплектация'!$AY$3) -> 4303 | L11: =CEILING('Шкафы (2)'!L11*'Доп комплектация'!$AY$1,'Доп комплектация'!$AY$3) -> 0 | M11: =CEILING('Шкафы (2)'!M11*'Доп комплектация'!$AY$1,'Доп комплектация'!$AY$3) -> 4593 | N11: =CEILING('Шкафы (2)'!N11*'Доп комплектация'!$AY$1,'Доп комплектация'!$AY$3) -> 4823 | O11: =CEILING('Шкафы (2)'!O11*'Доп комплектация'!$AY$1,'Доп комплектация'!$AY$3) -> 3273 | P11: =CEILING('Шкафы (2)'!P11*'Доп комплектация'!$AY$1,'Доп комплектация'!$AY$3) -> 0 | Q11: =CEILING('Шкафы (2)'!Q11*'Доп комплектация'!$AY$1,'Доп комплектация'!$AY$3) -> 2843 | R11: =CEILING('Шкафы (2)'!R11*'Доп комплектация'!$AY$1,'Доп комплектация'!$AY$3) -> 2863 | S11: =CEILING('Шкафы (2)'!S11*'Доп комплектация'!$AY$1,'Доп комплектация'!$AY$3) -> 2903 | T11: =CEILING('Шкафы (2)'!T11*'Доп комплектация'!$AY$1,'Доп комплектация'!$AY$3) -> 3013 | U11: =CEILING('Шкафы (2)'!U11*'Доп комплектация'!$AY$1,'Доп комплектация'!$AY$3) -> 0 | V11: =CEILING('Шкафы (2)'!V11*'Доп комплектация'!$AY$1,'Доп комплектация'!$AY$3) -> 3693 | W11: =CEILING('Шкафы (2)'!W11*'Доп комплектация'!$AY$1,'Доп комплектация'!$AY$3) -> 3973 | X11: =CEILING('Шкафы (2)'!X11*'Доп комплектация'!$AY$1,'Доп комплектация'!$AY$3) -> 3873 | Y11: =CEILING('Шкафы (2)'!Y11*'Доп комплектация'!$AY$1,'Доп комплектация'!$AY$3) -> 4103 | Z11: =CEILING('Шкафы (2)'!Z11*'Доп комплектация'!$AY$1,'Доп комплектация'!$AY$3) -> 4503 | AA11: =CEILING('Шкафы (2)'!AA11*'Доп комплектация'!$AY$1,'Доп комплектация'!$AY$3) -> 4523 | AB11: =CEILING('Шкафы (2)'!AB11*'Доп комплектация'!$AY$1,'Доп комплектация'!$AY$3) -> 3743 | AC11: =CEILING('Шкафы (2)'!AC11*'Доп комплектация'!$AY$1,'Доп комплектация'!$AY$3) -> 3833 | AD11: =CEILING('Шкафы (2)'!AD11*'Доп комплектация'!$AY$1,'Доп комплектация'!$AY$3) -> 3953 | AE11: =CEILING('Шкафы (2)'!AE11*'Доп комплектация'!$AY$1,'Доп комплектация'!$AY$3) -> 4703 | AF11: =CEILING('Шкафы (2)'!AF11*'Доп комплектация'!$AY$1,'Доп комплектация'!$AY$3) -> 3533 | AG11: =CEILING('Шкафы (2)'!AG11*'Доп комплектация'!$AY$1,'Доп комплектация'!$AY$3) -> 3783 | AH11: =CEILING('Шкафы (2)'!AH11*'Доп комплектация'!$AY$1,'Доп комплектация'!$AY$3) -> 0 | AI11: =CEILING('Шкафы (2)'!AI11*'Доп комплектация'!$AY$1,'Доп комплектация'!$AY$3) -> 3393 | AJ11: =CEILING('Шкафы (2)'!AJ11*'Доп комплектация'!$AY$1,'Доп комплектация'!$AY$3) -> 3793 | AK11: - | AL11: - | AM11: - | AN11: - | AO11: - | AP11: - | AQ11: - | AR11: - | AS11: - | AT11: - | AU11: - | AV11: - | AW11: - | AX11: - | AY11: - | AZ11: - | BA11: - | BB11: - | BC11: - | BD11: -
D12: L-400 | E12: =CEILING('Шкафы (2)'!E12*'Доп комплектация'!$AY$1,'Доп комплектация'!$AY$3) -> 3201 | F12: =CEILING('Шкафы (2)'!F12*'Доп комплектация'!$AY$1,'Доп комплектация'!$AY$3) -> 3811 | G12: =CEILING('Шкафы (2)'!G12*'Доп комплектация'!$AY$1,'Доп комплектация'!$AY$3) -> 3301 | H12: =CEILING('Шкафы (2)'!H12*'Доп комплектация'!$AY$1,'Доп комплектация'!$AY$3) -> 3901 | I12: =CEILING('Шкафы (2)'!I12*'Доп комплектация'!$AY$1,'Доп комплектация'!$AY$3) -> 3521 | J12: =CEILING('Шкафы (2)'!J12*'Доп комплектация'!$AY$1,'Доп комплектация'!$AY$3) -> 4331 | K12: =CEILING('Шкафы (2)'!K12*'Доп комплектация'!$AY$1,'Доп комплектация'!$AY$3) -> 4601 | L12: =CEILING('Шкафы (2)'!L12*'Доп комплектация'!$AY$1,'Доп комплектация'!$AY$3) -> 0 | M12: =CEILING('Шкафы (2)'!M12*'Доп комплектация'!$AY$1,'Доп комплектация'!$AY$3) -> 4941 | N12: =CEILING('Шкафы (2)'!N12*'Доп комплектация'!$AY$1,'Доп комплектация'!$AY$3) -> 5201 | O12: =CEILING('Шкафы (2)'!O12*'Доп комплектация'!$AY$1,'Доп комплектация'!$AY$3) -> 3361 | P12: =CEILING('Шкафы (2)'!P12*'Доп комплектация'!$AY$1,'Доп комплектация'!$AY$3) -> 0 | Q12: =CEILING('Шкафы (2)'!Q12*'Доп комплектация'!$AY$1,'Доп комплектация'!$AY$3) -> 2931 | R12: =CEILING('Шкафы (2)'!R12*'Доп комплектация'!$AY$1,'Доп комплектация'!$AY$3) -> 2951 | S12: =CEILING('Шкафы (2)'!S12*'Доп комплектация'!$AY$1,'Доп комплектация'!$AY$3) -> 3001 | T12: =CEILING('Шкафы (2)'!T12*'Доп комплектация'!$AY$1,'Доп комплектация'!$AY$3) -> 3121 | U12: =CEILING('Шкафы (2)'!U12*'Доп комплектация'!$AY$1,'Доп комплектация'!$AY$3) -> 0 | V12: =CEILING('Шкафы (2)'!V12*'Доп комплектация'!$AY$1,'Доп комплектация'!$AY$3) -> 3881 | W12: =CEILING('Шкафы (2)'!W12*'Доп комплектация'!$AY$1,'Доп комплектация'!$AY$3) -> 4181 | X12: =CEILING('Шкафы (2)'!X12*'Доп комплектация'!$AY$1,'Доп комплектация'!$AY$3) -> 4091 | Y12: =CEILING('Шкафы (2)'!Y12*'Доп комплектация'!$AY$1,'Доп комплектация'!$AY$3) -> 4351 | Z12: =CEILING('Шкафы (2)'!Z12*'Доп комплектация'!$AY$1,'Доп комплектация'!$AY$3) -> 4751 | AA12: =CEILING('Шкафы (2)'!AA12*'Доп комплектация'!$AY$1,'Доп комплектация'!$AY$3) -> 4821 | AB12: =CEILING('Шкафы (2)'!AB12*'Доп комплектация'!$AY$1,'Доп комплектация'!$AY$3) -> 3941 | AC12: =CEILING('Шкафы (2)'!AC12*'Доп комплектация'!$AY$1,'Доп комплектация'!$AY$3) -> 4041 | AD12: =CEILING('Шкафы (2)'!AD12*'Доп комплектация'!$AY$1,'Доп комплектация'!$AY$3) -> 4181 | AE12: =CEILING('Шкафы (2)'!AE12*'Доп комплектация'!$AY$1,'Доп комплектация'!$AY$3) -> 5041 | AF12: =CEILING('Шкафы (2)'!AF12*'Доп комплектация'!$AY$1,'Доп комплектация'!$AY$3) -> 3701 | AG12: =CEILING('Шкафы (2)'!AG12*'Доп комплектация'!$AY$1,'Доп комплектация'!$AY$3) -> 3981 | AH12: =CEILING('Шкафы (2)'!AH12*'Доп комплектация'!$AY$1,'Доп комплектация'!$AY$3) -> 0 | AI12: =CEILING('Шкафы (2)'!AI12*'Доп комплектация'!$AY$1,'Доп комплектация'!$AY$3) -> 3551 | AJ12: =CEILING('Шкафы (2)'!AJ12*'Доп комплектация'!$AY$1,'Доп комплектация'!$AY$3) -> 4011 | AK12: - | AL12: - | AM12: - | AN12: - | AO12: - | AP12: - | AQ12: - | AR12: - | AS12: - | AT12: - | AU12: - | AV12: - | AW12: - | AX12: - | AY12: - | AZ12: - | BA12: - | BB12: - | BC12: - | BD12: - | BE12: Н=400
D13: L-450 | E13: =CEILING('Шкафы (2)'!E13*'Доп комплектация'!$AY$1,'Доп комплектация'!$AY$3) -> 3331 | F13: =CEILING('Шкафы (2)'!F13*'Доп комплектация'!$AY$1,'Доп комплектация'!$AY$3) -> 4011 | G13: =CEILING('Шкафы (2)'!G13*'Доп комплектация'!$AY$1,'Доп комплектация'!$AY$3) -> 3431 | H13: =CEILING('Шкафы (2)'!H13*'Доп комплектация'!$AY$1,'Доп комплектация'!$AY$3) -> 4111 | I13: =CEILING('Шкафы (2)'!I13*'Доп комплектация'!$AY$1,'Доп комплектация'!$AY$3) -> 3691 | J13: =CEILING('Шкафы (2)'!J13*'Доп комплектация'!$AY$1,'Доп комплектация'!$AY$3) -> 4601 | K13: =CEILING('Шкафы (2)'!K13*'Доп комплектация'!$AY$1,'Доп комплектация'!$AY$3) -> 4901 | L13: =CEILING('Шкафы (2)'!L13*'Доп комплектация'!$AY$1,'Доп комплектация'!$AY$3) -> 0 | M13: =CEILING('Шкафы (2)'!M13*'Доп комплектация'!$AY$1,'Доп комплектация'!$AY$3) -> 5281 | N13: =CEILING('Шкафы (2)'!N13*'Доп комплектация'!$AY$1,'Доп комплектация'!$AY$3) -> 5581 | O13: =CEILING('Шкафы (2)'!O13*'Доп комплектация'!$AY$1,'Доп комплектация'!$AY$3) -> 3461 | P13: =CEILING('Шкафы (2)'!P13*'Доп комплектация'!$AY$1,'Доп комплектация'!$AY$3) -> 0 | Q13: =CEILING('Шкафы (2)'!Q13*'Доп комплектация'!$AY$1,'Доп комплектация'!$AY$3) -> 3021 | R13: =CEILING('Шкафы (2)'!R13*'Доп комплектация'!$AY$1,'Доп комплектация'!$AY$3) -> 3041 | S13: =CEILING('Шкафы (2)'!S13*'Доп комплектация'!$AY$1,'Доп комплектация'!$AY$3) -> 3091 | T13: =CEILING('Шкафы (2)'!T13*'Доп комплектация'!$AY$1,'Доп комплектация'!$AY$3) -> 3241 | U13: =CEILING('Шкафы (2)'!U13*'Доп комплектация'!$AY$1,'Доп комплектация'!$AY$3) -> 0 | V13: =CEILING('Шкафы (2)'!V13*'Доп комплектация'!$AY$1,'Доп комплектация'!$AY$3) -> 4071 | W13: =CEILING('Шкафы (2)'!W13*'Доп комплектация'!$AY$1,'Доп комплектация'!$AY$3) -> 4391 | X13: =CEILING('Шкафы (2)'!X13*'Доп комплектация'!$AY$1,'Доп комплектация'!$AY$3) -> 4311 | Y13: =CEILING('Шкафы (2)'!Y13*'Доп комплектация'!$AY$1,'Доп комплектация'!$AY$3) -> 4601 | Z13: =CEILING('Шкафы (2)'!Z13*'Доп комплектация'!$AY$1,'Доп комплектация'!$AY$3) -> 5001 | AA13: =CEILING('Шкафы (2)'!AA13*'Доп комплектация'!$AY$1,'Доп комплектация'!$AY$3) -> 5131 | AB13: =CEILING('Шкафы (2)'!AB13*'Доп комплектация'!$AY$1,'Доп комплектация'!$AY$3) -> 4141 | AC13: =CEILING('Шкафы (2)'!AC13*'Доп комплектация'!$AY$1,'Доп комплектация'!$AY$3) -> 4261 | AD13: =CEILING('Шкафы (2)'!AD13*'Доп комплектация'!$AY$1,'Доп комплектация'!$AY$3) -> 4411 | AE13: =CEILING('Шкафы (2)'!AE13*'Доп комплектация'!$AY$1,'Доп комплектация'!$AY$3) -> 5381 | AF13: =CEILING('Шкафы (2)'!AF13*'Доп комплектация'!$AY$1,'Доп комплектация'!$AY$3) -> 3871 | AG13: =CEILING('Шкафы (2)'!AG13*'Доп комплектация'!$AY$1,'Доп комплектация'!$AY$3) -> 4191 | AH13: =CEILING('Шкафы (2)'!AH13*'Доп комплектация'!$AY$1,'Доп комплектация'!$AY$3) -> 0 | AI13: =CEILING('Шкафы (2)'!AI13*'Доп комплектация'!$AY$1,'Доп комплектация'!$AY$3) -> 3711 | AJ13: =CEILING('Шкафы (2)'!AJ13*'Доп комплектация'!$AY$1,'Доп комплектация'!$AY$3) -> 4231 | AK13: - | AL13: - | AM13: - | AN13: - | AO13: - | AP13: - | AQ13: - | AR13: - | AS13: - | AT13: - | AU13: - | AV13: - | AW13: - | AX13: - | AY13: - | AZ13: - | BA13: - | BB13: - | BC13: - | BD13: -
D14: L-500 | E14: =CEILING('Шкафы (2)'!E14*'Доп комплектация'!$AY$1,'Доп комплектация'!$AY$3) -> 3450 | F14: =CEILING('Шкафы (2)'!F14*'Доп комплектация'!$AY$1,'Доп комплектация'!$AY$3) -> 4210 | G14: =CEILING('Шкафы (2)'!G14*'Доп комплектация'!$AY$1,'Доп комплектация'!$AY$3) -> 3570 | H14: =CEILING('Шкафы (2)'!H14*'Доп комплектация'!$AY$1,'Доп комплектация'!$AY$3) -> 4320 | I14: =CEILING('Шкафы (2)'!I14*'Доп комплектация'!$AY$1,'Доп комплектация'!$AY$3) -> 3850 | J14: =CEILING('Шкафы (2)'!J14*'Доп комплектация'!$AY$1,'Доп комплектация'!$AY$3) -> 4860 | K14: =CEILING('Шкафы (2)'!K14*'Доп комплектация'!$AY$1,'Доп комплектация'!$AY$3) -> 5190 | L14: =CEILING('Шкафы (2)'!L14*'Доп комплектация'!$AY$1,'Доп комплектация'!$AY$3) -> 0 | M14: =CEILING('Шкафы (2)'!M14*'Доп комплектация'!$AY$1,'Доп комплектация'!$AY$3) -> 5620 | N14: =CEILING('Шкафы (2)'!N14*'Доп комплектация'!$AY$1,'Доп комплектация'!$AY$3) -> 5950 | O14: =CEILING('Шкафы (2)'!O14*'Доп комплектация'!$AY$1,'Доп комплектация'!$AY$3) -> 3550 | P14: =CEILING('Шкафы (2)'!P14*'Доп комплектация'!$AY$1,'Доп комплектация'!$AY$3) -> 0 | Q14: =CEILING('Шкафы (2)'!Q14*'Доп комплектация'!$AY$1,'Доп комплектация'!$AY$3) -> 3110 | R14: =CEILING('Шкафы (2)'!R14*'Доп комплектация'!$AY$1,'Доп комплектация'!$AY$3) -> 3130 | S14: =CEILING('Шкафы (2)'!S14*'Доп комплектация'!$AY$1,'Доп комплектация'!$AY$3) -> 3190 | T14: =CEILING('Шкафы (2)'!T14*'Доп комплектация'!$AY$1,'Доп комплектация'!$AY$3) -> 3350 | U14: =CEILING('Шкафы (2)'!U14*'Доп комплектация'!$AY$1,'Доп комплектация'!$AY$3) -> 0 | V14: =CEILING('Шкафы (2)'!V14*'Доп комплектация'!$AY$1,'Доп комплектация'!$AY$3) -> 4260 | W14: =CEILING('Шкафы (2)'!W14*'Доп комплектация'!$AY$1,'Доп комплектация'!$AY$3) -> 4600 | X14: =CEILING('Шкафы (2)'!X14*'Доп комплектация'!$AY$1,'Доп комплектация'!$AY$3) -> 4530 | Y14: =CEILING('Шкафы (2)'!Y14*'Доп комплектация'!$AY$1,'Доп комплектация'!$AY$3) -> 4850 | Z14: =CEILING('Шкафы (2)'!Z14*'Доп комплектация'!$AY$1,'Доп комплектация'!$AY$3) -> 5250 | AA14: =CEILING('Шкафы (2)'!AA14*'Доп комплектация'!$AY$1,'Доп комплектация'!$AY$3) -> 5430 | AB14: =CEILING('Шкафы (2)'!AB14*'Доп комплектация'!$AY$1,'Доп комплектация'!$AY$3) -> 4340 | AC14: =CEILING('Шкафы (2)'!AC14*'Доп комплектация'!$AY$1,'Доп комплектация'!$AY$3) -> 4470 | AD14: =CEILING('Шкафы (2)'!AD14*'Доп комплектация'!$AY$1,'Доп комплектация'!$AY$3) -> 4640 | AE14: =CEILING('Шкафы (2)'!AE14*'Доп комплектация'!$AY$1,'Доп комплектация'!$AY$3) -> 5720 | AF14: =CEILING('Шкафы (2)'!AF14*'Доп комплектация'!$AY$1,'Доп комплектация'!$AY$3) -> 4040 | AG14: =CEILING('Шкафы (2)'!AG14*'Доп комплектация'!$AY$1,'Доп комплектация'!$AY$3) -> 4390 | AH14: =CEILING('Шкафы (2)'!AH14*'Доп комплектация'!$AY$1,'Доп комплектация'!$AY$3) -> 0 | AI14: =CEILING('Шкафы (2)'!AI14*'Доп комплектация'!$AY$1,'Доп комплектация'!$AY$3) -> 3870 | AJ14: =CEILING('Шкафы (2)'!AJ14*'Доп комплектация'!$AY$1,'Доп комплектация'!$AY$3) -> 4450 | AK14: - | AL14: - | AM14: - | AN14: - | AO14: - | AP14: - | AQ14: - | AR14: - | AS14: - | AT14: - | AU14: - | AV14: - | AW14: - | AX14: - | AY14: - | AZ14: - | BA14: - | BB14: - | BC14: - | BD14: -
D15: L-550 | E15: =CEILING('Шкафы (2)'!E15*'Доп комплектация'!$AY$1,'Доп комплектация'!$AY$3) -> 3579 | F15: =CEILING('Шкафы (2)'!F15*'Доп комплектация'!$AY$1,'Доп комплектация'!$AY$3) -> 4409 | G15: =CEILING('Шкафы (2)'!G15*'Доп комплектация'!$AY$1,'Доп комплектация'!$AY$3) -> 3699 | H15: =CEILING('Шкафы (2)'!H15*'Доп комплектация'!$AY$1,'Доп комплектация'!$AY$3) -> 4529 | I15: =CEILING('Шкафы (2)'!I15*'Доп комплектация'!$AY$1,'Доп комплектация'!$AY$3) -> 4009 | J15: =CEILING('Шкафы (2)'!J15*'Доп комплектация'!$AY$1,'Доп комплектация'!$AY$3) -> 5129 | K15: =CEILING('Шкафы (2)'!K15*'Доп комплектация'!$AY$1,'Доп комплектация'!$AY$3) -> 5489 | L15: =CEILING('Шкафы (2)'!L15*'Доп комплектация'!$AY$1,'Доп комплектация'!$AY$3) -> 0 | M15: =CEILING('Шкафы (2)'!M15*'Доп комплектация'!$AY$1,'Доп комплектация'!$AY$3) -> 5959 | N15: =CEILING('Шкафы (2)'!N15*'Доп комплектация'!$AY$1,'Доп комплектация'!$AY$3) -> 6329 | O15: =CEILING('Шкафы (2)'!O15*'Доп комплектация'!$AY$1,'Доп комплектация'!$AY$3) -> 3649 | P15: =CEILING('Шкафы (2)'!P15*'Доп комплектация'!$AY$1,'Доп комплектация'!$AY$3) -> 0 | Q15: =CEILING('Шкафы (2)'!Q15*'Доп комплектация'!$AY$1,'Доп комплектация'!$AY$3) -> 3199 | R15: =CEILING('Шкафы (2)'!R15*'Доп комплектация'!$AY$1,'Доп комплектация'!$AY$3) -> 3219 | S15: =CEILING('Шкафы (2)'!S15*'Доп комплектация'!$AY$1,'Доп комплектация'!$AY$3) -> 3289 | T15: =CEILING('Шкафы (2)'!T15*'Доп комплектация'!$AY$1,'Доп комплектация'!$AY$3) -> 3459 | U15: =CEILING('Шкафы (2)'!U15*'Доп комплектация'!$AY$1,'Доп комплектация'!$AY$3) -> 0 | V15: =CEILING('Шкафы (2)'!V15*'Доп комплектация'!$AY$1,'Доп комплектация'!$AY$3) -> 4449 | W15: =CEILING('Шкафы (2)'!W15*'Доп комплектация'!$AY$1,'Доп комплектация'!$AY$3) -> 4809 | X15: =CEILING('Шкафы (2)'!X15*'Доп комплектация'!$AY$1,'Доп комплектация'!$AY$3) -> 4749 | Y15: =CEILING('Шкафы (2)'!Y15*'Доп комплектация'!$AY$1,'Доп комплектация'!$AY$3) -> 5099 | Z15: =CEILING('Шкафы (2)'!Z15*'Доп комплектация'!$AY$1,'Доп комплектация'!$AY$3) -> 5499 | AA15: =CEILING('Шкафы (2)'!AA15*'Доп комплектация'!$AY$1,'Доп комплектация'!$AY$3) -> 5739 | AB15: =CEILING('Шкафы (2)'!AB15*'Доп комплектация'!$AY$1,'Доп комплектация'!$AY$3) -> 4539 | AC15: =CEILING('Шкафы (2)'!AC15*'Доп комплектация'!$AY$1,'Доп комплектация'!$AY$3) -> 4689 | AD15: =CEILING('Шкафы (2)'!AD15*'Доп комплектация'!$AY$1,'Доп комплектация'!$AY$3) -> 4869 | AE15: =CEILING('Шкафы (2)'!AE15*'Доп комплектация'!$AY$1,'Доп комплектация'!$AY$3) -> 6059 | AF15: =CEILING('Шкафы (2)'!AF15*'Доп комплектация'!$AY$1,'Доп комплектация'!$AY$3) -> 4209 | AG15: =CEILING('Шкафы (2)'!AG15*'Доп комплектация'!$AY$1,'Доп комплектация'!$AY$3) -> 4599 | AH15: =CEILING('Шкафы (2)'!AH15*'Доп комплектация'!$AY$1,'Доп комплектация'!$AY$3) -> 0 | AI15: =CEILING('Шкафы (2)'!AI15*'Доп комплектация'!$AY$1,'Доп комплектация'!$AY$3) -> 4029 | AJ15: =CEILING('Шкафы (2)'!AJ15*'Доп комплектация'!$AY$1,'Доп комплектация'!$AY$3) -> 4669 | AK15: - | AL15: - | AM15: - | AN15: - | AO15: - | AP15: - | AQ15: - | AR15: - | AS15: - | AT15: - | AU15: - | AV15: - | AW15: - | AX15: - | AY15: - | AZ15: - | BA15: - | BB15: - | BC15: - | BD15: -
D16: L=600 | E16: =CEILING('Шкафы (2)'!E16*'Доп комплектация'!$AY$1,'Доп комплектация'!$AY$3) -> 3698 | F16: =CEILING('Шкафы (2)'!F16*'Доп комплектация'!$AY$1,'Доп комплектация'!$AY$3) -> 4608 | G16: =CEILING('Шкафы (2)'!G16*'Доп комплектация'!$AY$1,'Доп комплектация'!$AY$3) -> 3838 | H16: =CEILING('Шкафы (2)'!H16*'Доп комплектация'!$AY$1,'Доп комплектация'!$AY$3) -> 4748 | I16: =CEILING('Шкафы (2)'!I16*'Доп комплектация'!$AY$1,'Доп комплектация'!$AY$3) -> 4178 | J16: =CEILING('Шкафы (2)'!J16*'Доп комплектация'!$AY$1,'Доп комплектация'!$AY$3) -> 5398 | K16: =CEILING('Шкафы (2)'!K16*'Доп комплектация'!$AY$1,'Доп комплектация'!$AY$3) -> 5788 | L16: =CEILING('Шкафы (2)'!L16*'Доп комплектация'!$AY$1,'Доп комплектация'!$AY$3) -> 0 | M16: =CEILING('Шкафы (2)'!M16*'Доп комплектация'!$AY$1,'Доп комплектация'!$AY$3) -> 6308 | N16: =CEILING('Шкафы (2)'!N16*'Доп комплектация'!$AY$1,'Доп комплектация'!$AY$3) -> 6698 | O16: =CEILING('Шкафы (2)'!O16*'Доп комплектация'!$AY$1,'Доп комплектация'!$AY$3) -> 3738 | P16: =CEILING('Шкафы (2)'!P16*'Доп комплектация'!$AY$1,'Доп комплектация'!$AY$3) -> 0 | Q16: =CEILING('Шкафы (2)'!Q16*'Доп комплектация'!$AY$1,'Доп комплектация'!$AY$3) -> 3288 | R16: =CEILING('Шкафы (2)'!R16*'Доп комплектация'!$AY$1,'Доп комплектация'!$AY$3) -> 3318 | S16: =CEILING('Шкафы (2)'!S16*'Доп комплектация'!$AY$1,'Доп комплектация'!$AY$3) -> 3388 | T16: =CEILING('Шкафы (2)'!T16*'Доп комплектация'!$AY$1,'Доп комплектация'!$AY$3) -> 3578 | U16: =CEILING('Шкафы (2)'!U16*'Доп комплектация'!$AY$1,'Доп комплектация'!$AY$3) -> 0 | V16: =CEILING('Шкафы (2)'!V16*'Доп комплектация'!$AY$1,'Доп комплектация'!$AY$3) -> 4638 | W16: =CEILING('Шкафы (2)'!W16*'Доп комплектация'!$AY$1,'Доп комплектация'!$AY$3) -> 5018 | X16: =CEILING('Шкафы (2)'!X16*'Доп комплектация'!$AY$1,'Доп комплектация'!$AY$3) -> 4968 | Y16: =CEILING('Шкафы (2)'!Y16*'Доп комплектация'!$AY$1,'Доп комплектация'!$AY$3) -> 5348 | Z16: =CEILING('Шкафы (2)'!Z16*'Доп комплектация'!$AY$1,'Доп комплектация'!$AY$3) -> 5748 | AA16: =CEILING('Шкафы (2)'!AA16*'Доп комплектация'!$AY$1,'Доп комплектация'!$AY$3) -> 6038 | AB16: =CEILING('Шкафы (2)'!AB16*'Доп комплектация'!$AY$1,'Доп комплектация'!$AY$3) -> 4738 | AC16: =CEILING('Шкафы (2)'!AC16*'Доп комплектация'!$AY$1,'Доп комплектация'!$AY$3) -> 4898 | AD16: =CEILING('Шкафы (2)'!AD16*'Доп комплектация'!$AY$1,'Доп комплектация'!$AY$3) -> 5098 | AE16: =CEILING('Шкафы (2)'!AE16*'Доп комплектация'!$AY$1,'Доп комплектация'!$AY$3) -> 6388 | AF16: =CEILING('Шкафы (2)'!AF16*'Доп комплектация'!$AY$1,'Доп комплектация'!$AY$3) -> 4378 | AG16: =CEILING('Шкафы (2)'!AG16*'Доп комплектация'!$AY$1,'Доп комплектация'!$AY$3) -> 4798 | AH16: =CEILING('Шкафы (2)'!AH16*'Доп комплектация'!$AY$1,'Доп комплектация'!$AY$3) -> 0 | AI16: =CEILING('Шкафы (2)'!AI16*'Доп комплектация'!$AY$1,'Доп комплектация'!$AY$3) -> 4188 | AJ16: =CEILING('Шкафы (2)'!AJ16*'Доп комплектация'!$AY$1,'Доп комплектация'!$AY$3) -> 4888 | AK16: - | AL16: - | AM16: - | AN16: - | AO16: - | AP16: - | AQ16: - | AR16: - | AS16: - | AT16: - | AU16: - | AV16: - | AW16: - | AX16: - | AY16: - | AZ16: - | BA16: - | BB16: - | BC16: - | BD16: -
C17: Шкаф Н=360 2дв | D17: L=600 | E17: =CEILING('Шкафы (2)'!E17*'Доп комплектация'!$AY$1,'Доп комплектация'!$AY$3) -> 4451 | F17: =CEILING('Шкафы (2)'!F17*'Доп комплектация'!$AY$1,'Доп комплектация'!$AY$3) -> 5271 | G17: =CEILING('Шкафы (2)'!G17*'Доп комплектация'!$AY$1,'Доп комплектация'!$AY$3) -> 4571 | H17: =CEILING('Шкафы (2)'!H17*'Доп комплектация'!$AY$1,'Доп комплектация'!$AY$3) -> 5391 | I17: =CEILING('Шкафы (2)'!I17*'Доп комплектация'!$AY$1,'Доп комплектация'!$AY$3) -> 4891 | J17: =CEILING('Шкафы (2)'!J17*'Доп комплектация'!$AY$1,'Доп комплектация'!$AY$3) -> 5971 | K17: =CEILING('Шкафы (2)'!K17*'Доп комплектация'!$AY$1,'Доп комплектация'!$AY$3) -> 6331 | L17: =CEILING('Шкафы (2)'!L17*'Доп комплектация'!$AY$1,'Доп комплектация'!$AY$3) -> 0 | M17: =CEILING('Шкафы (2)'!M17*'Доп комплектация'!$AY$1,'Доп комплектация'!$AY$3) -> 6791 | N17: =CEILING('Шкафы (2)'!N17*'Доп комплектация'!$AY$1,'Доп комплектация'!$AY$3) -> 7131 | O17: =CEILING('Шкафы (2)'!O17*'Доп комплектация'!$AY$1,'Доп комплектация'!$AY$3) -> 4951 | P17: =CEILING('Шкафы (2)'!P17*'Доп комплектация'!$AY$1,'Доп комплектация'!$AY$3) -> 0 | Q17: =CEILING('Шкафы (2)'!Q17*'Доп комплектация'!$AY$1,'Доп комплектация'!$AY$3) -> 4091 | R17: =CEILING('Шкафы (2)'!R17*'Доп комплектация'!$AY$1,'Доп комплектация'!$AY$3) -> 4111 | S17: =CEILING('Шкафы (2)'!S17*'Доп комплектация'!$AY$1,'Доп комплектация'!$AY$3) -> 4171 | T17: =CEILING('Шкафы (2)'!T17*'Доп комплектация'!$AY$1,'Доп комплектация'!$AY$3) -> 4351 | U17: =CEILING('Шкафы (2)'!U17*'Доп комплектация'!$AY$1,'Доп комплектация'!$AY$3) -> 0 | V17: =CEILING('Шкафы (2)'!V17*'Доп комплектация'!$AY$1,'Доп комплектация'!$AY$3) -> 5451 | W17: =CEILING('Шкафы (2)'!W17*'Доп комплектация'!$AY$1,'Доп комплектация'!$AY$3) -> 5931 | X17: =CEILING('Шкафы (2)'!X17*'Доп комплектация'!$AY$1,'Доп комплектация'!$AY$3) -> 5731 | Y17: =CEILING('Шкафы (2)'!Y17*'Доп комплектация'!$AY$1,'Доп комплектация'!$AY$3) -> 6071 | Z17: =CEILING('Шкафы (2)'!Z17*'Доп комплектация'!$AY$1,'Доп комплектация'!$AY$3) -> 6931 | AA17: =CEILING('Шкафы (2)'!AA17*'Доп комплектация'!$AY$1,'Доп комплектация'!$AY$3) -> 6751 | AB17: =CEILING('Шкафы (2)'!AB17*'Доп комплектация'!$AY$1,'Доп комплектация'!$AY$3) -> 5511 | AC17: =CEILING('Шкафы (2)'!AC17*'Доп комплектация'!$AY$1,'Доп комплектация'!$AY$3) -> 5671 | AD17: =CEILING('Шкафы (2)'!AD17*'Доп комплектация'!$AY$1,'Доп комплектация'!$AY$3) -> 5851 | AE17: =CEILING('Шкафы (2)'!AE17*'Доп комплектация'!$AY$1,'Доп комплектация'!$AY$3) -> 6991 | AF17: =CEILING('Шкафы (2)'!AF17*'Доп комплектация'!$AY$1,'Доп комплектация'!$AY$3) -> 5211 | AG17: =CEILING('Шкафы (2)'!AG17*'Доп комплектация'!$AY$1,'Доп комплектация'!$AY$3) -> 5591 | AH17: =CEILING('Шкафы (2)'!AH17*'Доп комплектация'!$AY$1,'Доп комплектация'!$AY$3) -> 0 | AI17: =CEILING('Шкафы (2)'!AI17*'Доп комплектация'!$AY$1,'Доп комплектация'!$AY$3) -> 4951 | AJ17: =CEILING('Шкафы (2)'!AJ17*'Доп комплектация'!$AY$1,'Доп комплектация'!$AY$3) -> 5571 | AK17: - | AL17: - | AM17: - | AN17: - | AO17: - | AP17: - | AQ17: - | AR17: - | AS17: - | AT17: - | AU17: - | AV17: - | AW17: - | AX17: - | AY17: - | AZ17: - | BA17: - | BB17: - | BC17: - | BD17: - | BE17: L=600
D18: L=650 | E18: =CEILING('Шкафы (2)'!E18*'Доп комплектация'!$AY$1,'Доп комплектация'!$AY$3) -> 4579 | F18: =CEILING('Шкафы (2)'!F18*'Доп комплектация'!$AY$1,'Доп комплектация'!$AY$3) -> 5459 | G18: =CEILING('Шкафы (2)'!G18*'Доп комплектация'!$AY$1,'Доп комплектация'!$AY$3) -> 4699 | H18: =CEILING('Шкафы (2)'!H18*'Доп комплектация'!$AY$1,'Доп комплектация'!$AY$3) -> 5579 | I18: =CEILING('Шкафы (2)'!I18*'Доп комплектация'!$AY$1,'Доп комплектация'!$AY$3) -> 5039 | J18: =CEILING('Шкафы (2)'!J18*'Доп комплектация'!$AY$1,'Доп комплектация'!$AY$3) -> 6219 | K18: =CEILING('Шкафы (2)'!K18*'Доп комплектация'!$AY$1,'Доп комплектация'!$AY$3) -> 6599 | L18: =CEILING('Шкафы (2)'!L18*'Доп комплектация'!$AY$1,'Доп комплектация'!$AY$3) -> 0 | M18: =CEILING('Шкафы (2)'!M18*'Доп комплектация'!$AY$1,'Доп комплектация'!$AY$3) -> 7099 | N18: =CEILING('Шкафы (2)'!N18*'Доп комплектация'!$AY$1,'Доп комплектация'!$AY$3) -> 7479 | O18: =CEILING('Шкафы (2)'!O18*'Доп комплектация'!$AY$1,'Доп комплектация'!$AY$3) -> 5059 | P18: =CEILING('Шкафы (2)'!P18*'Доп комплектация'!$AY$1,'Доп комплектация'!$AY$3) -> 0 | Q18: =CEILING('Шкафы (2)'!Q18*'Доп комплектация'!$AY$1,'Доп комплектация'!$AY$3) -> 4179 | R18: =CEILING('Шкафы (2)'!R18*'Доп комплектация'!$AY$1,'Доп комплектация'!$AY$3) -> 4199 | S18: =CEILING('Шкафы (2)'!S18*'Доп комплектация'!$AY$1,'Доп комплектация'!$AY$3) -> 4259 | T18: =CEILING('Шкафы (2)'!T18*'Доп комплектация'!$AY$1,'Доп комплектация'!$AY$3) -> 4459 | U18: =CEILING('Шкафы (2)'!U18*'Доп комплектация'!$AY$1,'Доп комплектация'!$AY$3) -> 0 | V18: =CEILING('Шкафы (2)'!V18*'Доп комплектация'!$AY$1,'Доп комплектация'!$AY$3) -> 5619 | W18: =CEILING('Шкафы (2)'!W18*'Доп комплектация'!$AY$1,'Доп комплектация'!$AY$3) -> 6139 | X18: =CEILING('Шкафы (2)'!X18*'Доп комплектация'!$AY$1,'Доп комплектация'!$AY$3) -> 5939 | Y18: =CEILING('Шкафы (2)'!Y18*'Доп комплектация'!$AY$1,'Доп комплектация'!$AY$3) -> 6299 | Z18: =CEILING('Шкафы (2)'!Z18*'Доп комплектация'!$AY$1,'Доп комплектация'!$AY$3) -> 7159 | AA18: =CEILING('Шкафы (2)'!AA18*'Доп комплектация'!$AY$1,'Доп комплектация'!$AY$3) -> 7019 | AB18: =CEILING('Шкафы (2)'!AB18*'Доп комплектация'!$AY$1,'Доп комплектация'!$AY$3) -> 5699 | AC18: =CEILING('Шкафы (2)'!AC18*'Доп комплектация'!$AY$1,'Доп комплектация'!$AY$3) -> 5859 | AD18: =CEILING('Шкафы (2)'!AD18*'Доп комплектация'!$AY$1,'Доп комплектация'!$AY$3) -> 6059 | AE18: =CEILING('Шкафы (2)'!AE18*'Доп комплектация'!$AY$1,'Доп комплектация'!$AY$3) -> 7299 | AF18: =CEILING('Шкафы (2)'!AF18*'Доп комплектация'!$AY$1,'Доп комплектация'!$AY$3) -> 5359 | AG18: =CEILING('Шкафы (2)'!AG18*'Доп комплектация'!$AY$1,'Доп комплектация'!$AY$3) -> 5779 | AH18: =CEILING('Шкафы (2)'!AH18*'Доп комплектация'!$AY$1,'Доп комплектация'!$AY$3) -> 0 | AI18: =CEILING('Шкафы (2)'!AI18*'Доп комплектация'!$AY$1,'Доп комплектация'!$AY$3) -> 5099 | AJ18: =CEILING('Шкафы (2)'!AJ18*'Доп комплектация'!$AY$1,'Доп комплектация'!$AY$3) -> 5779 | AK18: - | AL18: - | AM18: - | AN18: - | AO18: - | AP18: - | AQ18: - | AR18: - | AS18: - | AT18: - | AU18: - | AV18: - | AW18: - | AX18: - | AY18: - | AZ18: - | BA18: - | BB18: - | BC18: - | BD18: -
D19: L=700 | E19: =CEILING('Шкафы (2)'!E19*'Доп комплектация'!$AY$1,'Доп комплектация'!$AY$3) -> 4689 | F19: =CEILING('Шкафы (2)'!F19*'Доп комплектация'!$AY$1,'Доп комплектация'!$AY$3) -> 5629 | G19: =CEILING('Шкафы (2)'!G19*'Доп комплектация'!$AY$1,'Доп комплектация'!$AY$3) -> 4829 | H19: =CEILING('Шкафы (2)'!H19*'Доп комплектация'!$AY$1,'Доп комплектация'!$AY$3) -> 5789 | I19: =CEILING('Шкафы (2)'!I19*'Доп комплектация'!$AY$1,'Доп комплектация'!$AY$3) -> 5189 | J19: =CEILING('Шкафы (2)'!J19*'Доп комплектация'!$AY$1,'Доп комплектация'!$AY$3) -> 6469 | K19: =CEILING('Шкафы (2)'!K19*'Доп комплектация'!$AY$1,'Доп комплектация'!$AY$3) -> 6869 | L19: =CEILING('Шкафы (2)'!L19*'Доп комплектация'!$AY$1,'Доп комплектация'!$AY$3) -> 0 | M19: =CEILING('Шкафы (2)'!M19*'Доп комплектация'!$AY$1,'Доп комплектация'!$AY$3) -> 7409 | N19: =CEILING('Шкафы (2)'!N19*'Доп комплектация'!$AY$1,'Доп комплектация'!$AY$3) -> 7829 | O19: =CEILING('Шкафы (2)'!O19*'Доп комплектация'!$AY$1,'Доп комплектация'!$AY$3) -> 5109 | P19: =CEILING('Шкафы (2)'!P19*'Доп комплектация'!$AY$1,'Доп комплектация'!$AY$3) -> 0 | Q19: =CEILING('Шкафы (2)'!Q19*'Доп комплектация'!$AY$1,'Доп комплектация'!$AY$3) -> 4269 | R19: =CEILING('Шкафы (2)'!R19*'Доп комплектация'!$AY$1,'Доп комплектация'!$AY$3) -> 4289 | S19: =CEILING('Шкафы (2)'!S19*'Доп комплектация'!$AY$1,'Доп комплектация'!$AY$3) -> 4369 | T19: =CEILING('Шкафы (2)'!T19*'Доп комплектация'!$AY$1,'Доп комплектация'!$AY$3) -> 4549 | U19: =CEILING('Шкафы (2)'!U19*'Доп комплектация'!$AY$1,'Доп комплектация'!$AY$3) -> 0 | V19: =CEILING('Шкафы (2)'!V19*'Доп комплектация'!$AY$1,'Доп комплектация'!$AY$3) -> 5789 | W19: =CEILING('Шкафы (2)'!W19*'Доп комплектация'!$AY$1,'Доп комплектация'!$AY$3) -> 6329 | X19: =CEILING('Шкафы (2)'!X19*'Доп комплектация'!$AY$1,'Доп комплектация'!$AY$3) -> 6129 | Y19: =CEILING('Шкафы (2)'!Y19*'Доп комплектация'!$AY$1,'Доп комплектация'!$AY$3) -> 6529 | Z19: =CEILING('Шкафы (2)'!Z19*'Доп комплектация'!$AY$1,'Доп комплектация'!$AY$3) -> 7329 | AA19: =CEILING('Шкафы (2)'!AA19*'Доп комплектация'!$AY$1,'Доп комплектация'!$AY$3) -> 7309 | AB19: =CEILING('Шкафы (2)'!AB19*'Доп комплектация'!$AY$1,'Доп комплектация'!$AY$3) -> 5889 | AC19: =CEILING('Шкафы (2)'!AC19*'Доп комплектация'!$AY$1,'Доп комплектация'!$AY$3) -> 6049 | AD19: =CEILING('Шкафы (2)'!AD19*'Доп комплектация'!$AY$1,'Доп комплектация'!$AY$3) -> 6269 | AE19: =CEILING('Шкафы (2)'!AE19*'Доп комплектация'!$AY$1,'Доп комплектация'!$AY$3) -> 7609 | AF19: =CEILING('Шкафы (2)'!AF19*'Доп комплектация'!$AY$1,'Доп комплектация'!$AY$3) -> 5529 | AG19: =CEILING('Шкафы (2)'!AG19*'Доп комплектация'!$AY$1,'Доп комплектация'!$AY$3) -> 5969 | AH19: =CEILING('Шкафы (2)'!AH19*'Доп комплектация'!$AY$1,'Доп комплектация'!$AY$3) -> 0 | AI19: =CEILING('Шкафы (2)'!AI19*'Доп комплектация'!$AY$1,'Доп комплектация'!$AY$3) -> 5249 | AJ19: =CEILING('Шкафы (2)'!AJ19*'Доп комплектация'!$AY$1,'Доп комплектация'!$AY$3) -> 5969 | AK19: - | AL19: - | AM19: - | AN19: - | AO19: - | AP19: - | AQ19: - | AR19: - | AS19: - | AT19: - | AU19: - | AV19: - | AW19: - | AX19: - | AY19: - | AZ19: - | BA19: - | BB19: - | BC19: - | BD19: - | BE19: L=700
D20: L=750 | E20: =CEILING('Шкафы (2)'!E20*'Доп комплектация'!$AY$1,'Доп комплектация'!$AY$3) -> 4796 | F20: =CEILING('Шкафы (2)'!F20*'Доп комплектация'!$AY$1,'Доп комплектация'!$AY$3) -> 5816 | G20: =CEILING('Шкафы (2)'!G20*'Доп комплектация'!$AY$1,'Доп комплектация'!$AY$3) -> 4956 | H20: =CEILING('Шкафы (2)'!H20*'Доп комплектация'!$AY$1,'Доп комплектация'!$AY$3) -> 5976 | I20: =CEILING('Шкафы (2)'!I20*'Доп комплектация'!$AY$1,'Доп комплектация'!$AY$3) -> 5336 | J20: =CEILING('Шкафы (2)'!J20*'Доп комплектация'!$AY$1,'Доп комплектация'!$AY$3) -> 6696 | K20: =CEILING('Шкафы (2)'!K20*'Доп комплектация'!$AY$1,'Доп комплектация'!$AY$3) -> 7136 | L20: =CEILING('Шкафы (2)'!L20*'Доп комплектация'!$AY$1,'Доп комплектация'!$AY$3) -> 0 | M20: =CEILING('Шкафы (2)'!M20*'Доп комплектация'!$AY$1,'Доп комплектация'!$AY$3) -> 7716 | N20: =CEILING('Шкафы (2)'!N20*'Доп комплектация'!$AY$1,'Доп комплектация'!$AY$3) -> 8156 | O20: =CEILING('Шкафы (2)'!O20*'Доп комплектация'!$AY$1,'Доп комплектация'!$AY$3) -> 5196 | P20: =CEILING('Шкафы (2)'!P20*'Доп комплектация'!$AY$1,'Доп комплектация'!$AY$3) -> 0 | Q20: =CEILING('Шкафы (2)'!Q20*'Доп комплектация'!$AY$1,'Доп комплектация'!$AY$3) -> 4336 | R20: =CEILING('Шкафы (2)'!R20*'Доп комплектация'!$AY$1,'Доп комплектация'!$AY$3) -> 4376 | S20: =CEILING('Шкафы (2)'!S20*'Доп комплектация'!$AY$1,'Доп комплектация'!$AY$3) -> 4456 | T20: =CEILING('Шкафы (2)'!T20*'Доп комплектация'!$AY$1,'Доп комплектация'!$AY$3) -> 4656 | U20: =CEILING('Шкафы (2)'!U20*'Доп комплектация'!$AY$1,'Доп комплектация'!$AY$3) -> 0 | V20: =CEILING('Шкафы (2)'!V20*'Доп комплектация'!$AY$1,'Доп комплектация'!$AY$3) -> 5976 | W20: =CEILING('Шкафы (2)'!W20*'Доп комплектация'!$AY$1,'Доп комплектация'!$AY$3) -> 6536 | X20: =CEILING('Шкафы (2)'!X20*'Доп комплектация'!$AY$1,'Доп комплектация'!$AY$3) -> 6336 | Y20: =CEILING('Шкафы (2)'!Y20*'Доп комплектация'!$AY$1,'Доп комплектация'!$AY$3) -> 6756 | Z20: =CEILING('Шкафы (2)'!Z20*'Доп комплектация'!$AY$1,'Доп комплектация'!$AY$3) -> 7576 | AA20: =CEILING('Шкафы (2)'!AA20*'Доп комплектация'!$AY$1,'Доп комплектация'!$AY$3) -> 7596 | AB20: =CEILING('Шкафы (2)'!AB20*'Доп комплектация'!$AY$1,'Доп комплектация'!$AY$3) -> 6076 | AC20: =CEILING('Шкафы (2)'!AC20*'Доп комплектация'!$AY$1,'Доп комплектация'!$AY$3) -> 6256 | AD20: =CEILING('Шкафы (2)'!AD20*'Доп комплектация'!$AY$1,'Доп комплектация'!$AY$3) -> 6476 | AE20: =CEILING('Шкафы (2)'!AE20*'Доп комплектация'!$AY$1,'Доп комплектация'!$AY$3) -> 7936 | AF20: =CEILING('Шкафы (2)'!AF20*'Доп комплектация'!$AY$1,'Доп комплектация'!$AY$3) -> 5676 | AG20: =CEILING('Шкафы (2)'!AG20*'Доп комплектация'!$AY$1,'Доп комплектация'!$AY$3) -> 6156 | AH20: =CEILING('Шкафы (2)'!AH20*'Доп комплектация'!$AY$1,'Доп комплектация'!$AY$3) -> 0 | AI20: =CEILING('Шкафы (2)'!AI20*'Доп комплектация'!$AY$1,'Доп комплектация'!$AY$3) -> 5396 | AJ20: =CEILING('Шкафы (2)'!AJ20*'Доп комплектация'!$AY$1,'Доп комплектация'!$AY$3) -> 6176 | AK20: - | AL20: - | AM20: - | AN20: - | AO20: - | AP20: - | AQ20: - | AR20: - | AS20: - | AT20: - | AU20: - | AV20: - | AW20: - | AX20: - | AY20: - | AZ20: - | BA20: - | BB20: - | BC20: - | BD20: -
D21: L=800 | E21: =CEILING('Шкафы (2)'!E21*'Доп комплектация'!$AY$1,'Доп комплектация'!$AY$3) -> 4926 | F21: =CEILING('Шкафы (2)'!F21*'Доп комплектация'!$AY$1,'Доп комплектация'!$AY$3) -> 6006 | G21: =CEILING('Шкафы (2)'!G21*'Доп комплектация'!$AY$1,'Доп комплектация'!$AY$3) -> 5086 | H21: =CEILING('Шкафы (2)'!H21*'Доп комплектация'!$AY$1,'Доп комплектация'!$AY$3) -> 6166 | I21: =CEILING('Шкафы (2)'!I21*'Доп комплектация'!$AY$1,'Доп комплектация'!$AY$3) -> 5486 | J21: =CEILING('Шкафы (2)'!J21*'Доп комплектация'!$AY$1,'Доп комплектация'!$AY$3) -> 6946 | K21: =CEILING('Шкафы (2)'!K21*'Доп комплектация'!$AY$1,'Доп комплектация'!$AY$3) -> 7426 | L21: =CEILING('Шкафы (2)'!L21*'Доп комплектация'!$AY$1,'Доп комплектация'!$AY$3) -> 0 | M21: =CEILING('Шкафы (2)'!M21*'Доп комплектация'!$AY$1,'Доп комплектация'!$AY$3) -> 8026 | N21: =CEILING('Шкафы (2)'!N21*'Доп комплектация'!$AY$1,'Доп комплектация'!$AY$3) -> 8506 | O21: =CEILING('Шкафы (2)'!O21*'Доп комплектация'!$AY$1,'Доп комплектация'!$AY$3) -> 5286 | P21: =CEILING('Шкафы (2)'!P21*'Доп комплектация'!$AY$1,'Доп комплектация'!$AY$3) -> 0 | Q21: =CEILING('Шкафы (2)'!Q21*'Доп комплектация'!$AY$1,'Доп комплектация'!$AY$3) -> 4426 | R21: =CEILING('Шкафы (2)'!R21*'Доп комплектация'!$AY$1,'Доп комплектация'!$AY$3) -> 4466 | S21: =CEILING('Шкафы (2)'!S21*'Доп комплектация'!$AY$1,'Доп комплектация'!$AY$3) -> 4546 | T21: =CEILING('Шкафы (2)'!T21*'Доп комплектация'!$AY$1,'Доп комплектация'!$AY$3) -> 4766 | U21: =CEILING('Шкафы (2)'!U21*'Доп комплектация'!$AY$1,'Доп комплектация'!$AY$3) -> 0 | V21: =CEILING('Шкафы (2)'!V21*'Доп комплектация'!$AY$1,'Доп комплектация'!$AY$3) -> 6146 | W21: =CEILING('Шкафы (2)'!W21*'Доп комплектация'!$AY$1,'Доп комплектация'!$AY$3) -> 6726 | X21: =CEILING('Шкафы (2)'!X21*'Доп комплектация'!$AY$1,'Доп комплектация'!$AY$3) -> 6546 | Y21: =CEILING('Шкафы (2)'!Y21*'Доп комплектация'!$AY$1,'Доп комплектация'!$AY$3) -> 7006 | Z21: =CEILING('Шкафы (2)'!Z21*'Доп комплектация'!$AY$1,'Доп комплектация'!$AY$3) -> 7806 | AA21: =CEILING('Шкафы (2)'!AA21*'Доп комплектация'!$AY$1,'Доп комплектация'!$AY$3) -> 7866 | AB21: =CEILING('Шкафы (2)'!AB21*'Доп комплектация'!$AY$1,'Доп комплектация'!$AY$3) -> 6266 | AC21: =CEILING('Шкафы (2)'!AC21*'Доп комплектация'!$AY$1,'Доп комплектация'!$AY$3) -> 6446 | AD21: =CEILING('Шкафы (2)'!AD21*'Доп комплектация'!$AY$1,'Доп комплектация'!$AY$3) -> 6686 | AE21: =CEILING('Шкафы (2)'!AE21*'Доп комплектация'!$AY$1,'Доп комплектация'!$AY$3) -> 8246 | AF21: =CEILING('Шкафы (2)'!AF21*'Доп комплектация'!$AY$1,'Доп комплектация'!$AY$3) -> 5846 | AG21: =CEILING('Шкафы (2)'!AG21*'Доп комплектация'!$AY$1,'Доп комплектация'!$AY$3) -> 6346 | AH21: =CEILING('Шкафы (2)'!AH21*'Доп комплектация'!$AY$1,'Доп комплектация'!$AY$3) -> 0 | AI21: =CEILING('Шкафы (2)'!AI21*'Доп комплектация'!$AY$1,'Доп комплектация'!$AY$3) -> 5546 | AJ21: =CEILING('Шкафы (2)'!AJ21*'Доп комплектация'!$AY$1,'Доп комплектация'!$AY$3) -> 6386 | AK21: - | AL21: - | AM21: - | AN21: - | AO21: - | AP21: - | AQ21: - | AR21: - | AS21: - | AT21: - | AU21: - | AV21: - | AW21: - | AX21: - | AY21: - | AZ21: - | BA21: - | BB21: - | BC21: - | BD21: - | BE21: L=800
C22: Шкаф Н=400 2дв | D22: L=600 | E22: =CEILING('Шкафы (2)'!E22*'Доп комплектация'!$AY$1,'Доп комплектация'!$AY$3) -> 4592 | F22: =CEILING('Шкафы (2)'!F22*'Доп комплектация'!$AY$1,'Доп комплектация'!$AY$3) -> 5492 | G22: =CEILING('Шкафы (2)'!G22*'Доп комплектация'!$AY$1,'Доп комплектация'!$AY$3) -> 4732 | H22: =CEILING('Шкафы (2)'!H22*'Доп комплектация'!$AY$1,'Доп комплектация'!$AY$3) -> 5632 | I22: =CEILING('Шкафы (2)'!I22*'Доп комплектация'!$AY$1,'Доп комплектация'!$AY$3) -> 5052 | J22: =CEILING('Шкафы (2)'!J22*'Доп комплектация'!$AY$1,'Доп комплектация'!$AY$3) -> 6272 | K22: =CEILING('Шкафы (2)'!K22*'Доп комплектация'!$AY$1,'Доп комплектация'!$AY$3) -> 6672 | L22: =CEILING('Шкафы (2)'!L22*'Доп комплектация'!$AY$1,'Доп комплектация'!$AY$3) -> 0 | M22: =CEILING('Шкафы (2)'!M22*'Доп комплектация'!$AY$1,'Доп комплектация'!$AY$3) -> 7172 | N22: =CEILING('Шкафы (2)'!N22*'Доп комплектация'!$AY$1,'Доп комплектация'!$AY$3) -> 7572 | O22: =CEILING('Шкафы (2)'!O22*'Доп комплектация'!$AY$1,'Доп комплектация'!$AY$3) -> 5072 | P22: =CEILING('Шкафы (2)'!P22*'Доп комплектация'!$AY$1,'Доп комплектация'!$AY$3) -> 0 | Q22: =CEILING('Шкафы (2)'!Q22*'Доп комплектация'!$AY$1,'Доп комплектация'!$AY$3) -> 4172 | R22: =CEILING('Шкафы (2)'!R22*'Доп комплектация'!$AY$1,'Доп комплектация'!$AY$3) -> 4212 | S22: =CEILING('Шкафы (2)'!S22*'Доп комплектация'!$AY$1,'Доп комплектация'!$AY$3) -> 4272 | T22: =CEILING('Шкафы (2)'!T22*'Доп комплектация'!$AY$1,'Доп комплектация'!$AY$3) -> 4472 | U22: =CEILING('Шкафы (2)'!U22*'Доп комплектация'!$AY$1,'Доп комплектация'!$AY$3) -> 0 | V22: =CEILING('Шкафы (2)'!V22*'Доп комплектация'!$AY$1,'Доп комплектация'!$AY$3) -> 5652 | W22: =CEILING('Шкафы (2)'!W22*'Доп комплектация'!$AY$1,'Доп комплектация'!$AY$3) -> 6192 | X22: =CEILING('Шкафы (2)'!X22*'Доп комплектация'!$AY$1,'Доп комплектация'!$AY$3) -> 5992 | Y22: =CEILING('Шкафы (2)'!Y22*'Доп комплектация'!$AY$1,'Доп комплектация'!$AY$3) -> 6352 | Z22: =CEILING('Шкафы (2)'!Z22*'Доп комплектация'!$AY$1,'Доп комплектация'!$AY$3) -> 7232 | AA22: =CEILING('Шкафы (2)'!AA22*'Доп комплектация'!$AY$1,'Доп комплектация'!$AY$3) -> 7112 | AB22: =CEILING('Шкафы (2)'!AB22*'Доп комплектация'!$AY$1,'Доп комплектация'!$AY$3) -> 5752 | AC22: =CEILING('Шкафы (2)'!AC22*'Доп комплектация'!$AY$1,'Доп комплектация'!$AY$3) -> 5912 | AD22: =CEILING('Шкафы (2)'!AD22*'Доп комплектация'!$AY$1,'Доп комплектация'!$AY$3) -> 6112 | AE22: =CEILING('Шкафы (2)'!AE22*'Доп комплектация'!$AY$1,'Доп комплектация'!$AY$3) -> 7392 | AF22: =CEILING('Шкафы (2)'!AF22*'Доп комплектация'!$AY$1,'Доп комплектация'!$AY$3) -> 5392 | AG22: =CEILING('Шкафы (2)'!AG22*'Доп комплектация'!$AY$1,'Доп комплектация'!$AY$3) -> 5812 | AH22: =CEILING('Шкафы (2)'!AH22*'Доп комплектация'!$AY$1,'Доп комплектация'!$AY$3) -> 0 | AI22: =CEILING('Шкафы (2)'!AI22*'Доп комплектация'!$AY$1,'Доп комплектация'!$AY$3) -> 5132 | AJ22: =CEILING('Шкафы (2)'!AJ22*'Доп комплектация'!$AY$1,'Доп комплектация'!$AY$3) -> 5812 | AK22: - | AL22: - | AM22: - | AN22: - | AO22: - | AP22: - | AQ22: - | AR22: - | AS22: - | AT22: - | AU22: - | AV22: - | AW22: - | AX22: - | AY22: - | AZ22: - | BA22: - | BB22: - | BC22: - | BD22: - | BE22: L=600
D23: L=650 | E23: =CEILING('Шкафы (2)'!E23*'Доп комплектация'!$AY$1,'Доп комплектация'!$AY$3) -> 4701 | F23: =CEILING('Шкафы (2)'!F23*'Доп комплектация'!$AY$1,'Доп комплектация'!$AY$3) -> 5681 | G23: =CEILING('Шкафы (2)'!G23*'Доп комплектация'!$AY$1,'Доп комплектация'!$AY$3) -> 4861 | H23: =CEILING('Шкафы (2)'!H23*'Доп комплектация'!$AY$1,'Доп комплектация'!$AY$3) -> 5841 | I23: =CEILING('Шкафы (2)'!I23*'Доп комплектация'!$AY$1,'Доп комплектация'!$AY$3) -> 5221 | J23: =CEILING('Шкафы (2)'!J23*'Доп комплектация'!$AY$1,'Доп комплектация'!$AY$3) -> 6541 | K23: =CEILING('Шкафы (2)'!K23*'Доп комплектация'!$AY$1,'Доп комплектация'!$AY$3) -> 6961 | L23: =CEILING('Шкафы (2)'!L23*'Доп комплектация'!$AY$1,'Доп комплектация'!$AY$3) -> 0 | M23: =CEILING('Шкафы (2)'!M23*'Доп комплектация'!$AY$1,'Доп комплектация'!$AY$3) -> 7521 | N23: =CEILING('Шкафы (2)'!N23*'Доп комплектация'!$AY$1,'Доп комплектация'!$AY$3) -> 7941 | O23: =CEILING('Шкафы (2)'!O23*'Доп комплектация'!$AY$1,'Доп комплектация'!$AY$3) -> 5161 | P23: =CEILING('Шкафы (2)'!P23*'Доп комплектация'!$AY$1,'Доп комплектация'!$AY$3) -> 0 | Q23: =CEILING('Шкафы (2)'!Q23*'Доп комплектация'!$AY$1,'Доп комплектация'!$AY$3) -> 4261 | R23: =CEILING('Шкафы (2)'!R23*'Доп комплектация'!$AY$1,'Доп комплектация'!$AY$3) -> 4301 | S23: =CEILING('Шкафы (2)'!S23*'Доп комплектация'!$AY$1,'Доп комплектация'!$AY$3) -> 4381 | T23: =CEILING('Шкафы (2)'!T23*'Доп комплектация'!$AY$1,'Доп комплектация'!$AY$3) -> 4581 | U23: =CEILING('Шкафы (2)'!U23*'Доп комплектация'!$AY$1,'Доп комплектация'!$AY$3) -> 0 | V23: =CEILING('Шкафы (2)'!V23*'Доп комплектация'!$AY$1,'Доп комплектация'!$AY$3) -> 5841 | W23: =CEILING('Шкафы (2)'!W23*'Доп комплектация'!$AY$1,'Доп комплектация'!$AY$3) -> 6401 | X23: =CEILING('Шкафы (2)'!X23*'Доп комплектация'!$AY$1,'Доп комплектация'!$AY$3) -> 6201 | Y23: =CEILING('Шкафы (2)'!Y23*'Доп комплектация'!$AY$1,'Доп комплектация'!$AY$3) -> 6601 | Z23: =CEILING('Шкафы (2)'!Z23*'Доп комплектация'!$AY$1,'Доп комплектация'!$AY$3) -> 7481 | AA23: =CEILING('Шкафы (2)'!AA23*'Доп комплектация'!$AY$1,'Доп комплектация'!$AY$3) -> 7401 | AB23: =CEILING('Шкафы (2)'!AB23*'Доп комплектация'!$AY$1,'Доп комплектация'!$AY$3) -> 5941 | AC23: =CEILING('Шкафы (2)'!AC23*'Доп комплектация'!$AY$1,'Доп комплектация'!$AY$3) -> 6121 | AD23: =CEILING('Шкафы (2)'!AD23*'Доп комплектация'!$AY$1,'Доп комплектация'!$AY$3) -> 6341 | AE23: =CEILING('Шкафы (2)'!AE23*'Доп комплектация'!$AY$1,'Доп комплектация'!$AY$3) -> 7721 | AF23: =CEILING('Шкафы (2)'!AF23*'Доп комплектация'!$AY$1,'Доп комплектация'!$AY$3) -> 5561 | AG23: =CEILING('Шкафы (2)'!AG23*'Доп комплектация'!$AY$1,'Доп комплектация'!$AY$3) -> 6021 | AH23: =CEILING('Шкафы (2)'!AH23*'Доп комплектация'!$AY$1,'Доп комплектация'!$AY$3) -> 0 | AI23: =CEILING('Шкафы (2)'!AI23*'Доп комплектация'!$AY$1,'Доп комплектация'!$AY$3) -> 5281 | AJ23: =CEILING('Шкафы (2)'!AJ23*'Доп комплектация'!$AY$1,'Доп комплектация'!$AY$3) -> 6041 | AK23: - | AL23: - | AM23: - | AN23: - | AO23: - | AP23: - | AQ23: - | AR23: - | AS23: - | AT23: - | AU23: - | AV23: - | AW23: - | AX23: - | AY23: - | AZ23: - | BA23: - | BB23: - | BC23: - | BD23: -
D24: L=700 | E24: =CEILING('Шкафы (2)'!E24*'Доп комплектация'!$AY$1,'Доп комплектация'!$AY$3) -> 4831 | F24: =CEILING('Шкафы (2)'!F24*'Доп комплектация'!$AY$1,'Доп комплектация'!$AY$3) -> 5891 | G24: =CEILING('Шкафы (2)'!G24*'Доп комплектация'!$AY$1,'Доп комплектация'!$AY$3) -> 4991 | H24: =CEILING('Шкафы (2)'!H24*'Доп комплектация'!$AY$1,'Доп комплектация'!$AY$3) -> 6051 | I24: =CEILING('Шкафы (2)'!I24*'Доп комплектация'!$AY$1,'Доп комплектация'!$AY$3) -> 5391 | J24: =CEILING('Шкафы (2)'!J24*'Доп комплектация'!$AY$1,'Доп комплектация'!$AY$3) -> 6811 | K24: =CEILING('Шкафы (2)'!K24*'Доп комплектация'!$AY$1,'Доп комплектация'!$AY$3) -> 7271 | L24: =CEILING('Шкафы (2)'!L24*'Доп комплектация'!$AY$1,'Доп комплектация'!$AY$3) -> 0 | M24: =CEILING('Шкафы (2)'!M24*'Доп комплектация'!$AY$1,'Доп комплектация'!$AY$3) -> 7851 | N24: =CEILING('Шкафы (2)'!N24*'Доп комплектация'!$AY$1,'Доп комплектация'!$AY$3) -> 8311 | O24: =CEILING('Шкафы (2)'!O24*'Доп комплектация'!$AY$1,'Доп комплектация'!$AY$3) -> 5211 | P24: =CEILING('Шкафы (2)'!P24*'Доп комплектация'!$AY$1,'Доп комплектация'!$AY$3) -> 0 | Q24: =CEILING('Шкафы (2)'!Q24*'Доп комплектация'!$AY$1,'Доп комплектация'!$AY$3) -> 4351 | R24: =CEILING('Шкафы (2)'!R24*'Доп комплектация'!$AY$1,'Доп комплектация'!$AY$3) -> 4391 | S24: =CEILING('Шкафы (2)'!S24*'Доп комплектация'!$AY$1,'Доп комплектация'!$AY$3) -> 4471 | T24: =CEILING('Шкафы (2)'!T24*'Доп комплектация'!$AY$1,'Доп комплектация'!$AY$3) -> 4691 | U24: =CEILING('Шкафы (2)'!U24*'Доп комплектация'!$AY$1,'Доп комплектация'!$AY$3) -> 0 | V24: =CEILING('Шкафы (2)'!V24*'Доп комплектация'!$AY$1,'Доп комплектация'!$AY$3) -> 6051 | W24: =CEILING('Шкафы (2)'!W24*'Доп комплектация'!$AY$1,'Доп комплектация'!$AY$3) -> 6611 | X24: =CEILING('Шкафы (2)'!X24*'Доп комплектация'!$AY$1,'Доп комплектация'!$AY$3) -> 6411 | Y24: =CEILING('Шкафы (2)'!Y24*'Доп комплектация'!$AY$1,'Доп комплектация'!$AY$3) -> 6871 | Z24: =CEILING('Шкафы (2)'!Z24*'Доп комплектация'!$AY$1,'Доп комплектация'!$AY$3) -> 7671 | AA24: =CEILING('Шкафы (2)'!AA24*'Доп комплектация'!$AY$1,'Доп комплектация'!$AY$3) -> 7711 | AB24: =CEILING('Шкафы (2)'!AB24*'Доп комплектация'!$AY$1,'Доп комплектация'!$AY$3) -> 6151 | AC24: =CEILING('Шкафы (2)'!AC24*'Доп комплектация'!$AY$1,'Доп комплектация'!$AY$3) -> 6331 | AD24: =CEILING('Шкафы (2)'!AD24*'Доп комплектация'!$AY$1,'Доп комплектация'!$AY$3) -> 6571 | AE24: =CEILING('Шкафы (2)'!AE24*'Доп комплектация'!$AY$1,'Доп комплектация'!$AY$3) -> 8071 | AF24: =CEILING('Шкафы (2)'!AF24*'Доп комплектация'!$AY$1,'Доп комплектация'!$AY$3) -> 5731 | AG24: =CEILING('Шкафы (2)'!AG24*'Доп комплектация'!$AY$1,'Доп комплектация'!$AY$3) -> 6231 | AH24: =CEILING('Шкафы (2)'!AH24*'Доп комплектация'!$AY$1,'Доп комплектация'!$AY$3) -> 0 | AI24: =CEILING('Шкафы (2)'!AI24*'Доп комплектация'!$AY$1,'Доп комплектация'!$AY$3) -> 5451 | AJ24: =CEILING('Шкафы (2)'!AJ24*'Доп комплектация'!$AY$1,'Доп комплектация'!$AY$3) -> 6251 | AK24: - | AL24: - | AM24: - | AN24: - | AO24: - | AP24: - | AQ24: - | AR24: - | AS24: - | AT24: - | AU24: - | AV24: - | AW24: - | AX24: - | AY24: - | AZ24: - | BA24: - | BB24: - | BC24: - | BD24: - | BE24: L=700
D25: L=750 | E25: =CEILING('Шкафы (2)'!E25*'Доп комплектация'!$AY$1,'Доп комплектация'!$AY$3) -> 4961 | F25: =CEILING('Шкафы (2)'!F25*'Доп комплектация'!$AY$1,'Доп комплектация'!$AY$3) -> 6081 | G25: =CEILING('Шкафы (2)'!G25*'Доп комплектация'!$AY$1,'Доп комплектация'!$AY$3) -> 5121 | H25: =CEILING('Шкафы (2)'!H25*'Доп комплектация'!$AY$1,'Доп комплектация'!$AY$3) -> 6261 | I25: =CEILING('Шкафы (2)'!I25*'Доп комплектация'!$AY$1,'Доп комплектация'!$AY$3) -> 5541 | J25: =CEILING('Шкафы (2)'!J25*'Доп комплектация'!$AY$1,'Доп комплектация'!$AY$3) -> 7061 | K25: =CEILING('Шкафы (2)'!K25*'Доп комплектация'!$AY$1,'Доп комплектация'!$AY$3) -> 7561 | L25: =CEILING('Шкафы (2)'!L25*'Доп комплектация'!$AY$1,'Доп комплектация'!$AY$3) -> 0 | M25: =CEILING('Шкафы (2)'!M25*'Доп комплектация'!$AY$1,'Доп комплектация'!$AY$3) -> 8201 | N25: =CEILING('Шкафы (2)'!N25*'Доп комплектация'!$AY$1,'Доп комплектация'!$AY$3) -> 8701 | O25: =CEILING('Шкафы (2)'!O25*'Доп комплектация'!$AY$1,'Доп комплектация'!$AY$3) -> 5301 | P25: =CEILING('Шкафы (2)'!P25*'Доп комплектация'!$AY$1,'Доп комплектация'!$AY$3) -> 0 | Q25: =CEILING('Шкафы (2)'!Q25*'Доп комплектация'!$AY$1,'Доп комплектация'!$AY$3) -> 4441 | R25: =CEILING('Шкафы (2)'!R25*'Доп комплектация'!$AY$1,'Доп комплектация'!$AY$3) -> 4481 | S25: =CEILING('Шкафы (2)'!S25*'Доп комплектация'!$AY$1,'Доп комплектация'!$AY$3) -> 4561 | T25: =CEILING('Шкафы (2)'!T25*'Доп комплектация'!$AY$1,'Доп комплектация'!$AY$3) -> 4801 | U25: =CEILING('Шкафы (2)'!U25*'Доп комплектация'!$AY$1,'Доп комплектация'!$AY$3) -> 0 | V25: =CEILING('Шкафы (2)'!V25*'Доп комплектация'!$AY$1,'Доп комплектация'!$AY$3) -> 6241 | W25: =CEILING('Шкафы (2)'!W25*'Доп комплектация'!$AY$1,'Доп комплектация'!$AY$3) -> 6821 | X25: =CEILING('Шкафы (2)'!X25*'Доп комплектация'!$AY$1,'Доп комплектация'!$AY$3) -> 6641 | Y25: =CEILING('Шкафы (2)'!Y25*'Доп комплектация'!$AY$1,'Доп комплектация'!$AY$3) -> 7121 | Z25: =CEILING('Шкафы (2)'!Z25*'Доп комплектация'!$AY$1,'Доп комплектация'!$AY$3) -> 7921 | AA25: =CEILING('Шкафы (2)'!AA25*'Доп комплектация'!$AY$1,'Доп комплектация'!$AY$3) -> 8021 | AB25: =CEILING('Шкафы (2)'!AB25*'Доп комплектация'!$AY$1,'Доп комплектация'!$AY$3) -> 6341 | AC25: =CEILING('Шкафы (2)'!AC25*'Доп комплектация'!$AY$1,'Доп комплектация'!$AY$3) -> 6541 | AD25: =CEILING('Шкафы (2)'!AD25*'Доп комплектация'!$AY$1,'Доп комплектация'!$AY$3) -> 6801 | AE25: =CEILING('Шкафы (2)'!AE25*'Доп комплектация'!$AY$1,'Доп комплектация'!$AY$3) -> 8401 | AF25: =CEILING('Шкафы (2)'!AF25*'Доп комплектация'!$AY$1,'Доп комплектация'!$AY$3) -> 5901 | AG25: =CEILING('Шкафы (2)'!AG25*'Доп комплектация'!$AY$1,'Доп комплектация'!$AY$3) -> 6421 | AH25: =CEILING('Шкафы (2)'!AH25*'Доп комплектация'!$AY$1,'Доп комплектация'!$AY$3) -> 0 | AI25: =CEILING('Шкафы (2)'!AI25*'Доп комплектация'!$AY$1,'Доп комплектация'!$AY$3) -> 5601 | AJ25: =CEILING('Шкафы (2)'!AJ25*'Доп комплектация'!$AY$1,'Доп комплектация'!$AY$3) -> 6481 | AK25: - | AL25: - | AM25: - | AN25: - | AO25: - | AP25: - | AQ25: - | AR25: - | AS25: - | AT25: - | AU25: - | AV25: - | AW25: - | AX25: - | AY25: - | AZ25: - | BA25: - | BB25: - | BC25: - | BD25: -
D26: L=800 | E26: =CEILING('Шкафы (2)'!E26*'Доп комплектация'!$AY$1,'Доп комплектация'!$AY$3) -> 5069 | F26: =CEILING('Шкафы (2)'!F26*'Доп комплектация'!$AY$1,'Доп комплектация'!$AY$3) -> 6289 | G26: =CEILING('Шкафы (2)'!G26*'Доп комплектация'!$AY$1,'Доп комплектация'!$AY$3) -> 5269 | H26: =CEILING('Шкафы (2)'!H26*'Доп комплектация'!$AY$1,'Доп комплектация'!$AY$3) -> 6469 | I26: =CEILING('Шкафы (2)'!I26*'Доп комплектация'!$AY$1,'Доп комплектация'!$AY$3) -> 5709 | J26: =CEILING('Шкафы (2)'!J26*'Доп комплектация'!$AY$1,'Доп комплектация'!$AY$3) -> 7329 | K26: =CEILING('Шкафы (2)'!K26*'Доп комплектация'!$AY$1,'Доп комплектация'!$AY$3) -> 7869 | L26: =CEILING('Шкафы (2)'!L26*'Доп комплектация'!$AY$1,'Доп комплектация'!$AY$3) -> 0 | M26: =CEILING('Шкафы (2)'!M26*'Доп комплектация'!$AY$1,'Доп комплектация'!$AY$3) -> 8549 | N26: =CEILING('Шкафы (2)'!N26*'Доп комплектация'!$AY$1,'Доп комплектация'!$AY$3) -> 9069 | O26: =CEILING('Шкафы (2)'!O26*'Доп комплектация'!$AY$1,'Доп комплектация'!$AY$3) -> 5389 | P26: =CEILING('Шкафы (2)'!P26*'Доп комплектация'!$AY$1,'Доп комплектация'!$AY$3) -> 0 | Q26: =CEILING('Шкафы (2)'!Q26*'Доп комплектация'!$AY$1,'Доп комплектация'!$AY$3) -> 4529 | R26: =CEILING('Шкафы (2)'!R26*'Доп комплектация'!$AY$1,'Доп комплектация'!$AY$3) -> 4569 | S26: =CEILING('Шкафы (2)'!S26*'Доп комплектация'!$AY$1,'Доп комплектация'!$AY$3) -> 4669 | T26: =CEILING('Шкафы (2)'!T26*'Доп комплектация'!$AY$1,'Доп комплектация'!$AY$3) -> 4909 | U26: =CEILING('Шкафы (2)'!U26*'Доп комплектация'!$AY$1,'Доп комплектация'!$AY$3) -> 0 | V26: =CEILING('Шкафы (2)'!V26*'Доп комплектация'!$AY$1,'Доп комплектация'!$AY$3) -> 6429 | W26: =CEILING('Шкафы (2)'!W26*'Доп комплектация'!$AY$1,'Доп комплектация'!$AY$3) -> 7029 | X26: =CEILING('Шкафы (2)'!X26*'Доп комплектация'!$AY$1,'Доп комплектация'!$AY$3) -> 6849 | Y26: =CEILING('Шкафы (2)'!Y26*'Доп комплектация'!$AY$1,'Доп комплектация'!$AY$3) -> 7369 | Z26: =CEILING('Шкафы (2)'!Z26*'Доп комплектация'!$AY$1,'Доп комплектация'!$AY$3) -> 8169 | AA26: =CEILING('Шкафы (2)'!AA26*'Доп комплектация'!$AY$1,'Доп комплектация'!$AY$3) -> 8309 | AB26: =CEILING('Шкафы (2)'!AB26*'Доп комплектация'!$AY$1,'Доп комплектация'!$AY$3) -> 6549 | AC26: =CEILING('Шкафы (2)'!AC26*'Доп комплектация'!$AY$1,'Доп комплектация'!$AY$3) -> 6749 | AD26: =CEILING('Шкафы (2)'!AD26*'Доп комплектация'!$AY$1,'Доп комплектация'!$AY$3) -> 7029 | AE26: =CEILING('Шкафы (2)'!AE26*'Доп комплектация'!$AY$1,'Доп комплектация'!$AY$3) -> 8749 | AF26: =CEILING('Шкафы (2)'!AF26*'Доп комплектация'!$AY$1,'Доп комплектация'!$AY$3) -> 6069 | AG26: =CEILING('Шкафы (2)'!AG26*'Доп комплектация'!$AY$1,'Доп комплектация'!$AY$3) -> 6629 | AH26: =CEILING('Шкафы (2)'!AH26*'Доп комплектация'!$AY$1,'Доп комплектация'!$AY$3) -> 0 | AI26: =CEILING('Шкафы (2)'!AI26*'Доп комплектация'!$AY$1,'Доп комплектация'!$AY$3) -> 5769 | AJ26: =CEILING('Шкафы (2)'!AJ26*'Доп комплектация'!$AY$1,'Доп комплектация'!$AY$3) -> 6689 | AK26: - | AL26: - | AM26: - | AN26: - | AO26: - | AP26: - | AQ26: - | AR26: - | AS26: - | AT26: - | AU26: - | AV26: - | AW26: - | AX26: - | AY26: - | AZ26: - | BA26: - | BB26: - | BC26: - | BD26: - | BE26: L=800
D27: L=850 | E27: =CEILING('Шкафы (2)'!E27*'Доп комплектация'!$AY$1,'Доп комплектация'!$AY$3) -> 5199 | F27: =CEILING('Шкафы (2)'!F27*'Доп комплектация'!$AY$1,'Доп комплектация'!$AY$3) -> 6479 | G27: =CEILING('Шкафы (2)'!G27*'Доп комплектация'!$AY$1,'Доп комплектация'!$AY$3) -> 5399 | H27: =CEILING('Шкафы (2)'!H27*'Доп комплектация'!$AY$1,'Доп комплектация'!$AY$3) -> 6679 | I27: =CEILING('Шкафы (2)'!I27*'Доп комплектация'!$AY$1,'Доп комплектация'!$AY$3) -> 5879 | J27: =CEILING('Шкафы (2)'!J27*'Доп комплектация'!$AY$1,'Доп комплектация'!$AY$3) -> 7599 | K27: =CEILING('Шкафы (2)'!K27*'Доп комплектация'!$AY$1,'Доп комплектация'!$AY$3) -> 8159 | L27: =CEILING('Шкафы (2)'!L27*'Доп комплектация'!$AY$1,'Доп комплектация'!$AY$3) -> 0 | M27: =CEILING('Шкафы (2)'!M27*'Доп комплектация'!$AY$1,'Доп комплектация'!$AY$3) -> 8879 | N27: =CEILING('Шкафы (2)'!N27*'Доп комплектация'!$AY$1,'Доп комплектация'!$AY$3) -> 9439 | O27: =CEILING('Шкафы (2)'!O27*'Доп комплектация'!$AY$1,'Доп комплектация'!$AY$3) -> 5499 | P27: =CEILING('Шкафы (2)'!P27*'Доп комплектация'!$AY$1,'Доп комплектация'!$AY$3) -> 0 | Q27: =CEILING('Шкафы (2)'!Q27*'Доп комплектация'!$AY$1,'Доп комплектация'!$AY$3) -> 4619 | R27: =CEILING('Шкафы (2)'!R27*'Доп комплектация'!$AY$1,'Доп комплектация'!$AY$3) -> 4659 | S27: =CEILING('Шкафы (2)'!S27*'Доп комплектация'!$AY$1,'Доп комплектация'!$AY$3) -> 4759 | T27: =CEILING('Шкафы (2)'!T27*'Доп комплектация'!$AY$1,'Доп комплектация'!$AY$3) -> 5019 | U27: =CEILING('Шкафы (2)'!U27*'Доп комплектация'!$AY$1,'Доп комплектация'!$AY$3) -> 0 | V27: =CEILING('Шкафы (2)'!V27*'Доп комплектация'!$AY$1,'Доп комплектация'!$AY$3) -> 6619 | W27: =CEILING('Шкафы (2)'!W27*'Доп комплектация'!$AY$1,'Доп комплектация'!$AY$3) -> 7239 | X27: =CEILING('Шкафы (2)'!X27*'Доп комплектация'!$AY$1,'Доп комплектация'!$AY$3) -> 7079 | Y27: =CEILING('Шкафы (2)'!Y27*'Доп комплектация'!$AY$1,'Доп комплектация'!$AY$3) -> 7619 | Z27: =CEILING('Шкафы (2)'!Z27*'Доп комплектация'!$AY$1,'Доп комплектация'!$AY$3) -> 8419 | AA27: =CEILING('Шкафы (2)'!AA27*'Доп комплектация'!$AY$1,'Доп комплектация'!$AY$3) -> 8619 | AB27: =CEILING('Шкафы (2)'!AB27*'Доп комплектация'!$AY$1,'Доп комплектация'!$AY$3) -> 6739 | AC27: =CEILING('Шкафы (2)'!AC27*'Доп комплектация'!$AY$1,'Доп комплектация'!$AY$3) -> 6979 | AD27: =CEILING('Шкафы (2)'!AD27*'Доп комплектация'!$AY$1,'Доп комплектация'!$AY$3) -> 7259 | AE27: =CEILING('Шкафы (2)'!AE27*'Доп комплектация'!$AY$1,'Доп комплектация'!$AY$3) -> 9079 | AF27: =CEILING('Шкафы (2)'!AF27*'Доп комплектация'!$AY$1,'Доп комплектация'!$AY$3) -> 6239 | AG27: =CEILING('Шкафы (2)'!AG27*'Доп комплектация'!$AY$1,'Доп комплектация'!$AY$3) -> 6839 | AH27: =CEILING('Шкафы (2)'!AH27*'Доп комплектация'!$AY$1,'Доп комплектация'!$AY$3) -> 0 | AI27: =CEILING('Шкафы (2)'!AI27*'Доп комплектация'!$AY$1,'Доп комплектация'!$AY$3) -> 5919 | AJ27: =CEILING('Шкафы (2)'!AJ27*'Доп комплектация'!$AY$1,'Доп комплектация'!$AY$3) -> 6919 | AK27: - | AL27: - | AM27: - | AN27: - | AO27: - | AP27: - | AQ27: - | AR27: - | AS27: - | AT27: - | AU27: - | AV27: - | AW27: - | AX27: - | AY27: - | AZ27: - | BA27: - | BB27: - | BC27: - | BD27: -
D28: L=900 | E28: =CEILING('Шкафы (2)'!E28*'Доп комплектация'!$AY$1,'Доп комплектация'!$AY$3) -> 5327 | F28: =CEILING('Шкафы (2)'!F28*'Доп комплектация'!$AY$1,'Доп комплектация'!$AY$3) -> 6687 | G28: =CEILING('Шкафы (2)'!G28*'Доп комплектация'!$AY$1,'Доп комплектация'!$AY$3) -> 5527 | H28: =CEILING('Шкафы (2)'!H28*'Доп комплектация'!$AY$1,'Доп комплектация'!$AY$3) -> 6887 | I28: =CEILING('Шкафы (2)'!I28*'Доп комплектация'!$AY$1,'Доп комплектация'!$AY$3) -> 6047 | J28: =CEILING('Шкафы (2)'!J28*'Доп комплектация'!$AY$1,'Доп комплектация'!$AY$3) -> 7867 | K28: =CEILING('Шкафы (2)'!K28*'Доп комплектация'!$AY$1,'Доп комплектация'!$AY$3) -> 8467 | L28: =CEILING('Шкафы (2)'!L28*'Доп комплектация'!$AY$1,'Доп комплектация'!$AY$3) -> 0 | M28: =CEILING('Шкафы (2)'!M28*'Доп комплектация'!$AY$1,'Доп комплектация'!$AY$3) -> 9227 | N28: =CEILING('Шкафы (2)'!N28*'Доп комплектация'!$AY$1,'Доп комплектация'!$AY$3) -> 9827 | O28: =CEILING('Шкафы (2)'!O28*'Доп комплектация'!$AY$1,'Доп комплектация'!$AY$3) -> 5587 | P28: =CEILING('Шкафы (2)'!P28*'Доп комплектация'!$AY$1,'Доп комплектация'!$AY$3) -> 0 | Q28: =CEILING('Шкафы (2)'!Q28*'Доп комплектация'!$AY$1,'Доп комплектация'!$AY$3) -> 4707 | R28: =CEILING('Шкафы (2)'!R28*'Доп комплектация'!$AY$1,'Доп комплектация'!$AY$3) -> 4747 | S28: =CEILING('Шкафы (2)'!S28*'Доп комплектация'!$AY$1,'Доп комплектация'!$AY$3) -> 4847 | T28: =CEILING('Шкафы (2)'!T28*'Доп комплектация'!$AY$1,'Доп комплектация'!$AY$3) -> 5147 | U28: =CEILING('Шкафы (2)'!U28*'Доп комплектация'!$AY$1,'Доп комплектация'!$AY$3) -> 0 | V28: =CEILING('Шкафы (2)'!V28*'Доп комплектация'!$AY$1,'Доп комплектация'!$AY$3) -> 6807 | W28: =CEILING('Шкафы (2)'!W28*'Доп комплектация'!$AY$1,'Доп комплектация'!$AY$3) -> 7447 | X28: =CEILING('Шкафы (2)'!X28*'Доп комплектация'!$AY$1,'Доп комплектация'!$AY$3) -> 7287 | Y28: =CEILING('Шкафы (2)'!Y28*'Доп комплектация'!$AY$1,'Доп комплектация'!$AY$3) -> 7867 | Z28: =CEILING('Шкафы (2)'!Z28*'Доп комплектация'!$AY$1,'Доп комплектация'!$AY$3) -> 8667 | AA28: =CEILING('Шкафы (2)'!AA28*'Доп комплектация'!$AY$1,'Доп комплектация'!$AY$3) -> 8927 | AB28: =CEILING('Шкафы (2)'!AB28*'Доп комплектация'!$AY$1,'Доп комплектация'!$AY$3) -> 6947 | AC28: =CEILING('Шкафы (2)'!AC28*'Доп комплектация'!$AY$1,'Доп комплектация'!$AY$3) -> 7187 | AD28: =CEILING('Шкафы (2)'!AD28*'Доп комплектация'!$AY$1,'Доп комплектация'!$AY$3) -> 7487 | AE28: =CEILING('Шкафы (2)'!AE28*'Доп комплектация'!$AY$1,'Доп комплектация'!$AY$3) -> 9427 | AF28: =CEILING('Шкафы (2)'!AF28*'Доп комплектация'!$AY$1,'Доп комплектация'!$AY$3) -> 6407 | AG28: =CEILING('Шкафы (2)'!AG28*'Доп комплектация'!$AY$1,'Доп комплектация'!$AY$3) -> 7047 | AH28: =CEILING('Шкафы (2)'!AH28*'Доп комплектация'!$AY$1,'Доп комплектация'!$AY$3) -> 0 | AI28: =CEILING('Шкафы (2)'!AI28*'Доп комплектация'!$AY$1,'Доп комплектация'!$AY$3) -> 6087 | AJ28: =CEILING('Шкафы (2)'!AJ28*'Доп комплектация'!$AY$1,'Доп комплектация'!$AY$3) -> 7127 | AK28: - | AL28: - | AM28: - | AN28: - | AO28: - | AP28: - | AQ28: - | AR28: - | AS28: - | AT28: - | AU28: - | AV28: - | AW28: - | AX28: - | AY28: - | AZ28: - | BA28: - | BB28: - | BC28: - | BD28: -
C29: Шкаф 1дв 1ст Н=360 | D29: L-300 | E29: =CEILING('Шкафы (2)'!E29*'Доп комплектация'!$AY$1,'Доп комплектация'!$AY$3) -> 2977 | F29: =CEILING('Шкафы (2)'!F29*'Доп комплектация'!$AY$1,'Доп комплектация'!$AY$3) -> 3387 | G29: =CEILING('Шкафы (2)'!G29*'Доп комплектация'!$AY$1,'Доп комплектация'!$AY$3) -> 3037 | H29: =CEILING('Шкафы (2)'!H29*'Доп комплектация'!$AY$1,'Доп комплектация'!$AY$3) -> 3447 | I29: =CEILING('Шкафы (2)'!I29*'Доп комплектация'!$AY$1,'Доп комплектация'!$AY$3) -> 3197 | J29: =CEILING('Шкафы (2)'!J29*'Доп комплектация'!$AY$1,'Доп комплектация'!$AY$3) -> 3737 | K29: =CEILING('Шкафы (2)'!K29*'Доп комплектация'!$AY$1,'Доп комплектация'!$AY$3) -> 3917 | L29: =CEILING('Шкафы (2)'!L29*'Доп комплектация'!$AY$1,'Доп комплектация'!$AY$3) -> 0 | M29: =CEILING('Шкафы (2)'!M29*'Доп комплектация'!$AY$1,'Доп комплектация'!$AY$3) -> 4147 | N29: =CEILING('Шкафы (2)'!N29*'Доп комплектация'!$AY$1,'Доп комплектация'!$AY$3) -> 4317 | O29: =CEILING('Шкафы (2)'!O29*'Доп комплектация'!$AY$1,'Доп комплектация'!$AY$3) -> 3164 | P29: =CEILING('Шкафы (2)'!P29*'Доп комплектация'!$AY$1,'Доп комплектация'!$AY$3) -> 0 | Q29: =CEILING('Шкафы (2)'!Q29*'Доп комплектация'!$AY$1,'Доп комплектация'!$AY$3) -> 2734 | R29: =CEILING('Шкафы (2)'!R29*'Доп комплектация'!$AY$1,'Доп комплектация'!$AY$3) -> 2744 | S29: =CEILING('Шкафы (2)'!S29*'Доп комплектация'!$AY$1,'Доп комплектация'!$AY$3) -> 2774 | T29: =CEILING('Шкафы (2)'!T29*'Доп комплектация'!$AY$1,'Доп комплектация'!$AY$3) -> 2854 | U29: =CEILING('Шкафы (2)'!U29*'Доп комплектация'!$AY$1,'Доп комплектация'!$AY$3) -> 0 | V29: =CEILING('Шкафы (2)'!V29*'Доп комплектация'!$AY$1,'Доп комплектация'!$AY$3) -> 3484 | W29: =CEILING('Шкафы (2)'!W29*'Доп комплектация'!$AY$1,'Доп комплектация'!$AY$3) -> 3854 | X29: =CEILING('Шкафы (2)'!X29*'Доп комплектация'!$AY$1,'Доп комплектация'!$AY$3) -> 3614 | Y29: =CEILING('Шкафы (2)'!Y29*'Доп комплектация'!$AY$1,'Доп комплектация'!$AY$3) -> 3764 | Z29: =CEILING('Шкафы (2)'!Z29*'Доп комплектация'!$AY$1,'Доп комплектация'!$AY$3) -> 3984 | AA29: =CEILING('Шкафы (2)'!AA29*'Доп комплектация'!$AY$1,'Доп комплектация'!$AY$3) -> 4124 | AB29: =CEILING('Шкафы (2)'!AB29*'Доп комплектация'!$AY$1,'Доп комплектация'!$AY$3) -> 3664 | AC29: =CEILING('Шкафы (2)'!AC29*'Доп комплектация'!$AY$1,'Доп комплектация'!$AY$3) -> 3724 | AD29: =CEILING('Шкафы (2)'!AD29*'Доп комплектация'!$AY$1,'Доп комплектация'!$AY$3) -> 3794 | AE29: =CEILING('Шкафы (2)'!AE29*'Доп комплектация'!$AY$1,'Доп комплектация'!$AY$3) -> 4264 | AF29: =CEILING('Шкафы (2)'!AF29*'Доп комплектация'!$AY$1,'Доп комплектация'!$AY$3) -> 3374 | AG29: =CEILING('Шкафы (2)'!AG29*'Доп комплектация'!$AY$1,'Доп комплектация'!$AY$3) -> 3544 | AH29: - | AI29: - | AJ29: - | AK29: * | AL29: =CEILING('Шкафы (2)'!AL29*'Доп комплектация'!$AY$1,'Доп комплектация'!$AY$3) -> 45 | AM29: =CEILING('Шкафы (2)'!AM29*'Доп комплектация'!$AY$1,'Доп комплектация'!$AY$3) -> 175 | AN29: =CEILING('Шкафы (2)'!AN29*'Доп комплектация'!$AY$1,'Доп комплектация'!$AY$3) -> 214 | AO29: =CEILING('Шкафы (2)'!AO29*'Доп комплектация'!$AY$1,'Доп комплектация'!$AY$3) -> 197 | AP29: =CEILING('Шкафы (2)'!AP29*'Доп комплектация'!$AY$1,'Доп комплектация'!$AY$3) -> 575 | AQ29: =CEILING('Шкафы (2)'!AQ29*'Доп комплектация'!$AY$1,'Доп комплектация'!$AY$3) -> 889 | AR29: =CEILING('Шкафы (2)'!AR29*'Доп комплектация'!$AY$1,'Доп комплектация'!$AY$3) -> 2546 | AS29: =CEILING('Шкафы (2)'!AS29*'Доп комплектация'!$AY$1,'Доп комплектация'!$AY$3) -> 619 | AT29: * | AU29: =CEILING('Шкафы (2)'!AU29*'Доп комплектация'!$AY$1,'Доп комплектация'!$AY$3) -> 30 | AV29: =CEILING('Шкафы (2)'!AV29*'Доп комплектация'!$AY$1,'Доп комплектация'!$AY$3) -> 60 | AW29: =CEILING('Шкафы (2)'!AW29*'Доп комплектация'!$AY$1,'Доп комплектация'!$AY$3) -> 70 | AX29: =CEILING('Шкафы (2)'!AX29*'Доп комплектация'!$AY$1,'Доп комплектация'!$AY$3) -> 120 | AY29: =CEILING('Шкафы (2)'!AY29*'Доп комплектация'!$AY$1,'Доп комплектация'!$AY$3) -> 530 | AZ29: * | BA29: =CEILING('Шкафы (2)'!BA29*'Доп комплектация'!$AY$1,'Доп комплектация'!$AY$3) -> 20 | BB29: =CEILING('Шкафы (2)'!BB29*'Доп комплектация'!$AY$1,'Доп комплектация'!$AY$3) -> 40 | BC29: =CEILING('Шкафы (2)'!BC29*'Доп комплектация'!$AY$1,'Доп комплектация'!$AY$3) -> 50 | BD29: =CEILING('Шкафы (2)'!BD29*'Доп комплектация'!$AY$1,'Доп комплектация'!$AY$3) -> 80
D30: L-350 | E30: =CEILING('Шкафы (2)'!E30*'Доп комплектация'!$AY$1,'Доп комплектация'!$AY$3) -> 3114 | F30: =CEILING('Шкафы (2)'!F30*'Доп комплектация'!$AY$1,'Доп комплектация'!$AY$3) -> 3584 | G30: =CEILING('Шкафы (2)'!G30*'Доп комплектация'!$AY$1,'Доп комплектация'!$AY$3) -> 3184 | H30: =CEILING('Шкафы (2)'!H30*'Доп комплектация'!$AY$1,'Доп комплектация'!$AY$3) -> 3664 | I30: =CEILING('Шкафы (2)'!I30*'Доп комплектация'!$AY$1,'Доп комплектация'!$AY$3) -> 3364 | J30: =CEILING('Шкафы (2)'!J30*'Доп комплектация'!$AY$1,'Доп комплектация'!$AY$3) -> 4004 | K30: =CEILING('Шкафы (2)'!K30*'Доп комплектация'!$AY$1,'Доп комплектация'!$AY$3) -> 4204 | L30: =CEILING('Шкафы (2)'!L30*'Доп комплектация'!$AY$1,'Доп комплектация'!$AY$3) -> 0 | M30: =CEILING('Шкафы (2)'!M30*'Доп комплектация'!$AY$1,'Доп комплектация'!$AY$3) -> 4474 | N30: =CEILING('Шкафы (2)'!N30*'Доп комплектация'!$AY$1,'Доп комплектация'!$AY$3) -> 4684 | O30: =CEILING('Шкафы (2)'!O30*'Доп комплектация'!$AY$1,'Доп комплектация'!$AY$3) -> 3231 | P30: =CEILING('Шкафы (2)'!P30*'Доп комплектация'!$AY$1,'Доп комплектация'!$AY$3) -> 0 | Q30: =CEILING('Шкафы (2)'!Q30*'Доп комплектация'!$AY$1,'Доп комплектация'!$AY$3) -> 2821 | R30: =CEILING('Шкафы (2)'!R30*'Доп комплектация'!$AY$1,'Доп комплектация'!$AY$3) -> 2841 | S30: =CEILING('Шкафы (2)'!S30*'Доп комплектация'!$AY$1,'Доп комплектация'!$AY$3) -> 2871 | T30: =CEILING('Шкафы (2)'!T30*'Доп комплектация'!$AY$1,'Доп комплектация'!$AY$3) -> 2961 | U30: =CEILING('Шкафы (2)'!U30*'Доп комплектация'!$AY$1,'Доп комплектация'!$AY$3) -> 0 | V30: =CEILING('Шкафы (2)'!V30*'Доп комплектация'!$AY$1,'Доп комплектация'!$AY$3) -> 3671 | W30: =CEILING('Шкафы (2)'!W30*'Доп комплектация'!$AY$1,'Доп комплектация'!$AY$3) -> 4081 | X30: =CEILING('Шкафы (2)'!X30*'Доп комплектация'!$AY$1,'Доп комплектация'!$AY$3) -> 3831 | Y30: =CEILING('Шкафы (2)'!Y30*'Доп комплектация'!$AY$1,'Доп комплектация'!$AY$3) -> 4011 | Z30: =CEILING('Шкафы (2)'!Z30*'Доп комплектация'!$AY$1,'Доп комплектация'!$AY$3) -> 4121 | AA30: =CEILING('Шкафы (2)'!AA30*'Доп комплектация'!$AY$1,'Доп комплектация'!$AY$3) -> 4421 | AB30: =CEILING('Шкафы (2)'!AB30*'Доп комплектация'!$AY$1,'Доп комплектация'!$AY$3) -> 3821 | AC30: =CEILING('Шкафы (2)'!AC30*'Доп комплектация'!$AY$1,'Доп комплектация'!$AY$3) -> 3881 | AD30: =CEILING('Шкафы (2)'!AD30*'Доп комплектация'!$AY$1,'Доп комплектация'!$AY$3) -> 3961 | AE30: =CEILING('Шкафы (2)'!AE30*'Доп комплектация'!$AY$1,'Доп комплектация'!$AY$3) -> 4481 | AF30: =CEILING('Шкафы (2)'!AF30*'Доп комплектация'!$AY$1,'Доп комплектация'!$AY$3) -> 3551 | AG30: =CEILING('Шкафы (2)'!AG30*'Доп комплектация'!$AY$1,'Доп комплектация'!$AY$3) -> 3751 | AH30: - | AI30: - | AJ30: - | AK30: * | AL30: =CEILING('Шкафы (2)'!AL30*'Доп комплектация'!$AY$1,'Доп комплектация'!$AY$3) -> 45 | AM30: =CEILING('Шкафы (2)'!AM30*'Доп комплектация'!$AY$1,'Доп комплектация'!$AY$3) -> 175 | AN30: =CEILING('Шкафы (2)'!AN30*'Доп комплектация'!$AY$1,'Доп комплектация'!$AY$3) -> 214 | AO30: =CEILING('Шкафы (2)'!AO30*'Доп комплектация'!$AY$1,'Доп комплектация'!$AY$3) -> 197 | AP30: =CEILING('Шкафы (2)'!AP30*'Доп комплектация'!$AY$1,'Доп комплектация'!$AY$3) -> 575 | AQ30: =CEILING('Шкафы (2)'!AQ30*'Доп комплектация'!$AY$1,'Доп комплектация'!$AY$3) -> 889 | AR30: =CEILING('Шкафы (2)'!AR30*'Доп комплектация'!$AY$1,'Доп комплектация'!$AY$3) -> 2546 | AS30: =CEILING('Шкафы (2)'!AS30*'Доп комплектация'!$AY$1,'Доп комплектация'!$AY$3) -> 619 | AT30: * | AU30: =CEILING('Шкафы (2)'!AU30*'Доп комплектация'!$AY$1,'Доп комплектация'!$AY$3) -> 30 | AV30: =CEILING('Шкафы (2)'!AV30*'Доп комплектация'!$AY$1,'Доп комплектация'!$AY$3) -> 60 | AW30: =CEILING('Шкафы (2)'!AW30*'Доп комплектация'!$AY$1,'Доп комплектация'!$AY$3) -> 70 | AX30: =CEILING('Шкафы (2)'!AX30*'Доп комплектация'!$AY$1,'Доп комплектация'!$AY$3) -> 120 | AY30: =CEILING('Шкафы (2)'!AY30*'Доп комплектация'!$AY$1,'Доп комплектация'!$AY$3) -> 530 | AZ30: * | BA30: =CEILING('Шкафы (2)'!BA30*'Доп комплектация'!$AY$1,'Доп комплектация'!$AY$3) -> 20 | BB30: =CEILING('Шкафы (2)'!BB30*'Доп комплектация'!$AY$1,'Доп комплектация'!$AY$3) -> 40 | BC30: =CEILING('Шкафы (2)'!BC30*'Доп комплектация'!$AY$1,'Доп комплектация'!$AY$3) -> 50 | BD30: =CEILING('Шкафы (2)'!BD30*'Доп комплектация'!$AY$1,'Доп комплектация'!$AY$3) -> 80
D31: L-400 | E31: =CEILING('Шкафы (2)'!E31*'Доп комплектация'!$AY$1,'Доп комплектация'!$AY$3) -> 3255 | F31: =CEILING('Шкафы (2)'!F31*'Доп комплектация'!$AY$1,'Доп комплектация'!$AY$3) -> 3795 | G31: =CEILING('Шкафы (2)'!G31*'Доп комплектация'!$AY$1,'Доп комплектация'!$AY$3) -> 3335 | H31: =CEILING('Шкафы (2)'!H31*'Доп комплектация'!$AY$1,'Доп комплектация'!$AY$3) -> 3875 | I31: =CEILING('Шкафы (2)'!I31*'Доп комплектация'!$AY$1,'Доп комплектация'!$AY$3) -> 3535 | J31: =CEILING('Шкафы (2)'!J31*'Доп комплектация'!$AY$1,'Доп комплектация'!$AY$3) -> 4265 | K31: =CEILING('Шкафы (2)'!K31*'Доп комплектация'!$AY$1,'Доп комплектация'!$AY$3) -> 4505 | L31: =CEILING('Шкафы (2)'!L31*'Доп комплектация'!$AY$1,'Доп комплектация'!$AY$3) -> 0 | M31: =CEILING('Шкафы (2)'!M31*'Доп комплектация'!$AY$1,'Доп комплектация'!$AY$3) -> 4805 | N31: =CEILING('Шкафы (2)'!N31*'Доп комплектация'!$AY$1,'Доп комплектация'!$AY$3) -> 5045 | O31: =CEILING('Шкафы (2)'!O31*'Доп комплектация'!$AY$1,'Доп комплектация'!$AY$3) -> 3331 | P31: =CEILING('Шкафы (2)'!P31*'Доп комплектация'!$AY$1,'Доп комплектация'!$AY$3) -> 0 | Q31: =CEILING('Шкафы (2)'!Q31*'Доп комплектация'!$AY$1,'Доп комплектация'!$AY$3) -> 2911 | R31: =CEILING('Шкафы (2)'!R31*'Доп комплектация'!$AY$1,'Доп комплектация'!$AY$3) -> 2931 | S31: =CEILING('Шкафы (2)'!S31*'Доп комплектация'!$AY$1,'Доп комплектация'!$AY$3) -> 2961 | T31: =CEILING('Шкафы (2)'!T31*'Доп комплектация'!$AY$1,'Доп комплектация'!$AY$3) -> 3071 | U31: =CEILING('Шкафы (2)'!U31*'Доп комплектация'!$AY$1,'Доп комплектация'!$AY$3) -> 0 | V31: =CEILING('Шкафы (2)'!V31*'Доп комплектация'!$AY$1,'Доп комплектация'!$AY$3) -> 3871 | W31: =CEILING('Шкафы (2)'!W31*'Доп комплектация'!$AY$1,'Доп комплектация'!$AY$3) -> 4321 | X31: =CEILING('Шкафы (2)'!X31*'Доп комплектация'!$AY$1,'Доп комплектация'!$AY$3) -> 4041 | Y31: =CEILING('Шкафы (2)'!Y31*'Доп комплектация'!$AY$1,'Доп комплектация'!$AY$3) -> 4251 | Z31: =CEILING('Шкафы (2)'!Z31*'Доп комплектация'!$AY$1,'Доп комплектация'!$AY$3) -> 4301 | AA31: =CEILING('Шкафы (2)'!AA31*'Доп комплектация'!$AY$1,'Доп комплектация'!$AY$3) -> 4711 | AB31: =CEILING('Шкафы (2)'!AB31*'Доп комплектация'!$AY$1,'Доп комплектация'!$AY$3) -> 3981 | AC31: =CEILING('Шкафы (2)'!AC31*'Доп комплектация'!$AY$1,'Доп комплектация'!$AY$3) -> 4051 | AD31: =CEILING('Шкафы (2)'!AD31*'Доп комплектация'!$AY$1,'Доп комплектация'!$AY$3) -> 4141 | AE31: =CEILING('Шкафы (2)'!AE31*'Доп комплектация'!$AY$1,'Доп комплектация'!$AY$3) -> 4701 | AF31: =CEILING('Шкафы (2)'!AF31*'Доп комплектация'!$AY$1,'Доп комплектация'!$AY$3) -> 3731 | AG31: =CEILING('Шкафы (2)'!AG31*'Доп комплектация'!$AY$1,'Доп комплектация'!$AY$3) -> 3951 | AH31: - | AI31: - | AJ31: - | AK31: * | AL31: =CEILING('Шкафы (2)'!AL31*'Доп комплектация'!$AY$1,'Доп комплектация'!$AY$3) -> 45 | AM31: =CEILING('Шкафы (2)'!AM31*'Доп комплектация'!$AY$1,'Доп комплектация'!$AY$3) -> 175 | AN31: =CEILING('Шкафы (2)'!AN31*'Доп комплектация'!$AY$1,'Доп комплектация'!$AY$3) -> 214 | AO31: =CEILING('Шкафы (2)'!AO31*'Доп комплектация'!$AY$1,'Доп комплектация'!$AY$3) -> 197 | AP31: =CEILING('Шкафы (2)'!AP31*'Доп комплектация'!$AY$1,'Доп комплектация'!$AY$3) -> 575 | AQ31: =CEILING('Шкафы (2)'!AQ31*'Доп комплектация'!$AY$1,'Доп комплектация'!$AY$3) -> 889 | AR31: =CEILING('Шкафы (2)'!AR31*'Доп комплектация'!$AY$1,'Доп комплектация'!$AY$3) -> 2546 | AS31: =CEILING('Шкафы (2)'!AS31*'Доп комплектация'!$AY$1,'Доп комплектация'!$AY$3) -> 619 | AT31: * | AU31: =CEILING('Шкафы (2)'!AU31*'Доп комплектация'!$AY$1,'Доп комплектация'!$AY$3) -> 30 | AV31: =CEILING('Шкафы (2)'!AV31*'Доп комплектация'!$AY$1,'Доп комплектация'!$AY$3) -> 60 | AW31: =CEILING('Шкафы (2)'!AW31*'Доп комплектация'!$AY$1,'Доп комплектация'!$AY$3) -> 70 | AX31: =CEILING('Шкафы (2)'!AX31*'Доп комплектация'!$AY$1,'Доп комплектация'!$AY$3) -> 120 | AY31: =CEILING('Шкафы (2)'!AY31*'Доп комплектация'!$AY$1,'Доп комплектация'!$AY$3) -> 530 | AZ31: * | BA31: =CEILING('Шкафы (2)'!BA31*'Доп комплектация'!$AY$1,'Доп комплектация'!$AY$3) -> 20 | BB31: =CEILING('Шкафы (2)'!BB31*'Доп комплектация'!$AY$1,'Доп комплектация'!$AY$3) -> 40 | BC31: =CEILING('Шкафы (2)'!BC31*'Доп комплектация'!$AY$1,'Доп комплектация'!$AY$3) -> 50 | BD31: =CEILING('Шкафы (2)'!BD31*'Доп комплектация'!$AY$1,'Доп комплектация'!$AY$3) -> 80 | BE31: Н=360
D32: L-450 | E32: =CEILING('Шкафы (2)'!E32*'Доп комплектация'!$AY$1,'Доп комплектация'!$AY$3) -> 3382 | F32: =CEILING('Шкафы (2)'!F32*'Доп комплектация'!$AY$1,'Доп комплектация'!$AY$3) -> 3992 | G32: =CEILING('Шкафы (2)'!G32*'Доп комплектация'!$AY$1,'Доп комплектация'!$AY$3) -> 3472 | H32: =CEILING('Шкафы (2)'!H32*'Доп комплектация'!$AY$1,'Доп комплектация'!$AY$3) -> 4092 | I32: =CEILING('Шкафы (2)'!I32*'Доп комплектация'!$AY$1,'Доп комплектация'!$AY$3) -> 3702 | J32: =CEILING('Шкафы (2)'!J32*'Доп комплектация'!$AY$1,'Доп комплектация'!$AY$3) -> 4522 | K32: =CEILING('Шкафы (2)'!K32*'Доп комплектация'!$AY$1,'Доп комплектация'!$AY$3) -> 4792 | L32: =CEILING('Шкафы (2)'!L32*'Доп комплектация'!$AY$1,'Доп комплектация'!$AY$3) -> 0 | M32: =CEILING('Шкафы (2)'!M32*'Доп комплектация'!$AY$1,'Доп комплектация'!$AY$3) -> 5142 | N32: =CEILING('Шкафы (2)'!N32*'Доп комплектация'!$AY$1,'Доп комплектация'!$AY$3) -> 5402 | O32: =CEILING('Шкафы (2)'!O32*'Доп комплектация'!$AY$1,'Доп комплектация'!$AY$3) -> 3429 | P32: =CEILING('Шкафы (2)'!P32*'Доп комплектация'!$AY$1,'Доп комплектация'!$AY$3) -> 0 | Q32: =CEILING('Шкафы (2)'!Q32*'Доп комплектация'!$AY$1,'Доп комплектация'!$AY$3) -> 2999 | R32: =CEILING('Шкафы (2)'!R32*'Доп комплектация'!$AY$1,'Доп комплектация'!$AY$3) -> 3019 | S32: =CEILING('Шкафы (2)'!S32*'Доп комплектация'!$AY$1,'Доп комплектация'!$AY$3) -> 3059 | T32: =CEILING('Шкафы (2)'!T32*'Доп комплектация'!$AY$1,'Доп комплектация'!$AY$3) -> 3179 | U32: =CEILING('Шкафы (2)'!U32*'Доп комплектация'!$AY$1,'Доп комплектация'!$AY$3) -> 0 | V32: =CEILING('Шкафы (2)'!V32*'Доп комплектация'!$AY$1,'Доп комплектация'!$AY$3) -> 4059 | W32: =CEILING('Шкафы (2)'!W32*'Доп комплектация'!$AY$1,'Доп комплектация'!$AY$3) -> 4559 | X32: =CEILING('Шкафы (2)'!X32*'Доп комплектация'!$AY$1,'Доп комплектация'!$AY$3) -> 4259 | Y32: =CEILING('Шкафы (2)'!Y32*'Доп комплектация'!$AY$1,'Доп комплектация'!$AY$3) -> 4489 | Z32: =CEILING('Шкафы (2)'!Z32*'Доп комплектация'!$AY$1,'Доп комплектация'!$AY$3) -> 4479 | AA32: =CEILING('Шкафы (2)'!AA32*'Доп комплектация'!$AY$1,'Доп комплектация'!$AY$3) -> 5009 | AB32: =CEILING('Шкафы (2)'!AB32*'Доп комплектация'!$AY$1,'Доп комплектация'!$AY$3) -> 4139 | AC32: =CEILING('Шкафы (2)'!AC32*'Доп комплектация'!$AY$1,'Доп комплектация'!$AY$3) -> 4209 | AD32: =CEILING('Шкафы (2)'!AD32*'Доп комплектация'!$AY$1,'Доп комплектация'!$AY$3) -> 4309 | AE32: =CEILING('Шкафы (2)'!AE32*'Доп комплектация'!$AY$1,'Доп комплектация'!$AY$3) -> 4919 | AF32: =CEILING('Шкафы (2)'!AF32*'Доп комплектация'!$AY$1,'Доп комплектация'!$AY$3) -> 3909 | AG32: =CEILING('Шкафы (2)'!AG32*'Доп комплектация'!$AY$1,'Доп комплектация'!$AY$3) -> 4159 | AH32: - | AI32: - | AJ32: - | AK32: * | AL32: =CEILING('Шкафы (2)'!AL32*'Доп комплектация'!$AY$1,'Доп комплектация'!$AY$3) -> 45 | AM32: =CEILING('Шкафы (2)'!AM32*'Доп комплектация'!$AY$1,'Доп комплектация'!$AY$3) -> 175 | AN32: =CEILING('Шкафы (2)'!AN32*'Доп комплектация'!$AY$1,'Доп комплектация'!$AY$3) -> 214 | AO32: =CEILING('Шкафы (2)'!AO32*'Доп комплектация'!$AY$1,'Доп комплектация'!$AY$3) -> 197 | AP32: =CEILING('Шкафы (2)'!AP32*'Доп комплектация'!$AY$1,'Доп комплектация'!$AY$3) -> 575 | AQ32: =CEILING('Шкафы (2)'!AQ32*'Доп комплектация'!$AY$1,'Доп комплектация'!$AY$3) -> 889 | AR32: =CEILING('Шкафы (2)'!AR32*'Доп комплектация'!$AY$1,'Доп комплектация'!$AY$3) -> 2546 | AS32: =CEILING('Шкафы (2)'!AS32*'Доп комплектация'!$AY$1,'Доп комплектация'!$AY$3) -> 619 | AT32: * | AU32: =CEILING('Шкафы (2)'!AU32*'Доп комплектация'!$AY$1,'Доп комплектация'!$AY$3) -> 30 | AV32: =CEILING('Шкафы (2)'!AV32*'Доп комплектация'!$AY$1,'Доп комплектация'!$AY$3) -> 60 | AW32: =CEILING('Шкафы (2)'!AW32*'Доп комплектация'!$AY$1,'Доп комплектация'!$AY$3) -> 70 | AX32: =CEILING('Шкафы (2)'!AX32*'Доп комплектация'!$AY$1,'Доп комплектация'!$AY$3) -> 120 | AY32: =CEILING('Шкафы (2)'!AY32*'Доп комплектация'!$AY$1,'Доп комплектация'!$AY$3) -> 530 | AZ32: * | BA32: =CEILING('Шкафы (2)'!BA32*'Доп комплектация'!$AY$1,'Доп комплектация'!$AY$3) -> 20 | BB32: =CEILING('Шкафы (2)'!BB32*'Доп комплектация'!$AY$1,'Доп комплектация'!$AY$3) -> 40 | BC32: =CEILING('Шкафы (2)'!BC32*'Доп комплектация'!$AY$1,'Доп комплектация'!$AY$3) -> 50 | BD32: =CEILING('Шкафы (2)'!BD32*'Доп комплектация'!$AY$1,'Доп комплектация'!$AY$3) -> 80
D33: L-500 | E33: =CEILING('Шкафы (2)'!E33*'Доп комплектация'!$AY$1,'Доп комплектация'!$AY$3) -> 3522 | F33: =CEILING('Шкафы (2)'!F33*'Доп комплектация'!$AY$1,'Доп комплектация'!$AY$3) -> 4202 | G33: =CEILING('Шкафы (2)'!G33*'Доп комплектация'!$AY$1,'Доп комплектация'!$AY$3) -> 3622 | H33: =CEILING('Шкафы (2)'!H33*'Доп комплектация'!$AY$1,'Доп комплектация'!$AY$3) -> 4302 | I33: =CEILING('Шкафы (2)'!I33*'Доп комплектация'!$AY$1,'Доп комплектация'!$AY$3) -> 3882 | J33: =CEILING('Шкафы (2)'!J33*'Доп комплектация'!$AY$1,'Доп комплектация'!$AY$3) -> 4792 | K33: =CEILING('Шкафы (2)'!K33*'Доп комплектация'!$AY$1,'Доп комплектация'!$AY$3) -> 5082 | L33: =CEILING('Шкафы (2)'!L33*'Доп комплектация'!$AY$1,'Доп комплектация'!$AY$3) -> 0 | M33: =CEILING('Шкафы (2)'!M33*'Доп комплектация'!$AY$1,'Доп комплектация'!$AY$3) -> 5472 | N33: =CEILING('Шкафы (2)'!N33*'Доп комплектация'!$AY$1,'Доп комплектация'!$AY$3) -> 5762 | O33: =CEILING('Шкафы (2)'!O33*'Доп комплектация'!$AY$1,'Доп комплектация'!$AY$3) -> 3518 | P33: =CEILING('Шкафы (2)'!P33*'Доп комплектация'!$AY$1,'Доп комплектация'!$AY$3) -> 0 | Q33: =CEILING('Шкафы (2)'!Q33*'Доп комплектация'!$AY$1,'Доп комплектация'!$AY$3) -> 3088 | R33: =CEILING('Шкафы (2)'!R33*'Доп комплектация'!$AY$1,'Доп комплектация'!$AY$3) -> 3108 | S33: =CEILING('Шкафы (2)'!S33*'Доп комплектация'!$AY$1,'Доп комплектация'!$AY$3) -> 3158 | T33: =CEILING('Шкафы (2)'!T33*'Доп комплектация'!$AY$1,'Доп комплектация'!$AY$3) -> 3278 | U33: =CEILING('Шкафы (2)'!U33*'Доп комплектация'!$AY$1,'Доп комплектация'!$AY$3) -> 0 | V33: =CEILING('Шкафы (2)'!V33*'Доп комплектация'!$AY$1,'Доп комплектация'!$AY$3) -> 4258 | W33: =CEILING('Шкафы (2)'!W33*'Доп комплектация'!$AY$1,'Доп комплектация'!$AY$3) -> 4798 | X33: =CEILING('Шкафы (2)'!X33*'Доп комплектация'!$AY$1,'Доп комплектация'!$AY$3) -> 4478 | Y33: =CEILING('Шкафы (2)'!Y33*'Доп комплектация'!$AY$1,'Доп комплектация'!$AY$3) -> 4738 | Z33: =CEILING('Шкафы (2)'!Z33*'Доп комплектация'!$AY$1,'Доп комплектация'!$AY$3) -> 4658 | AA33: =CEILING('Шкафы (2)'!AA33*'Доп комплектация'!$AY$1,'Доп комплектация'!$AY$3) -> 5308 | AB33: =CEILING('Шкафы (2)'!AB33*'Доп комплектация'!$AY$1,'Доп комплектация'!$AY$3) -> 4288 | AC33: =CEILING('Шкафы (2)'!AC33*'Доп комплектация'!$AY$1,'Доп комплектация'!$AY$3) -> 4378 | AD33: =CEILING('Шкафы (2)'!AD33*'Доп комплектация'!$AY$1,'Доп комплектация'!$AY$3) -> 4478 | AE33: =CEILING('Шкафы (2)'!AE33*'Доп комплектация'!$AY$1,'Доп комплектация'!$AY$3) -> 5138 | AF33: =CEILING('Шкафы (2)'!AF33*'Доп комплектация'!$AY$1,'Доп комплектация'!$AY$3) -> 4078 | AG33: =CEILING('Шкафы (2)'!AG33*'Доп комплектация'!$AY$1,'Доп комплектация'!$AY$3) -> 4358 | AH33: - | AI33: - | AJ33: - | AK33: * | AL33: =CEILING('Шкафы (2)'!AL33*'Доп комплектация'!$AY$1,'Доп комплектация'!$AY$3) -> 45 | AM33: =CEILING('Шкафы (2)'!AM33*'Доп комплектация'!$AY$1,'Доп комплектация'!$AY$3) -> 175 | AN33: =CEILING('Шкафы (2)'!AN33*'Доп комплектация'!$AY$1,'Доп комплектация'!$AY$3) -> 214 | AO33: =CEILING('Шкафы (2)'!AO33*'Доп комплектация'!$AY$1,'Доп комплектация'!$AY$3) -> 197 | AP33: =CEILING('Шкафы (2)'!AP33*'Доп комплектация'!$AY$1,'Доп комплектация'!$AY$3) -> 575 | AQ33: =CEILING('Шкафы (2)'!AQ33*'Доп комплектация'!$AY$1,'Доп комплектация'!$AY$3) -> 889 | AR33: =CEILING('Шкафы (2)'!AR33*'Доп комплектация'!$AY$1,'Доп комплектация'!$AY$3) -> 2546 | AS33: =CEILING('Шкафы (2)'!AS33*'Доп комплектация'!$AY$1,'Доп комплектация'!$AY$3) -> 619 | AT33: * | AU33: =CEILING('Шкафы (2)'!AU33*'Доп комплектация'!$AY$1,'Доп комплектация'!$AY$3) -> 30 | AV33: =CEILING('Шкафы (2)'!AV33*'Доп комплектация'!$AY$1,'Доп комплектация'!$AY$3) -> 60 | AW33: =CEILING('Шкафы (2)'!AW33*'Доп комплектация'!$AY$1,'Доп комплектация'!$AY$3) -> 70 | AX33: =CEILING('Шкафы (2)'!AX33*'Доп комплектация'!$AY$1,'Доп комплектация'!$AY$3) -> 120 | AY33: =CEILING('Шкафы (2)'!AY33*'Доп комплектация'!$AY$1,'Доп комплектация'!$AY$3) -> 530 | AZ33: * | BA33: =CEILING('Шкафы (2)'!BA33*'Доп комплектация'!$AY$1,'Доп комплектация'!$AY$3) -> 20 | BB33: =CEILING('Шкафы (2)'!BB33*'Доп комплектация'!$AY$1,'Доп комплектация'!$AY$3) -> 40 | BC33: =CEILING('Шкафы (2)'!BC33*'Доп комплектация'!$AY$1,'Доп комплектация'!$AY$3) -> 50 | BD33: =CEILING('Шкафы (2)'!BD33*'Доп комплектация'!$AY$1,'Доп комплектация'!$AY$3) -> 80
D34: L-550 | E34: =CEILING('Шкафы (2)'!E34*'Доп комплектация'!$AY$1,'Доп комплектация'!$AY$3) -> 3661 | F34: =CEILING('Шкафы (2)'!F34*'Доп комплектация'!$AY$1,'Доп комплектация'!$AY$3) -> 4401 | G34: =CEILING('Шкафы (2)'!G34*'Доп комплектация'!$AY$1,'Доп комплектация'!$AY$3) -> 3771 | H34: =CEILING('Шкафы (2)'!H34*'Доп комплектация'!$AY$1,'Доп комплектация'!$AY$3) -> 4521 | I34: =CEILING('Шкафы (2)'!I34*'Доп комплектация'!$AY$1,'Доп комплектация'!$AY$3) -> 4051 | J34: =CEILING('Шкафы (2)'!J34*'Доп комплектация'!$AY$1,'Доп комплектация'!$AY$3) -> 5051 | K34: =CEILING('Шкафы (2)'!K34*'Доп комплектация'!$AY$1,'Доп комплектация'!$AY$3) -> 5381 | L34: =CEILING('Шкафы (2)'!L34*'Доп комплектация'!$AY$1,'Доп комплектация'!$AY$3) -> 0 | M34: =CEILING('Шкафы (2)'!M34*'Доп комплектация'!$AY$1,'Доп комплектация'!$AY$3) -> 5801 | N34: =CEILING('Шкафы (2)'!N34*'Доп комплектация'!$AY$1,'Доп комплектация'!$AY$3) -> 6131 | O34: =CEILING('Шкафы (2)'!O34*'Доп комплектация'!$AY$1,'Доп комплектация'!$AY$3) -> 3616 | P34: =CEILING('Шкафы (2)'!P34*'Доп комплектация'!$AY$1,'Доп комплектация'!$AY$3) -> 0 | Q34: =CEILING('Шкафы (2)'!Q34*'Доп комплектация'!$AY$1,'Доп комплектация'!$AY$3) -> 3176 | R34: =CEILING('Шкафы (2)'!R34*'Доп комплектация'!$AY$1,'Доп комплектация'!$AY$3) -> 3196 | S34: =CEILING('Шкафы (2)'!S34*'Доп комплектация'!$AY$1,'Доп комплектация'!$AY$3) -> 3246 | T34: =CEILING('Шкафы (2)'!T34*'Доп комплектация'!$AY$1,'Доп комплектация'!$AY$3) -> 3386 | U34: =CEILING('Шкафы (2)'!U34*'Доп комплектация'!$AY$1,'Доп комплектация'!$AY$3) -> 0 | V34: =CEILING('Шкафы (2)'!V34*'Доп комплектация'!$AY$1,'Доп комплектация'!$AY$3) -> 4456 | W34: =CEILING('Шкафы (2)'!W34*'Доп комплектация'!$AY$1,'Доп комплектация'!$AY$3) -> 5026 | X34: =CEILING('Шкафы (2)'!X34*'Доп комплектация'!$AY$1,'Доп комплектация'!$AY$3) -> 4696 | Y34: =CEILING('Шкафы (2)'!Y34*'Доп комплектация'!$AY$1,'Доп комплектация'!$AY$3) -> 4976 | Z34: =CEILING('Шкафы (2)'!Z34*'Доп комплектация'!$AY$1,'Доп комплектация'!$AY$3) -> 4826 | AA34: =CEILING('Шкафы (2)'!AA34*'Доп комплектация'!$AY$1,'Доп комплектация'!$AY$3) -> 5606 | AB34: =CEILING('Шкафы (2)'!AB34*'Доп комплектация'!$AY$1,'Доп комплектация'!$AY$3) -> 4446 | AC34: =CEILING('Шкафы (2)'!AC34*'Доп комплектация'!$AY$1,'Доп комплектация'!$AY$3) -> 4536 | AD34: =CEILING('Шкафы (2)'!AD34*'Доп комплектация'!$AY$1,'Доп комплектация'!$AY$3) -> 4646 | AE34: =CEILING('Шкафы (2)'!AE34*'Доп комплектация'!$AY$1,'Доп комплектация'!$AY$3) -> 5356 | AF34: =CEILING('Шкафы (2)'!AF34*'Доп комплектация'!$AY$1,'Доп комплектация'!$AY$3) -> 4256 | AG34: =CEILING('Шкафы (2)'!AG34*'Доп комплектация'!$AY$1,'Доп комплектация'!$AY$3) -> 4566 | AH34: - | AI34: - | AJ34: - | AK34: * | AL34: =CEILING('Шкафы (2)'!AL34*'Доп комплектация'!$AY$1,'Доп комплектация'!$AY$3) -> 45 | AM34: =CEILING('Шкафы (2)'!AM34*'Доп комплектация'!$AY$1,'Доп комплектация'!$AY$3) -> 175 | AN34: =CEILING('Шкафы (2)'!AN34*'Доп комплектация'!$AY$1,'Доп комплектация'!$AY$3) -> 214 | AO34: =CEILING('Шкафы (2)'!AO34*'Доп комплектация'!$AY$1,'Доп комплектация'!$AY$3) -> 197 | AP34: =CEILING('Шкафы (2)'!AP34*'Доп комплектация'!$AY$1,'Доп комплектация'!$AY$3) -> 575 | AQ34: =CEILING('Шкафы (2)'!AQ34*'Доп комплектация'!$AY$1,'Доп комплектация'!$AY$3) -> 889 | AR34: =CEILING('Шкафы (2)'!AR34*'Доп комплектация'!$AY$1,'Доп комплектация'!$AY$3) -> 2546 | AS34: =CEILING('Шкафы (2)'!AS34*'Доп комплектация'!$AY$1,'Доп комплектация'!$AY$3) -> 619 | AT34: * | AU34: =CEILING('Шкафы (2)'!AU34*'Доп комплектация'!$AY$1,'Доп комплектация'!$AY$3) -> 30 | AV34: =CEILING('Шкафы (2)'!AV34*'Доп комплектация'!$AY$1,'Доп комплектация'!$AY$3) -> 60 | AW34: =CEILING('Шкафы (2)'!AW34*'Доп комплектация'!$AY$1,'Доп комплектация'!$AY$3) -> 70 | AX34: =CEILING('Шкафы (2)'!AX34*'Доп комплектация'!$AY$1,'Доп комплектация'!$AY$3) -> 120 | AY34: =CEILING('Шкафы (2)'!AY34*'Доп комплектация'!$AY$1,'Доп комплектация'!$AY$3) -> 530 | AZ34: * | BA34: =CEILING('Шкафы (2)'!BA34*'Доп комплектация'!$AY$1,'Доп комплектация'!$AY$3) -> 20 | BB34: =CEILING('Шкафы (2)'!BB34*'Доп комплектация'!$AY$1,'Доп комплектация'!$AY$3) -> 40 | BC34: =CEILING('Шкафы (2)'!BC34*'Доп комплектация'!$AY$1,'Доп комплектация'!$AY$3) -> 50 | BD34: =CEILING('Шкафы (2)'!BD34*'Доп комплектация'!$AY$1,'Доп комплектация'!$AY$3) -> 80
C35: Шкаф 1дв 1ст Н=400 | D35: L-300 | E35: =CEILING('Шкафы (2)'!E35*'Доп комплектация'!$AY$1,'Доп комплектация'!$AY$3) -> 3076 | F35: =CEILING('Шкафы (2)'!F35*'Доп комплектация'!$AY$1,'Доп комплектация'!$AY$3) -> 3526 | G35: =CEILING('Шкафы (2)'!G35*'Доп комплектация'!$AY$1,'Доп комплектация'!$AY$3) -> 3146 | H35: =CEILING('Шкафы (2)'!H35*'Доп комплектация'!$AY$1,'Доп комплектация'!$AY$3) -> 3596 | I35: =CEILING('Шкафы (2)'!I35*'Доп комплектация'!$AY$1,'Доп комплектация'!$AY$3) -> 3306 | J35: =CEILING('Шкафы (2)'!J35*'Доп комплектация'!$AY$1,'Доп комплектация'!$AY$3) -> 3916 | K35: =CEILING('Шкафы (2)'!K35*'Доп комплектация'!$AY$1,'Доп комплектация'!$AY$3) -> 4116 | L35: =CEILING('Шкафы (2)'!L35*'Доп комплектация'!$AY$1,'Доп комплектация'!$AY$3) -> 0 | M35: =CEILING('Шкафы (2)'!M35*'Доп комплектация'!$AY$1,'Доп комплектация'!$AY$3) -> 4366 | N35: =CEILING('Шкафы (2)'!N35*'Доп комплектация'!$AY$1,'Доп комплектация'!$AY$3) -> 4566 | O35: =CEILING('Шкафы (2)'!O35*'Доп комплектация'!$AY$1,'Доп комплектация'!$AY$3) -> 3231 | P35: =CEILING('Шкафы (2)'!P35*'Доп комплектация'!$AY$1,'Доп комплектация'!$AY$3) -> 0 | Q35: =CEILING('Шкафы (2)'!Q35*'Доп комплектация'!$AY$1,'Доп комплектация'!$AY$3) -> 2801 | R35: =CEILING('Шкафы (2)'!R35*'Доп комплектация'!$AY$1,'Доп комплектация'!$AY$3) -> 2811 | S35: =CEILING('Шкафы (2)'!S35*'Доп комплектация'!$AY$1,'Доп комплектация'!$AY$3) -> 2841 | T35: =CEILING('Шкафы (2)'!T35*'Доп комплектация'!$AY$1,'Доп комплектация'!$AY$3) -> 2931 | U35: =CEILING('Шкафы (2)'!U35*'Доп комплектация'!$AY$1,'Доп комплектация'!$AY$3) -> 0 | V35: =CEILING('Шкафы (2)'!V35*'Доп комплектация'!$AY$1,'Доп комплектация'!$AY$3) -> 3611 | W35: =CEILING('Шкафы (2)'!W35*'Доп комплектация'!$AY$1,'Доп комплектация'!$AY$3) -> 4001 | X35: =CEILING('Шкафы (2)'!X35*'Доп комплектация'!$AY$1,'Доп комплектация'!$AY$3) -> 3761 | Y35: =CEILING('Шкафы (2)'!Y35*'Доп комплектация'!$AY$1,'Доп комплектация'!$AY$3) -> 3941 | Z35: =CEILING('Шкафы (2)'!Z35*'Доп комплектация'!$AY$1,'Доп комплектация'!$AY$3) -> 4121 | AA35: =CEILING('Шкафы (2)'!AA35*'Доп комплектация'!$AY$1,'Доп комплектация'!$AY$3) -> 4331 | AB35: =CEILING('Шкафы (2)'!AB35*'Доп комплектация'!$AY$1,'Доп комплектация'!$AY$3) -> 3781 | AC35: =CEILING('Шкафы (2)'!AC35*'Доп комплектация'!$AY$1,'Доп комплектация'!$AY$3) -> 3851 | AD35: =CEILING('Шкафы (2)'!AD35*'Доп комплектация'!$AY$1,'Доп комплектация'!$AY$3) -> 3931 | AE35: =CEILING('Шкафы (2)'!AE35*'Доп комплектация'!$AY$1,'Доп комплектация'!$AY$3) -> 4431 | AF35: =CEILING('Шкафы (2)'!AF35*'Доп комплектация'!$AY$1,'Доп комплектация'!$AY$3) -> 3491 | AG35: =CEILING('Шкафы (2)'!AG35*'Доп комплектация'!$AY$1,'Доп комплектация'!$AY$3) -> 3681 | AH35: - | AI35: - | AJ35: - | AK35: * | AL35: =CEILING('Шкафы (2)'!AL35*'Доп комплектация'!$AY$1,'Доп комплектация'!$AY$3) -> 51 | AM35: =CEILING('Шкафы (2)'!AM35*'Доп комплектация'!$AY$1,'Доп комплектация'!$AY$3) -> 201 | AN35: =CEILING('Шкафы (2)'!AN35*'Доп комплектация'!$AY$1,'Доп комплектация'!$AY$3) -> 246 | AO35: =CEILING('Шкафы (2)'!AO35*'Доп комплектация'!$AY$1,'Доп комплектация'!$AY$3) -> 225 | AP35: =CEILING('Шкафы (2)'!AP35*'Доп комплектация'!$AY$1,'Доп комплектация'!$AY$3) -> 601 | AQ35: =CEILING('Шкафы (2)'!AQ35*'Доп комплектация'!$AY$1,'Доп комплектация'!$AY$3) -> 985 | AR35: =CEILING('Шкафы (2)'!AR35*'Доп комплектация'!$AY$1,'Доп комплектация'!$AY$3) -> 2546 | AS35: =CEILING('Шкафы (2)'!AS35*'Доп комплектация'!$AY$1,'Доп комплектация'!$AY$3) -> 743 | AT35: * | AU35: =CEILING('Шкафы (2)'!AU35*'Доп комплектация'!$AY$1,'Доп комплектация'!$AY$3) -> 80 | AV35: =CEILING('Шкафы (2)'!AV35*'Доп комплектация'!$AY$1,'Доп комплектация'!$AY$3) -> 170 | AW35: =CEILING('Шкафы (2)'!AW35*'Доп комплектация'!$AY$1,'Доп комплектация'!$AY$3) -> 210 | AX35: =CEILING('Шкафы (2)'!AX35*'Доп комплектация'!$AY$1,'Доп комплектация'!$AY$3) -> 330 | AY35: =CEILING('Шкафы (2)'!AY35*'Доп комплектация'!$AY$1,'Доп комплектация'!$AY$3) -> 640 | AZ35: * | BA35: =CEILING('Шкафы (2)'!BA35*'Доп комплектация'!$AY$1,'Доп комплектация'!$AY$3) -> 20 | BB35: =CEILING('Шкафы (2)'!BB35*'Доп комплектация'!$AY$1,'Доп комплектация'!$AY$3) -> 40 | BC35: =CEILING('Шкафы (2)'!BC35*'Доп комплектация'!$AY$1,'Доп комплектация'!$AY$3) -> 50 | BD35: =CEILING('Шкафы (2)'!BD35*'Доп комплектация'!$AY$1,'Доп комплектация'!$AY$3) -> 80
D36: L-350 | E36: =CEILING('Шкафы (2)'!E36*'Доп комплектация'!$AY$1,'Доп комплектация'!$AY$3) -> 3219 | F36: =CEILING('Шкафы (2)'!F36*'Доп комплектация'!$AY$1,'Доп комплектация'!$AY$3) -> 3749 | G36: =CEILING('Шкафы (2)'!G36*'Доп комплектация'!$AY$1,'Доп комплектация'!$AY$3) -> 3299 | H36: =CEILING('Шкафы (2)'!H36*'Доп комплектация'!$AY$1,'Доп комплектация'!$AY$3) -> 3829 | I36: =CEILING('Шкафы (2)'!I36*'Доп комплектация'!$AY$1,'Доп комплектация'!$AY$3) -> 3499 | J36: =CEILING('Шкафы (2)'!J36*'Доп комплектация'!$AY$1,'Доп комплектация'!$AY$3) -> 4209 | K36: =CEILING('Шкафы (2)'!K36*'Доп комплектация'!$AY$1,'Доп комплектация'!$AY$3) -> 4439 | L36: =CEILING('Шкафы (2)'!L36*'Доп комплектация'!$AY$1,'Доп комплектация'!$AY$3) -> 0 | M36: =CEILING('Шкафы (2)'!M36*'Доп комплектация'!$AY$1,'Доп комплектация'!$AY$3) -> 4729 | N36: =CEILING('Шкафы (2)'!N36*'Доп комплектация'!$AY$1,'Доп комплектация'!$AY$3) -> 4959 | O36: =CEILING('Шкафы (2)'!O36*'Доп комплектация'!$AY$1,'Доп комплектация'!$AY$3) -> 3311 | P36: =CEILING('Шкафы (2)'!P36*'Доп комплектация'!$AY$1,'Доп комплектация'!$AY$3) -> 0 | Q36: =CEILING('Шкафы (2)'!Q36*'Доп комплектация'!$AY$1,'Доп комплектация'!$AY$3) -> 2901 | R36: =CEILING('Шкафы (2)'!R36*'Доп комплектация'!$AY$1,'Доп комплектация'!$AY$3) -> 2911 | S36: =CEILING('Шкафы (2)'!S36*'Доп комплектация'!$AY$1,'Доп комплектация'!$AY$3) -> 2951 | T36: =CEILING('Шкафы (2)'!T36*'Доп комплектация'!$AY$1,'Доп комплектация'!$AY$3) -> 3051 | U36: =CEILING('Шкафы (2)'!U36*'Доп комплектация'!$AY$1,'Доп комплектация'!$AY$3) -> 0 | V36: =CEILING('Шкафы (2)'!V36*'Доп комплектация'!$AY$1,'Доп комплектация'!$AY$3) -> 3821 | W36: =CEILING('Шкафы (2)'!W36*'Доп комплектация'!$AY$1,'Доп комплектация'!$AY$3) -> 4251 | X36: =CEILING('Шкафы (2)'!X36*'Доп комплектация'!$AY$1,'Доп комплектация'!$AY$3) -> 4001 | Y36: =CEILING('Шкафы (2)'!Y36*'Доп комплектация'!$AY$1,'Доп комплектация'!$AY$3) -> 4201 | Z36: =CEILING('Шкафы (2)'!Z36*'Доп комплектация'!$AY$1,'Доп комплектация'!$AY$3) -> 4271 | AA36: =CEILING('Шкафы (2)'!AA36*'Доп комплектация'!$AY$1,'Доп комплектация'!$AY$3) -> 4661 | AB36: =CEILING('Шкафы (2)'!AB36*'Доп комплектация'!$AY$1,'Доп комплектация'!$AY$3) -> 3951 | AC36: =CEILING('Шкафы (2)'!AC36*'Доп комплектация'!$AY$1,'Доп комплектация'!$AY$3) -> 4011 | AD36: =CEILING('Шкафы (2)'!AD36*'Доп комплектация'!$AY$1,'Доп комплектация'!$AY$3) -> 4101 | AE36: =CEILING('Шкафы (2)'!AE36*'Доп комплектация'!$AY$1,'Доп комплектация'!$AY$3) -> 4651 | AF36: =CEILING('Шкафы (2)'!AF36*'Доп комплектация'!$AY$1,'Доп комплектация'!$AY$3) -> 3681 | AG36: =CEILING('Шкафы (2)'!AG36*'Доп комплектация'!$AY$1,'Доп комплектация'!$AY$3) -> 3911 | AH36: - | AI36: - | AJ36: - | AK36: * | AL36: =CEILING('Шкафы (2)'!AL36*'Доп комплектация'!$AY$1,'Доп комплектация'!$AY$3) -> 51 | AM36: =CEILING('Шкафы (2)'!AM36*'Доп комплектация'!$AY$1,'Доп комплектация'!$AY$3) -> 201 | AN36: =CEILING('Шкафы (2)'!AN36*'Доп комплектация'!$AY$1,'Доп комплектация'!$AY$3) -> 246 | AO36: =CEILING('Шкафы (2)'!AO36*'Доп комплектация'!$AY$1,'Доп комплектация'!$AY$3) -> 225 | AP36: =CEILING('Шкафы (2)'!AP36*'Доп комплектация'!$AY$1,'Доп комплектация'!$AY$3) -> 601 | AQ36: =CEILING('Шкафы (2)'!AQ36*'Доп комплектация'!$AY$1,'Доп комплектация'!$AY$3) -> 985 | AR36: =CEILING('Шкафы (2)'!AR36*'Доп комплектация'!$AY$1,'Доп комплектация'!$AY$3) -> 2546 | AS36: =CEILING('Шкафы (2)'!AS36*'Доп комплектация'!$AY$1,'Доп комплектация'!$AY$3) -> 743 | AT36: * | AU36: =CEILING('Шкафы (2)'!AU36*'Доп комплектация'!$AY$1,'Доп комплектация'!$AY$3) -> 80 | AV36: =CEILING('Шкафы (2)'!AV36*'Доп комплектация'!$AY$1,'Доп комплектация'!$AY$3) -> 170 | AW36: =CEILING('Шкафы (2)'!AW36*'Доп комплектация'!$AY$1,'Доп комплектация'!$AY$3) -> 210 | AX36: =CEILING('Шкафы (2)'!AX36*'Доп комплектация'!$AY$1,'Доп комплектация'!$AY$3) -> 330 | AY36: =CEILING('Шкафы (2)'!AY36*'Доп комплектация'!$AY$1,'Доп комплектация'!$AY$3) -> 640 | AZ36: * | BA36: =CEILING('Шкафы (2)'!BA36*'Доп комплектация'!$AY$1,'Доп комплектация'!$AY$3) -> 20 | BB36: =CEILING('Шкафы (2)'!BB36*'Доп комплектация'!$AY$1,'Доп комплектация'!$AY$3) -> 40 | BC36: =CEILING('Шкафы (2)'!BC36*'Доп комплектация'!$AY$1,'Доп комплектация'!$AY$3) -> 50 | BD36: =CEILING('Шкафы (2)'!BD36*'Доп комплектация'!$AY$1,'Доп комплектация'!$AY$3) -> 80
D37: L-400 | E37: =CEILING('Шкафы (2)'!E37*'Доп комплектация'!$AY$1,'Доп комплектация'!$AY$3) -> 3361 | F37: =CEILING('Шкафы (2)'!F37*'Доп комплектация'!$AY$1,'Доп комплектация'!$AY$3) -> 3971 | G37: =CEILING('Шкафы (2)'!G37*'Доп комплектация'!$AY$1,'Доп комплектация'!$AY$3) -> 3461 | H37: =CEILING('Шкафы (2)'!H37*'Доп комплектация'!$AY$1,'Доп комплектация'!$AY$3) -> 4061 | I37: =CEILING('Шкафы (2)'!I37*'Доп комплектация'!$AY$1,'Доп комплектация'!$AY$3) -> 3681 | J37: =CEILING('Шкафы (2)'!J37*'Доп комплектация'!$AY$1,'Доп комплектация'!$AY$3) -> 4491 | K37: =CEILING('Шкафы (2)'!K37*'Доп комплектация'!$AY$1,'Доп комплектация'!$AY$3) -> 4761 | L37: =CEILING('Шкафы (2)'!L37*'Доп комплектация'!$AY$1,'Доп комплектация'!$AY$3) -> 0 | M37: =CEILING('Шкафы (2)'!M37*'Доп комплектация'!$AY$1,'Доп комплектация'!$AY$3) -> 5101 | N37: =CEILING('Шкафы (2)'!N37*'Доп комплектация'!$AY$1,'Доп комплектация'!$AY$3) -> 5361 | O37: =CEILING('Шкафы (2)'!O37*'Доп комплектация'!$AY$1,'Доп комплектация'!$AY$3) -> 3529 | P37: =CEILING('Шкафы (2)'!P37*'Доп комплектация'!$AY$1,'Доп комплектация'!$AY$3) -> 0 | Q37: =CEILING('Шкафы (2)'!Q37*'Доп комплектация'!$AY$1,'Доп комплектация'!$AY$3) -> 2989 | R37: =CEILING('Шкафы (2)'!R37*'Доп комплектация'!$AY$1,'Доп комплектация'!$AY$3) -> 2999 | S37: =CEILING('Шкафы (2)'!S37*'Доп комплектация'!$AY$1,'Доп комплектация'!$AY$3) -> 3049 | T37: =CEILING('Шкафы (2)'!T37*'Доп комплектация'!$AY$1,'Доп комплектация'!$AY$3) -> 3159 | U37: =CEILING('Шкафы (2)'!U37*'Доп комплектация'!$AY$1,'Доп комплектация'!$AY$3) -> 0 | V37: =CEILING('Шкафы (2)'!V37*'Доп комплектация'!$AY$1,'Доп комплектация'!$AY$3) -> 4029 | W37: =CEILING('Шкафы (2)'!W37*'Доп комплектация'!$AY$1,'Доп комплектация'!$AY$3) -> 4499 | X37: =CEILING('Шкафы (2)'!X37*'Доп комплектация'!$AY$1,'Доп комплектация'!$AY$3) -> 4229 | Y37: =CEILING('Шкафы (2)'!Y37*'Доп комплектация'!$AY$1,'Доп комплектация'!$AY$3) -> 4469 | Z37: =CEILING('Шкафы (2)'!Z37*'Доп комплектация'!$AY$1,'Доп комплектация'!$AY$3) -> 4559 | AA37: =CEILING('Шкафы (2)'!AA37*'Доп комплектация'!$AY$1,'Доп комплектация'!$AY$3) -> 4979 | AB37: =CEILING('Шкафы (2)'!AB37*'Доп комплектация'!$AY$1,'Доп комплектация'!$AY$3) -> 4219 | AC37: =CEILING('Шкафы (2)'!AC37*'Доп комплектация'!$AY$1,'Доп комплектация'!$AY$3) -> 4299 | AD37: =CEILING('Шкафы (2)'!AD37*'Доп комплектация'!$AY$1,'Доп комплектация'!$AY$3) -> 4389 | AE37: =CEILING('Шкафы (2)'!AE37*'Доп комплектация'!$AY$1,'Доп комплектация'!$AY$3) -> 4999 | AF37: =CEILING('Шкафы (2)'!AF37*'Доп комплектация'!$AY$1,'Доп комплектация'!$AY$3) -> 3869 | AG37: =CEILING('Шкафы (2)'!AG37*'Доп комплектация'!$AY$1,'Доп комплектация'!$AY$3) -> 4129 | AH37: - | AI37: - | AJ37: - | AK37: * | AL37: =CEILING('Шкафы (2)'!AL37*'Доп комплектация'!$AY$1,'Доп комплектация'!$AY$3) -> 51 | AM37: =CEILING('Шкафы (2)'!AM37*'Доп комплектация'!$AY$1,'Доп комплектация'!$AY$3) -> 201 | AN37: =CEILING('Шкафы (2)'!AN37*'Доп комплектация'!$AY$1,'Доп комплектация'!$AY$3) -> 246 | AO37: =CEILING('Шкафы (2)'!AO37*'Доп комплектация'!$AY$1,'Доп комплектация'!$AY$3) -> 225 | AP37: =CEILING('Шкафы (2)'!AP37*'Доп комплектация'!$AY$1,'Доп комплектация'!$AY$3) -> 601 | AQ37: =CEILING('Шкафы (2)'!AQ37*'Доп комплектация'!$AY$1,'Доп комплектация'!$AY$3) -> 985 | AR37: =CEILING('Шкафы (2)'!AR37*'Доп комплектация'!$AY$1,'Доп комплектация'!$AY$3) -> 2546 | AS37: =CEILING('Шкафы (2)'!AS37*'Доп комплектация'!$AY$1,'Доп комплектация'!$AY$3) -> 743 | AT37: * | AU37: =CEILING('Шкафы (2)'!AU37*'Доп комплектация'!$AY$1,'Доп комплектация'!$AY$3) -> 80 | AV37: =CEILING('Шкафы (2)'!AV37*'Доп комплектация'!$AY$1,'Доп комплектация'!$AY$3) -> 170 | AW37: =CEILING('Шкафы (2)'!AW37*'Доп комплектация'!$AY$1,'Доп комплектация'!$AY$3) -> 210 | AX37: =CEILING('Шкафы (2)'!AX37*'Доп комплектация'!$AY$1,'Доп комплектация'!$AY$3) -> 330 | AY37: =CEILING('Шкафы (2)'!AY37*'Доп комплектация'!$AY$1,'Доп комплектация'!$AY$3) -> 640 | AZ37: * | BA37: =CEILING('Шкафы (2)'!BA37*'Доп комплектация'!$AY$1,'Доп комплектация'!$AY$3) -> 20 | BB37: =CEILING('Шкафы (2)'!BB37*'Доп комплектация'!$AY$1,'Доп комплектация'!$AY$3) -> 40 | BC37: =CEILING('Шкафы (2)'!BC37*'Доп комплектация'!$AY$1,'Доп комплектация'!$AY$3) -> 50 | BD37: =CEILING('Шкафы (2)'!BD37*'Доп комплектация'!$AY$1,'Доп комплектация'!$AY$3) -> 80 | BE37: Н=400
D38: L-450 | E38: =CEILING('Шкафы (2)'!E38*'Доп комплектация'!$AY$1,'Доп комплектация'!$AY$3) -> 3514 | F38: =CEILING('Шкафы (2)'!F38*'Доп комплектация'!$AY$1,'Доп комплектация'!$AY$3) -> 4194 | G38: =CEILING('Шкафы (2)'!G38*'Доп комплектация'!$AY$1,'Доп комплектация'!$AY$3) -> 3614 | H38: =CEILING('Шкафы (2)'!H38*'Доп комплектация'!$AY$1,'Доп комплектация'!$AY$3) -> 4294 | I38: =CEILING('Шкафы (2)'!I38*'Доп комплектация'!$AY$1,'Доп комплектация'!$AY$3) -> 3874 | J38: =CEILING('Шкафы (2)'!J38*'Доп комплектация'!$AY$1,'Доп комплектация'!$AY$3) -> 4784 | K38: =CEILING('Шкафы (2)'!K38*'Доп комплектация'!$AY$1,'Доп комплектация'!$AY$3) -> 5084 | L38: =CEILING('Шкафы (2)'!L38*'Доп комплектация'!$AY$1,'Доп комплектация'!$AY$3) -> 0 | M38: =CEILING('Шкафы (2)'!M38*'Доп комплектация'!$AY$1,'Доп комплектация'!$AY$3) -> 5464 | N38: =CEILING('Шкафы (2)'!N38*'Доп комплектация'!$AY$1,'Доп комплектация'!$AY$3) -> 5764 | O38: =CEILING('Шкафы (2)'!O38*'Доп комплектация'!$AY$1,'Доп комплектация'!$AY$3) -> 3509 | P38: =CEILING('Шкафы (2)'!P38*'Доп комплектация'!$AY$1,'Доп комплектация'!$AY$3) -> 0 | Q38: =CEILING('Шкафы (2)'!Q38*'Доп комплектация'!$AY$1,'Доп комплектация'!$AY$3) -> 3079 | R38: =CEILING('Шкафы (2)'!R38*'Доп комплектация'!$AY$1,'Доп комплектация'!$AY$3) -> 3099 | S38: =CEILING('Шкафы (2)'!S38*'Доп комплектация'!$AY$1,'Доп комплектация'!$AY$3) -> 3149 | T38: =CEILING('Шкафы (2)'!T38*'Доп комплектация'!$AY$1,'Доп комплектация'!$AY$3) -> 3279 | U38: =CEILING('Шкафы (2)'!U38*'Доп комплектация'!$AY$1,'Доп комплектация'!$AY$3) -> 0 | V38: =CEILING('Шкафы (2)'!V38*'Доп комплектация'!$AY$1,'Доп комплектация'!$AY$3) -> 4239 | W38: =CEILING('Шкафы (2)'!W38*'Доп комплектация'!$AY$1,'Доп комплектация'!$AY$3) -> 4759 | X38: =CEILING('Шкафы (2)'!X38*'Доп комплектация'!$AY$1,'Доп комплектация'!$AY$3) -> 4469 | Y38: =CEILING('Шкафы (2)'!Y38*'Доп комплектация'!$AY$1,'Доп комплектация'!$AY$3) -> 4729 | Z38: =CEILING('Шкафы (2)'!Z38*'Доп комплектация'!$AY$1,'Доп комплектация'!$AY$3) -> 4629 | AA38: =CEILING('Шкафы (2)'!AA38*'Доп комплектация'!$AY$1,'Доп комплектация'!$AY$3) -> 5299 | AB38: =CEILING('Шкафы (2)'!AB38*'Доп комплектация'!$AY$1,'Доп комплектация'!$AY$3) -> 4269 | AC38: =CEILING('Шкафы (2)'!AC38*'Доп комплектация'!$AY$1,'Доп комплектация'!$AY$3) -> 4349 | AD38: =CEILING('Шкафы (2)'!AD38*'Доп комплектация'!$AY$1,'Доп комплектация'!$AY$3) -> 4449 | AE38: =CEILING('Шкафы (2)'!AE38*'Доп комплектация'!$AY$1,'Доп комплектация'!$AY$3) -> 5099 | AF38: =CEILING('Шкафы (2)'!AF38*'Доп комплектация'!$AY$1,'Доп комплектация'!$AY$3) -> 4059 | AG38: =CEILING('Шкафы (2)'!AG38*'Доп комплектация'!$AY$1,'Доп комплектация'!$AY$3) -> 4349 | AH38: - | AI38: - | AJ38: - | AK38: * | AL38: =CEILING('Шкафы (2)'!AL38*'Доп комплектация'!$AY$1,'Доп комплектация'!$AY$3) -> 51 | AM38: =CEILING('Шкафы (2)'!AM38*'Доп комплектация'!$AY$1,'Доп комплектация'!$AY$3) -> 201 | AN38: =CEILING('Шкафы (2)'!AN38*'Доп комплектация'!$AY$1,'Доп комплектация'!$AY$3) -> 246 | AO38: =CEILING('Шкафы (2)'!AO38*'Доп комплектация'!$AY$1,'Доп комплектация'!$AY$3) -> 225 | AP38: =CEILING('Шкафы (2)'!AP38*'Доп комплектация'!$AY$1,'Доп комплектация'!$AY$3) -> 601 | AQ38: =CEILING('Шкафы (2)'!AQ38*'Доп комплектация'!$AY$1,'Доп комплектация'!$AY$3) -> 985 | AR38: =CEILING('Шкафы (2)'!AR38*'Доп комплектация'!$AY$1,'Доп комплектация'!$AY$3) -> 2546 | AS38: =CEILING('Шкафы (2)'!AS38*'Доп комплектация'!$AY$1,'Доп комплектация'!$AY$3) -> 743 | AT38: * | AU38: =CEILING('Шкафы (2)'!AU38*'Доп комплектация'!$AY$1,'Доп комплектация'!$AY$3) -> 80 | AV38: =CEILING('Шкафы (2)'!AV38*'Доп комплектация'!$AY$1,'Доп комплектация'!$AY$3) -> 170 | AW38: =CEILING('Шкафы (2)'!AW38*'Доп комплектация'!$AY$1,'Доп комплектация'!$AY$3) -> 210 | AX38: =CEILING('Шкафы (2)'!AX38*'Доп комплектация'!$AY$1,'Доп комплектация'!$AY$3) -> 330 | AY38: =CEILING('Шкафы (2)'!AY38*'Доп комплектация'!$AY$1,'Доп комплектация'!$AY$3) -> 640 | AZ38: * | BA38: =CEILING('Шкафы (2)'!BA38*'Доп комплектация'!$AY$1,'Доп комплектация'!$AY$3) -> 20 | BB38: =CEILING('Шкафы (2)'!BB38*'Доп комплектация'!$AY$1,'Доп комплектация'!$AY$3) -> 40 | BC38: =CEILING('Шкафы (2)'!BC38*'Доп комплектация'!$AY$1,'Доп комплектация'!$AY$3) -> 50 | BD38: =CEILING('Шкафы (2)'!BD38*'Доп комплектация'!$AY$1,'Доп комплектация'!$AY$3) -> 80
D39: L-500 | E39: =CEILING('Шкафы (2)'!E39*'Доп комплектация'!$AY$1,'Доп комплектация'!$AY$3) -> 3658 | F39: =CEILING('Шкафы (2)'!F39*'Доп комплектация'!$AY$1,'Доп комплектация'!$AY$3) -> 4418 | G39: =CEILING('Шкафы (2)'!G39*'Доп комплектация'!$AY$1,'Доп комплектация'!$AY$3) -> 3778 | H39: =CEILING('Шкафы (2)'!H39*'Доп комплектация'!$AY$1,'Доп комплектация'!$AY$3) -> 4528 | I39: =CEILING('Шкафы (2)'!I39*'Доп комплектация'!$AY$1,'Доп комплектация'!$AY$3) -> 4058 | J39: =CEILING('Шкафы (2)'!J39*'Доп комплектация'!$AY$1,'Доп комплектация'!$AY$3) -> 5068 | K39: =CEILING('Шкафы (2)'!K39*'Доп комплектация'!$AY$1,'Доп комплектация'!$AY$3) -> 5398 | L39: =CEILING('Шкафы (2)'!L39*'Доп комплектация'!$AY$1,'Доп комплектация'!$AY$3) -> 0 | M39: =CEILING('Шкафы (2)'!M39*'Доп комплектация'!$AY$1,'Доп комплектация'!$AY$3) -> 5828 | N39: =CEILING('Шкафы (2)'!N39*'Доп комплектация'!$AY$1,'Доп комплектация'!$AY$3) -> 6158 | O39: =CEILING('Шкафы (2)'!O39*'Доп комплектация'!$AY$1,'Доп комплектация'!$AY$3) -> 3608 | P39: =CEILING('Шкафы (2)'!P39*'Доп комплектация'!$AY$1,'Доп комплектация'!$AY$3) -> 0 | Q39: =CEILING('Шкафы (2)'!Q39*'Доп комплектация'!$AY$1,'Доп комплектация'!$AY$3) -> 3168 | R39: =CEILING('Шкафы (2)'!R39*'Доп комплектация'!$AY$1,'Доп комплектация'!$AY$3) -> 3188 | S39: =CEILING('Шкафы (2)'!S39*'Доп комплектация'!$AY$1,'Доп комплектация'!$AY$3) -> 3248 | T39: =CEILING('Шкафы (2)'!T39*'Доп комплектация'!$AY$1,'Доп комплектация'!$AY$3) -> 3388 | U39: =CEILING('Шкафы (2)'!U39*'Доп комплектация'!$AY$1,'Доп комплектация'!$AY$3) -> 0 | V39: =CEILING('Шкафы (2)'!V39*'Доп комплектация'!$AY$1,'Доп комплектация'!$AY$3) -> 4448 | W39: =CEILING('Шкафы (2)'!W39*'Доп комплектация'!$AY$1,'Доп комплектация'!$AY$3) -> 5008 | X39: =CEILING('Шкафы (2)'!X39*'Доп комплектация'!$AY$1,'Доп комплектация'!$AY$3) -> 4698 | Y39: =CEILING('Шкафы (2)'!Y39*'Доп комплектация'!$AY$1,'Доп комплектация'!$AY$3) -> 4988 | Z39: =CEILING('Шкафы (2)'!Z39*'Доп комплектация'!$AY$1,'Доп комплектация'!$AY$3) -> 4808 | AA39: =CEILING('Шкафы (2)'!AA39*'Доп комплектация'!$AY$1,'Доп комплектация'!$AY$3) -> 5618 | AB39: =CEILING('Шкафы (2)'!AB39*'Доп комплектация'!$AY$1,'Доп комплектация'!$AY$3) -> 4428 | AC39: =CEILING('Шкафы (2)'!AC39*'Доп комплектация'!$AY$1,'Доп комплектация'!$AY$3) -> 4518 | AD39: =CEILING('Шкафы (2)'!AD39*'Доп комплектация'!$AY$1,'Доп комплектация'!$AY$3) -> 4628 | AE39: =CEILING('Шкафы (2)'!AE39*'Доп комплектация'!$AY$1,'Доп комплектация'!$AY$3) -> 5328 | AF39: =CEILING('Шкафы (2)'!AF39*'Доп комплектация'!$AY$1,'Доп комплектация'!$AY$3) -> 4248 | AG39: =CEILING('Шкафы (2)'!AG39*'Доп комплектация'!$AY$1,'Доп комплектация'!$AY$3) -> 4568 | AH39: - | AI39: - | AJ39: - | AK39: * | AL39: =CEILING('Шкафы (2)'!AL39*'Доп комплектация'!$AY$1,'Доп комплектация'!$AY$3) -> 51 | AM39: =CEILING('Шкафы (2)'!AM39*'Доп комплектация'!$AY$1,'Доп комплектация'!$AY$3) -> 201 | AN39: =CEILING('Шкафы (2)'!AN39*'Доп комплектация'!$AY$1,'Доп комплектация'!$AY$3) -> 246 | AO39: =CEILING('Шкафы (2)'!AO39*'Доп комплектация'!$AY$1,'Доп комплектация'!$AY$3) -> 225 | AP39: =CEILING('Шкафы (2)'!AP39*'Доп комплектация'!$AY$1,'Доп комплектация'!$AY$3) -> 601 | AQ39: =CEILING('Шкафы (2)'!AQ39*'Доп комплектация'!$AY$1,'Доп комплектация'!$AY$3) -> 985 | AR39: =CEILING('Шкафы (2)'!AR39*'Доп комплектация'!$AY$1,'Доп комплектация'!$AY$3) -> 2546 | AS39: =CEILING('Шкафы (2)'!AS39*'Доп комплектация'!$AY$1,'Доп комплектация'!$AY$3) -> 743 | AT39: * | AU39: =CEILING('Шкафы (2)'!AU39*'Доп комплектация'!$AY$1,'Доп комплектация'!$AY$3) -> 80 | AV39: =CEILING('Шкафы (2)'!AV39*'Доп комплектация'!$AY$1,'Доп комплектация'!$AY$3) -> 170 | AW39: =CEILING('Шкафы (2)'!AW39*'Доп комплектация'!$AY$1,'Доп комплектация'!$AY$3) -> 210 | AX39: =CEILING('Шкафы (2)'!AX39*'Доп комплектация'!$AY$1,'Доп комплектация'!$AY$3) -> 330 | AY39: =CEILING('Шкафы (2)'!AY39*'Доп комплектация'!$AY$1,'Доп комплектация'!$AY$3) -> 640 | AZ39: * | BA39: =CEILING('Шкафы (2)'!BA39*'Доп комплектация'!$AY$1,'Доп комплектация'!$AY$3) -> 20 | BB39: =CEILING('Шкафы (2)'!BB39*'Доп комплектация'!$AY$1,'Доп комплектация'!$AY$3) -> 40 | BC39: =CEILING('Шкафы (2)'!BC39*'Доп комплектация'!$AY$1,'Доп комплектация'!$AY$3) -> 50 | BD39: =CEILING('Шкафы (2)'!BD39*'Доп комплектация'!$AY$1,'Доп комплектация'!$AY$3) -> 80
D40: L-550 | E40: =CEILING('Шкафы (2)'!E40*'Доп комплектация'!$AY$1,'Доп комплектация'!$AY$3) -> 3811 | F40: =CEILING('Шкафы (2)'!F40*'Доп комплектация'!$AY$1,'Доп комплектация'!$AY$3) -> 4641 | G40: =CEILING('Шкафы (2)'!G40*'Доп комплектация'!$AY$1,'Доп комплектация'!$AY$3) -> 3931 | H40: =CEILING('Шкафы (2)'!H40*'Доп комплектация'!$AY$1,'Доп комплектация'!$AY$3) -> 4761 | I40: =CEILING('Шкафы (2)'!I40*'Доп комплектация'!$AY$1,'Доп комплектация'!$AY$3) -> 4241 | J40: =CEILING('Шкафы (2)'!J40*'Доп комплектация'!$AY$1,'Доп комплектация'!$AY$3) -> 5361 | K40: =CEILING('Шкафы (2)'!K40*'Доп комплектация'!$AY$1,'Доп комплектация'!$AY$3) -> 5721 | L40: =CEILING('Шкафы (2)'!L40*'Доп комплектация'!$AY$1,'Доп комплектация'!$AY$3) -> 0 | M40: =CEILING('Шкафы (2)'!M40*'Доп комплектация'!$AY$1,'Доп комплектация'!$AY$3) -> 6191 | N40: =CEILING('Шкафы (2)'!N40*'Доп комплектация'!$AY$1,'Доп комплектация'!$AY$3) -> 6561 | O40: =CEILING('Шкафы (2)'!O40*'Доп комплектация'!$AY$1,'Доп комплектация'!$AY$3) -> 3708 | P40: =CEILING('Шкафы (2)'!P40*'Доп комплектация'!$AY$1,'Доп комплектация'!$AY$3) -> 0 | Q40: =CEILING('Шкафы (2)'!Q40*'Доп комплектация'!$AY$1,'Доп комплектация'!$AY$3) -> 3268 | R40: =CEILING('Шкафы (2)'!R40*'Доп комплектация'!$AY$1,'Доп комплектация'!$AY$3) -> 3288 | S40: =CEILING('Шкафы (2)'!S40*'Доп комплектация'!$AY$1,'Доп комплектация'!$AY$3) -> 3348 | T40: =CEILING('Шкафы (2)'!T40*'Доп комплектация'!$AY$1,'Доп комплектация'!$AY$3) -> 3508 | U40: =CEILING('Шкафы (2)'!U40*'Доп комплектация'!$AY$1,'Доп комплектация'!$AY$3) -> 0 | V40: =CEILING('Шкафы (2)'!V40*'Доп комплектация'!$AY$1,'Доп комплектация'!$AY$3) -> 4658 | W40: =CEILING('Шкафы (2)'!W40*'Доп комплектация'!$AY$1,'Доп комплектация'!$AY$3) -> 5258 | X40: =CEILING('Шкафы (2)'!X40*'Доп комплектация'!$AY$1,'Доп комплектация'!$AY$3) -> 4938 | Y40: =CEILING('Шкафы (2)'!Y40*'Доп комплектация'!$AY$1,'Доп комплектация'!$AY$3) -> 5258 | Z40: =CEILING('Шкафы (2)'!Z40*'Доп комплектация'!$AY$1,'Доп комплектация'!$AY$3) -> 4988 | AA40: =CEILING('Шкафы (2)'!AA40*'Доп комплектация'!$AY$1,'Доп комплектация'!$AY$3) -> 5948 | AB40: =CEILING('Шкафы (2)'!AB40*'Доп комплектация'!$AY$1,'Доп комплектация'!$AY$3) -> 4588 | AC40: =CEILING('Шкафы (2)'!AC40*'Доп комплектация'!$AY$1,'Доп комплектация'!$AY$3) -> 4678 | AD40: =CEILING('Шкафы (2)'!AD40*'Доп комплектация'!$AY$1,'Доп комплектация'!$AY$3) -> 4798 | AE40: =CEILING('Шкафы (2)'!AE40*'Доп комплектация'!$AY$1,'Доп комплектация'!$AY$3) -> 5548 | AF40: =CEILING('Шкафы (2)'!AF40*'Доп комплектация'!$AY$1,'Доп комплектация'!$AY$3) -> 4438 | AG40: =CEILING('Шкафы (2)'!AG40*'Доп комплектация'!$AY$1,'Доп комплектация'!$AY$3) -> 4788 | AH40: - | AI40: - | AJ40: - | AK40: * | AL40: =CEILING('Шкафы (2)'!AL40*'Доп комплектация'!$AY$1,'Доп комплектация'!$AY$3) -> 58 | AM40: =CEILING('Шкафы (2)'!AM40*'Доп комплектация'!$AY$1,'Доп комплектация'!$AY$3) -> 232 | AN40: =CEILING('Шкафы (2)'!AN40*'Доп комплектация'!$AY$1,'Доп комплектация'!$AY$3) -> 284 | AO40: =CEILING('Шкафы (2)'!AO40*'Доп комплектация'!$AY$1,'Доп комплектация'!$AY$3) -> 262 | AP40: =CEILING('Шкафы (2)'!AP40*'Доп комплектация'!$AY$1,'Доп комплектация'!$AY$3) -> 1032 | AQ40: =CEILING('Шкафы (2)'!AQ40*'Доп комплектация'!$AY$1,'Доп комплектация'!$AY$3) -> 1354 | AR40: =CEILING('Шкафы (2)'!AR40*'Доп комплектация'!$AY$1,'Доп комплектация'!$AY$3) -> 5086 | AS40: =CEILING('Шкафы (2)'!AS40*'Доп комплектация'!$AY$1,'Доп комплектация'!$AY$3) -> 826 | AT40: * | AU40: =CEILING('Шкафы (2)'!AU40*'Доп комплектация'!$AY$1,'Доп комплектация'!$AY$3) -> 20 | AV40: =CEILING('Шкафы (2)'!AV40*'Доп комплектация'!$AY$1,'Доп комплектация'!$AY$3) -> 60 | AW40: =CEILING('Шкафы (2)'!AW40*'Доп комплектация'!$AY$1,'Доп комплектация'!$AY$3) -> 80 | AX40: =CEILING('Шкафы (2)'!AX40*'Доп комплектация'!$AY$1,'Доп комплектация'!$AY$3) -> 140 | AY40: =CEILING('Шкафы (2)'!AY40*'Доп комплектация'!$AY$1,'Доп комплектация'!$AY$3) -> 1000 | AZ40: * | BA40: =CEILING('Шкафы (2)'!BA40*'Доп комплектация'!$AY$1,'Доп комплектация'!$AY$3) -> 20 | BB40: =CEILING('Шкафы (2)'!BB40*'Доп комплектация'!$AY$1,'Доп комплектация'!$AY$3) -> 60 | BC40: =CEILING('Шкафы (2)'!BC40*'Доп комплектация'!$AY$1,'Доп комплектация'!$AY$3) -> 80 | BD40: =CEILING('Шкафы (2)'!BD40*'Доп комплектация'!$AY$1,'Доп комплектация'!$AY$3) -> 120
D41: L-600 | E41: =CEILING('Шкафы (2)'!E41*'Доп комплектация'!$AY$1,'Доп комплектация'!$AY$3) -> 3954 | F41: =CEILING('Шкафы (2)'!F41*'Доп комплектация'!$AY$1,'Доп комплектация'!$AY$3) -> 4864 | G41: =CEILING('Шкафы (2)'!G41*'Доп комплектация'!$AY$1,'Доп комплектация'!$AY$3) -> 4094 | H41: =CEILING('Шкафы (2)'!H41*'Доп комплектация'!$AY$1,'Доп комплектация'!$AY$3) -> 5004 | I41: =CEILING('Шкафы (2)'!I41*'Доп комплектация'!$AY$1,'Доп комплектация'!$AY$3) -> 4434 | J41: =CEILING('Шкафы (2)'!J41*'Доп комплектация'!$AY$1,'Доп комплектация'!$AY$3) -> 5654 | K41: =CEILING('Шкафы (2)'!K41*'Доп комплектация'!$AY$1,'Доп комплектация'!$AY$3) -> 6044 | L41: =CEILING('Шкафы (2)'!L41*'Доп комплектация'!$AY$1,'Доп комплектация'!$AY$3) -> 0 | M41: =CEILING('Шкафы (2)'!M41*'Доп комплектация'!$AY$1,'Доп комплектация'!$AY$3) -> 6564 | N41: =CEILING('Шкафы (2)'!N41*'Доп комплектация'!$AY$1,'Доп комплектация'!$AY$3) -> 6954 | O41: =CEILING('Шкафы (2)'!O41*'Доп комплектация'!$AY$1,'Доп комплектация'!$AY$3) -> 3807 | P41: =CEILING('Шкафы (2)'!P41*'Доп комплектация'!$AY$1,'Доп комплектация'!$AY$3) -> 0 | Q41: =CEILING('Шкафы (2)'!Q41*'Доп комплектация'!$AY$1,'Доп комплектация'!$AY$3) -> 3357 | R41: =CEILING('Шкафы (2)'!R41*'Доп комплектация'!$AY$1,'Доп комплектация'!$AY$3) -> 3387 | S41: =CEILING('Шкафы (2)'!S41*'Доп комплектация'!$AY$1,'Доп комплектация'!$AY$3) -> 3447 | T41: =CEILING('Шкафы (2)'!T41*'Доп комплектация'!$AY$1,'Доп комплектация'!$AY$3) -> 3627 | U41: =CEILING('Шкафы (2)'!U41*'Доп комплектация'!$AY$1,'Доп комплектация'!$AY$3) -> 0 | V41: =CEILING('Шкафы (2)'!V41*'Доп комплектация'!$AY$1,'Доп комплектация'!$AY$3) -> 4867 | W41: =CEILING('Шкафы (2)'!W41*'Доп комплектация'!$AY$1,'Доп комплектация'!$AY$3) -> 5507 | X41: =CEILING('Шкафы (2)'!X41*'Доп комплектация'!$AY$1,'Доп комплектация'!$AY$3) -> 5167 | Y41: =CEILING('Шкафы (2)'!Y41*'Доп комплектация'!$AY$1,'Доп комплектация'!$AY$3) -> 5527 | Z41: =CEILING('Шкафы (2)'!Z41*'Доп комплектация'!$AY$1,'Доп комплектация'!$AY$3) -> 5167 | AA41: =CEILING('Шкафы (2)'!AA41*'Доп комплектация'!$AY$1,'Доп комплектация'!$AY$3) -> 6267 | AB41: =CEILING('Шкафы (2)'!AB41*'Доп комплектация'!$AY$1,'Доп комплектация'!$AY$3) -> 4747 | AC41: =CEILING('Шкафы (2)'!AC41*'Доп комплектация'!$AY$1,'Доп комплектация'!$AY$3) -> 4847 | AD41: =CEILING('Шкафы (2)'!AD41*'Доп комплектация'!$AY$1,'Доп комплектация'!$AY$3) -> 4977 | AE41: =CEILING('Шкафы (2)'!AE41*'Доп комплектация'!$AY$1,'Доп комплектация'!$AY$3) -> 5777 | AF41: =CEILING('Шкафы (2)'!AF41*'Доп комплектация'!$AY$1,'Доп комплектация'!$AY$3) -> 4627 | AG41: =CEILING('Шкафы (2)'!AG41*'Доп комплектация'!$AY$1,'Доп комплектация'!$AY$3) -> 5017 | AH41: - | AI41: - | AJ41: - | AK41: * | AL41: =CEILING('Шкафы (2)'!AL41*'Доп комплектация'!$AY$1,'Доп комплектация'!$AY$3) -> 58 | AM41: =CEILING('Шкафы (2)'!AM41*'Доп комплектация'!$AY$1,'Доп комплектация'!$AY$3) -> 232 | AN41: =CEILING('Шкафы (2)'!AN41*'Доп комплектация'!$AY$1,'Доп комплектация'!$AY$3) -> 284 | AO41: =CEILING('Шкафы (2)'!AO41*'Доп комплектация'!$AY$1,'Доп комплектация'!$AY$3) -> 262 | AP41: =CEILING('Шкафы (2)'!AP41*'Доп комплектация'!$AY$1,'Доп комплектация'!$AY$3) -> 1032 | AQ41: =CEILING('Шкафы (2)'!AQ41*'Доп комплектация'!$AY$1,'Доп комплектация'!$AY$3) -> 1354 | AR41: =CEILING('Шкафы (2)'!AR41*'Доп комплектация'!$AY$1,'Доп комплектация'!$AY$3) -> 5086 | AS41: =CEILING('Шкафы (2)'!AS41*'Доп комплектация'!$AY$1,'Доп комплектация'!$AY$3) -> 826 | AT41: * | AU41: =CEILING('Шкафы (2)'!AU41*'Доп комплектация'!$AY$1,'Доп комплектация'!$AY$3) -> 20 | AV41: =CEILING('Шкафы (2)'!AV41*'Доп комплектация'!$AY$1,'Доп комплектация'!$AY$3) -> 60 | AW41: =CEILING('Шкафы (2)'!AW41*'Доп комплектация'!$AY$1,'Доп комплектация'!$AY$3) -> 80 | AX41: =CEILING('Шкафы (2)'!AX41*'Доп комплектация'!$AY$1,'Доп комплектация'!$AY$3) -> 140 | AY41: =CEILING('Шкафы (2)'!AY41*'Доп комплектация'!$AY$1,'Доп комплектация'!$AY$3) -> 1000 | AZ41: * | BA41: =CEILING('Шкафы (2)'!BA41*'Доп комплектация'!$AY$1,'Доп комплектация'!$AY$3) -> 20 | BB41: =CEILING('Шкафы (2)'!BB41*'Доп комплектация'!$AY$1,'Доп комплектация'!$AY$3) -> 60 | BC41: =CEILING('Шкафы (2)'!BC41*'Доп комплектация'!$AY$1,'Доп комплектация'!$AY$3) -> 80 | BD41: =CEILING('Шкафы (2)'!BD41*'Доп комплектация'!$AY$1,'Доп комплектация'!$AY$3) -> 120
C42: Шкаф Н=360 2дв 2ст | D42: L=600 | E42: =CEILING('Шкафы (2)'!E42*'Доп комплектация'!$AY$1,'Доп комплектация'!$AY$3) -> 4654 | F42: =CEILING('Шкафы (2)'!F42*'Доп комплектация'!$AY$1,'Доп комплектация'!$AY$3) -> 5474 | G42: =CEILING('Шкафы (2)'!G42*'Доп комплектация'!$AY$1,'Доп комплектация'!$AY$3) -> 4774 | H42: =CEILING('Шкафы (2)'!H42*'Доп комплектация'!$AY$1,'Доп комплектация'!$AY$3) -> 5594 | I42: =CEILING('Шкафы (2)'!I42*'Доп комплектация'!$AY$1,'Доп комплектация'!$AY$3) -> 5094 | J42: =CEILING('Шкафы (2)'!J42*'Доп комплектация'!$AY$1,'Доп комплектация'!$AY$3) -> 6174 | K42: =CEILING('Шкафы (2)'!K42*'Доп комплектация'!$AY$1,'Доп комплектация'!$AY$3) -> 6534 | L42: =CEILING('Шкафы (2)'!L42*'Доп комплектация'!$AY$1,'Доп комплектация'!$AY$3) -> 0 | M42: =CEILING('Шкафы (2)'!M42*'Доп комплектация'!$AY$1,'Доп комплектация'!$AY$3) -> 6994 | N42: =CEILING('Шкафы (2)'!N42*'Доп комплектация'!$AY$1,'Доп комплектация'!$AY$3) -> 7334 | O42: =CEILING('Шкафы (2)'!O42*'Доп комплектация'!$AY$1,'Доп комплектация'!$AY$3) -> 5028 | P42: =CEILING('Шкафы (2)'!P42*'Доп комплектация'!$AY$1,'Доп комплектация'!$AY$3) -> 0 | Q42: =CEILING('Шкафы (2)'!Q42*'Доп комплектация'!$AY$1,'Доп комплектация'!$AY$3) -> 4168 | R42: =CEILING('Шкафы (2)'!R42*'Доп комплектация'!$AY$1,'Доп комплектация'!$AY$3) -> 4188 | S42: =CEILING('Шкафы (2)'!S42*'Доп комплектация'!$AY$1,'Доп комплектация'!$AY$3) -> 4248 | T42: =CEILING('Шкафы (2)'!T42*'Доп комплектация'!$AY$1,'Доп комплектация'!$AY$3) -> 4408 | U42: =CEILING('Шкафы (2)'!U42*'Доп комплектация'!$AY$1,'Доп комплектация'!$AY$3) -> 0 | V42: =CEILING('Шкафы (2)'!V42*'Доп комплектация'!$AY$1,'Доп комплектация'!$AY$3) -> 5668 | W42: =CEILING('Шкафы (2)'!W42*'Доп комплектация'!$AY$1,'Доп комплектация'!$AY$3) -> 6408 | X42: =CEILING('Шкафы (2)'!X42*'Доп комплектация'!$AY$1,'Доп комплектация'!$AY$3) -> 5928 | Y42: =CEILING('Шкафы (2)'!Y42*'Доп комплектация'!$AY$1,'Доп комплектация'!$AY$3) -> 6228 | Z42: =CEILING('Шкафы (2)'!Z42*'Доп комплектация'!$AY$1,'Доп комплектация'!$AY$3) -> 6668 | AA42: =CEILING('Шкафы (2)'!AA42*'Доп комплектация'!$AY$1,'Доп комплектация'!$AY$3) -> 6948 | AB42: =CEILING('Шкафы (2)'!AB42*'Доп комплектация'!$AY$1,'Доп комплектация'!$AY$3) -> 6028 | AC42: =CEILING('Шкафы (2)'!AC42*'Доп комплектация'!$AY$1,'Доп комплектация'!$AY$3) -> 6148 | AD42: =CEILING('Шкафы (2)'!AD42*'Доп комплектация'!$AY$1,'Доп комплектация'!$AY$3) -> 6288 | AE42: =CEILING('Шкафы (2)'!AE42*'Доп комплектация'!$AY$1,'Доп комплектация'!$AY$3) -> 7228 | AF42: =CEILING('Шкафы (2)'!AF42*'Доп комплектация'!$AY$1,'Доп комплектация'!$AY$3) -> 5448 | AG42: =CEILING('Шкафы (2)'!AG42*'Доп комплектация'!$AY$1,'Доп комплектация'!$AY$3) -> 5788 | AH42: - | AI42: - | AJ42: - | AK42: * | AL42: =CEILING('Шкафы (2)'!AL42*'Доп комплектация'!$AY$1,'Доп комплектация'!$AY$3) -> 58 | AM42: =CEILING('Шкафы (2)'!AM42*'Доп комплектация'!$AY$1,'Доп комплектация'!$AY$3) -> 232 | AN42: =CEILING('Шкафы (2)'!AN42*'Доп комплектация'!$AY$1,'Доп комплектация'!$AY$3) -> 284 | AO42: =CEILING('Шкафы (2)'!AO42*'Доп комплектация'!$AY$1,'Доп комплектация'!$AY$3) -> 262 | AP42: =CEILING('Шкафы (2)'!AP42*'Доп комплектация'!$AY$1,'Доп комплектация'!$AY$3) -> 1032 | AQ42: =CEILING('Шкафы (2)'!AQ42*'Доп комплектация'!$AY$1,'Доп комплектация'!$AY$3) -> 1354 | AR42: =CEILING('Шкафы (2)'!AR42*'Доп комплектация'!$AY$1,'Доп комплектация'!$AY$3) -> 5086 | AS42: =CEILING('Шкафы (2)'!AS42*'Доп комплектация'!$AY$1,'Доп комплектация'!$AY$3) -> 826 | AT42: * | AU42: =CEILING('Шкафы (2)'!AU42*'Доп комплектация'!$AY$1,'Доп комплектация'!$AY$3) -> 20 | AV42: =CEILING('Шкафы (2)'!AV42*'Доп комплектация'!$AY$1,'Доп комплектация'!$AY$3) -> 60 | AW42: =CEILING('Шкафы (2)'!AW42*'Доп комплектация'!$AY$1,'Доп комплектация'!$AY$3) -> 80 | AX42: =CEILING('Шкафы (2)'!AX42*'Доп комплектация'!$AY$1,'Доп комплектация'!$AY$3) -> 140 | AY42: =CEILING('Шкафы (2)'!AY42*'Доп комплектация'!$AY$1,'Доп комплектация'!$AY$3) -> 1000 | AZ42: * | BA42: =CEILING('Шкафы (2)'!BA42*'Доп комплектация'!$AY$1,'Доп комплектация'!$AY$3) -> 20 | BB42: =CEILING('Шкафы (2)'!BB42*'Доп комплектация'!$AY$1,'Доп комплектация'!$AY$3) -> 60 | BC42: =CEILING('Шкафы (2)'!BC42*'Доп комплектация'!$AY$1,'Доп комплектация'!$AY$3) -> 80 | BD42: =CEILING('Шкафы (2)'!BD42*'Доп комплектация'!$AY$1,'Доп комплектация'!$AY$3) -> 120 | BE42: L=600
D43: L=650 | E43: =CEILING('Шкафы (2)'!E43*'Доп комплектация'!$AY$1,'Доп комплектация'!$AY$3) -> 4802 | F43: =CEILING('Шкафы (2)'!F43*'Доп комплектация'!$AY$1,'Доп комплектация'!$AY$3) -> 5682 | G43: =CEILING('Шкафы (2)'!G43*'Доп комплектация'!$AY$1,'Доп комплектация'!$AY$3) -> 4922 | H43: =CEILING('Шкафы (2)'!H43*'Доп комплектация'!$AY$1,'Доп комплектация'!$AY$3) -> 5802 | I43: =CEILING('Шкафы (2)'!I43*'Доп комплектация'!$AY$1,'Доп комплектация'!$AY$3) -> 5262 | J43: =CEILING('Шкафы (2)'!J43*'Доп комплектация'!$AY$1,'Доп комплектация'!$AY$3) -> 6442 | K43: =CEILING('Шкафы (2)'!K43*'Доп комплектация'!$AY$1,'Доп комплектация'!$AY$3) -> 6822 | L43: =CEILING('Шкафы (2)'!L43*'Доп комплектация'!$AY$1,'Доп комплектация'!$AY$3) -> 0 | M43: =CEILING('Шкафы (2)'!M43*'Доп комплектация'!$AY$1,'Доп комплектация'!$AY$3) -> 7322 | N43: =CEILING('Шкафы (2)'!N43*'Доп комплектация'!$AY$1,'Доп комплектация'!$AY$3) -> 7702 | O43: =CEILING('Шкафы (2)'!O43*'Доп комплектация'!$AY$1,'Доп комплектация'!$AY$3) -> 5116 | P43: =CEILING('Шкафы (2)'!P43*'Доп комплектация'!$AY$1,'Доп комплектация'!$AY$3) -> 0 | Q43: =CEILING('Шкафы (2)'!Q43*'Доп комплектация'!$AY$1,'Доп комплектация'!$AY$3) -> 4256 | R43: =CEILING('Шкафы (2)'!R43*'Доп комплектация'!$AY$1,'Доп комплектация'!$AY$3) -> 4276 | S43: =CEILING('Шкафы (2)'!S43*'Доп комплектация'!$AY$1,'Доп комплектация'!$AY$3) -> 4336 | T43: =CEILING('Шкафы (2)'!T43*'Доп комплектация'!$AY$1,'Доп комплектация'!$AY$3) -> 4516 | U43: =CEILING('Шкафы (2)'!U43*'Доп комплектация'!$AY$1,'Доп комплектация'!$AY$3) -> 0 | V43: =CEILING('Шкафы (2)'!V43*'Доп комплектация'!$AY$1,'Доп комплектация'!$AY$3) -> 5856 | W43: =CEILING('Шкафы (2)'!W43*'Доп комплектация'!$AY$1,'Доп комплектация'!$AY$3) -> 6636 | X43: =CEILING('Шкафы (2)'!X43*'Доп комплектация'!$AY$1,'Доп комплектация'!$AY$3) -> 6136 | Y43: =CEILING('Шкафы (2)'!Y43*'Доп комплектация'!$AY$1,'Доп комплектация'!$AY$3) -> 6476 | Z43: =CEILING('Шкафы (2)'!Z43*'Доп комплектация'!$AY$1,'Доп комплектация'!$AY$3) -> 6836 | AA43: =CEILING('Шкафы (2)'!AA43*'Доп комплектация'!$AY$1,'Доп комплектация'!$AY$3) -> 7236 | AB43: =CEILING('Шкафы (2)'!AB43*'Доп комплектация'!$AY$1,'Доп комплектация'!$AY$3) -> 6196 | AC43: =CEILING('Шкафы (2)'!AC43*'Доп комплектация'!$AY$1,'Доп комплектация'!$AY$3) -> 6316 | AD43: =CEILING('Шкафы (2)'!AD43*'Доп комплектация'!$AY$1,'Доп комплектация'!$AY$3) -> 6456 | AE43: =CEILING('Шкафы (2)'!AE43*'Доп комплектация'!$AY$1,'Доп комплектация'!$AY$3) -> 7436 | AF43: =CEILING('Шкафы (2)'!AF43*'Доп комплектация'!$AY$1,'Доп комплектация'!$AY$3) -> 5616 | AG43: =CEILING('Шкафы (2)'!AG43*'Доп комплектация'!$AY$1,'Доп комплектация'!$AY$3) -> 5996 | AH43: - | AI43: - | AJ43: - | AK43: * | AL43: =CEILING('Шкафы (2)'!AL43*'Доп комплектация'!$AY$1,'Доп комплектация'!$AY$3) -> 74 | AM43: =CEILING('Шкафы (2)'!AM43*'Доп комплектация'!$AY$1,'Доп комплектация'!$AY$3) -> 290 | AN43: =CEILING('Шкафы (2)'!AN43*'Доп комплектация'!$AY$1,'Доп комплектация'!$AY$3) -> 354 | AO43: =CEILING('Шкафы (2)'!AO43*'Доп комплектация'!$AY$1,'Доп комплектация'!$AY$3) -> 326 | AP43: =CEILING('Шкафы (2)'!AP43*'Доп комплектация'!$AY$1,'Доп комплектация'!$AY$3) -> 1090 | AQ43: =CEILING('Шкафы (2)'!AQ43*'Доп комплектация'!$AY$1,'Доп комплектация'!$AY$3) -> 1564 | AR43: =CEILING('Шкафы (2)'!AR43*'Доп комплектация'!$AY$1,'Доп комплектация'!$AY$3) -> 5088 | AS43: =CEILING('Шкафы (2)'!AS43*'Доп комплектация'!$AY$1,'Доп комплектация'!$AY$3) -> 1032 | AT43: * | AU43: =CEILING('Шкафы (2)'!AU43*'Доп комплектация'!$AY$1,'Доп комплектация'!$AY$3) -> 40 | AV43: =CEILING('Шкафы (2)'!AV43*'Доп комплектация'!$AY$1,'Доп комплектация'!$AY$3) -> 100 | AW43: =CEILING('Шкафы (2)'!AW43*'Доп комплектация'!$AY$1,'Доп комплектация'!$AY$3) -> 120 | AX43: =CEILING('Шкафы (2)'!AX43*'Доп комплектация'!$AY$1,'Доп комплектация'!$AY$3) -> 180 | AY43: =CEILING('Шкафы (2)'!AY43*'Доп комплектация'!$AY$1,'Доп комплектация'!$AY$3) -> 1040 | AZ43: * | BA43: =CEILING('Шкафы (2)'!BA43*'Доп комплектация'!$AY$1,'Доп комплектация'!$AY$3) -> 20 | BB43: =CEILING('Шкафы (2)'!BB43*'Доп комплектация'!$AY$1,'Доп комплектация'!$AY$3) -> 80 | BC43: =CEILING('Шкафы (2)'!BC43*'Доп комплектация'!$AY$1,'Доп комплектация'!$AY$3) -> 80 | BD43: =CEILING('Шкафы (2)'!BD43*'Доп комплектация'!$AY$1,'Доп комплектация'!$AY$3) -> 140
D44: L=700 | E44: =CEILING('Шкафы (2)'!E44*'Доп комплектация'!$AY$1,'Доп комплектация'!$AY$3) -> 4932 | F44: =CEILING('Шкафы (2)'!F44*'Доп комплектация'!$AY$1,'Доп комплектация'!$AY$3) -> 5872 | G44: =CEILING('Шкафы (2)'!G44*'Доп комплектация'!$AY$1,'Доп комплектация'!$AY$3) -> 5072 | H44: =CEILING('Шкафы (2)'!H44*'Доп комплектация'!$AY$1,'Доп комплектация'!$AY$3) -> 6032 | I44: =CEILING('Шкафы (2)'!I44*'Доп комплектация'!$AY$1,'Доп комплектация'!$AY$3) -> 5432 | J44: =CEILING('Шкафы (2)'!J44*'Доп комплектация'!$AY$1,'Доп комплектация'!$AY$3) -> 6712 | K44: =CEILING('Шкафы (2)'!K44*'Доп комплектация'!$AY$1,'Доп комплектация'!$AY$3) -> 7112 | L44: =CEILING('Шкафы (2)'!L44*'Доп комплектация'!$AY$1,'Доп комплектация'!$AY$3) -> 0 | M44: =CEILING('Шкафы (2)'!M44*'Доп комплектация'!$AY$1,'Доп комплектация'!$AY$3) -> 7652 | N44: =CEILING('Шкафы (2)'!N44*'Доп комплектация'!$AY$1,'Доп комплектация'!$AY$3) -> 8072 | O44: =CEILING('Шкафы (2)'!O44*'Доп комплектация'!$AY$1,'Доп комплектация'!$AY$3) -> 5166 | P44: =CEILING('Шкафы (2)'!P44*'Доп комплектация'!$AY$1,'Доп комплектация'!$AY$3) -> 0 | Q44: =CEILING('Шкафы (2)'!Q44*'Доп комплектация'!$AY$1,'Доп комплектация'!$AY$3) -> 4346 | R44: =CEILING('Шкафы (2)'!R44*'Доп комплектация'!$AY$1,'Доп комплектация'!$AY$3) -> 4386 | S44: =CEILING('Шкафы (2)'!S44*'Доп комплектация'!$AY$1,'Доп комплектация'!$AY$3) -> 4446 | T44: =CEILING('Шкафы (2)'!T44*'Доп комплектация'!$AY$1,'Доп комплектация'!$AY$3) -> 4626 | U44: =CEILING('Шкафы (2)'!U44*'Доп комплектация'!$AY$1,'Доп комплектация'!$AY$3) -> 0 | V44: =CEILING('Шкафы (2)'!V44*'Доп комплектация'!$AY$1,'Доп комплектация'!$AY$3) -> 6046 | W44: =CEILING('Шкафы (2)'!W44*'Доп комплектация'!$AY$1,'Доп комплектация'!$AY$3) -> 6866 | X44: =CEILING('Шкафы (2)'!X44*'Доп комплектация'!$AY$1,'Доп комплектация'!$AY$3) -> 6366 | Y44: =CEILING('Шкафы (2)'!Y44*'Доп комплектация'!$AY$1,'Доп комплектация'!$AY$3) -> 6726 | Z44: =CEILING('Шкафы (2)'!Z44*'Доп комплектация'!$AY$1,'Доп комплектация'!$AY$3) -> 6946 | AA44: =CEILING('Шкафы (2)'!AA44*'Доп комплектация'!$AY$1,'Доп комплектация'!$AY$3) -> 7546 | AB44: =CEILING('Шкафы (2)'!AB44*'Доп комплектация'!$AY$1,'Доп комплектация'!$AY$3) -> 6346 | AC44: =CEILING('Шкафы (2)'!AC44*'Доп комплектация'!$AY$1,'Доп комплектация'!$AY$3) -> 6466 | AD44: =CEILING('Шкафы (2)'!AD44*'Доп комплектация'!$AY$1,'Доп комплектация'!$AY$3) -> 6626 | AE44: =CEILING('Шкафы (2)'!AE44*'Доп комплектация'!$AY$1,'Доп комплектация'!$AY$3) -> 7666 | AF44: =CEILING('Шкафы (2)'!AF44*'Доп комплектация'!$AY$1,'Доп комплектация'!$AY$3) -> 5806 | AG44: =CEILING('Шкафы (2)'!AG44*'Доп комплектация'!$AY$1,'Доп комплектация'!$AY$3) -> 6206 | AH44: - | AI44: - | AJ44: - | AK44: * | AL44: =CEILING('Шкафы (2)'!AL44*'Доп комплектация'!$AY$1,'Доп комплектация'!$AY$3) -> 74 | AM44: =CEILING('Шкафы (2)'!AM44*'Доп комплектация'!$AY$1,'Доп комплектация'!$AY$3) -> 290 | AN44: =CEILING('Шкафы (2)'!AN44*'Доп комплектация'!$AY$1,'Доп комплектация'!$AY$3) -> 354 | AO44: =CEILING('Шкафы (2)'!AO44*'Доп комплектация'!$AY$1,'Доп комплектация'!$AY$3) -> 326 | AP44: =CEILING('Шкафы (2)'!AP44*'Доп комплектация'!$AY$1,'Доп комплектация'!$AY$3) -> 1090 | AQ44: =CEILING('Шкафы (2)'!AQ44*'Доп комплектация'!$AY$1,'Доп комплектация'!$AY$3) -> 1564 | AR44: =CEILING('Шкафы (2)'!AR44*'Доп комплектация'!$AY$1,'Доп комплектация'!$AY$3) -> 5088 | AS44: =CEILING('Шкафы (2)'!AS44*'Доп комплектация'!$AY$1,'Доп комплектация'!$AY$3) -> 1032 | AT44: * | AU44: =CEILING('Шкафы (2)'!AU44*'Доп комплектация'!$AY$1,'Доп комплектация'!$AY$3) -> 40 | AV44: =CEILING('Шкафы (2)'!AV44*'Доп комплектация'!$AY$1,'Доп комплектация'!$AY$3) -> 100 | AW44: =CEILING('Шкафы (2)'!AW44*'Доп комплектация'!$AY$1,'Доп комплектация'!$AY$3) -> 120 | AX44: =CEILING('Шкафы (2)'!AX44*'Доп комплектация'!$AY$1,'Доп комплектация'!$AY$3) -> 180 | AY44: =CEILING('Шкафы (2)'!AY44*'Доп комплектация'!$AY$1,'Доп комплектация'!$AY$3) -> 1040 | AZ44: * | BA44: =CEILING('Шкафы (2)'!BA44*'Доп комплектация'!$AY$1,'Доп комплектация'!$AY$3) -> 20 | BB44: =CEILING('Шкафы (2)'!BB44*'Доп комплектация'!$AY$1,'Доп комплектация'!$AY$3) -> 80 | BC44: =CEILING('Шкафы (2)'!BC44*'Доп комплектация'!$AY$1,'Доп комплектация'!$AY$3) -> 80 | BD44: =CEILING('Шкафы (2)'!BD44*'Доп комплектация'!$AY$1,'Доп комплектация'!$AY$3) -> 140 | BE44: L=700
D45: L=750 | E45: =CEILING('Шкафы (2)'!E45*'Доп комплектация'!$AY$1,'Доп комплектация'!$AY$3) -> 5061 | F45: =CEILING('Шкафы (2)'!F45*'Доп комплектация'!$AY$1,'Доп комплектация'!$AY$3) -> 6081 | G45: =CEILING('Шкафы (2)'!G45*'Доп комплектация'!$AY$1,'Доп комплектация'!$AY$3) -> 5221 | H45: =CEILING('Шкафы (2)'!H45*'Доп комплектация'!$AY$1,'Доп комплектация'!$AY$3) -> 6241 | I45: =CEILING('Шкафы (2)'!I45*'Доп комплектация'!$AY$1,'Доп комплектация'!$AY$3) -> 5601 | J45: =CEILING('Шкафы (2)'!J45*'Доп комплектация'!$AY$1,'Доп комплектация'!$AY$3) -> 6961 | K45: =CEILING('Шкафы (2)'!K45*'Доп комплектация'!$AY$1,'Доп комплектация'!$AY$3) -> 7401 | L45: =CEILING('Шкафы (2)'!L45*'Доп комплектация'!$AY$1,'Доп комплектация'!$AY$3) -> 0 | M45: =CEILING('Шкафы (2)'!M45*'Доп комплектация'!$AY$1,'Доп комплектация'!$AY$3) -> 7981 | N45: =CEILING('Шкафы (2)'!N45*'Доп комплектация'!$AY$1,'Доп комплектация'!$AY$3) -> 8421 | O45: =CEILING('Шкафы (2)'!O45*'Доп комплектация'!$AY$1,'Доп комплектация'!$AY$3) -> 5273 | P45: =CEILING('Шкафы (2)'!P45*'Доп комплектация'!$AY$1,'Доп комплектация'!$AY$3) -> 0 | Q45: =CEILING('Шкафы (2)'!Q45*'Доп комплектация'!$AY$1,'Доп комплектация'!$AY$3) -> 4433 | R45: =CEILING('Шкафы (2)'!R45*'Доп комплектация'!$AY$1,'Доп комплектация'!$AY$3) -> 4473 | S45: =CEILING('Шкафы (2)'!S45*'Доп комплектация'!$AY$1,'Доп комплектация'!$AY$3) -> 4533 | T45: =CEILING('Шкафы (2)'!T45*'Доп комплектация'!$AY$1,'Доп комплектация'!$AY$3) -> 4733 | U45: =CEILING('Шкафы (2)'!U45*'Доп комплектация'!$AY$1,'Доп комплектация'!$AY$3) -> 0 | V45: =CEILING('Шкафы (2)'!V45*'Доп комплектация'!$AY$1,'Доп комплектация'!$AY$3) -> 6253 | W45: =CEILING('Шкафы (2)'!W45*'Доп комплектация'!$AY$1,'Доп комплектация'!$AY$3) -> 7113 | X45: =CEILING('Шкафы (2)'!X45*'Доп комплектация'!$AY$1,'Доп комплектация'!$AY$3) -> 6573 | Y45: =CEILING('Шкафы (2)'!Y45*'Доп комплектация'!$AY$1,'Доп комплектация'!$AY$3) -> 6953 | Z45: =CEILING('Шкафы (2)'!Z45*'Доп комплектация'!$AY$1,'Доп комплектация'!$AY$3) -> 7133 | AA45: =CEILING('Шкафы (2)'!AA45*'Доп комплектация'!$AY$1,'Доп комплектация'!$AY$3) -> 7833 | AB45: =CEILING('Шкафы (2)'!AB45*'Доп комплектация'!$AY$1,'Доп комплектация'!$AY$3) -> 6493 | AC45: =CEILING('Шкафы (2)'!AC45*'Доп комплектация'!$AY$1,'Доп комплектация'!$AY$3) -> 6633 | AD45: =CEILING('Шкафы (2)'!AD45*'Доп комплектация'!$AY$1,'Доп комплектация'!$AY$3) -> 6813 | AE45: =CEILING('Шкафы (2)'!AE45*'Доп комплектация'!$AY$1,'Доп комплектация'!$AY$3) -> 7873 | AF45: =CEILING('Шкафы (2)'!AF45*'Доп комплектация'!$AY$1,'Доп комплектация'!$AY$3) -> 5973 | AG45: =CEILING('Шкафы (2)'!AG45*'Доп комплектация'!$AY$1,'Доп комплектация'!$AY$3) -> 6393 | AH45: - | AI45: - | AJ45: - | AK45: * | AL45: =CEILING('Шкафы (2)'!AL45*'Доп комплектация'!$AY$1,'Доп комплектация'!$AY$3) -> 90 | AM45: =CEILING('Шкафы (2)'!AM45*'Доп комплектация'!$AY$1,'Доп комплектация'!$AY$3) -> 350 | AN45: =CEILING('Шкафы (2)'!AN45*'Доп комплектация'!$AY$1,'Доп комплектация'!$AY$3) -> 428 | AO45: =CEILING('Шкафы (2)'!AO45*'Доп комплектация'!$AY$1,'Доп комплектация'!$AY$3) -> 394 | AP45: =CEILING('Шкафы (2)'!AP45*'Доп комплектация'!$AY$1,'Доп комплектация'!$AY$3) -> 1150 | AQ45: =CEILING('Шкафы (2)'!AQ45*'Доп комплектация'!$AY$1,'Доп комплектация'!$AY$3) -> 1778 | AR45: =CEILING('Шкафы (2)'!AR45*'Доп комплектация'!$AY$1,'Доп комплектация'!$AY$3) -> 5092 | AS45: =CEILING('Шкафы (2)'!AS45*'Доп комплектация'!$AY$1,'Доп комплектация'!$AY$3) -> 1238 | AT45: * | AU45: =CEILING('Шкафы (2)'!AU45*'Доп комплектация'!$AY$1,'Доп комплектация'!$AY$3) -> 60 | AV45: =CEILING('Шкафы (2)'!AV45*'Доп комплектация'!$AY$1,'Доп комплектация'!$AY$3) -> 120 | AW45: =CEILING('Шкафы (2)'!AW45*'Доп комплектация'!$AY$1,'Доп комплектация'!$AY$3) -> 140 | AX45: =CEILING('Шкафы (2)'!AX45*'Доп комплектация'!$AY$1,'Доп комплектация'!$AY$3) -> 240 | AY45: =CEILING('Шкафы (2)'!AY45*'Доп комплектация'!$AY$1,'Доп комплектация'!$AY$3) -> 1060 | AZ45: * | BA45: =CEILING('Шкафы (2)'!BA45*'Доп комплектация'!$AY$1,'Доп комплектация'!$AY$3) -> 40 | BB45: =CEILING('Шкафы (2)'!BB45*'Доп комплектация'!$AY$1,'Доп комплектация'!$AY$3) -> 80 | BC45: =CEILING('Шкафы (2)'!BC45*'Доп комплектация'!$AY$1,'Доп комплектация'!$AY$3) -> 100 | BD45: =CEILING('Шкафы (2)'!BD45*'Доп комплектация'!$AY$1,'Доп комплектация'!$AY$3) -> 160
D46: L=800 | E46: =CEILING('Шкафы (2)'!E46*'Доп комплектация'!$AY$1,'Доп комплектация'!$AY$3) -> 5211 | F46: =CEILING('Шкафы (2)'!F46*'Доп комплектация'!$AY$1,'Доп комплектация'!$AY$3) -> 6291 | G46: =CEILING('Шкафы (2)'!G46*'Доп комплектация'!$AY$1,'Доп комплектация'!$AY$3) -> 5371 | H46: =CEILING('Шкафы (2)'!H46*'Доп комплектация'!$AY$1,'Доп комплектация'!$AY$3) -> 6451 | I46: =CEILING('Шкафы (2)'!I46*'Доп комплектация'!$AY$1,'Доп комплектация'!$AY$3) -> 5771 | J46: =CEILING('Шкафы (2)'!J46*'Доп комплектация'!$AY$1,'Доп комплектация'!$AY$3) -> 7231 | K46: =CEILING('Шкафы (2)'!K46*'Доп комплектация'!$AY$1,'Доп комплектация'!$AY$3) -> 7711 | L46: =CEILING('Шкафы (2)'!L46*'Доп комплектация'!$AY$1,'Доп комплектация'!$AY$3) -> 0 | M46: =CEILING('Шкафы (2)'!M46*'Доп комплектация'!$AY$1,'Доп комплектация'!$AY$3) -> 8311 | N46: =CEILING('Шкафы (2)'!N46*'Доп комплектация'!$AY$1,'Доп комплектация'!$AY$3) -> 8791 | O46: =CEILING('Шкафы (2)'!O46*'Доп комплектация'!$AY$1,'Доп комплектация'!$AY$3) -> 5363 | P46: =CEILING('Шкафы (2)'!P46*'Доп комплектация'!$AY$1,'Доп комплектация'!$AY$3) -> 0 | Q46: =CEILING('Шкафы (2)'!Q46*'Доп комплектация'!$AY$1,'Доп комплектация'!$AY$3) -> 4523 | R46: =CEILING('Шкафы (2)'!R46*'Доп комплектация'!$AY$1,'Доп комплектация'!$AY$3) -> 4563 | S46: =CEILING('Шкафы (2)'!S46*'Доп комплектация'!$AY$1,'Доп комплектация'!$AY$3) -> 4623 | T46: =CEILING('Шкафы (2)'!T46*'Доп комплектация'!$AY$1,'Доп комплектация'!$AY$3) -> 4843 | U46: =CEILING('Шкафы (2)'!U46*'Доп комплектация'!$AY$1,'Доп комплектация'!$AY$3) -> 0 | V46: =CEILING('Шкафы (2)'!V46*'Доп комплектация'!$AY$1,'Доп комплектация'!$AY$3) -> 6443 | W46: =CEILING('Шкафы (2)'!W46*'Доп комплектация'!$AY$1,'Доп комплектация'!$AY$3) -> 7343 | X46: =CEILING('Шкафы (2)'!X46*'Доп комплектация'!$AY$1,'Доп комплектация'!$AY$3) -> 6783 | Y46: =CEILING('Шкафы (2)'!Y46*'Доп комплектация'!$AY$1,'Доп комплектация'!$AY$3) -> 7203 | Z46: =CEILING('Шкафы (2)'!Z46*'Доп комплектация'!$AY$1,'Доп комплектация'!$AY$3) -> 7303 | AA46: =CEILING('Шкафы (2)'!AA46*'Доп комплектация'!$AY$1,'Доп комплектация'!$AY$3) -> 8123 | AB46: =CEILING('Шкафы (2)'!AB46*'Доп комплектация'!$AY$1,'Доп комплектация'!$AY$3) -> 6663 | AC46: =CEILING('Шкафы (2)'!AC46*'Доп комплектация'!$AY$1,'Доп комплектация'!$AY$3) -> 6803 | AD46: =CEILING('Шкафы (2)'!AD46*'Доп комплектация'!$AY$1,'Доп комплектация'!$AY$3) -> 6983 | AE46: =CEILING('Шкафы (2)'!AE46*'Доп комплектация'!$AY$1,'Доп комплектация'!$AY$3) -> 8103 | AF46: =CEILING('Шкафы (2)'!AF46*'Доп комплектация'!$AY$1,'Доп комплектация'!$AY$3) -> 6163 | AG46: =CEILING('Шкафы (2)'!AG46*'Доп комплектация'!$AY$1,'Доп комплектация'!$AY$3) -> 6603 | AH46: - | AI46: - | AJ46: - | AK46: * | AL46: =CEILING('Шкафы (2)'!AL46*'Доп комплектация'!$AY$1,'Доп комплектация'!$AY$3) -> 90 | AM46: =CEILING('Шкафы (2)'!AM46*'Доп комплектация'!$AY$1,'Доп комплектация'!$AY$3) -> 350 | AN46: =CEILING('Шкафы (2)'!AN46*'Доп комплектация'!$AY$1,'Доп комплектация'!$AY$3) -> 428 | AO46: =CEILING('Шкафы (2)'!AO46*'Доп комплектация'!$AY$1,'Доп комплектация'!$AY$3) -> 394 | AP46: =CEILING('Шкафы (2)'!AP46*'Доп комплектация'!$AY$1,'Доп комплектация'!$AY$3) -> 1150 | AQ46: =CEILING('Шкафы (2)'!AQ46*'Доп комплектация'!$AY$1,'Доп комплектация'!$AY$3) -> 1778 | AR46: =CEILING('Шкафы (2)'!AR46*'Доп комплектация'!$AY$1,'Доп комплектация'!$AY$3) -> 5092 | AS46: =CEILING('Шкафы (2)'!AS46*'Доп комплектация'!$AY$1,'Доп комплектация'!$AY$3) -> 1238 | AT46: * | AU46: =CEILING('Шкафы (2)'!AU46*'Доп комплектация'!$AY$1,'Доп комплектация'!$AY$3) -> 60 | AV46: =CEILING('Шкафы (2)'!AV46*'Доп комплектация'!$AY$1,'Доп комплектация'!$AY$3) -> 120 | AW46: =CEILING('Шкафы (2)'!AW46*'Доп комплектация'!$AY$1,'Доп комплектация'!$AY$3) -> 140 | AX46: =CEILING('Шкафы (2)'!AX46*'Доп комплектация'!$AY$1,'Доп комплектация'!$AY$3) -> 240 | AY46: =CEILING('Шкафы (2)'!AY46*'Доп комплектация'!$AY$1,'Доп комплектация'!$AY$3) -> 1060 | AZ46: * | BA46: =CEILING('Шкафы (2)'!BA46*'Доп комплектация'!$AY$1,'Доп комплектация'!$AY$3) -> 40 | BB46: =CEILING('Шкафы (2)'!BB46*'Доп комплектация'!$AY$1,'Доп комплектация'!$AY$3) -> 80 | BC46: =CEILING('Шкафы (2)'!BC46*'Доп комплектация'!$AY$1,'Доп комплектация'!$AY$3) -> 100 | BD46: =CEILING('Шкафы (2)'!BD46*'Доп комплектация'!$AY$1,'Доп комплектация'!$AY$3) -> 160 | BE46: L=800
C47: Шкаф Н=400 2дв 2ст | D47: L=600 | E47: =CEILING('Шкафы (2)'!E47*'Доп комплектация'!$AY$1,'Доп комплектация'!$AY$3) -> 4820 | F47: =CEILING('Шкафы (2)'!F47*'Доп комплектация'!$AY$1,'Доп комплектация'!$AY$3) -> 5720 | G47: =CEILING('Шкафы (2)'!G47*'Доп комплектация'!$AY$1,'Доп комплектация'!$AY$3) -> 4960 | H47: =CEILING('Шкафы (2)'!H47*'Доп комплектация'!$AY$1,'Доп комплектация'!$AY$3) -> 5860 | I47: =CEILING('Шкафы (2)'!I47*'Доп комплектация'!$AY$1,'Доп комплектация'!$AY$3) -> 5280 | J47: =CEILING('Шкафы (2)'!J47*'Доп комплектация'!$AY$1,'Доп комплектация'!$AY$3) -> 6500 | K47: =CEILING('Шкафы (2)'!K47*'Доп комплектация'!$AY$1,'Доп комплектация'!$AY$3) -> 6900 | L47: =CEILING('Шкафы (2)'!L47*'Доп комплектация'!$AY$1,'Доп комплектация'!$AY$3) -> 0 | M47: =CEILING('Шкафы (2)'!M47*'Доп комплектация'!$AY$1,'Доп комплектация'!$AY$3) -> 7400 | N47: =CEILING('Шкафы (2)'!N47*'Доп комплектация'!$AY$1,'Доп комплектация'!$AY$3) -> 7800 | O47: =CEILING('Шкафы (2)'!O47*'Доп комплектация'!$AY$1,'Доп комплектация'!$AY$3) -> 5130 | P47: =CEILING('Шкафы (2)'!P47*'Доп комплектация'!$AY$1,'Доп комплектация'!$AY$3) -> 0 | Q47: =CEILING('Шкафы (2)'!Q47*'Доп комплектация'!$AY$1,'Доп комплектация'!$AY$3) -> 4270 | R47: =CEILING('Шкафы (2)'!R47*'Доп комплектация'!$AY$1,'Доп комплектация'!$AY$3) -> 4290 | S47: =CEILING('Шкафы (2)'!S47*'Доп комплектация'!$AY$1,'Доп комплектация'!$AY$3) -> 4350 | T47: =CEILING('Шкафы (2)'!T47*'Доп комплектация'!$AY$1,'Доп комплектация'!$AY$3) -> 4530 | U47: =CEILING('Шкафы (2)'!U47*'Доп комплектация'!$AY$1,'Доп комплектация'!$AY$3) -> 0 | V47: =CEILING('Шкафы (2)'!V47*'Доп комплектация'!$AY$1,'Доп комплектация'!$AY$3) -> 5890 | W47: =CEILING('Шкафы (2)'!W47*'Доп комплектация'!$AY$1,'Доп комплектация'!$AY$3) -> 6670 | X47: =CEILING('Шкафы (2)'!X47*'Доп комплектация'!$AY$1,'Доп комплектация'!$AY$3) -> 6190 | Y47: =CEILING('Шкафы (2)'!Y47*'Доп комплектация'!$AY$1,'Доп комплектация'!$AY$3) -> 6550 | Z47: =CEILING('Шкафы (2)'!Z47*'Доп комплектация'!$AY$1,'Доп комплектация'!$AY$3) -> 6910 | AA47: =CEILING('Шкафы (2)'!AA47*'Доп комплектация'!$AY$1,'Доп комплектация'!$AY$3) -> 7330 | AB47: =CEILING('Шкафы (2)'!AB47*'Доп комплектация'!$AY$1,'Доп комплектация'!$AY$3) -> 6230 | AC47: =CEILING('Шкафы (2)'!AC47*'Доп комплектация'!$AY$1,'Доп комплектация'!$AY$3) -> 6370 | AD47: =CEILING('Шкафы (2)'!AD47*'Доп комплектация'!$AY$1,'Доп комплектация'!$AY$3) -> 6530 | AE47: =CEILING('Шкафы (2)'!AE47*'Доп комплектация'!$AY$1,'Доп комплектация'!$AY$3) -> 7530 | AF47: =CEILING('Шкафы (2)'!AF47*'Доп комплектация'!$AY$1,'Доп комплектация'!$AY$3) -> 5650 | AG47: =CEILING('Шкафы (2)'!AG47*'Доп комплектация'!$AY$1,'Доп комплектация'!$AY$3) -> 6030 | AH47: - | AI47: - | AJ47: - | AK47: * | AL47: =CEILING('Шкафы (2)'!AL47*'Доп комплектация'!$AY$1,'Доп комплектация'!$AY$3) -> 70 | AM47: =CEILING('Шкафы (2)'!AM47*'Доп комплектация'!$AY$1,'Доп комплектация'!$AY$3) -> 270 | AN47: =CEILING('Шкафы (2)'!AN47*'Доп комплектация'!$AY$1,'Доп комплектация'!$AY$3) -> 330 | AO47: =CEILING('Шкафы (2)'!AO47*'Доп комплектация'!$AY$1,'Доп комплектация'!$AY$3) -> 304 | AP47: =CEILING('Шкафы (2)'!AP47*'Доп комплектация'!$AY$1,'Доп комплектация'!$AY$3) -> 1070 | AQ47: =CEILING('Шкафы (2)'!AQ47*'Доп комплектация'!$AY$1,'Доп комплектация'!$AY$3) -> 1486 | AR47: =CEILING('Шкафы (2)'!AR47*'Доп комплектация'!$AY$1,'Доп комплектация'!$AY$3) -> 5098 | AS47: =CEILING('Шкафы (2)'!AS47*'Доп комплектация'!$AY$1,'Доп комплектация'!$AY$3) -> 992 | AT47: * | AU47: =CEILING('Шкафы (2)'!AU47*'Доп комплектация'!$AY$1,'Доп комплектация'!$AY$3) -> 40 | AV47: =CEILING('Шкафы (2)'!AV47*'Доп комплектация'!$AY$1,'Доп комплектация'!$AY$3) -> 80 | AW47: =CEILING('Шкафы (2)'!AW47*'Доп комплектация'!$AY$1,'Доп комплектация'!$AY$3) -> 100 | AX47: =CEILING('Шкафы (2)'!AX47*'Доп комплектация'!$AY$1,'Доп комплектация'!$AY$3) -> 160 | AY47: =CEILING('Шкафы (2)'!AY47*'Доп комплектация'!$AY$1,'Доп комплектация'!$AY$3) -> 1020 | AZ47: * | BA47: =CEILING('Шкафы (2)'!BA47*'Доп комплектация'!$AY$1,'Доп комплектация'!$AY$3) -> 40 | BB47: =CEILING('Шкафы (2)'!BB47*'Доп комплектация'!$AY$1,'Доп комплектация'!$AY$3) -> 60 | BC47: =CEILING('Шкафы (2)'!BC47*'Доп комплектация'!$AY$1,'Доп комплектация'!$AY$3) -> 80 | BD47: =CEILING('Шкафы (2)'!BD47*'Доп комплектация'!$AY$1,'Доп комплектация'!$AY$3) -> 120 | BE47: L=600
D48: L=650 | E48: =CEILING('Шкафы (2)'!E48*'Доп комплектация'!$AY$1,'Доп комплектация'!$AY$3) -> 4953 | F48: =CEILING('Шкафы (2)'!F48*'Доп комплектация'!$AY$1,'Доп комплектация'!$AY$3) -> 5933 | G48: =CEILING('Шкафы (2)'!G48*'Доп комплектация'!$AY$1,'Доп комплектация'!$AY$3) -> 5113 | H48: =CEILING('Шкафы (2)'!H48*'Доп комплектация'!$AY$1,'Доп комплектация'!$AY$3) -> 6093 | I48: =CEILING('Шкафы (2)'!I48*'Доп комплектация'!$AY$1,'Доп комплектация'!$AY$3) -> 5473 | J48: =CEILING('Шкафы (2)'!J48*'Доп комплектация'!$AY$1,'Доп комплектация'!$AY$3) -> 6793 | K48: =CEILING('Шкафы (2)'!K48*'Доп комплектация'!$AY$1,'Доп комплектация'!$AY$3) -> 7213 | L48: =CEILING('Шкафы (2)'!L48*'Доп комплектация'!$AY$1,'Доп комплектация'!$AY$3) -> 0 | M48: =CEILING('Шкафы (2)'!M48*'Доп комплектация'!$AY$1,'Доп комплектация'!$AY$3) -> 7773 | N48: =CEILING('Шкафы (2)'!N48*'Доп комплектация'!$AY$1,'Доп комплектация'!$AY$3) -> 8193 | O48: =CEILING('Шкафы (2)'!O48*'Доп комплектация'!$AY$1,'Доп комплектация'!$AY$3) -> 5239 | P48: =CEILING('Шкафы (2)'!P48*'Доп комплектация'!$AY$1,'Доп комплектация'!$AY$3) -> 0 | Q48: =CEILING('Шкафы (2)'!Q48*'Доп комплектация'!$AY$1,'Доп комплектация'!$AY$3) -> 4359 | R48: =CEILING('Шкафы (2)'!R48*'Доп комплектация'!$AY$1,'Доп комплектация'!$AY$3) -> 4379 | S48: =CEILING('Шкафы (2)'!S48*'Доп комплектация'!$AY$1,'Доп комплектация'!$AY$3) -> 4459 | T48: =CEILING('Шкафы (2)'!T48*'Доп комплектация'!$AY$1,'Доп комплектация'!$AY$3) -> 4639 | U48: =CEILING('Шкафы (2)'!U48*'Доп комплектация'!$AY$1,'Доп комплектация'!$AY$3) -> 0 | V48: =CEILING('Шкафы (2)'!V48*'Доп комплектация'!$AY$1,'Доп комплектация'!$AY$3) -> 6099 | W48: =CEILING('Шкафы (2)'!W48*'Доп комплектация'!$AY$1,'Доп комплектация'!$AY$3) -> 6919 | X48: =CEILING('Шкафы (2)'!X48*'Доп комплектация'!$AY$1,'Доп комплектация'!$AY$3) -> 6419 | Y48: =CEILING('Шкафы (2)'!Y48*'Доп комплектация'!$AY$1,'Доп комплектация'!$AY$3) -> 6799 | Z48: =CEILING('Шкафы (2)'!Z48*'Доп комплектация'!$AY$1,'Доп комплектация'!$AY$3) -> 7079 | AA48: =CEILING('Шкафы (2)'!AA48*'Доп комплектация'!$AY$1,'Доп комплектация'!$AY$3) -> 7659 | AB48: =CEILING('Шкафы (2)'!AB48*'Доп комплектация'!$AY$1,'Доп комплектация'!$AY$3) -> 6399 | AC48: =CEILING('Шкафы (2)'!AC48*'Доп комплектация'!$AY$1,'Доп комплектация'!$AY$3) -> 6539 | AD48: =CEILING('Шкафы (2)'!AD48*'Доп комплектация'!$AY$1,'Доп комплектация'!$AY$3) -> 6699 | AE48: =CEILING('Шкафы (2)'!AE48*'Доп комплектация'!$AY$1,'Доп комплектация'!$AY$3) -> 7759 | AF48: =CEILING('Шкафы (2)'!AF48*'Доп комплектация'!$AY$1,'Доп комплектация'!$AY$3) -> 5839 | AG48: =CEILING('Шкафы (2)'!AG48*'Доп комплектация'!$AY$1,'Доп комплектация'!$AY$3) -> 6259 | AH48: - | AI48: - | AJ48: - | AK48: * | AL48: =CEILING('Шкафы (2)'!AL48*'Доп комплектация'!$AY$1,'Доп комплектация'!$AY$3) -> 84 | AM48: =CEILING('Шкафы (2)'!AM48*'Доп комплектация'!$AY$1,'Доп комплектация'!$AY$3) -> 336 | AN48: =CEILING('Шкафы (2)'!AN48*'Доп комплектация'!$AY$1,'Доп комплектация'!$AY$3) -> 410 | AO48: =CEILING('Шкафы (2)'!AO48*'Доп комплектация'!$AY$1,'Доп комплектация'!$AY$3) -> 376 | AP48: =CEILING('Шкафы (2)'!AP48*'Доп комплектация'!$AY$1,'Доп комплектация'!$AY$3) -> 1136 | AQ48: =CEILING('Шкафы (2)'!AQ48*'Доп комплектация'!$AY$1,'Доп комплектация'!$AY$3) -> 1728 | AR48: =CEILING('Шкафы (2)'!AR48*'Доп комплектация'!$AY$1,'Доп комплектация'!$AY$3) -> 5090 | AS48: =CEILING('Шкафы (2)'!AS48*'Доп комплектация'!$AY$1,'Доп комплектация'!$AY$3) -> 1240 | AT48: * | AU48: =CEILING('Шкафы (2)'!AU48*'Доп комплектация'!$AY$1,'Доп комплектация'!$AY$3) -> 40 | AV48: =CEILING('Шкафы (2)'!AV48*'Доп комплектация'!$AY$1,'Доп комплектация'!$AY$3) -> 100 | AW48: =CEILING('Шкафы (2)'!AW48*'Доп комплектация'!$AY$1,'Доп комплектация'!$AY$3) -> 120 | AX48: =CEILING('Шкафы (2)'!AX48*'Доп комплектация'!$AY$1,'Доп комплектация'!$AY$3) -> 200 | AY48: =CEILING('Шкафы (2)'!AY48*'Доп комплектация'!$AY$1,'Доп комплектация'!$AY$3) -> 1040 | AZ48: * | BA48: =CEILING('Шкафы (2)'!BA48*'Доп комплектация'!$AY$1,'Доп комплектация'!$AY$3) -> 20 | BB48: =CEILING('Шкафы (2)'!BB48*'Доп комплектация'!$AY$1,'Доп комплектация'!$AY$3) -> 60 | BC48: =CEILING('Шкафы (2)'!BC48*'Доп комплектация'!$AY$1,'Доп комплектация'!$AY$3) -> 80 | BD48: =CEILING('Шкафы (2)'!BD48*'Доп комплектация'!$AY$1,'Доп комплектация'!$AY$3) -> 120
D49: L=700 | E49: =CEILING('Шкафы (2)'!E49*'Доп комплектация'!$AY$1,'Доп комплектация'!$AY$3) -> 5104 | F49: =CEILING('Шкафы (2)'!F49*'Доп комплектация'!$AY$1,'Доп комплектация'!$AY$3) -> 6164 | G49: =CEILING('Шкафы (2)'!G49*'Доп комплектация'!$AY$1,'Доп комплектация'!$AY$3) -> 5264 | H49: =CEILING('Шкафы (2)'!H49*'Доп комплектация'!$AY$1,'Доп комплектация'!$AY$3) -> 6324 | I49: =CEILING('Шкафы (2)'!I49*'Доп комплектация'!$AY$1,'Доп комплектация'!$AY$3) -> 5664 | J49: =CEILING('Шкафы (2)'!J49*'Доп комплектация'!$AY$1,'Доп комплектация'!$AY$3) -> 7084 | K49: =CEILING('Шкафы (2)'!K49*'Доп комплектация'!$AY$1,'Доп комплектация'!$AY$3) -> 7544 | L49: =CEILING('Шкафы (2)'!L49*'Доп комплектация'!$AY$1,'Доп комплектация'!$AY$3) -> 0 | M49: =CEILING('Шкафы (2)'!M49*'Доп комплектация'!$AY$1,'Доп комплектация'!$AY$3) -> 8124 | N49: =CEILING('Шкафы (2)'!N49*'Доп комплектация'!$AY$1,'Доп комплектация'!$AY$3) -> 8584 | O49: =CEILING('Шкафы (2)'!O49*'Доп комплектация'!$AY$1,'Доп комплектация'!$AY$3) -> 5288 | P49: =CEILING('Шкафы (2)'!P49*'Доп комплектация'!$AY$1,'Доп комплектация'!$AY$3) -> 0 | Q49: =CEILING('Шкафы (2)'!Q49*'Доп комплектация'!$AY$1,'Доп комплектация'!$AY$3) -> 4468 | R49: =CEILING('Шкафы (2)'!R49*'Доп комплектация'!$AY$1,'Доп комплектация'!$AY$3) -> 4488 | S49: =CEILING('Шкафы (2)'!S49*'Доп комплектация'!$AY$1,'Доп комплектация'!$AY$3) -> 4568 | T49: =CEILING('Шкафы (2)'!T49*'Доп комплектация'!$AY$1,'Доп комплектация'!$AY$3) -> 4768 | U49: =CEILING('Шкафы (2)'!U49*'Доп комплектация'!$AY$1,'Доп комплектация'!$AY$3) -> 0 | V49: =CEILING('Шкафы (2)'!V49*'Доп комплектация'!$AY$1,'Доп комплектация'!$AY$3) -> 6308 | W49: =CEILING('Шкафы (2)'!W49*'Доп комплектация'!$AY$1,'Доп комплектация'!$AY$3) -> 7168 | X49: =CEILING('Шкафы (2)'!X49*'Доп комплектация'!$AY$1,'Доп комплектация'!$AY$3) -> 6668 | Y49: =CEILING('Шкафы (2)'!Y49*'Доп комплектация'!$AY$1,'Доп комплектация'!$AY$3) -> 7068 | Z49: =CEILING('Шкафы (2)'!Z49*'Доп комплектация'!$AY$1,'Доп комплектация'!$AY$3) -> 7208 | AA49: =CEILING('Шкафы (2)'!AA49*'Доп комплектация'!$AY$1,'Доп комплектация'!$AY$3) -> 7988 | AB49: =CEILING('Шкафы (2)'!AB49*'Доп комплектация'!$AY$1,'Доп комплектация'!$AY$3) -> 6568 | AC49: =CEILING('Шкафы (2)'!AC49*'Доп комплектация'!$AY$1,'Доп комплектация'!$AY$3) -> 6688 | AD49: =CEILING('Шкафы (2)'!AD49*'Доп комплектация'!$AY$1,'Доп комплектация'!$AY$3) -> 6868 | AE49: =CEILING('Шкафы (2)'!AE49*'Доп комплектация'!$AY$1,'Доп комплектация'!$AY$3) -> 7968 | AF49: =CEILING('Шкафы (2)'!AF49*'Доп комплектация'!$AY$1,'Доп комплектация'!$AY$3) -> 6028 | AG49: =CEILING('Шкафы (2)'!AG49*'Доп комплектация'!$AY$1,'Доп комплектация'!$AY$3) -> 6488 | AH49: - | AI49: - | AJ49: - | AK49: * | AL49: =CEILING('Шкафы (2)'!AL49*'Доп комплектация'!$AY$1,'Доп комплектация'!$AY$3) -> 84 | AM49: =CEILING('Шкафы (2)'!AM49*'Доп комплектация'!$AY$1,'Доп комплектация'!$AY$3) -> 336 | AN49: =CEILING('Шкафы (2)'!AN49*'Доп комплектация'!$AY$1,'Доп комплектация'!$AY$3) -> 410 | AO49: =CEILING('Шкафы (2)'!AO49*'Доп комплектация'!$AY$1,'Доп комплектация'!$AY$3) -> 376 | AP49: =CEILING('Шкафы (2)'!AP49*'Доп комплектация'!$AY$1,'Доп комплектация'!$AY$3) -> 1136 | AQ49: =CEILING('Шкафы (2)'!AQ49*'Доп комплектация'!$AY$1,'Доп комплектация'!$AY$3) -> 1728 | AR49: =CEILING('Шкафы (2)'!AR49*'Доп комплектация'!$AY$1,'Доп комплектация'!$AY$3) -> 5090 | AS49: =CEILING('Шкафы (2)'!AS49*'Доп комплектация'!$AY$1,'Доп комплектация'!$AY$3) -> 1240 | AT49: * | AU49: =CEILING('Шкафы (2)'!AU49*'Доп комплектация'!$AY$1,'Доп комплектация'!$AY$3) -> 40 | AV49: =CEILING('Шкафы (2)'!AV49*'Доп комплектация'!$AY$1,'Доп комплектация'!$AY$3) -> 100 | AW49: =CEILING('Шкафы (2)'!AW49*'Доп комплектация'!$AY$1,'Доп комплектация'!$AY$3) -> 120 | AX49: =CEILING('Шкафы (2)'!AX49*'Доп комплектация'!$AY$1,'Доп комплектация'!$AY$3) -> 200 | AY49: =CEILING('Шкафы (2)'!AY49*'Доп комплектация'!$AY$1,'Доп комплектация'!$AY$3) -> 1040 | AZ49: * | BA49: =CEILING('Шкафы (2)'!BA49*'Доп комплектация'!$AY$1,'Доп комплектация'!$AY$3) -> 20 | BB49: =CEILING('Шкафы (2)'!BB49*'Доп комплектация'!$AY$1,'Доп комплектация'!$AY$3) -> 60 | BC49: =CEILING('Шкафы (2)'!BC49*'Доп комплектация'!$AY$1,'Доп комплектация'!$AY$3) -> 80 | BD49: =CEILING('Шкафы (2)'!BD49*'Доп комплектация'!$AY$1,'Доп комплектация'!$AY$3) -> 120 | BE49: L=700
D50: L=750 | E50: =CEILING('Шкафы (2)'!E50*'Доп комплектация'!$AY$1,'Доп комплектация'!$AY$3) -> 5260 | F50: =CEILING('Шкафы (2)'!F50*'Доп комплектация'!$AY$1,'Доп комплектация'!$AY$3) -> 6380 | G50: =CEILING('Шкафы (2)'!G50*'Доп комплектация'!$AY$1,'Доп комплектация'!$AY$3) -> 5420 | H50: =CEILING('Шкафы (2)'!H50*'Доп комплектация'!$AY$1,'Доп комплектация'!$AY$3) -> 6560 | I50: =CEILING('Шкафы (2)'!I50*'Доп комплектация'!$AY$1,'Доп комплектация'!$AY$3) -> 5840 | J50: =CEILING('Шкафы (2)'!J50*'Доп комплектация'!$AY$1,'Доп комплектация'!$AY$3) -> 7360 | K50: =CEILING('Шкафы (2)'!K50*'Доп комплектация'!$AY$1,'Доп комплектация'!$AY$3) -> 7860 | L50: =CEILING('Шкафы (2)'!L50*'Доп комплектация'!$AY$1,'Доп комплектация'!$AY$3) -> 0 | M50: =CEILING('Шкафы (2)'!M50*'Доп комплектация'!$AY$1,'Доп комплектация'!$AY$3) -> 8500 | N50: =CEILING('Шкафы (2)'!N50*'Доп комплектация'!$AY$1,'Доп комплектация'!$AY$3) -> 9000 | O50: =CEILING('Шкафы (2)'!O50*'Доп комплектация'!$AY$1,'Доп комплектация'!$AY$3) -> 5398 | P50: =CEILING('Шкафы (2)'!P50*'Доп комплектация'!$AY$1,'Доп комплектация'!$AY$3) -> 0 | Q50: =CEILING('Шкафы (2)'!Q50*'Доп комплектация'!$AY$1,'Доп комплектация'!$AY$3) -> 4558 | R50: =CEILING('Шкафы (2)'!R50*'Доп комплектация'!$AY$1,'Доп комплектация'!$AY$3) -> 4578 | S50: =CEILING('Шкафы (2)'!S50*'Доп комплектация'!$AY$1,'Доп комплектация'!$AY$3) -> 4658 | T50: =CEILING('Шкафы (2)'!T50*'Доп комплектация'!$AY$1,'Доп комплектация'!$AY$3) -> 4878 | U50: =CEILING('Шкафы (2)'!U50*'Доп комплектация'!$AY$1,'Доп комплектация'!$AY$3) -> 0 | V50: =CEILING('Шкафы (2)'!V50*'Доп комплектация'!$AY$1,'Доп комплектация'!$AY$3) -> 6518 | W50: =CEILING('Шкафы (2)'!W50*'Доп комплектация'!$AY$1,'Доп комплектация'!$AY$3) -> 7418 | X50: =CEILING('Шкафы (2)'!X50*'Доп комплектация'!$AY$1,'Доп комплектация'!$AY$3) -> 6898 | Y50: =CEILING('Шкафы (2)'!Y50*'Доп комплектация'!$AY$1,'Доп комплектация'!$AY$3) -> 7338 | Z50: =CEILING('Шкафы (2)'!Z50*'Доп комплектация'!$AY$1,'Доп комплектация'!$AY$3) -> 7378 | AA50: =CEILING('Шкафы (2)'!AA50*'Доп комплектация'!$AY$1,'Доп комплектация'!$AY$3) -> 8298 | AB50: =CEILING('Шкафы (2)'!AB50*'Доп комплектация'!$AY$1,'Доп комплектация'!$AY$3) -> 6718 | AC50: =CEILING('Шкафы (2)'!AC50*'Доп комплектация'!$AY$1,'Доп комплектация'!$AY$3) -> 6858 | AD50: =CEILING('Шкафы (2)'!AD50*'Доп комплектация'!$AY$1,'Доп комплектация'!$AY$3) -> 7038 | AE50: =CEILING('Шкафы (2)'!AE50*'Доп комплектация'!$AY$1,'Доп комплектация'!$AY$3) -> 8198 | AF50: =CEILING('Шкафы (2)'!AF50*'Доп комплектация'!$AY$1,'Доп комплектация'!$AY$3) -> 6218 | AG50: =CEILING('Шкафы (2)'!AG50*'Доп комплектация'!$AY$1,'Доп комплектация'!$AY$3) -> 6698 | AH50: - | AI50: - | AJ50: - | AK50: * | AL50: =CEILING('Шкафы (2)'!AL50*'Доп комплектация'!$AY$1,'Доп комплектация'!$AY$3) -> 102 | AM50: =CEILING('Шкафы (2)'!AM50*'Доп комплектация'!$AY$1,'Доп комплектация'!$AY$3) -> 402 | AN50: =CEILING('Шкафы (2)'!AN50*'Доп комплектация'!$AY$1,'Доп комплектация'!$AY$3) -> 492 | AO50: =CEILING('Шкафы (2)'!AO50*'Доп комплектация'!$AY$1,'Доп комплектация'!$AY$3) -> 450 | AP50: =CEILING('Шкафы (2)'!AP50*'Доп комплектация'!$AY$1,'Доп комплектация'!$AY$3) -> 1202 | AQ50: =CEILING('Шкафы (2)'!AQ50*'Доп комплектация'!$AY$1,'Доп комплектация'!$AY$3) -> 1970 | AR50: =CEILING('Шкафы (2)'!AR50*'Доп комплектация'!$AY$1,'Доп комплектация'!$AY$3) -> 5092 | AS50: =CEILING('Шкафы (2)'!AS50*'Доп комплектация'!$AY$1,'Доп комплектация'!$AY$3) -> 1486 | AT50: * | AU50: =CEILING('Шкафы (2)'!AU50*'Доп комплектация'!$AY$1,'Доп комплектация'!$AY$3) -> 160 | AV50: =CEILING('Шкафы (2)'!AV50*'Доп комплектация'!$AY$1,'Доп комплектация'!$AY$3) -> 340 | AW50: =CEILING('Шкафы (2)'!AW50*'Доп комплектация'!$AY$1,'Доп комплектация'!$AY$3) -> 420 | AX50: =CEILING('Шкафы (2)'!AX50*'Доп комплектация'!$AY$1,'Доп комплектация'!$AY$3) -> 660 | AY50: =CEILING('Шкафы (2)'!AY50*'Доп комплектация'!$AY$1,'Доп комплектация'!$AY$3) -> 1280 | AZ50: * | BA50: =CEILING('Шкафы (2)'!BA50*'Доп комплектация'!$AY$1,'Доп комплектация'!$AY$3) -> 40 | BB50: =CEILING('Шкафы (2)'!BB50*'Доп комплектация'!$AY$1,'Доп комплектация'!$AY$3) -> 80 | BC50: =CEILING('Шкафы (2)'!BC50*'Доп комплектация'!$AY$1,'Доп комплектация'!$AY$3) -> 100 | BD50: =CEILING('Шкафы (2)'!BD50*'Доп комплектация'!$AY$1,'Доп комплектация'!$AY$3) -> 160
D51: L=800 | E51: =CEILING('Шкафы (2)'!E51*'Доп комплектация'!$AY$1,'Доп комплектация'!$AY$3) -> 5390 | F51: =CEILING('Шкафы (2)'!F51*'Доп комплектация'!$AY$1,'Доп комплектация'!$AY$3) -> 6610 | G51: =CEILING('Шкафы (2)'!G51*'Доп комплектация'!$AY$1,'Доп комплектация'!$AY$3) -> 5590 | H51: =CEILING('Шкафы (2)'!H51*'Доп комплектация'!$AY$1,'Доп комплектация'!$AY$3) -> 6790 | I51: =CEILING('Шкафы (2)'!I51*'Доп комплектация'!$AY$1,'Доп комплектация'!$AY$3) -> 6030 | J51: =CEILING('Шкафы (2)'!J51*'Доп комплектация'!$AY$1,'Доп комплектация'!$AY$3) -> 7650 | K51: =CEILING('Шкафы (2)'!K51*'Доп комплектация'!$AY$1,'Доп комплектация'!$AY$3) -> 8190 | L51: =CEILING('Шкафы (2)'!L51*'Доп комплектация'!$AY$1,'Доп комплектация'!$AY$3) -> 0 | M51: =CEILING('Шкафы (2)'!M51*'Доп комплектация'!$AY$1,'Доп комплектация'!$AY$3) -> 8870 | N51: =CEILING('Шкафы (2)'!N51*'Доп комплектация'!$AY$1,'Доп комплектация'!$AY$3) -> 9390 | O51: =CEILING('Шкафы (2)'!O51*'Доп комплектация'!$AY$1,'Доп комплектация'!$AY$3) -> 5726 | P51: =CEILING('Шкафы (2)'!P51*'Доп комплектация'!$AY$1,'Доп комплектация'!$AY$3) -> 0 | Q51: =CEILING('Шкафы (2)'!Q51*'Доп комплектация'!$AY$1,'Доп комплектация'!$AY$3) -> 4646 | R51: =CEILING('Шкафы (2)'!R51*'Доп комплектация'!$AY$1,'Доп комплектация'!$AY$3) -> 4666 | S51: =CEILING('Шкафы (2)'!S51*'Доп комплектация'!$AY$1,'Доп комплектация'!$AY$3) -> 4766 | T51: =CEILING('Шкафы (2)'!T51*'Доп комплектация'!$AY$1,'Доп комплектация'!$AY$3) -> 4986 | U51: =CEILING('Шкафы (2)'!U51*'Доп комплектация'!$AY$1,'Доп комплектация'!$AY$3) -> 0 | V51: =CEILING('Шкафы (2)'!V51*'Доп комплектация'!$AY$1,'Доп комплектация'!$AY$3) -> 6726 | W51: =CEILING('Шкафы (2)'!W51*'Доп комплектация'!$AY$1,'Доп комплектация'!$AY$3) -> 7666 | X51: =CEILING('Шкафы (2)'!X51*'Доп комплектация'!$AY$1,'Доп комплектация'!$AY$3) -> 7126 | Y51: =CEILING('Шкафы (2)'!Y51*'Доп комплектация'!$AY$1,'Доп комплектация'!$AY$3) -> 7606 | Z51: =CEILING('Шкафы (2)'!Z51*'Доп комплектация'!$AY$1,'Доп комплектация'!$AY$3) -> 7786 | AA51: =CEILING('Шкафы (2)'!AA51*'Доп комплектация'!$AY$1,'Доп комплектация'!$AY$3) -> 8626 | AB51: =CEILING('Шкафы (2)'!AB51*'Доп комплектация'!$AY$1,'Доп комплектация'!$AY$3) -> 7106 | AC51: =CEILING('Шкафы (2)'!AC51*'Доп комплектация'!$AY$1,'Доп комплектация'!$AY$3) -> 7266 | AD51: =CEILING('Шкафы (2)'!AD51*'Доп комплектация'!$AY$1,'Доп комплектация'!$AY$3) -> 7446 | AE51: =CEILING('Шкафы (2)'!AE51*'Доп комплектация'!$AY$1,'Доп комплектация'!$AY$3) -> 8666 | AF51: =CEILING('Шкафы (2)'!AF51*'Доп комплектация'!$AY$1,'Доп комплектация'!$AY$3) -> 6406 | AG51: =CEILING('Шкафы (2)'!AG51*'Доп комплектация'!$AY$1,'Доп комплектация'!$AY$3) -> 6926 | AH51: - | AI51: - | AJ51: - | AK51: * | AL51: =CEILING('Шкафы (2)'!AL51*'Доп комплектация'!$AY$1,'Доп комплектация'!$AY$3) -> 102 | AM51: =CEILING('Шкафы (2)'!AM51*'Доп комплектация'!$AY$1,'Доп комплектация'!$AY$3) -> 402 | AN51: =CEILING('Шкафы (2)'!AN51*'Доп комплектация'!$AY$1,'Доп комплектация'!$AY$3) -> 492 | AO51: =CEILING('Шкафы (2)'!AO51*'Доп комплектация'!$AY$1,'Доп комплектация'!$AY$3) -> 450 | AP51: =CEILING('Шкафы (2)'!AP51*'Доп комплектация'!$AY$1,'Доп комплектация'!$AY$3) -> 1202 | AQ51: =CEILING('Шкафы (2)'!AQ51*'Доп комплектация'!$AY$1,'Доп комплектация'!$AY$3) -> 1970 | AR51: =CEILING('Шкафы (2)'!AR51*'Доп комплектация'!$AY$1,'Доп комплектация'!$AY$3) -> 5092 | AS51: =CEILING('Шкафы (2)'!AS51*'Доп комплектация'!$AY$1,'Доп комплектация'!$AY$3) -> 1486 | AT51: * | AU51: =CEILING('Шкафы (2)'!AU51*'Доп комплектация'!$AY$1,'Доп комплектация'!$AY$3) -> 160 | AV51: =CEILING('Шкафы (2)'!AV51*'Доп комплектация'!$AY$1,'Доп комплектация'!$AY$3) -> 340 | AW51: =CEILING('Шкафы (2)'!AW51*'Доп комплектация'!$AY$1,'Доп комплектация'!$AY$3) -> 420 | AX51: =CEILING('Шкафы (2)'!AX51*'Доп комплектация'!$AY$1,'Доп комплектация'!$AY$3) -> 660 | AY51: =CEILING('Шкафы (2)'!AY51*'Доп комплектация'!$AY$1,'Доп комплектация'!$AY$3) -> 1280 | AZ51: * | BA51: =CEILING('Шкафы (2)'!BA51*'Доп комплектация'!$AY$1,'Доп комплектация'!$AY$3) -> 40 | BB51: =CEILING('Шкафы (2)'!BB51*'Доп комплектация'!$AY$1,'Доп комплектация'!$AY$3) -> 80 | BC51: =CEILING('Шкафы (2)'!BC51*'Доп комплектация'!$AY$1,'Доп комплектация'!$AY$3) -> 100 | BD51: =CEILING('Шкафы (2)'!BD51*'Доп комплектация'!$AY$1,'Доп комплектация'!$AY$3) -> 160 | BE51: L=800
D52: L=850 | E52: =CEILING('Шкафы (2)'!E52*'Доп комплектация'!$AY$1,'Доп комплектация'!$AY$3) -> 5544 | F52: =CEILING('Шкафы (2)'!F52*'Доп комплектация'!$AY$1,'Доп комплектация'!$AY$3) -> 6824 | G52: =CEILING('Шкафы (2)'!G52*'Доп комплектация'!$AY$1,'Доп комплектация'!$AY$3) -> 5744 | H52: =CEILING('Шкафы (2)'!H52*'Доп комплектация'!$AY$1,'Доп комплектация'!$AY$3) -> 7024 | I52: =CEILING('Шкафы (2)'!I52*'Доп комплектация'!$AY$1,'Доп комплектация'!$AY$3) -> 6224 | J52: =CEILING('Шкафы (2)'!J52*'Доп комплектация'!$AY$1,'Доп комплектация'!$AY$3) -> 7944 | K52: =CEILING('Шкафы (2)'!K52*'Доп комплектация'!$AY$1,'Доп комплектация'!$AY$3) -> 8504 | L52: =CEILING('Шкафы (2)'!L52*'Доп комплектация'!$AY$1,'Доп комплектация'!$AY$3) -> 0 | M52: =CEILING('Шкафы (2)'!M52*'Доп комплектация'!$AY$1,'Доп комплектация'!$AY$3) -> 9224 | N52: =CEILING('Шкафы (2)'!N52*'Доп комплектация'!$AY$1,'Доп комплектация'!$AY$3) -> 9784 | O52: =CEILING('Шкафы (2)'!O52*'Доп комплектация'!$AY$1,'Доп комплектация'!$AY$3) -> 5596 | P52: =CEILING('Шкафы (2)'!P52*'Доп комплектация'!$AY$1,'Доп комплектация'!$AY$3) -> 0 | Q52: =CEILING('Шкафы (2)'!Q52*'Доп комплектация'!$AY$1,'Доп комплектация'!$AY$3) -> 4736 | R52: =CEILING('Шкафы (2)'!R52*'Доп комплектация'!$AY$1,'Доп комплектация'!$AY$3) -> 4756 | S52: =CEILING('Шкафы (2)'!S52*'Доп комплектация'!$AY$1,'Доп комплектация'!$AY$3) -> 4856 | T52: =CEILING('Шкафы (2)'!T52*'Доп комплектация'!$AY$1,'Доп комплектация'!$AY$3) -> 5096 | U52: =CEILING('Шкафы (2)'!U52*'Доп комплектация'!$AY$1,'Доп комплектация'!$AY$3) -> 0 | V52: =CEILING('Шкафы (2)'!V52*'Доп комплектация'!$AY$1,'Доп комплектация'!$AY$3) -> 6936 | W52: =CEILING('Шкафы (2)'!W52*'Доп комплектация'!$AY$1,'Доп комплектация'!$AY$3) -> 7916 | X52: =CEILING('Шкафы (2)'!X52*'Доп комплектация'!$AY$1,'Доп комплектация'!$AY$3) -> 7356 | Y52: =CEILING('Шкафы (2)'!Y52*'Доп комплектация'!$AY$1,'Доп комплектация'!$AY$3) -> 7856 | Z52: =CEILING('Шкафы (2)'!Z52*'Доп комплектация'!$AY$1,'Доп комплектация'!$AY$3) -> 7736 | AA52: =CEILING('Шкафы (2)'!AA52*'Доп комплектация'!$AY$1,'Доп комплектация'!$AY$3) -> 8936 | AB52: =CEILING('Шкафы (2)'!AB52*'Доп комплектация'!$AY$1,'Доп комплектация'!$AY$3) -> 7036 | AC52: =CEILING('Шкафы (2)'!AC52*'Доп комплектация'!$AY$1,'Доп комплектация'!$AY$3) -> 7196 | AD52: =CEILING('Шкафы (2)'!AD52*'Доп комплектация'!$AY$1,'Доп комплектация'!$AY$3) -> 7396 | AE52: =CEILING('Шкафы (2)'!AE52*'Доп комплектация'!$AY$1,'Доп комплектация'!$AY$3) -> 8656 | AF52: =CEILING('Шкафы (2)'!AF52*'Доп комплектация'!$AY$1,'Доп комплектация'!$AY$3) -> 6596 | AG52: =CEILING('Шкафы (2)'!AG52*'Доп комплектация'!$AY$1,'Доп комплектация'!$AY$3) -> 7136 | AH52: - | AI52: - | AJ52: - | AK52: * | AL52: =CEILING('Шкафы (2)'!AL52*'Доп комплектация'!$AY$1,'Доп комплектация'!$AY$3) -> 102 | AM52: =CEILING('Шкафы (2)'!AM52*'Доп комплектация'!$AY$1,'Доп комплектация'!$AY$3) -> 402 | AN52: =CEILING('Шкафы (2)'!AN52*'Доп комплектация'!$AY$1,'Доп комплектация'!$AY$3) -> 492 | AO52: =CEILING('Шкафы (2)'!AO52*'Доп комплектация'!$AY$1,'Доп комплектация'!$AY$3) -> 450 | AP52: =CEILING('Шкафы (2)'!AP52*'Доп комплектация'!$AY$1,'Доп комплектация'!$AY$3) -> 1202 | AQ52: =CEILING('Шкафы (2)'!AQ52*'Доп комплектация'!$AY$1,'Доп комплектация'!$AY$3) -> 1970 | AR52: =CEILING('Шкафы (2)'!AR52*'Доп комплектация'!$AY$1,'Доп комплектация'!$AY$3) -> 5092 | AS52: =CEILING('Шкафы (2)'!AS52*'Доп комплектация'!$AY$1,'Доп комплектация'!$AY$3) -> 1486 | AT52: * | AU52: =CEILING('Шкафы (2)'!AU52*'Доп комплектация'!$AY$1,'Доп комплектация'!$AY$3) -> 160 | AV52: =CEILING('Шкафы (2)'!AV52*'Доп комплектация'!$AY$1,'Доп комплектация'!$AY$3) -> 340 | AW52: =CEILING('Шкафы (2)'!AW52*'Доп комплектация'!$AY$1,'Доп комплектация'!$AY$3) -> 420 | AX52: =CEILING('Шкафы (2)'!AX52*'Доп комплектация'!$AY$1,'Доп комплектация'!$AY$3) -> 660 | AY52: =CEILING('Шкафы (2)'!AY52*'Доп комплектация'!$AY$1,'Доп комплектация'!$AY$3) -> 1280 | AZ52: * | BA52: =CEILING('Шкафы (2)'!BA52*'Доп комплектация'!$AY$1,'Доп комплектация'!$AY$3) -> 40 | BB52: =CEILING('Шкафы (2)'!BB52*'Доп комплектация'!$AY$1,'Доп комплектация'!$AY$3) -> 80 | BC52: =CEILING('Шкафы (2)'!BC52*'Доп комплектация'!$AY$1,'Доп комплектация'!$AY$3) -> 100 | BD52: =CEILING('Шкафы (2)'!BD52*'Доп комплектация'!$AY$1,'Доп комплектация'!$AY$3) -> 160
D53: L=900 | E53: =CEILING('Шкафы (2)'!E53*'Доп комплектация'!$AY$1,'Доп комплектация'!$AY$3) -> 5694 | F53: =CEILING('Шкафы (2)'!F53*'Доп комплектация'!$AY$1,'Доп комплектация'!$AY$3) -> 7054 | G53: =CEILING('Шкафы (2)'!G53*'Доп комплектация'!$AY$1,'Доп комплектация'!$AY$3) -> 5894 | H53: =CEILING('Шкафы (2)'!H53*'Доп комплектация'!$AY$1,'Доп комплектация'!$AY$3) -> 7254 | I53: =CEILING('Шкафы (2)'!I53*'Доп комплектация'!$AY$1,'Доп комплектация'!$AY$3) -> 6414 | J53: =CEILING('Шкафы (2)'!J53*'Доп комплектация'!$AY$1,'Доп комплектация'!$AY$3) -> 8234 | K53: =CEILING('Шкафы (2)'!K53*'Доп комплектация'!$AY$1,'Доп комплектация'!$AY$3) -> 8834 | L53: =CEILING('Шкафы (2)'!L53*'Доп комплектация'!$AY$1,'Доп комплектация'!$AY$3) -> 0 | M53: =CEILING('Шкафы (2)'!M53*'Доп комплектация'!$AY$1,'Доп комплектация'!$AY$3) -> 9594 | N53: =CEILING('Шкафы (2)'!N53*'Доп комплектация'!$AY$1,'Доп комплектация'!$AY$3) -> 10194 | O53: =CEILING('Шкафы (2)'!O53*'Доп комплектация'!$AY$1,'Доп комплектация'!$AY$3) -> 5684 | P53: =CEILING('Шкафы (2)'!P53*'Доп комплектация'!$AY$1,'Доп комплектация'!$AY$3) -> 0 | Q53: =CEILING('Шкафы (2)'!Q53*'Доп комплектация'!$AY$1,'Доп комплектация'!$AY$3) -> 4824 | R53: =CEILING('Шкафы (2)'!R53*'Доп комплектация'!$AY$1,'Доп комплектация'!$AY$3) -> 4864 | S53: =CEILING('Шкафы (2)'!S53*'Доп комплектация'!$AY$1,'Доп комплектация'!$AY$3) -> 4964 | T53: =CEILING('Шкафы (2)'!T53*'Доп комплектация'!$AY$1,'Доп комплектация'!$AY$3) -> 5224 | U53: =CEILING('Шкафы (2)'!U53*'Доп комплектация'!$AY$1,'Доп комплектация'!$AY$3) -> 0 | V53: =CEILING('Шкафы (2)'!V53*'Доп комплектация'!$AY$1,'Доп комплектация'!$AY$3) -> 7144 | W53: =CEILING('Шкафы (2)'!W53*'Доп комплектация'!$AY$1,'Доп комплектация'!$AY$3) -> 8184 | X53: =CEILING('Шкафы (2)'!X53*'Доп комплектация'!$AY$1,'Доп комплектация'!$AY$3) -> 7604 | Y53: =CEILING('Шкафы (2)'!Y53*'Доп комплектация'!$AY$1,'Доп комплектация'!$AY$3) -> 8124 | Z53: =CEILING('Шкафы (2)'!Z53*'Доп комплектация'!$AY$1,'Доп комплектация'!$AY$3) -> 7924 | AA53: =CEILING('Шкафы (2)'!AA53*'Доп комплектация'!$AY$1,'Доп комплектация'!$AY$3) -> 9264 | AB53: =CEILING('Шкафы (2)'!AB53*'Доп комплектация'!$AY$1,'Доп комплектация'!$AY$3) -> 7204 | AC53: =CEILING('Шкафы (2)'!AC53*'Доп комплектация'!$AY$1,'Доп комплектация'!$AY$3) -> 7364 | AD53: =CEILING('Шкафы (2)'!AD53*'Доп комплектация'!$AY$1,'Доп комплектация'!$AY$3) -> 7564 | AE53: =CEILING('Шкафы (2)'!AE53*'Доп комплектация'!$AY$1,'Доп комплектация'!$AY$3) -> 8864 | AF53: =CEILING('Шкафы (2)'!AF53*'Доп комплектация'!$AY$1,'Доп комплектация'!$AY$3) -> 6784 | AG53: =CEILING('Шкафы (2)'!AG53*'Доп комплектация'!$AY$1,'Доп комплектация'!$AY$3) -> 7364 | AH53: - | AI53: - | AJ53: - | AK53: * | AL53: =CEILING('Шкафы (2)'!AL53*'Доп комплектация'!$AY$1,'Доп комплектация'!$AY$3) -> 102 | AM53: =CEILING('Шкафы (2)'!AM53*'Доп комплектация'!$AY$1,'Доп комплектация'!$AY$3) -> 402 | AN53: =CEILING('Шкафы (2)'!AN53*'Доп комплектация'!$AY$1,'Доп комплектация'!$AY$3) -> 492 | AO53: =CEILING('Шкафы (2)'!AO53*'Доп комплектация'!$AY$1,'Доп комплектация'!$AY$3) -> 450 | AP53: =CEILING('Шкафы (2)'!AP53*'Доп комплектация'!$AY$1,'Доп комплектация'!$AY$3) -> 1202 | AQ53: =CEILING('Шкафы (2)'!AQ53*'Доп комплектация'!$AY$1,'Доп комплектация'!$AY$3) -> 1970 | AR53: =CEILING('Шкафы (2)'!AR53*'Доп комплектация'!$AY$1,'Доп комплектация'!$AY$3) -> 5092 | AS53: =CEILING('Шкафы (2)'!AS53*'Доп комплектация'!$AY$1,'Доп комплектация'!$AY$3) -> 1486 | AT53: * | AU53: =CEILING('Шкафы (2)'!AU53*'Доп комплектация'!$AY$1,'Доп комплектация'!$AY$3) -> 160 | AV53: =CEILING('Шкафы (2)'!AV53*'Доп комплектация'!$AY$1,'Доп комплектация'!$AY$3) -> 340 | AW53: =CEILING('Шкафы (2)'!AW53*'Доп комплектация'!$AY$1,'Доп комплектация'!$AY$3) -> 420 | AX53: =CEILING('Шкафы (2)'!AX53*'Доп комплектация'!$AY$1,'Доп комплектация'!$AY$3) -> 660 | AY53: =CEILING('Шкафы (2)'!AY53*'Доп комплектация'!$AY$1,'Доп комплектация'!$AY$3) -> 1280 | AZ53: * | BA53: =CEILING('Шкафы (2)'!BA53*'Доп комплектация'!$AY$1,'Доп комплектация'!$AY$3) -> 40 | BB53: =CEILING('Шкафы (2)'!BB53*'Доп комплектация'!$AY$1,'Доп комплектация'!$AY$3) -> 80 | BC53: =CEILING('Шкафы (2)'!BC53*'Доп комплектация'!$AY$1,'Доп комплектация'!$AY$3) -> 100 | BD53: =CEILING('Шкафы (2)'!BD53*'Доп комплектация'!$AY$1,'Доп комплектация'!$AY$3) -> 160
C54: Шкаф 1дв Н=460 | D54: L-300 | E54: =CEILING('Шкафы (2)'!E54*'Доп комплектация'!$AY$1,'Доп комплектация'!$AY$3) -> 3080 | F54: =CEILING('Шкафы (2)'!F54*'Доп комплектация'!$AY$1,'Доп комплектация'!$AY$3) -> 3600 | G54: =CEILING('Шкафы (2)'!G54*'Доп комплектация'!$AY$1,'Доп комплектация'!$AY$3) -> 3160 | H54: =CEILING('Шкафы (2)'!H54*'Доп комплектация'!$AY$1,'Доп комплектация'!$AY$3) -> 3680 | I54: =CEILING('Шкафы (2)'!I54*'Доп комплектация'!$AY$1,'Доп комплектация'!$AY$3) -> 3360 | J54: =CEILING('Шкафы (2)'!J54*'Доп комплектация'!$AY$1,'Доп комплектация'!$AY$3) -> 4050 | K54: =CEILING('Шкафы (2)'!K54*'Доп комплектация'!$AY$1,'Доп комплектация'!$AY$3) -> 4280 | L54: =CEILING('Шкафы (2)'!L54*'Доп комплектация'!$AY$1,'Доп комплектация'!$AY$3) -> 0 | M54: =CEILING('Шкафы (2)'!M54*'Доп комплектация'!$AY$1,'Доп комплектация'!$AY$3) -> 4570 | N54: =CEILING('Шкафы (2)'!N54*'Доп комплектация'!$AY$1,'Доп комплектация'!$AY$3) -> 4800 | O54: =CEILING('Шкафы (2)'!O54*'Доп комплектация'!$AY$1,'Доп комплектация'!$AY$3) -> 3300 | P54: =CEILING('Шкафы (2)'!P54*'Доп комплектация'!$AY$1,'Доп комплектация'!$AY$3) -> 0 | Q54: =CEILING('Шкафы (2)'!Q54*'Доп комплектация'!$AY$1,'Доп комплектация'!$AY$3) -> 2850 | R54: =CEILING('Шкафы (2)'!R54*'Доп комплектация'!$AY$1,'Доп комплектация'!$AY$3) -> 2860 | S54: =CEILING('Шкафы (2)'!S54*'Доп комплектация'!$AY$1,'Доп комплектация'!$AY$3) -> 2900 | T54: =CEILING('Шкафы (2)'!T54*'Доп комплектация'!$AY$1,'Доп комплектация'!$AY$3) -> 3010 | U54: =CEILING('Шкафы (2)'!U54*'Доп комплектация'!$AY$1,'Доп комплектация'!$AY$3) -> 0 | V54: =CEILING('Шкафы (2)'!V54*'Доп комплектация'!$AY$1,'Доп комплектация'!$AY$3) -> 3690 | W54: =CEILING('Шкафы (2)'!W54*'Доп комплектация'!$AY$1,'Доп комплектация'!$AY$3) -> 3970 | X54: =CEILING('Шкафы (2)'!X54*'Доп комплектация'!$AY$1,'Доп комплектация'!$AY$3) -> 3870 | Y54: =CEILING('Шкафы (2)'!Y54*'Доп комплектация'!$AY$1,'Доп комплектация'!$AY$3) -> 4090 | Z54: =CEILING('Шкафы (2)'!Z54*'Доп комплектация'!$AY$1,'Доп комплектация'!$AY$3) -> 4530 | AA54: =CEILING('Шкафы (2)'!AA54*'Доп комплектация'!$AY$1,'Доп комплектация'!$AY$3) -> 4510 | AB54: =CEILING('Шкафы (2)'!AB54*'Доп комплектация'!$AY$1,'Доп комплектация'!$AY$3) -> 3740 | AC54: =CEILING('Шкафы (2)'!AC54*'Доп комплектация'!$AY$1,'Доп комплектация'!$AY$3) -> 3830 | AD54: =CEILING('Шкафы (2)'!AD54*'Доп комплектация'!$AY$1,'Доп комплектация'!$AY$3) -> 3940 | AE54: =CEILING('Шкафы (2)'!AE54*'Доп комплектация'!$AY$1,'Доп комплектация'!$AY$3) -> 4680 | AF54: =CEILING('Шкафы (2)'!AF54*'Доп комплектация'!$AY$1,'Доп комплектация'!$AY$3) -> 3540 | AG54: =CEILING('Шкафы (2)'!AG54*'Доп комплектация'!$AY$1,'Доп комплектация'!$AY$3) -> 3780 | AH54: =CEILING('Шкафы (2)'!AH54*'Доп комплектация'!$AY$1,'Доп комплектация'!$AY$3) -> 0 | AI54: =CEILING('Шкафы (2)'!AI54*'Доп комплектация'!$AY$1,'Доп комплектация'!$AY$3) -> 3390 | AJ54: =CEILING('Шкафы (2)'!AJ54*'Доп комплектация'!$AY$1,'Доп комплектация'!$AY$3) -> 3790 | AK54: - | AL54: - | AM54: - | AN54: - | AO54: - | AP54: - | AQ54: - | AR54: - | AS54: - | AT54: - | AU54: - | AV54: - | AW54: - | AX54: - | AY54: - | AZ54: - | BA54: - | BB54: - | BC54: - | BD54: -
D55: L-350 | E55: =CEILING('Шкафы (2)'!E55*'Доп комплектация'!$AY$1,'Доп комплектация'!$AY$3) -> 3220 | F55: =CEILING('Шкафы (2)'!F55*'Доп комплектация'!$AY$1,'Доп комплектация'!$AY$3) -> 3830 | G55: =CEILING('Шкафы (2)'!G55*'Доп комплектация'!$AY$1,'Доп комплектация'!$AY$3) -> 3310 | H55: =CEILING('Шкафы (2)'!H55*'Доп комплектация'!$AY$1,'Доп комплектация'!$AY$3) -> 3920 | I55: =CEILING('Шкафы (2)'!I55*'Доп комплектация'!$AY$1,'Доп комплектация'!$AY$3) -> 3540 | J55: =CEILING('Шкафы (2)'!J55*'Доп комплектация'!$AY$1,'Доп комплектация'!$AY$3) -> 4350 | K55: =CEILING('Шкафы (2)'!K55*'Доп комплектация'!$AY$1,'Доп комплектация'!$AY$3) -> 4620 | L55: =CEILING('Шкафы (2)'!L55*'Доп комплектация'!$AY$1,'Доп комплектация'!$AY$3) -> 0 | M55: =CEILING('Шкафы (2)'!M55*'Доп комплектация'!$AY$1,'Доп комплектация'!$AY$3) -> 4960 | N55: =CEILING('Шкафы (2)'!N55*'Доп комплектация'!$AY$1,'Доп комплектация'!$AY$3) -> 5230 | O55: =CEILING('Шкафы (2)'!O55*'Доп комплектация'!$AY$1,'Доп комплектация'!$AY$3) -> 3380 | P55: =CEILING('Шкафы (2)'!P55*'Доп комплектация'!$AY$1,'Доп комплектация'!$AY$3) -> 0 | Q55: =CEILING('Шкафы (2)'!Q55*'Доп комплектация'!$AY$1,'Доп комплектация'!$AY$3) -> 2950 | R55: =CEILING('Шкафы (2)'!R55*'Доп комплектация'!$AY$1,'Доп комплектация'!$AY$3) -> 2960 | S55: =CEILING('Шкафы (2)'!S55*'Доп комплектация'!$AY$1,'Доп комплектация'!$AY$3) -> 3010 | T55: =CEILING('Шкафы (2)'!T55*'Доп комплектация'!$AY$1,'Доп комплектация'!$AY$3) -> 3130 | U55: =CEILING('Шкафы (2)'!U55*'Доп комплектация'!$AY$1,'Доп комплектация'!$AY$3) -> 0 | V55: =CEILING('Шкафы (2)'!V55*'Доп комплектация'!$AY$1,'Доп комплектация'!$AY$3) -> 3900 | W55: =CEILING('Шкафы (2)'!W55*'Доп комплектация'!$AY$1,'Доп комплектация'!$AY$3) -> 4200 | X55: =CEILING('Шкафы (2)'!X55*'Доп комплектация'!$AY$1,'Доп комплектация'!$AY$3) -> 4110 | Y55: =CEILING('Шкафы (2)'!Y55*'Доп комплектация'!$AY$1,'Доп комплектация'!$AY$3) -> 4370 | Z55: =CEILING('Шкафы (2)'!Z55*'Доп комплектация'!$AY$1,'Доп комплектация'!$AY$3) -> 4780 | AA55: =CEILING('Шкафы (2)'!AA55*'Доп комплектация'!$AY$1,'Доп комплектация'!$AY$3) -> 4850 | AB55: =CEILING('Шкафы (2)'!AB55*'Доп комплектация'!$AY$1,'Доп комплектация'!$AY$3) -> 3960 | AC55: =CEILING('Шкафы (2)'!AC55*'Доп комплектация'!$AY$1,'Доп комплектация'!$AY$3) -> 4070 | AD55: =CEILING('Шкафы (2)'!AD55*'Доп комплектация'!$AY$1,'Доп комплектация'!$AY$3) -> 4200 | AE55: =CEILING('Шкафы (2)'!AE55*'Доп комплектация'!$AY$1,'Доп комплектация'!$AY$3) -> 5060 | AF55: =CEILING('Шкафы (2)'!AF55*'Доп комплектация'!$AY$1,'Доп комплектация'!$AY$3) -> 3720 | AG55: =CEILING('Шкафы (2)'!AG55*'Доп комплектация'!$AY$1,'Доп комплектация'!$AY$3) -> 4000 | AH55: =CEILING('Шкафы (2)'!AH55*'Доп комплектация'!$AY$1,'Доп комплектация'!$AY$3) -> 0 | AI55: =CEILING('Шкафы (2)'!AI55*'Доп комплектация'!$AY$1,'Доп комплектация'!$AY$3) -> 3560 | AJ55: =CEILING('Шкафы (2)'!AJ55*'Доп комплектация'!$AY$1,'Доп комплектация'!$AY$3) -> 4030 | AK55: - | AL55: - | AM55: - | AN55: - | AO55: - | AP55: - | AQ55: - | AR55: - | AS55: - | AT55: - | AU55: - | AV55: - | AW55: - | AX55: - | AY55: - | AZ55: - | BA55: - | BB55: - | BC55: - | BD55: -
D56: L-400 | E56: =CEILING('Шкафы (2)'!E56*'Доп комплектация'!$AY$1,'Доп комплектация'!$AY$3) -> 3350 | F56: =CEILING('Шкафы (2)'!F56*'Доп комплектация'!$AY$1,'Доп комплектация'!$AY$3) -> 4050 | G56: =CEILING('Шкафы (2)'!G56*'Доп комплектация'!$AY$1,'Доп комплектация'!$AY$3) -> 3460 | H56: =CEILING('Шкафы (2)'!H56*'Доп комплектация'!$AY$1,'Доп комплектация'!$AY$3) -> 4150 | I56: =CEILING('Шкафы (2)'!I56*'Доп комплектация'!$AY$1,'Доп комплектация'!$AY$3) -> 3720 | J56: =CEILING('Шкафы (2)'!J56*'Доп комплектация'!$AY$1,'Доп комплектация'!$AY$3) -> 4650 | K56: =CEILING('Шкафы (2)'!K56*'Доп комплектация'!$AY$1,'Доп комплектация'!$AY$3) -> 4960 | L56: =CEILING('Шкафы (2)'!L56*'Доп комплектация'!$AY$1,'Доп комплектация'!$AY$3) -> 0 | M56: =CEILING('Шкафы (2)'!M56*'Доп комплектация'!$AY$1,'Доп комплектация'!$AY$3) -> 5350 | N56: =CEILING('Шкафы (2)'!N56*'Доп комплектация'!$AY$1,'Доп комплектация'!$AY$3) -> 5650 | O56: =CEILING('Шкафы (2)'!O56*'Доп комплектация'!$AY$1,'Доп комплектация'!$AY$3) -> 3480 | P56: =CEILING('Шкафы (2)'!P56*'Доп комплектация'!$AY$1,'Доп комплектация'!$AY$3) -> 0 | Q56: =CEILING('Шкафы (2)'!Q56*'Доп комплектация'!$AY$1,'Доп комплектация'!$AY$3) -> 3040 | R56: =CEILING('Шкафы (2)'!R56*'Доп комплектация'!$AY$1,'Доп комплектация'!$AY$3) -> 3060 | S56: =CEILING('Шкафы (2)'!S56*'Доп комплектация'!$AY$1,'Доп комплектация'!$AY$3) -> 3110 | T56: =CEILING('Шкафы (2)'!T56*'Доп комплектация'!$AY$1,'Доп комплектация'!$AY$3) -> 3260 | U56: =CEILING('Шкафы (2)'!U56*'Доп комплектация'!$AY$1,'Доп комплектация'!$AY$3) -> 0 | V56: =CEILING('Шкафы (2)'!V56*'Доп комплектация'!$AY$1,'Доп комплектация'!$AY$3) -> 4110 | W56: =CEILING('Шкафы (2)'!W56*'Доп комплектация'!$AY$1,'Доп комплектация'!$AY$3) -> 4430 | X56: =CEILING('Шкафы (2)'!X56*'Доп комплектация'!$AY$1,'Доп комплектация'!$AY$3) -> 4360 | Y56: =CEILING('Шкафы (2)'!Y56*'Доп комплектация'!$AY$1,'Доп комплектация'!$AY$3) -> 4650 | Z56: =CEILING('Шкафы (2)'!Z56*'Доп комплектация'!$AY$1,'Доп комплектация'!$AY$3) -> 5050 | AA56: =CEILING('Шкафы (2)'!AA56*'Доп комплектация'!$AY$1,'Доп комплектация'!$AY$3) -> 5190 | AB56: =CEILING('Шкафы (2)'!AB56*'Доп комплектация'!$AY$1,'Доп комплектация'!$AY$3) -> 4180 | AC56: =CEILING('Шкафы (2)'!AC56*'Доп комплектация'!$AY$1,'Доп комплектация'!$AY$3) -> 4300 | AD56: =CEILING('Шкафы (2)'!AD56*'Доп комплектация'!$AY$1,'Доп комплектация'!$AY$3) -> 4460 | AE56: =CEILING('Шкафы (2)'!AE56*'Доп комплектация'!$AY$1,'Доп комплектация'!$AY$3) -> 5440 | AF56: =CEILING('Шкафы (2)'!AF56*'Доп комплектация'!$AY$1,'Доп комплектация'!$AY$3) -> 3910 | AG56: =CEILING('Шкафы (2)'!AG56*'Доп комплектация'!$AY$1,'Доп комплектация'!$AY$3) -> 4230 | AH56: =CEILING('Шкафы (2)'!AH56*'Доп комплектация'!$AY$1,'Доп комплектация'!$AY$3) -> 0 | AI56: =CEILING('Шкафы (2)'!AI56*'Доп комплектация'!$AY$1,'Доп комплектация'!$AY$3) -> 3740 | AJ56: =CEILING('Шкафы (2)'!AJ56*'Доп комплектация'!$AY$1,'Доп комплектация'!$AY$3) -> 4270 | AK56: - | AL56: - | AM56: - | AN56: - | AO56: - | AP56: - | AQ56: - | AR56: - | AS56: - | AT56: - | AU56: - | AV56: - | AW56: - | AX56: - | AY56: - | AZ56: - | BA56: - | BB56: - | BC56: - | BD56: - | BE56: Н=400
D57: L-450 | E57: =CEILING('Шкафы (2)'!E57*'Доп комплектация'!$AY$1,'Доп комплектация'!$AY$3) -> 3490 | F57: =CEILING('Шкафы (2)'!F57*'Доп комплектация'!$AY$1,'Доп комплектация'!$AY$3) -> 4270 | G57: =CEILING('Шкафы (2)'!G57*'Доп комплектация'!$AY$1,'Доп комплектация'!$AY$3) -> 3610 | H57: =CEILING('Шкафы (2)'!H57*'Доп комплектация'!$AY$1,'Доп комплектация'!$AY$3) -> 4390 | I57: =CEILING('Шкафы (2)'!I57*'Доп комплектация'!$AY$1,'Доп комплектация'!$AY$3) -> 3900 | J57: =CEILING('Шкафы (2)'!J57*'Доп комплектация'!$AY$1,'Доп комплектация'!$AY$3) -> 4950 | K57: =CEILING('Шкафы (2)'!K57*'Доп комплектация'!$AY$1,'Доп комплектация'!$AY$3) -> 5290 | L57: =CEILING('Шкафы (2)'!L57*'Доп комплектация'!$AY$1,'Доп комплектация'!$AY$3) -> 0 | M57: =CEILING('Шкафы (2)'!M57*'Доп комплектация'!$AY$1,'Доп комплектация'!$AY$3) -> 5730 | N57: =CEILING('Шкафы (2)'!N57*'Доп комплектация'!$AY$1,'Доп комплектация'!$AY$3) -> 6080 | O57: =CEILING('Шкафы (2)'!O57*'Доп комплектация'!$AY$1,'Доп комплектация'!$AY$3) -> 3570 | P57: =CEILING('Шкафы (2)'!P57*'Доп комплектация'!$AY$1,'Доп комплектация'!$AY$3) -> 0 | Q57: =CEILING('Шкафы (2)'!Q57*'Доп комплектация'!$AY$1,'Доп комплектация'!$AY$3) -> 3140 | R57: =CEILING('Шкафы (2)'!R57*'Доп комплектация'!$AY$1,'Доп комплектация'!$AY$3) -> 3160 | S57: =CEILING('Шкафы (2)'!S57*'Доп комплектация'!$AY$1,'Доп комплектация'!$AY$3) -> 3220 | T57: =CEILING('Шкафы (2)'!T57*'Доп комплектация'!$AY$1,'Доп комплектация'!$AY$3) -> 3380 | U57: =CEILING('Шкафы (2)'!U57*'Доп комплектация'!$AY$1,'Доп комплектация'!$AY$3) -> 0 | V57: =CEILING('Шкафы (2)'!V57*'Доп комплектация'!$AY$1,'Доп комплектация'!$AY$3) -> 4320 | W57: =CEILING('Шкафы (2)'!W57*'Доп комплектация'!$AY$1,'Доп комплектация'!$AY$3) -> 4660 | X57: =CEILING('Шкафы (2)'!X57*'Доп комплектация'!$AY$1,'Доп комплектация'!$AY$3) -> 4600 | Y57: =CEILING('Шкафы (2)'!Y57*'Доп комплектация'!$AY$1,'Доп комплектация'!$AY$3) -> 4930 | Z57: =CEILING('Шкафы (2)'!Z57*'Доп комплектация'!$AY$1,'Доп комплектация'!$AY$3) -> 5320 | AA57: =CEILING('Шкафы (2)'!AA57*'Доп комплектация'!$AY$1,'Доп комплектация'!$AY$3) -> 5530 | AB57: =CEILING('Шкафы (2)'!AB57*'Доп комплектация'!$AY$1,'Доп комплектация'!$AY$3) -> 4400 | AC57: =CEILING('Шкафы (2)'!AC57*'Доп комплектация'!$AY$1,'Доп комплектация'!$AY$3) -> 4540 | AD57: =CEILING('Шкафы (2)'!AD57*'Доп комплектация'!$AY$1,'Доп комплектация'!$AY$3) -> 4710 | AE57: =CEILING('Шкафы (2)'!AE57*'Доп комплектация'!$AY$1,'Доп комплектация'!$AY$3) -> 5830 | AF57: =CEILING('Шкафы (2)'!AF57*'Доп комплектация'!$AY$1,'Доп комплектация'!$AY$3) -> 4090 | AG57: =CEILING('Шкафы (2)'!AG57*'Доп комплектация'!$AY$1,'Доп комплектация'!$AY$3) -> 4450 | AH57: =CEILING('Шкафы (2)'!AH57*'Доп комплектация'!$AY$1,'Доп комплектация'!$AY$3) -> 0 | AI57: =CEILING('Шкафы (2)'!AI57*'Доп комплектация'!$AY$1,'Доп комплектация'!$AY$3) -> 3910 | AJ57: =CEILING('Шкафы (2)'!AJ57*'Доп комплектация'!$AY$1,'Доп комплектация'!$AY$3) -> 4520 | AK57: - | AL57: - | AM57: - | AN57: - | AO57: - | AP57: - | AQ57: - | AR57: - | AS57: - | AT57: - | AU57: - | AV57: - | AW57: - | AX57: - | AY57: - | AZ57: - | BA57: - | BB57: - | BC57: - | BD57: -
D58: L-500 | E58: =CEILING('Шкафы (2)'!E58*'Доп комплектация'!$AY$1,'Доп комплектация'!$AY$3) -> 3620 | F58: =CEILING('Шкафы (2)'!F58*'Доп комплектация'!$AY$1,'Доп комплектация'!$AY$3) -> 4490 | G58: =CEILING('Шкафы (2)'!G58*'Доп комплектация'!$AY$1,'Доп комплектация'!$AY$3) -> 3750 | H58: =CEILING('Шкафы (2)'!H58*'Доп комплектация'!$AY$1,'Доп комплектация'!$AY$3) -> 4630 | I58: =CEILING('Шкафы (2)'!I58*'Доп комплектация'!$AY$1,'Доп комплектация'!$AY$3) -> 4080 | J58: =CEILING('Шкафы (2)'!J58*'Доп комплектация'!$AY$1,'Доп комплектация'!$AY$3) -> 5250 | K58: =CEILING('Шкафы (2)'!K58*'Доп комплектация'!$AY$1,'Доп комплектация'!$AY$3) -> 5630 | L58: =CEILING('Шкафы (2)'!L58*'Доп комплектация'!$AY$1,'Доп комплектация'!$AY$3) -> 0 | M58: =CEILING('Шкафы (2)'!M58*'Доп комплектация'!$AY$1,'Доп комплектация'!$AY$3) -> 6120 | N58: =CEILING('Шкафы (2)'!N58*'Доп комплектация'!$AY$1,'Доп комплектация'!$AY$3) -> 6500 | O58: =CEILING('Шкафы (2)'!O58*'Доп комплектация'!$AY$1,'Доп комплектация'!$AY$3) -> 3670 | P58: =CEILING('Шкафы (2)'!P58*'Доп комплектация'!$AY$1,'Доп комплектация'!$AY$3) -> 0 | Q58: =CEILING('Шкафы (2)'!Q58*'Доп комплектация'!$AY$1,'Доп комплектация'!$AY$3) -> 3230 | R58: =CEILING('Шкафы (2)'!R58*'Доп комплектация'!$AY$1,'Доп комплектация'!$AY$3) -> 3250 | S58: =CEILING('Шкафы (2)'!S58*'Доп комплектация'!$AY$1,'Доп комплектация'!$AY$3) -> 3320 | T58: =CEILING('Шкафы (2)'!T58*'Доп комплектация'!$AY$1,'Доп комплектация'!$AY$3) -> 3500 | U58: =CEILING('Шкафы (2)'!U58*'Доп комплектация'!$AY$1,'Доп комплектация'!$AY$3) -> 0 | V58: =CEILING('Шкафы (2)'!V58*'Доп комплектация'!$AY$1,'Доп комплектация'!$AY$3) -> 4530 | W58: =CEILING('Шкафы (2)'!W58*'Доп комплектация'!$AY$1,'Доп комплектация'!$AY$3) -> 4890 | X58: =CEILING('Шкафы (2)'!X58*'Доп комплектация'!$AY$1,'Доп комплектация'!$AY$3) -> 4840 | Y58: =CEILING('Шкафы (2)'!Y58*'Доп комплектация'!$AY$1,'Доп комплектация'!$AY$3) -> 5200 | Z58: =CEILING('Шкафы (2)'!Z58*'Доп комплектация'!$AY$1,'Доп комплектация'!$AY$3) -> 5590 | AA58: =CEILING('Шкафы (2)'!AA58*'Доп комплектация'!$AY$1,'Доп комплектация'!$AY$3) -> 5870 | AB58: =CEILING('Шкафы (2)'!AB58*'Доп комплектация'!$AY$1,'Доп комплектация'!$AY$3) -> 4620 | AC58: =CEILING('Шкафы (2)'!AC58*'Доп комплектация'!$AY$1,'Доп комплектация'!$AY$3) -> 4770 | AD58: =CEILING('Шкафы (2)'!AD58*'Доп комплектация'!$AY$1,'Доп комплектация'!$AY$3) -> 4970 | AE58: =CEILING('Шкафы (2)'!AE58*'Доп комплектация'!$AY$1,'Доп комплектация'!$AY$3) -> 6210 | AF58: =CEILING('Шкафы (2)'!AF58*'Доп комплектация'!$AY$1,'Доп комплектация'!$AY$3) -> 4280 | AG58: =CEILING('Шкафы (2)'!AG58*'Доп комплектация'!$AY$1,'Доп комплектация'!$AY$3) -> 4680 | AH58: =CEILING('Шкафы (2)'!AH58*'Доп комплектация'!$AY$1,'Доп комплектация'!$AY$3) -> 0 | AI58: =CEILING('Шкафы (2)'!AI58*'Доп комплектация'!$AY$1,'Доп комплектация'!$AY$3) -> 4090 | AJ58: =CEILING('Шкафы (2)'!AJ58*'Доп комплектация'!$AY$1,'Доп комплектация'!$AY$3) -> 4760 | AK58: - | AL58: - | AM58: - | AN58: - | AO58: - | AP58: - | AQ58: - | AR58: - | AS58: - | AT58: - | AU58: - | AV58: - | AW58: - | AX58: - | AY58: - | AZ58: - | BA58: - | BB58: - | BC58: - | BD58: -
D59: L-550 | E59: =CEILING('Шкафы (2)'!E59*'Доп комплектация'!$AY$1,'Доп комплектация'!$AY$3) -> 3760 | F59: =CEILING('Шкафы (2)'!F59*'Доп комплектация'!$AY$1,'Доп комплектация'!$AY$3) -> 4720 | G59: =CEILING('Шкафы (2)'!G59*'Доп комплектация'!$AY$1,'Доп комплектация'!$AY$3) -> 3900 | H59: =CEILING('Шкафы (2)'!H59*'Доп комплектация'!$AY$1,'Доп комплектация'!$AY$3) -> 4860 | I59: =CEILING('Шкафы (2)'!I59*'Доп комплектация'!$AY$1,'Доп комплектация'!$AY$3) -> 4260 | J59: =CEILING('Шкафы (2)'!J59*'Доп комплектация'!$AY$1,'Доп комплектация'!$AY$3) -> 5550 | K59: =CEILING('Шкафы (2)'!K59*'Доп комплектация'!$AY$1,'Доп комплектация'!$AY$3) -> 5970 | L59: =CEILING('Шкафы (2)'!L59*'Доп комплектация'!$AY$1,'Доп комплектация'!$AY$3) -> 0 | M59: =CEILING('Шкафы (2)'!M59*'Доп комплектация'!$AY$1,'Доп комплектация'!$AY$3) -> 6510 | N59: =CEILING('Шкафы (2)'!N59*'Доп комплектация'!$AY$1,'Доп комплектация'!$AY$3) -> 6930 | O59: =CEILING('Шкафы (2)'!O59*'Доп комплектация'!$AY$1,'Доп комплектация'!$AY$3) -> 3770 | P59: =CEILING('Шкафы (2)'!P59*'Доп комплектация'!$AY$1,'Доп комплектация'!$AY$3) -> 0 | Q59: =CEILING('Шкафы (2)'!Q59*'Доп комплектация'!$AY$1,'Доп комплектация'!$AY$3) -> 3330 | R59: =CEILING('Шкафы (2)'!R59*'Доп комплектация'!$AY$1,'Доп комплектация'!$AY$3) -> 3350 | S59: =CEILING('Шкафы (2)'!S59*'Доп комплектация'!$AY$1,'Доп комплектация'!$AY$3) -> 3430 | T59: =CEILING('Шкафы (2)'!T59*'Доп комплектация'!$AY$1,'Доп комплектация'!$AY$3) -> 3630 | U59: =CEILING('Шкафы (2)'!U59*'Доп комплектация'!$AY$1,'Доп комплектация'!$AY$3) -> 0 | V59: =CEILING('Шкафы (2)'!V59*'Доп комплектация'!$AY$1,'Доп комплектация'!$AY$3) -> 4740 | W59: =CEILING('Шкафы (2)'!W59*'Доп комплектация'!$AY$1,'Доп комплектация'!$AY$3) -> 5120 | X59: =CEILING('Шкафы (2)'!X59*'Доп комплектация'!$AY$1,'Доп комплектация'!$AY$3) -> 5080 | Y59: =CEILING('Шкафы (2)'!Y59*'Доп комплектация'!$AY$1,'Доп комплектация'!$AY$3) -> 5480 | Z59: =CEILING('Шкафы (2)'!Z59*'Доп комплектация'!$AY$1,'Доп комплектация'!$AY$3) -> 5860 | AA59: =CEILING('Шкафы (2)'!AA59*'Доп комплектация'!$AY$1,'Доп комплектация'!$AY$3) -> 6210 | AB59: =CEILING('Шкафы (2)'!AB59*'Доп комплектация'!$AY$1,'Доп комплектация'!$AY$3) -> 4840 | AC59: =CEILING('Шкафы (2)'!AC59*'Доп комплектация'!$AY$1,'Доп комплектация'!$AY$3) -> 5010 | AD59: =CEILING('Шкафы (2)'!AD59*'Доп комплектация'!$AY$1,'Доп комплектация'!$AY$3) -> 5220 | AE59: =CEILING('Шкафы (2)'!AE59*'Доп комплектация'!$AY$1,'Доп комплектация'!$AY$3) -> 6590 | AF59: =CEILING('Шкафы (2)'!AF59*'Доп комплектация'!$AY$1,'Доп комплектация'!$AY$3) -> 4470 | AG59: =CEILING('Шкафы (2)'!AG59*'Доп комплектация'!$AY$1,'Доп комплектация'!$AY$3) -> 4900 | AH59: =CEILING('Шкафы (2)'!AH59*'Доп комплектация'!$AY$1,'Доп комплектация'!$AY$3) -> 0 | AI59: =CEILING('Шкафы (2)'!AI59*'Доп комплектация'!$AY$1,'Доп комплектация'!$AY$3) -> 4260 | AJ59: =CEILING('Шкафы (2)'!AJ59*'Доп комплектация'!$AY$1,'Доп комплектация'!$AY$3) -> 5000 | AK59: - | AL59: - | AM59: - | AN59: - | AO59: - | AP59: - | AQ59: - | AR59: - | AS59: - | AT59: - | AU59: - | AV59: - | AW59: - | AX59: - | AY59: - | AZ59: - | BA59: - | BB59: - | BC59: - | BD59: -
D60: L-600 | E60: =CEILING('Шкафы (2)'!E60*'Доп комплектация'!$AY$1,'Доп комплектация'!$AY$3) -> 3891 | F60: =CEILING('Шкафы (2)'!F60*'Доп комплектация'!$AY$1,'Доп комплектация'!$AY$3) -> 4941 | G60: =CEILING('Шкафы (2)'!G60*'Доп комплектация'!$AY$1,'Доп комплектация'!$AY$3) -> 4051 | H60: =CEILING('Шкафы (2)'!H60*'Доп комплектация'!$AY$1,'Доп комплектация'!$AY$3) -> 5101 | I60: =CEILING('Шкафы (2)'!I60*'Доп комплектация'!$AY$1,'Доп комплектация'!$AY$3) -> 4441 | J60: =CEILING('Шкафы (2)'!J60*'Доп комплектация'!$AY$1,'Доп комплектация'!$AY$3) -> 5851 | K60: =CEILING('Шкафы (2)'!K60*'Доп комплектация'!$AY$1,'Доп комплектация'!$AY$3) -> 6301 | L60: =CEILING('Шкафы (2)'!L60*'Доп комплектация'!$AY$1,'Доп комплектация'!$AY$3) -> 0 | M60: =CEILING('Шкафы (2)'!M60*'Доп комплектация'!$AY$1,'Доп комплектация'!$AY$3) -> 6891 | N60: =CEILING('Шкафы (2)'!N60*'Доп комплектация'!$AY$1,'Доп комплектация'!$AY$3) -> 7351 | O60: =CEILING('Шкафы (2)'!O60*'Доп комплектация'!$AY$1,'Доп комплектация'!$AY$3) -> 3871 | P60: =CEILING('Шкафы (2)'!P60*'Доп комплектация'!$AY$1,'Доп комплектация'!$AY$3) -> 0 | Q60: =CEILING('Шкафы (2)'!Q60*'Доп комплектация'!$AY$1,'Доп комплектация'!$AY$3) -> 3421 | R60: =CEILING('Шкафы (2)'!R60*'Доп комплектация'!$AY$1,'Доп комплектация'!$AY$3) -> 3451 | S60: =CEILING('Шкафы (2)'!S60*'Доп комплектация'!$AY$1,'Доп комплектация'!$AY$3) -> 3531 | T60: =CEILING('Шкафы (2)'!T60*'Доп комплектация'!$AY$1,'Доп комплектация'!$AY$3) -> 3751 | U60: =CEILING('Шкафы (2)'!U60*'Доп комплектация'!$AY$1,'Доп комплектация'!$AY$3) -> 0 | V60: =CEILING('Шкафы (2)'!V60*'Доп комплектация'!$AY$1,'Доп комплектация'!$AY$3) -> 4951 | W60: =CEILING('Шкафы (2)'!W60*'Доп комплектация'!$AY$1,'Доп комплектация'!$AY$3) -> 5351 | X60: =CEILING('Шкафы (2)'!X60*'Доп комплектация'!$AY$1,'Доп комплектация'!$AY$3) -> 5321 | Y60: =CEILING('Шкафы (2)'!Y60*'Доп комплектация'!$AY$1,'Доп комплектация'!$AY$3) -> 5761 | Z60: =CEILING('Шкафы (2)'!Z60*'Доп комплектация'!$AY$1,'Доп комплектация'!$AY$3) -> 6141 | AA60: =CEILING('Шкафы (2)'!AA60*'Доп комплектация'!$AY$1,'Доп комплектация'!$AY$3) -> 6551 | AB60: =CEILING('Шкафы (2)'!AB60*'Доп комплектация'!$AY$1,'Доп комплектация'!$AY$3) -> 5061 | AC60: =CEILING('Шкафы (2)'!AC60*'Доп комплектация'!$AY$1,'Доп комплектация'!$AY$3) -> 5251 | AD60: =CEILING('Шкафы (2)'!AD60*'Доп комплектация'!$AY$1,'Доп комплектация'!$AY$3) -> 5481 | AE60: =CEILING('Шкафы (2)'!AE60*'Доп комплектация'!$AY$1,'Доп комплектация'!$AY$3) -> 6971 | AF60: =CEILING('Шкафы (2)'!AF60*'Доп комплектация'!$AY$1,'Доп комплектация'!$AY$3) -> 4651 | AG60: =CEILING('Шкафы (2)'!AG60*'Доп комплектация'!$AY$1,'Доп комплектация'!$AY$3) -> 5131 | AH60: =CEILING('Шкафы (2)'!AH60*'Доп комплектация'!$AY$1,'Доп комплектация'!$AY$3) -> 0 | AI60: =CEILING('Шкафы (2)'!AI60*'Доп комплектация'!$AY$1,'Доп комплектация'!$AY$3) -> 4441 | AJ60: =CEILING('Шкафы (2)'!AJ60*'Доп комплектация'!$AY$1,'Доп комплектация'!$AY$3) -> 5251 | AK60: - | AL60: - | AM60: - | AN60: - | AO60: - | AP60: - | AQ60: - | AR60: - | AS60: - | AT60: - | AU60: - | AV60: - | AW60: - | AX60: - | AY60: - | AZ60: - | BA60: - | BB60: - | BC60: - | BD60: -
C61: Шкаф Н=460 2дв | D61: L=600 | E61: =CEILING('Шкафы (2)'!E61*'Доп комплектация'!$AY$1,'Доп комплектация'!$AY$3) -> 4776 | F61: =CEILING('Шкафы (2)'!F61*'Доп комплектация'!$AY$1,'Доп комплектация'!$AY$3) -> 5816 | G61: =CEILING('Шкафы (2)'!G61*'Доп комплектация'!$AY$1,'Доп комплектация'!$AY$3) -> 4936 | H61: =CEILING('Шкафы (2)'!H61*'Доп комплектация'!$AY$1,'Доп комплектация'!$AY$3) -> 5976 | I61: =CEILING('Шкафы (2)'!I61*'Доп комплектация'!$AY$1,'Доп комплектация'!$AY$3) -> 5336 | J61: =CEILING('Шкафы (2)'!J61*'Доп комплектация'!$AY$1,'Доп комплектация'!$AY$3) -> 6716 | K61: =CEILING('Шкафы (2)'!K61*'Доп комплектация'!$AY$1,'Доп комплектация'!$AY$3) -> 7176 | L61: =CEILING('Шкафы (2)'!L61*'Доп комплектация'!$AY$1,'Доп комплектация'!$AY$3) -> 0 | M61: =CEILING('Шкафы (2)'!M61*'Доп комплектация'!$AY$1,'Доп комплектация'!$AY$3) -> 7756 | N61: =CEILING('Шкафы (2)'!N61*'Доп комплектация'!$AY$1,'Доп комплектация'!$AY$3) -> 8216 | O61: =CEILING('Шкафы (2)'!O61*'Доп комплектация'!$AY$1,'Доп комплектация'!$AY$3) -> 5216 | P61: =CEILING('Шкафы (2)'!P61*'Доп комплектация'!$AY$1,'Доп комплектация'!$AY$3) -> 0 | Q61: =CEILING('Шкафы (2)'!Q61*'Доп комплектация'!$AY$1,'Доп комплектация'!$AY$3) -> 4316 | R61: =CEILING('Шкафы (2)'!R61*'Доп комплектация'!$AY$1,'Доп комплектация'!$AY$3) -> 4336 | S61: =CEILING('Шкафы (2)'!S61*'Доп комплектация'!$AY$1,'Доп комплектация'!$AY$3) -> 4416 | T61: =CEILING('Шкафы (2)'!T61*'Доп комплектация'!$AY$1,'Доп комплектация'!$AY$3) -> 4636 | U61: =CEILING('Шкафы (2)'!U61*'Доп комплектация'!$AY$1,'Доп комплектация'!$AY$3) -> 0 | V61: =CEILING('Шкафы (2)'!V61*'Доп комплектация'!$AY$1,'Доп комплектация'!$AY$3) -> 5996 | W61: =CEILING('Шкафы (2)'!W61*'Доп комплектация'!$AY$1,'Доп комплектация'!$AY$3) -> 6556 | X61: =CEILING('Шкафы (2)'!X61*'Доп комплектация'!$AY$1,'Доп комплектация'!$AY$3) -> 6356 | Y61: =CEILING('Шкафы (2)'!Y61*'Доп комплектация'!$AY$1,'Доп комплектация'!$AY$3) -> 6796 | Z61: =CEILING('Шкафы (2)'!Z61*'Доп комплектация'!$AY$1,'Доп комплектация'!$AY$3) -> 7676 | AA61: =CEILING('Шкафы (2)'!AA61*'Доп комплектация'!$AY$1,'Доп комплектация'!$AY$3) -> 7636 | AB61: =CEILING('Шкафы (2)'!AB61*'Доп комплектация'!$AY$1,'Доп комплектация'!$AY$3) -> 6096 | AC61: =CEILING('Шкафы (2)'!AC61*'Доп комплектация'!$AY$1,'Доп комплектация'!$AY$3) -> 6276 | AD61: =CEILING('Шкафы (2)'!AD61*'Доп комплектация'!$AY$1,'Доп комплектация'!$AY$3) -> 6496 | AE61: =CEILING('Шкафы (2)'!AE61*'Доп комплектация'!$AY$1,'Доп комплектация'!$AY$3) -> 7976 | AF61: =CEILING('Шкафы (2)'!AF61*'Доп комплектация'!$AY$1,'Доп комплектация'!$AY$3) -> 5696 | AG61: =CEILING('Шкафы (2)'!AG61*'Доп комплектация'!$AY$1,'Доп комплектация'!$AY$3) -> 6176 | AH61: =CEILING('Шкафы (2)'!AH61*'Доп комплектация'!$AY$1,'Доп комплектация'!$AY$3) -> 0 | AI61: =CEILING('Шкафы (2)'!AI61*'Доп комплектация'!$AY$1,'Доп комплектация'!$AY$3) -> 5396 | AJ61: =CEILING('Шкафы (2)'!AJ61*'Доп комплектация'!$AY$1,'Доп комплектация'!$AY$3) -> 6196 | AK61: - | AL61: - | AM61: - | AN61: - | AO61: - | AP61: - | AQ61: - | AR61: - | AS61: - | AT61: - | AU61: - | AV61: - | AW61: - | AX61: - | AY61: - | AZ61: - | BA61: - | BB61: - | BC61: - | BD61: -
D62: L=650 | E62: =CEILING('Шкафы (2)'!E62*'Доп комплектация'!$AY$1,'Доп комплектация'!$AY$3) -> 4925 | F62: =CEILING('Шкафы (2)'!F62*'Доп комплектация'!$AY$1,'Доп комплектация'!$AY$3) -> 6045 | G62: =CEILING('Шкафы (2)'!G62*'Доп комплектация'!$AY$1,'Доп комплектация'!$AY$3) -> 5085 | H62: =CEILING('Шкафы (2)'!H62*'Доп комплектация'!$AY$1,'Доп комплектация'!$AY$3) -> 6205 | I62: =CEILING('Шкафы (2)'!I62*'Доп комплектация'!$AY$1,'Доп комплектация'!$AY$3) -> 5505 | J62: =CEILING('Шкафы (2)'!J62*'Доп комплектация'!$AY$1,'Доп комплектация'!$AY$3) -> 7025 | K62: =CEILING('Шкафы (2)'!K62*'Доп комплектация'!$AY$1,'Доп комплектация'!$AY$3) -> 7505 | L62: =CEILING('Шкафы (2)'!L62*'Доп комплектация'!$AY$1,'Доп комплектация'!$AY$3) -> 0 | M62: =CEILING('Шкафы (2)'!M62*'Доп комплектация'!$AY$1,'Доп комплектация'!$AY$3) -> 8145 | N62: =CEILING('Шкафы (2)'!N62*'Доп комплектация'!$AY$1,'Доп комплектация'!$AY$3) -> 8645 | O62: =CEILING('Шкафы (2)'!O62*'Доп комплектация'!$AY$1,'Доп комплектация'!$AY$3) -> 5325 | P62: =CEILING('Шкафы (2)'!P62*'Доп комплектация'!$AY$1,'Доп комплектация'!$AY$3) -> 0 | Q62: =CEILING('Шкафы (2)'!Q62*'Доп комплектация'!$AY$1,'Доп комплектация'!$AY$3) -> 4405 | R62: =CEILING('Шкафы (2)'!R62*'Доп комплектация'!$AY$1,'Доп комплектация'!$AY$3) -> 4445 | S62: =CEILING('Шкафы (2)'!S62*'Доп комплектация'!$AY$1,'Доп комплектация'!$AY$3) -> 4525 | T62: =CEILING('Шкафы (2)'!T62*'Доп комплектация'!$AY$1,'Доп комплектация'!$AY$3) -> 4765 | U62: =CEILING('Шкафы (2)'!U62*'Доп комплектация'!$AY$1,'Доп комплектация'!$AY$3) -> 0 | V62: =CEILING('Шкафы (2)'!V62*'Доп комплектация'!$AY$1,'Доп комплектация'!$AY$3) -> 6205 | W62: =CEILING('Шкафы (2)'!W62*'Доп комплектация'!$AY$1,'Доп комплектация'!$AY$3) -> 6785 | X62: =CEILING('Шкафы (2)'!X62*'Доп комплектация'!$AY$1,'Доп комплектация'!$AY$3) -> 6605 | Y62: =CEILING('Шкафы (2)'!Y62*'Доп комплектация'!$AY$1,'Доп комплектация'!$AY$3) -> 7065 | Z62: =CEILING('Шкафы (2)'!Z62*'Доп комплектация'!$AY$1,'Доп комплектация'!$AY$3) -> 7965 | AA62: =CEILING('Шкафы (2)'!AA62*'Доп комплектация'!$AY$1,'Доп комплектация'!$AY$3) -> 7985 | AB62: =CEILING('Шкафы (2)'!AB62*'Доп комплектация'!$AY$1,'Доп комплектация'!$AY$3) -> 6305 | AC62: =CEILING('Шкафы (2)'!AC62*'Доп комплектация'!$AY$1,'Доп комплектация'!$AY$3) -> 6505 | AD62: =CEILING('Шкафы (2)'!AD62*'Доп комплектация'!$AY$1,'Доп комплектация'!$AY$3) -> 6765 | AE62: =CEILING('Шкафы (2)'!AE62*'Доп комплектация'!$AY$1,'Доп комплектация'!$AY$3) -> 8365 | AF62: =CEILING('Шкафы (2)'!AF62*'Доп комплектация'!$AY$1,'Доп комплектация'!$AY$3) -> 5885 | AG62: =CEILING('Шкафы (2)'!AG62*'Доп комплектация'!$AY$1,'Доп комплектация'!$AY$3) -> 6385 | AH62: =CEILING('Шкафы (2)'!AH62*'Доп комплектация'!$AY$1,'Доп комплектация'!$AY$3) -> 0 | AI62: =CEILING('Шкафы (2)'!AI62*'Доп комплектация'!$AY$1,'Доп комплектация'!$AY$3) -> 5565 | AJ62: =CEILING('Шкафы (2)'!AJ62*'Доп комплектация'!$AY$1,'Доп комплектация'!$AY$3) -> 6425 | AK62: - | AL62: - | AM62: - | AN62: - | AO62: - | AP62: - | AQ62: - | AR62: - | AS62: - | AT62: - | AU62: - | AV62: - | AW62: - | AX62: - | AY62: - | AZ62: - | BA62: - | BB62: - | BC62: - | BD62: -
D63: L=700 | E63: =CEILING('Шкафы (2)'!E63*'Доп комплектация'!$AY$1,'Доп комплектация'!$AY$3) -> 5056 | F63: =CEILING('Шкафы (2)'!F63*'Доп комплектация'!$AY$1,'Доп комплектация'!$AY$3) -> 6276 | G63: =CEILING('Шкафы (2)'!G63*'Доп комплектация'!$AY$1,'Доп комплектация'!$AY$3) -> 5236 | H63: =CEILING('Шкафы (2)'!H63*'Доп комплектация'!$AY$1,'Доп комплектация'!$AY$3) -> 6456 | I63: =CEILING('Шкафы (2)'!I63*'Доп комплектация'!$AY$1,'Доп комплектация'!$AY$3) -> 5696 | J63: =CEILING('Шкафы (2)'!J63*'Доп комплектация'!$AY$1,'Доп комплектация'!$AY$3) -> 7316 | K63: =CEILING('Шкафы (2)'!K63*'Доп комплектация'!$AY$1,'Доп комплектация'!$AY$3) -> 7856 | L63: =CEILING('Шкафы (2)'!L63*'Доп комплектация'!$AY$1,'Доп комплектация'!$AY$3) -> 0 | M63: =CEILING('Шкафы (2)'!M63*'Доп комплектация'!$AY$1,'Доп комплектация'!$AY$3) -> 8536 | N63: =CEILING('Шкафы (2)'!N63*'Доп комплектация'!$AY$1,'Доп комплектация'!$AY$3) -> 9076 | O63: =CEILING('Шкафы (2)'!O63*'Доп комплектация'!$AY$1,'Доп комплектация'!$AY$3) -> 5376 | P63: =CEILING('Шкафы (2)'!P63*'Доп комплектация'!$AY$1,'Доп комплектация'!$AY$3) -> 0 | Q63: =CEILING('Шкафы (2)'!Q63*'Доп комплектация'!$AY$1,'Доп комплектация'!$AY$3) -> 4516 | R63: =CEILING('Шкафы (2)'!R63*'Доп комплектация'!$AY$1,'Доп комплектация'!$AY$3) -> 4536 | S63: =CEILING('Шкафы (2)'!S63*'Доп комплектация'!$AY$1,'Доп комплектация'!$AY$3) -> 4636 | T63: =CEILING('Шкафы (2)'!T63*'Доп комплектация'!$AY$1,'Доп комплектация'!$AY$3) -> 4876 | U63: =CEILING('Шкафы (2)'!U63*'Доп комплектация'!$AY$1,'Доп комплектация'!$AY$3) -> 0 | V63: =CEILING('Шкафы (2)'!V63*'Доп комплектация'!$AY$1,'Доп комплектация'!$AY$3) -> 6416 | W63: =CEILING('Шкафы (2)'!W63*'Доп комплектация'!$AY$1,'Доп комплектация'!$AY$3) -> 7016 | X63: =CEILING('Шкафы (2)'!X63*'Доп комплектация'!$AY$1,'Доп комплектация'!$AY$3) -> 6836 | Y63: =CEILING('Шкафы (2)'!Y63*'Доп комплектация'!$AY$1,'Доп комплектация'!$AY$3) -> 7356 | Z63: =CEILING('Шкафы (2)'!Z63*'Доп комплектация'!$AY$1,'Доп комплектация'!$AY$3) -> 8176 | AA63: =CEILING('Шкафы (2)'!AA63*'Доп комплектация'!$AY$1,'Доп комплектация'!$AY$3) -> 8316 | AB63: =CEILING('Шкафы (2)'!AB63*'Доп комплектация'!$AY$1,'Доп комплектация'!$AY$3) -> 6536 | AC63: =CEILING('Шкафы (2)'!AC63*'Доп комплектация'!$AY$1,'Доп комплектация'!$AY$3) -> 6756 | AD63: =CEILING('Шкафы (2)'!AD63*'Доп комплектация'!$AY$1,'Доп комплектация'!$AY$3) -> 7016 | AE63: =CEILING('Шкафы (2)'!AE63*'Доп комплектация'!$AY$1,'Доп комплектация'!$AY$3) -> 8736 | AF63: =CEILING('Шкафы (2)'!AF63*'Доп комплектация'!$AY$1,'Доп комплектация'!$AY$3) -> 6056 | AG63: =CEILING('Шкафы (2)'!AG63*'Доп комплектация'!$AY$1,'Доп комплектация'!$AY$3) -> 6616 | AH63: =CEILING('Шкафы (2)'!AH63*'Доп комплектация'!$AY$1,'Доп комплектация'!$AY$3) -> 0 | AI63: =CEILING('Шкафы (2)'!AI63*'Доп комплектация'!$AY$1,'Доп комплектация'!$AY$3) -> 5736 | AJ63: =CEILING('Шкафы (2)'!AJ63*'Доп комплектация'!$AY$1,'Доп комплектация'!$AY$3) -> 6676 | AK63: - | AL63: - | AM63: - | AN63: - | AO63: - | AP63: - | AQ63: - | AR63: - | AS63: - | AT63: - | AU63: - | AV63: - | AW63: - | AX63: - | AY63: - | AZ63: - | BA63: - | BB63: - | BC63: - | BD63: -
D64: L=750 | E64: =CEILING('Шкафы (2)'!E64*'Доп комплектация'!$AY$1,'Доп комплектация'!$AY$3) -> 5185 | F64: =CEILING('Шкафы (2)'!F64*'Доп комплектация'!$AY$1,'Доп комплектация'!$AY$3) -> 6485 | G64: =CEILING('Шкафы (2)'!G64*'Доп комплектация'!$AY$1,'Доп комплектация'!$AY$3) -> 5385 | H64: =CEILING('Шкафы (2)'!H64*'Доп комплектация'!$AY$1,'Доп комплектация'!$AY$3) -> 6685 | I64: =CEILING('Шкафы (2)'!I64*'Доп комплектация'!$AY$1,'Доп комплектация'!$AY$3) -> 5865 | J64: =CEILING('Шкафы (2)'!J64*'Доп комплектация'!$AY$1,'Доп комплектация'!$AY$3) -> 7625 | K64: =CEILING('Шкафы (2)'!K64*'Доп комплектация'!$AY$1,'Доп комплектация'!$AY$3) -> 8185 | L64: =CEILING('Шкафы (2)'!L64*'Доп комплектация'!$AY$1,'Доп комплектация'!$AY$3) -> 0 | M64: =CEILING('Шкафы (2)'!M64*'Доп комплектация'!$AY$1,'Доп комплектация'!$AY$3) -> 8925 | N64: =CEILING('Шкафы (2)'!N64*'Доп комплектация'!$AY$1,'Доп комплектация'!$AY$3) -> 9485 | O64: =CEILING('Шкафы (2)'!O64*'Доп комплектация'!$AY$1,'Доп комплектация'!$AY$3) -> 5465 | P64: =CEILING('Шкафы (2)'!P64*'Доп комплектация'!$AY$1,'Доп комплектация'!$AY$3) -> 0 | Q64: =CEILING('Шкафы (2)'!Q64*'Доп комплектация'!$AY$1,'Доп комплектация'!$AY$3) -> 4605 | R64: =CEILING('Шкафы (2)'!R64*'Доп комплектация'!$AY$1,'Доп комплектация'!$AY$3) -> 4645 | S64: =CEILING('Шкафы (2)'!S64*'Доп комплектация'!$AY$1,'Доп комплектация'!$AY$3) -> 4745 | T64: =CEILING('Шкафы (2)'!T64*'Доп комплектация'!$AY$1,'Доп комплектация'!$AY$3) -> 5005 | U64: =CEILING('Шкафы (2)'!U64*'Доп комплектация'!$AY$1,'Доп комплектация'!$AY$3) -> 0 | V64: =CEILING('Шкафы (2)'!V64*'Доп комплектация'!$AY$1,'Доп комплектация'!$AY$3) -> 6625 | W64: =CEILING('Шкафы (2)'!W64*'Доп комплектация'!$AY$1,'Доп комплектация'!$AY$3) -> 7245 | X64: =CEILING('Шкафы (2)'!X64*'Доп комплектация'!$AY$1,'Доп комплектация'!$AY$3) -> 7085 | Y64: =CEILING('Шкафы (2)'!Y64*'Доп комплектация'!$AY$1,'Доп комплектация'!$AY$3) -> 7625 | Z64: =CEILING('Шкафы (2)'!Z64*'Доп комплектация'!$AY$1,'Доп комплектация'!$AY$3) -> 8445 | AA64: =CEILING('Шкафы (2)'!AA64*'Доп комплектация'!$AY$1,'Доп комплектация'!$AY$3) -> 8645 | AB64: =CEILING('Шкафы (2)'!AB64*'Доп комплектация'!$AY$1,'Доп комплектация'!$AY$3) -> 6745 | AC64: =CEILING('Шкафы (2)'!AC64*'Доп комплектация'!$AY$1,'Доп комплектация'!$AY$3) -> 6985 | AD64: =CEILING('Шкафы (2)'!AD64*'Доп комплектация'!$AY$1,'Доп комплектация'!$AY$3) -> 7265 | AE64: =CEILING('Шкафы (2)'!AE64*'Доп комплектация'!$AY$1,'Доп комплектация'!$AY$3) -> 9125 | AF64: =CEILING('Шкафы (2)'!AF64*'Доп комплектация'!$AY$1,'Доп комплектация'!$AY$3) -> 6245 | AG64: =CEILING('Шкафы (2)'!AG64*'Доп комплектация'!$AY$1,'Доп комплектация'!$AY$3) -> 6845 | AH64: =CEILING('Шкафы (2)'!AH64*'Доп комплектация'!$AY$1,'Доп комплектация'!$AY$3) -> 0 | AI64: =CEILING('Шкафы (2)'!AI64*'Доп комплектация'!$AY$1,'Доп комплектация'!$AY$3) -> 5925 | AJ64: =CEILING('Шкафы (2)'!AJ64*'Доп комплектация'!$AY$1,'Доп комплектация'!$AY$3) -> 6925 | AK64: - | AL64: - | AM64: - | AN64: - | AO64: - | AP64: - | AQ64: - | AR64: - | AS64: - | AT64: - | AU64: - | AV64: - | AW64: - | AX64: - | AY64: - | AZ64: - | BA64: - | BB64: - | BC64: - | BD64: -
D65: L=800 | E65: =CEILING('Шкафы (2)'!E65*'Доп комплектация'!$AY$1,'Доп комплектация'!$AY$3) -> 5316 | F65: =CEILING('Шкафы (2)'!F65*'Доп комплектация'!$AY$1,'Доп комплектация'!$AY$3) -> 6716 | G65: =CEILING('Шкафы (2)'!G65*'Доп комплектация'!$AY$1,'Доп комплектация'!$AY$3) -> 5536 | H65: =CEILING('Шкафы (2)'!H65*'Доп комплектация'!$AY$1,'Доп комплектация'!$AY$3) -> 6916 | I65: =CEILING('Шкафы (2)'!I65*'Доп комплектация'!$AY$1,'Доп комплектация'!$AY$3) -> 6056 | J65: =CEILING('Шкафы (2)'!J65*'Доп комплектация'!$AY$1,'Доп комплектация'!$AY$3) -> 7916 | K65: =CEILING('Шкафы (2)'!K65*'Доп комплектация'!$AY$1,'Доп комплектация'!$AY$3) -> 8536 | L65: =CEILING('Шкафы (2)'!L65*'Доп комплектация'!$AY$1,'Доп комплектация'!$AY$3) -> 0 | M65: =CEILING('Шкафы (2)'!M65*'Доп комплектация'!$AY$1,'Доп комплектация'!$AY$3) -> 9316 | N65: =CEILING('Шкафы (2)'!N65*'Доп комплектация'!$AY$1,'Доп комплектация'!$AY$3) -> 9916 | O65: =CEILING('Шкафы (2)'!O65*'Доп комплектация'!$AY$1,'Доп комплектация'!$AY$3) -> 5576 | P65: =CEILING('Шкафы (2)'!P65*'Доп комплектация'!$AY$1,'Доп комплектация'!$AY$3) -> 0 | Q65: =CEILING('Шкафы (2)'!Q65*'Доп комплектация'!$AY$1,'Доп комплектация'!$AY$3) -> 4696 | R65: =CEILING('Шкафы (2)'!R65*'Доп комплектация'!$AY$1,'Доп комплектация'!$AY$3) -> 4736 | S65: =CEILING('Шкафы (2)'!S65*'Доп комплектация'!$AY$1,'Доп комплектация'!$AY$3) -> 4836 | T65: =CEILING('Шкафы (2)'!T65*'Доп комплектация'!$AY$1,'Доп комплектация'!$AY$3) -> 5136 | U65: =CEILING('Шкафы (2)'!U65*'Доп комплектация'!$AY$1,'Доп комплектация'!$AY$3) -> 0 | V65: =CEILING('Шкафы (2)'!V65*'Доп комплектация'!$AY$1,'Доп комплектация'!$AY$3) -> 6836 | W65: =CEILING('Шкафы (2)'!W65*'Доп комплектация'!$AY$1,'Доп комплектация'!$AY$3) -> 7476 | X65: =CEILING('Шкафы (2)'!X65*'Доп комплектация'!$AY$1,'Доп комплектация'!$AY$3) -> 7336 | Y65: =CEILING('Шкафы (2)'!Y65*'Доп комплектация'!$AY$1,'Доп комплектация'!$AY$3) -> 7916 | Z65: =CEILING('Шкафы (2)'!Z65*'Доп комплектация'!$AY$1,'Доп комплектация'!$AY$3) -> 8716 | AA65: =CEILING('Шкафы (2)'!AA65*'Доп комплектация'!$AY$1,'Доп комплектация'!$AY$3) -> 8996 | AB65: =CEILING('Шкафы (2)'!AB65*'Доп комплектация'!$AY$1,'Доп комплектация'!$AY$3) -> 6976 | AC65: =CEILING('Шкафы (2)'!AC65*'Доп комплектация'!$AY$1,'Доп комплектация'!$AY$3) -> 7216 | AD65: =CEILING('Шкафы (2)'!AD65*'Доп комплектация'!$AY$1,'Доп комплектация'!$AY$3) -> 7536 | AE65: =CEILING('Шкафы (2)'!AE65*'Доп комплектация'!$AY$1,'Доп комплектация'!$AY$3) -> 9496 | AF65: =CEILING('Шкафы (2)'!AF65*'Доп комплектация'!$AY$1,'Доп комплектация'!$AY$3) -> 6436 | AG65: =CEILING('Шкафы (2)'!AG65*'Доп комплектация'!$AY$1,'Доп комплектация'!$AY$3) -> 7076 | AH65: =CEILING('Шкафы (2)'!AH65*'Доп комплектация'!$AY$1,'Доп комплектация'!$AY$3) -> 0 | AI65: =CEILING('Шкафы (2)'!AI65*'Доп комплектация'!$AY$1,'Доп комплектация'!$AY$3) -> 6096 | AJ65: =CEILING('Шкафы (2)'!AJ65*'Доп комплектация'!$AY$1,'Доп комплектация'!$AY$3) -> 7156 | AK65: - | AL65: - | AM65: - | AN65: - | AO65: - | AP65: - | AQ65: - | AR65: - | AS65: - | AT65: - | AU65: - | AV65: - | AW65: - | AX65: - | AY65: - | AZ65: - | BA65: - | BB65: - | BC65: - | BD65: -
D66: L=850 | E66: =CEILING('Шкафы (2)'!E66*'Доп комплектация'!$AY$1,'Доп комплектация'!$AY$3) -> 5465 | F66: =CEILING('Шкафы (2)'!F66*'Доп комплектация'!$AY$1,'Доп комплектация'!$AY$3) -> 6945 | G66: =CEILING('Шкафы (2)'!G66*'Доп комплектация'!$AY$1,'Доп комплектация'!$AY$3) -> 5685 | H66: =CEILING('Шкафы (2)'!H66*'Доп комплектация'!$AY$1,'Доп комплектация'!$AY$3) -> 7165 | I66: =CEILING('Шкафы (2)'!I66*'Доп комплектация'!$AY$1,'Доп комплектация'!$AY$3) -> 6225 | J66: =CEILING('Шкафы (2)'!J66*'Доп комплектация'!$AY$1,'Доп комплектация'!$AY$3) -> 8225 | K66: =CEILING('Шкафы (2)'!K66*'Доп комплектация'!$AY$1,'Доп комплектация'!$AY$3) -> 8865 | L66: =CEILING('Шкафы (2)'!L66*'Доп комплектация'!$AY$1,'Доп комплектация'!$AY$3) -> 0 | M66: =CEILING('Шкафы (2)'!M66*'Доп комплектация'!$AY$1,'Доп комплектация'!$AY$3) -> 9705 | N66: =CEILING('Шкафы (2)'!N66*'Доп комплектация'!$AY$1,'Доп комплектация'!$AY$3) -> 10345 | O66: =CEILING('Шкафы (2)'!O66*'Доп комплектация'!$AY$1,'Доп комплектация'!$AY$3) -> 5665 | P66: =CEILING('Шкафы (2)'!P66*'Доп комплектация'!$AY$1,'Доп комплектация'!$AY$3) -> 0 | Q66: =CEILING('Шкафы (2)'!Q66*'Доп комплектация'!$AY$1,'Доп комплектация'!$AY$3) -> 4785 | R66: =CEILING('Шкафы (2)'!R66*'Доп комплектация'!$AY$1,'Доп комплектация'!$AY$3) -> 4825 | S66: =CEILING('Шкафы (2)'!S66*'Доп комплектация'!$AY$1,'Доп комплектация'!$AY$3) -> 4945 | T66: =CEILING('Шкафы (2)'!T66*'Доп комплектация'!$AY$1,'Доп комплектация'!$AY$3) -> 5245 | U66: =CEILING('Шкафы (2)'!U66*'Доп комплектация'!$AY$1,'Доп комплектация'!$AY$3) -> 0 | V66: =CEILING('Шкафы (2)'!V66*'Доп комплектация'!$AY$1,'Доп комплектация'!$AY$3) -> 7045 | W66: =CEILING('Шкафы (2)'!W66*'Доп комплектация'!$AY$1,'Доп комплектация'!$AY$3) -> 7705 | X66: =CEILING('Шкафы (2)'!X66*'Доп комплектация'!$AY$1,'Доп комплектация'!$AY$3) -> 7565 | Y66: =CEILING('Шкафы (2)'!Y66*'Доп комплектация'!$AY$1,'Доп комплектация'!$AY$3) -> 8185 | Z66: =CEILING('Шкафы (2)'!Z66*'Доп комплектация'!$AY$1,'Доп комплектация'!$AY$3) -> 8985 | AA66: =CEILING('Шкафы (2)'!AA66*'Доп комплектация'!$AY$1,'Доп комплектация'!$AY$3) -> 9325 | AB66: =CEILING('Шкафы (2)'!AB66*'Доп комплектация'!$AY$1,'Доп комплектация'!$AY$3) -> 7185 | AC66: =CEILING('Шкафы (2)'!AC66*'Доп комплектация'!$AY$1,'Доп комплектация'!$AY$3) -> 7445 | AD66: =CEILING('Шкафы (2)'!AD66*'Доп комплектация'!$AY$1,'Доп комплектация'!$AY$3) -> 7785 | AE66: =CEILING('Шкафы (2)'!AE66*'Доп комплектация'!$AY$1,'Доп комплектация'!$AY$3) -> 9885 | AF66: =CEILING('Шкафы (2)'!AF66*'Доп комплектация'!$AY$1,'Доп комплектация'!$AY$3) -> 6625 | AG66: =CEILING('Шкафы (2)'!AG66*'Доп комплектация'!$AY$1,'Доп комплектация'!$AY$3) -> 7285 | AH66: =CEILING('Шкафы (2)'!AH66*'Доп комплектация'!$AY$1,'Доп комплектация'!$AY$3) -> 0 | AI66: =CEILING('Шкафы (2)'!AI66*'Доп комплектация'!$AY$1,'Доп комплектация'!$AY$3) -> 6265 | AJ66: =CEILING('Шкафы (2)'!AJ66*'Доп комплектация'!$AY$1,'Доп комплектация'!$AY$3) -> 7405 | AK66: - | AL66: - | AM66: - | AN66: - | AO66: - | AP66: - | AQ66: - | AR66: - | AS66: - | AT66: - | AU66: - | AV66: - | AW66: - | AX66: - | AY66: - | AZ66: - | BA66: - | BB66: - | BC66: - | BD66: -
D67: L=900 | E67: =CEILING('Шкафы (2)'!E67*'Доп комплектация'!$AY$1,'Доп комплектация'!$AY$3) -> 5595 | F67: =CEILING('Шкафы (2)'!F67*'Доп комплектация'!$AY$1,'Доп комплектация'!$AY$3) -> 7155 | G67: =CEILING('Шкафы (2)'!G67*'Доп комплектация'!$AY$1,'Доп комплектация'!$AY$3) -> 5835 | H67: =CEILING('Шкафы (2)'!H67*'Доп комплектация'!$AY$1,'Доп комплектация'!$AY$3) -> 7395 | I67: =CEILING('Шкафы (2)'!I67*'Доп комплектация'!$AY$1,'Доп комплектация'!$AY$3) -> 6415 | J67: =CEILING('Шкафы (2)'!J67*'Доп комплектация'!$AY$1,'Доп комплектация'!$AY$3) -> 8515 | K67: =CEILING('Шкафы (2)'!K67*'Доп комплектация'!$AY$1,'Доп комплектация'!$AY$3) -> 9195 | L67: =CEILING('Шкафы (2)'!L67*'Доп комплектация'!$AY$1,'Доп комплектация'!$AY$3) -> 0 | M67: =CEILING('Шкафы (2)'!M67*'Доп комплектация'!$AY$1,'Доп комплектация'!$AY$3) -> 10075 | N67: =CEILING('Шкафы (2)'!N67*'Доп комплектация'!$AY$1,'Доп комплектация'!$AY$3) -> 10775 | O67: =CEILING('Шкафы (2)'!O67*'Доп комплектация'!$AY$1,'Доп комплектация'!$AY$3) -> 5755 | P67: =CEILING('Шкафы (2)'!P67*'Доп комплектация'!$AY$1,'Доп комплектация'!$AY$3) -> 0 | Q67: =CEILING('Шкафы (2)'!Q67*'Доп комплектация'!$AY$1,'Доп комплектация'!$AY$3) -> 4895 | R67: =CEILING('Шкафы (2)'!R67*'Доп комплектация'!$AY$1,'Доп комплектация'!$AY$3) -> 4935 | S67: =CEILING('Шкафы (2)'!S67*'Доп комплектация'!$AY$1,'Доп комплектация'!$AY$3) -> 5055 | T67: =CEILING('Шкафы (2)'!T67*'Доп комплектация'!$AY$1,'Доп комплектация'!$AY$3) -> 5375 | U67: =CEILING('Шкафы (2)'!U67*'Доп комплектация'!$AY$1,'Доп комплектация'!$AY$3) -> 0 | V67: =CEILING('Шкафы (2)'!V67*'Доп комплектация'!$AY$1,'Доп комплектация'!$AY$3) -> 7255 | W67: =CEILING('Шкафы (2)'!W67*'Доп комплектация'!$AY$1,'Доп комплектация'!$AY$3) -> 7935 | X67: =CEILING('Шкафы (2)'!X67*'Доп комплектация'!$AY$1,'Доп комплектация'!$AY$3) -> 7815 | Y67: =CEILING('Шкафы (2)'!Y67*'Доп комплектация'!$AY$1,'Доп комплектация'!$AY$3) -> 8475 | Z67: =CEILING('Шкафы (2)'!Z67*'Доп комплектация'!$AY$1,'Доп комплектация'!$AY$3) -> 9255 | AA67: =CEILING('Шкафы (2)'!AA67*'Доп комплектация'!$AY$1,'Доп комплектация'!$AY$3) -> 9675 | AB67: =CEILING('Шкафы (2)'!AB67*'Доп комплектация'!$AY$1,'Доп комплектация'!$AY$3) -> 7415 | AC67: =CEILING('Шкафы (2)'!AC67*'Доп комплектация'!$AY$1,'Доп комплектация'!$AY$3) -> 7695 | AD67: =CEILING('Шкафы (2)'!AD67*'Доп комплектация'!$AY$1,'Доп комплектация'!$AY$3) -> 8035 | AE67: =CEILING('Шкафы (2)'!AE67*'Доп комплектация'!$AY$1,'Доп комплектация'!$AY$3) -> 10275 | AF67: =CEILING('Шкафы (2)'!AF67*'Доп комплектация'!$AY$1,'Доп комплектация'!$AY$3) -> 6795 | AG67: =CEILING('Шкафы (2)'!AG67*'Доп комплектация'!$AY$1,'Доп комплектация'!$AY$3) -> 7515 | AH67: =CEILING('Шкафы (2)'!AH67*'Доп комплектация'!$AY$1,'Доп комплектация'!$AY$3) -> 0 | AI67: =CEILING('Шкафы (2)'!AI67*'Доп комплектация'!$AY$1,'Доп комплектация'!$AY$3) -> 6435 | AJ67: =CEILING('Шкафы (2)'!AJ67*'Доп комплектация'!$AY$1,'Доп комплектация'!$AY$3) -> 7655 | AK67: - | AL67: - | AM67: - | AN67: - | AO67: - | AP67: - | AQ67: - | AR67: - | AS67: - | AT67: - | AU67: - | AV67: - | AW67: - | AX67: - | AY67: - | AZ67: - | BA67: - | BB67: - | BC67: - | BD67: -
D68: L=950 | E68: =CEILING('Шкафы (2)'!E68*'Доп комплектация'!$AY$1,'Доп комплектация'!$AY$3) -> 5725 | F68: =CEILING('Шкафы (2)'!F68*'Доп комплектация'!$AY$1,'Доп комплектация'!$AY$3) -> 7385 | G68: =CEILING('Шкафы (2)'!G68*'Доп комплектация'!$AY$1,'Доп комплектация'!$AY$3) -> 5985 | H68: =CEILING('Шкафы (2)'!H68*'Доп комплектация'!$AY$1,'Доп комплектация'!$AY$3) -> 7625 | I68: =CEILING('Шкафы (2)'!I68*'Доп комплектация'!$AY$1,'Доп комплектация'!$AY$3) -> 6585 | J68: =CEILING('Шкафы (2)'!J68*'Доп комплектация'!$AY$1,'Доп комплектация'!$AY$3) -> 8825 | K68: =CEILING('Шкафы (2)'!K68*'Доп комплектация'!$AY$1,'Доп комплектация'!$AY$3) -> 9545 | L68: =CEILING('Шкафы (2)'!L68*'Доп комплектация'!$AY$1,'Доп комплектация'!$AY$3) -> 0 | M68: =CEILING('Шкафы (2)'!M68*'Доп комплектация'!$AY$1,'Доп комплектация'!$AY$3) -> 10465 | N68: =CEILING('Шкафы (2)'!N68*'Доп комплектация'!$AY$1,'Доп комплектация'!$AY$3) -> 11185 | O68: =CEILING('Шкафы (2)'!O68*'Доп комплектация'!$AY$1,'Доп комплектация'!$AY$3) -> 5865 | P68: =CEILING('Шкафы (2)'!P68*'Доп комплектация'!$AY$1,'Доп комплектация'!$AY$3) -> 0 | Q68: =CEILING('Шкафы (2)'!Q68*'Доп комплектация'!$AY$1,'Доп комплектация'!$AY$3) -> 4985 | R68: =CEILING('Шкафы (2)'!R68*'Доп комплектация'!$AY$1,'Доп комплектация'!$AY$3) -> 5025 | S68: =CEILING('Шкафы (2)'!S68*'Доп комплектация'!$AY$1,'Доп комплектация'!$AY$3) -> 5165 | T68: =CEILING('Шкафы (2)'!T68*'Доп комплектация'!$AY$1,'Доп комплектация'!$AY$3) -> 5505 | U68: =CEILING('Шкафы (2)'!U68*'Доп комплектация'!$AY$1,'Доп комплектация'!$AY$3) -> 0 | V68: =CEILING('Шкафы (2)'!V68*'Доп комплектация'!$AY$1,'Доп комплектация'!$AY$3) -> 7465 | W68: =CEILING('Шкафы (2)'!W68*'Доп комплектация'!$AY$1,'Доп комплектация'!$AY$3) -> 8165 | X68: =CEILING('Шкафы (2)'!X68*'Доп комплектация'!$AY$1,'Доп комплектация'!$AY$3) -> 8045 | Y68: =CEILING('Шкафы (2)'!Y68*'Доп комплектация'!$AY$1,'Доп комплектация'!$AY$3) -> 8745 | Z68: =CEILING('Шкафы (2)'!Z68*'Доп комплектация'!$AY$1,'Доп комплектация'!$AY$3) -> 9525 | AA68: =CEILING('Шкафы (2)'!AA68*'Доп комплектация'!$AY$1,'Доп комплектация'!$AY$3) -> 10005 | AB68: =CEILING('Шкафы (2)'!AB68*'Доп комплектация'!$AY$1,'Доп комплектация'!$AY$3) -> 7625 | AC68: =CEILING('Шкафы (2)'!AC68*'Доп комплектация'!$AY$1,'Доп комплектация'!$AY$3) -> 7925 | AD68: =CEILING('Шкафы (2)'!AD68*'Доп комплектация'!$AY$1,'Доп комплектация'!$AY$3) -> 8305 | AE68: =CEILING('Шкафы (2)'!AE68*'Доп комплектация'!$AY$1,'Доп комплектация'!$AY$3) -> 10645 | AF68: =CEILING('Шкафы (2)'!AF68*'Доп комплектация'!$AY$1,'Доп комплектация'!$AY$3) -> 6985 | AG68: =CEILING('Шкафы (2)'!AG68*'Доп комплектация'!$AY$1,'Доп комплектация'!$AY$3) -> 7745 | AH68: =CEILING('Шкафы (2)'!AH68*'Доп комплектация'!$AY$1,'Доп комплектация'!$AY$3) -> 0 | AI68: =CEILING('Шкафы (2)'!AI68*'Доп комплектация'!$AY$1,'Доп комплектация'!$AY$3) -> 6625 | AJ68: =CEILING('Шкафы (2)'!AJ68*'Доп комплектация'!$AY$1,'Доп комплектация'!$AY$3) -> 7885 | AK68: - | AL68: - | AM68: - | AN68: - | AO68: - | AP68: - | AQ68: - | AR68: - | AS68: - | AT68: - | AU68: - | AV68: - | AW68: - | AX68: - | AY68: - | AZ68: - | BA68: - | BB68: - | BC68: - | BD68: -
C69: Шкаф 1дв 1ст Н=460 | D69: L-300 | E69: =CEILING('Шкафы (2)'!E69*'Доп комплектация'!$AY$1,'Доп комплектация'!$AY$3) -> 3213 | F69: =CEILING('Шкафы (2)'!F69*'Доп комплектация'!$AY$1,'Доп комплектация'!$AY$3) -> 3733 | G69: =CEILING('Шкафы (2)'!G69*'Доп комплектация'!$AY$1,'Доп комплектация'!$AY$3) -> 3293 | H69: =CEILING('Шкафы (2)'!H69*'Доп комплектация'!$AY$1,'Доп комплектация'!$AY$3) -> 3813 | I69: =CEILING('Шкафы (2)'!I69*'Доп комплектация'!$AY$1,'Доп комплектация'!$AY$3) -> 3493 | J69: =CEILING('Шкафы (2)'!J69*'Доп комплектация'!$AY$1,'Доп комплектация'!$AY$3) -> 4183 | K69: =CEILING('Шкафы (2)'!K69*'Доп комплектация'!$AY$1,'Доп комплектация'!$AY$3) -> 4413 | L69: =CEILING('Шкафы (2)'!L69*'Доп комплектация'!$AY$1,'Доп комплектация'!$AY$3) -> 0 | M69: =CEILING('Шкафы (2)'!M69*'Доп комплектация'!$AY$1,'Доп комплектация'!$AY$3) -> 4703 | N69: =CEILING('Шкафы (2)'!N69*'Доп комплектация'!$AY$1,'Доп комплектация'!$AY$3) -> 4933 | O69: =CEILING('Шкафы (2)'!O69*'Доп комплектация'!$AY$1,'Доп комплектация'!$AY$3) -> 3339 | P69: =CEILING('Шкафы (2)'!P69*'Доп комплектация'!$AY$1,'Доп комплектация'!$AY$3) -> 0 | Q69: =CEILING('Шкафы (2)'!Q69*'Доп комплектация'!$AY$1,'Доп комплектация'!$AY$3) -> 2899 | R69: =CEILING('Шкафы (2)'!R69*'Доп комплектация'!$AY$1,'Доп комплектация'!$AY$3) -> 2909 | S69: =CEILING('Шкафы (2)'!S69*'Доп комплектация'!$AY$1,'Доп комплектация'!$AY$3) -> 2949 | T69: =CEILING('Шкафы (2)'!T69*'Доп комплектация'!$AY$1,'Доп комплектация'!$AY$3) -> 3049 | U69: =CEILING('Шкафы (2)'!U69*'Доп комплектация'!$AY$1,'Доп комплектация'!$AY$3) -> 0 | V69: =CEILING('Шкафы (2)'!V69*'Доп комплектация'!$AY$1,'Доп комплектация'!$AY$3) -> 3819 | W69: =CEILING('Шкафы (2)'!W69*'Доп комплектация'!$AY$1,'Доп комплектация'!$AY$3) -> 4229 | X69: =CEILING('Шкафы (2)'!X69*'Доп комплектация'!$AY$1,'Доп комплектация'!$AY$3) -> 3999 | Y69: =CEILING('Шкафы (2)'!Y69*'Доп комплектация'!$AY$1,'Доп комплектация'!$AY$3) -> 4199 | Z69: =CEILING('Шкафы (2)'!Z69*'Доп комплектация'!$AY$1,'Доп комплектация'!$AY$3) -> 4319 | AA69: =CEILING('Шкафы (2)'!AA69*'Доп комплектация'!$AY$1,'Доп комплектация'!$AY$3) -> 4649 | AB69: =CEILING('Шкафы (2)'!AB69*'Доп комплектация'!$AY$1,'Доп комплектация'!$AY$3) -> 3969 | AC69: =CEILING('Шкафы (2)'!AC69*'Доп комплектация'!$AY$1,'Доп комплектация'!$AY$3) -> 4039 | AD69: =CEILING('Шкафы (2)'!AD69*'Доп комплектация'!$AY$1,'Доп комплектация'!$AY$3) -> 4129 | AE69: =CEILING('Шкафы (2)'!AE69*'Доп комплектация'!$AY$1,'Доп комплектация'!$AY$3) -> 4689 | AF69: =CEILING('Шкафы (2)'!AF69*'Доп комплектация'!$AY$1,'Доп комплектация'!$AY$3) -> 3679 | AG69: =CEILING('Шкафы (2)'!AG69*'Доп комплектация'!$AY$1,'Доп комплектация'!$AY$3) -> 3899 | AH69: - | AI69: - | AJ69: - | AK69: * | AL69: =CEILING('Шкафы (2)'!AL69*'Доп комплектация'!$AY$1,'Доп комплектация'!$AY$3) -> 102 | AM69: =CEILING('Шкафы (2)'!AM69*'Доп комплектация'!$AY$1,'Доп комплектация'!$AY$3) -> 402 | AN69: =CEILING('Шкафы (2)'!AN69*'Доп комплектация'!$AY$1,'Доп комплектация'!$AY$3) -> 492 | AO69: =CEILING('Шкафы (2)'!AO69*'Доп комплектация'!$AY$1,'Доп комплектация'!$AY$3) -> 450 | AP69: =CEILING('Шкафы (2)'!AP69*'Доп комплектация'!$AY$1,'Доп комплектация'!$AY$3) -> 1202 | AQ69: =CEILING('Шкафы (2)'!AQ69*'Доп комплектация'!$AY$1,'Доп комплектация'!$AY$3) -> 1970 | AR69: =CEILING('Шкафы (2)'!AR69*'Доп комплектация'!$AY$1,'Доп комплектация'!$AY$3) -> 5092 | AS69: =CEILING('Шкафы (2)'!AS69*'Доп комплектация'!$AY$1,'Доп комплектация'!$AY$3) -> 1486 | AT69: * | AU69: =CEILING('Шкафы (2)'!AU69*'Доп комплектация'!$AY$1,'Доп комплектация'!$AY$3) -> 160 | AV69: =CEILING('Шкафы (2)'!AV69*'Доп комплектация'!$AY$1,'Доп комплектация'!$AY$3) -> 340 | AW69: =CEILING('Шкафы (2)'!AW69*'Доп комплектация'!$AY$1,'Доп комплектация'!$AY$3) -> 420 | AX69: =CEILING('Шкафы (2)'!AX69*'Доп комплектация'!$AY$1,'Доп комплектация'!$AY$3) -> 660 | AY69: =CEILING('Шкафы (2)'!AY69*'Доп комплектация'!$AY$1,'Доп комплектация'!$AY$3) -> 1280 | AZ69: * | BA69: =CEILING('Шкафы (2)'!BA69*'Доп комплектация'!$AY$1,'Доп комплектация'!$AY$3) -> 40 | BB69: =CEILING('Шкафы (2)'!BB69*'Доп комплектация'!$AY$1,'Доп комплектация'!$AY$3) -> 80 | BC69: =CEILING('Шкафы (2)'!BC69*'Доп комплектация'!$AY$1,'Доп комплектация'!$AY$3) -> 100 | BD69: =CEILING('Шкафы (2)'!BD69*'Доп комплектация'!$AY$1,'Доп комплектация'!$AY$3) -> 160
D70: L-350 | E70: =CEILING('Шкафы (2)'!E70*'Доп комплектация'!$AY$1,'Доп комплектация'!$AY$3) -> 3381 | F70: =CEILING('Шкафы (2)'!F70*'Доп комплектация'!$AY$1,'Доп комплектация'!$AY$3) -> 3991 | G70: =CEILING('Шкафы (2)'!G70*'Доп комплектация'!$AY$1,'Доп комплектация'!$AY$3) -> 3471 | H70: =CEILING('Шкафы (2)'!H70*'Доп комплектация'!$AY$1,'Доп комплектация'!$AY$3) -> 4081 | I70: =CEILING('Шкафы (2)'!I70*'Доп комплектация'!$AY$1,'Доп комплектация'!$AY$3) -> 3701 | J70: =CEILING('Шкафы (2)'!J70*'Доп комплектация'!$AY$1,'Доп комплектация'!$AY$3) -> 4511 | K70: =CEILING('Шкафы (2)'!K70*'Доп комплектация'!$AY$1,'Доп комплектация'!$AY$3) -> 4781 | L70: =CEILING('Шкафы (2)'!L70*'Доп комплектация'!$AY$1,'Доп комплектация'!$AY$3) -> 0 | M70: =CEILING('Шкафы (2)'!M70*'Доп комплектация'!$AY$1,'Доп комплектация'!$AY$3) -> 5121 | N70: =CEILING('Шкафы (2)'!N70*'Доп комплектация'!$AY$1,'Доп комплектация'!$AY$3) -> 5391 | O70: =CEILING('Шкафы (2)'!O70*'Доп комплектация'!$AY$1,'Доп комплектация'!$AY$3) -> 3429 | P70: =CEILING('Шкафы (2)'!P70*'Доп комплектация'!$AY$1,'Доп комплектация'!$AY$3) -> 0 | Q70: =CEILING('Шкафы (2)'!Q70*'Доп комплектация'!$AY$1,'Доп комплектация'!$AY$3) -> 2999 | R70: =CEILING('Шкафы (2)'!R70*'Доп комплектация'!$AY$1,'Доп комплектация'!$AY$3) -> 3019 | S70: =CEILING('Шкафы (2)'!S70*'Доп комплектация'!$AY$1,'Доп комплектация'!$AY$3) -> 3059 | T70: =CEILING('Шкафы (2)'!T70*'Доп комплектация'!$AY$1,'Доп комплектация'!$AY$3) -> 3179 | U70: =CEILING('Шкафы (2)'!U70*'Доп комплектация'!$AY$1,'Доп комплектация'!$AY$3) -> 0 | V70: =CEILING('Шкафы (2)'!V70*'Доп комплектация'!$AY$1,'Доп комплектация'!$AY$3) -> 4049 | W70: =CEILING('Шкафы (2)'!W70*'Доп комплектация'!$AY$1,'Доп комплектация'!$AY$3) -> 4499 | X70: =CEILING('Шкафы (2)'!X70*'Доп комплектация'!$AY$1,'Доп комплектация'!$AY$3) -> 4259 | Y70: =CEILING('Шкафы (2)'!Y70*'Доп комплектация'!$AY$1,'Доп комплектация'!$AY$3) -> 4499 | Z70: =CEILING('Шкафы (2)'!Z70*'Доп комплектация'!$AY$1,'Доп комплектация'!$AY$3) -> 4479 | AA70: =CEILING('Шкафы (2)'!AA70*'Доп комплектация'!$AY$1,'Доп комплектация'!$AY$3) -> 5009 | AB70: =CEILING('Шкафы (2)'!AB70*'Доп комплектация'!$AY$1,'Доп комплектация'!$AY$3) -> 4129 | AC70: =CEILING('Шкафы (2)'!AC70*'Доп комплектация'!$AY$1,'Доп комплектация'!$AY$3) -> 4209 | AD70: =CEILING('Шкафы (2)'!AD70*'Доп комплектация'!$AY$1,'Доп комплектация'!$AY$3) -> 4309 | AE70: =CEILING('Шкафы (2)'!AE70*'Доп комплектация'!$AY$1,'Доп комплектация'!$AY$3) -> 4919 | AF70: =CEILING('Шкафы (2)'!AF70*'Доп комплектация'!$AY$1,'Доп комплектация'!$AY$3) -> 3889 | AG70: =CEILING('Шкафы (2)'!AG70*'Доп комплектация'!$AY$1,'Доп комплектация'!$AY$3) -> 4149 | AH70: - | AI70: - | AJ70: - | AK70: * | AL70: =CEILING('Шкафы (2)'!AL70*'Доп комплектация'!$AY$1,'Доп комплектация'!$AY$3) -> 102 | AM70: =CEILING('Шкафы (2)'!AM70*'Доп комплектация'!$AY$1,'Доп комплектация'!$AY$3) -> 402 | AN70: =CEILING('Шкафы (2)'!AN70*'Доп комплектация'!$AY$1,'Доп комплектация'!$AY$3) -> 492 | AO70: =CEILING('Шкафы (2)'!AO70*'Доп комплектация'!$AY$1,'Доп комплектация'!$AY$3) -> 450 | AP70: =CEILING('Шкафы (2)'!AP70*'Доп комплектация'!$AY$1,'Доп комплектация'!$AY$3) -> 1202 | AQ70: =CEILING('Шкафы (2)'!AQ70*'Доп комплектация'!$AY$1,'Доп комплектация'!$AY$3) -> 1970 | AR70: =CEILING('Шкафы (2)'!AR70*'Доп комплектация'!$AY$1,'Доп комплектация'!$AY$3) -> 5092 | AS70: =CEILING('Шкафы (2)'!AS70*'Доп комплектация'!$AY$1,'Доп комплектация'!$AY$3) -> 1486 | AT70: * | AU70: =CEILING('Шкафы (2)'!AU70*'Доп комплектация'!$AY$1,'Доп комплектация'!$AY$3) -> 160 | AV70: =CEILING('Шкафы (2)'!AV70*'Доп комплектация'!$AY$1,'Доп комплектация'!$AY$3) -> 340 | AW70: =CEILING('Шкафы (2)'!AW70*'Доп комплектация'!$AY$1,'Доп комплектация'!$AY$3) -> 420 | AX70: =CEILING('Шкафы (2)'!AX70*'Доп комплектация'!$AY$1,'Доп комплектация'!$AY$3) -> 660 | AY70: =CEILING('Шкафы (2)'!AY70*'Доп комплектация'!$AY$1,'Доп комплектация'!$AY$3) -> 1280 | AZ70: * | BA70: =CEILING('Шкафы (2)'!BA70*'Доп комплектация'!$AY$1,'Доп комплектация'!$AY$3) -> 40 | BB70: =CEILING('Шкафы (2)'!BB70*'Доп комплектация'!$AY$1,'Доп комплектация'!$AY$3) -> 80 | BC70: =CEILING('Шкафы (2)'!BC70*'Доп комплектация'!$AY$1,'Доп комплектация'!$AY$3) -> 100 | BD70: =CEILING('Шкафы (2)'!BD70*'Доп комплектация'!$AY$1,'Доп комплектация'!$AY$3) -> 160
D71: L-400 | E71: =CEILING('Шкафы (2)'!E71*'Доп комплектация'!$AY$1,'Доп комплектация'!$AY$3) -> 3540 | F71: =CEILING('Шкафы (2)'!F71*'Доп комплектация'!$AY$1,'Доп комплектация'!$AY$3) -> 4240 | G71: =CEILING('Шкафы (2)'!G71*'Доп комплектация'!$AY$1,'Доп комплектация'!$AY$3) -> 3650 | H71: =CEILING('Шкафы (2)'!H71*'Доп комплектация'!$AY$1,'Доп комплектация'!$AY$3) -> 4340 | I71: =CEILING('Шкафы (2)'!I71*'Доп комплектация'!$AY$1,'Доп комплектация'!$AY$3) -> 3910 | J71: =CEILING('Шкафы (2)'!J71*'Доп комплектация'!$AY$1,'Доп комплектация'!$AY$3) -> 4840 | K71: =CEILING('Шкафы (2)'!K71*'Доп комплектация'!$AY$1,'Доп комплектация'!$AY$3) -> 5150 | L71: =CEILING('Шкафы (2)'!L71*'Доп комплектация'!$AY$1,'Доп комплектация'!$AY$3) -> 0 | M71: =CEILING('Шкафы (2)'!M71*'Доп комплектация'!$AY$1,'Доп комплектация'!$AY$3) -> 5540 | N71: =CEILING('Шкафы (2)'!N71*'Доп комплектация'!$AY$1,'Доп комплектация'!$AY$3) -> 5840 | O71: =CEILING('Шкафы (2)'!O71*'Доп комплектация'!$AY$1,'Доп комплектация'!$AY$3) -> 3529 | P71: =CEILING('Шкафы (2)'!P71*'Доп комплектация'!$AY$1,'Доп комплектация'!$AY$3) -> 0 | Q71: =CEILING('Шкафы (2)'!Q71*'Доп комплектация'!$AY$1,'Доп комплектация'!$AY$3) -> 3099 | R71: =CEILING('Шкафы (2)'!R71*'Доп комплектация'!$AY$1,'Доп комплектация'!$AY$3) -> 3119 | S71: =CEILING('Шкафы (2)'!S71*'Доп комплектация'!$AY$1,'Доп комплектация'!$AY$3) -> 3169 | T71: =CEILING('Шкафы (2)'!T71*'Доп комплектация'!$AY$1,'Доп комплектация'!$AY$3) -> 3309 | U71: =CEILING('Шкафы (2)'!U71*'Доп комплектация'!$AY$1,'Доп комплектация'!$AY$3) -> 0 | V71: =CEILING('Шкафы (2)'!V71*'Доп комплектация'!$AY$1,'Доп комплектация'!$AY$3) -> 4279 | W71: =CEILING('Шкафы (2)'!W71*'Доп комплектация'!$AY$1,'Доп комплектация'!$AY$3) -> 4769 | X71: =CEILING('Шкафы (2)'!X71*'Доп комплектация'!$AY$1,'Доп комплектация'!$AY$3) -> 4519 | Y71: =CEILING('Шкафы (2)'!Y71*'Доп комплектация'!$AY$1,'Доп комплектация'!$AY$3) -> 4789 | Z71: =CEILING('Шкафы (2)'!Z71*'Доп комплектация'!$AY$1,'Доп комплектация'!$AY$3) -> 4659 | AA71: =CEILING('Шкафы (2)'!AA71*'Доп комплектация'!$AY$1,'Доп комплектация'!$AY$3) -> 5369 | AB71: =CEILING('Шкафы (2)'!AB71*'Доп комплектация'!$AY$1,'Доп комплектация'!$AY$3) -> 4299 | AC71: =CEILING('Шкафы (2)'!AC71*'Доп комплектация'!$AY$1,'Доп комплектация'!$AY$3) -> 4379 | AD71: =CEILING('Шкафы (2)'!AD71*'Доп комплектация'!$AY$1,'Доп комплектация'!$AY$3) -> 4489 | AE71: =CEILING('Шкафы (2)'!AE71*'Доп комплектация'!$AY$1,'Доп комплектация'!$AY$3) -> 5149 | AF71: =CEILING('Шкафы (2)'!AF71*'Доп комплектация'!$AY$1,'Доп комплектация'!$AY$3) -> 4089 | AG71: =CEILING('Шкафы (2)'!AG71*'Доп комплектация'!$AY$1,'Доп комплектация'!$AY$3) -> 4389 | AH71: - | AI71: - | AJ71: - | AK71: * | AL71: =CEILING('Шкафы (2)'!AL71*'Доп комплектация'!$AY$1,'Доп комплектация'!$AY$3) -> 102 | AM71: =CEILING('Шкафы (2)'!AM71*'Доп комплектация'!$AY$1,'Доп комплектация'!$AY$3) -> 402 | AN71: =CEILING('Шкафы (2)'!AN71*'Доп комплектация'!$AY$1,'Доп комплектация'!$AY$3) -> 492 | AO71: =CEILING('Шкафы (2)'!AO71*'Доп комплектация'!$AY$1,'Доп комплектация'!$AY$3) -> 450 | AP71: =CEILING('Шкафы (2)'!AP71*'Доп комплектация'!$AY$1,'Доп комплектация'!$AY$3) -> 1202 | AQ71: =CEILING('Шкафы (2)'!AQ71*'Доп комплектация'!$AY$1,'Доп комплектация'!$AY$3) -> 1970 | AR71: =CEILING('Шкафы (2)'!AR71*'Доп комплектация'!$AY$1,'Доп комплектация'!$AY$3) -> 5092 | AS71: =CEILING('Шкафы (2)'!AS71*'Доп комплектация'!$AY$1,'Доп комплектация'!$AY$3) -> 1486 | AT71: * | AU71: =CEILING('Шкафы (2)'!AU71*'Доп комплектация'!$AY$1,'Доп комплектация'!$AY$3) -> 160 | AV71: =CEILING('Шкафы (2)'!AV71*'Доп комплектация'!$AY$1,'Доп комплектация'!$AY$3) -> 340 | AW71: =CEILING('Шкафы (2)'!AW71*'Доп комплектация'!$AY$1,'Доп комплектация'!$AY$3) -> 420 | AX71: =CEILING('Шкафы (2)'!AX71*'Доп комплектация'!$AY$1,'Доп комплектация'!$AY$3) -> 660 | AY71: =CEILING('Шкафы (2)'!AY71*'Доп комплектация'!$AY$1,'Доп комплектация'!$AY$3) -> 1280 | AZ71: * | BA71: =CEILING('Шкафы (2)'!BA71*'Доп комплектация'!$AY$1,'Доп комплектация'!$AY$3) -> 40 | BB71: =CEILING('Шкафы (2)'!BB71*'Доп комплектация'!$AY$1,'Доп комплектация'!$AY$3) -> 80 | BC71: =CEILING('Шкафы (2)'!BC71*'Доп комплектация'!$AY$1,'Доп комплектация'!$AY$3) -> 100 | BD71: =CEILING('Шкафы (2)'!BD71*'Доп комплектация'!$AY$1,'Доп комплектация'!$AY$3) -> 160 | BE71: Н=400
D72: L-450 | E72: =CEILING('Шкафы (2)'!E72*'Доп комплектация'!$AY$1,'Доп комплектация'!$AY$3) -> 3709 | F72: =CEILING('Шкафы (2)'!F72*'Доп комплектация'!$AY$1,'Доп комплектация'!$AY$3) -> 4489 | G72: =CEILING('Шкафы (2)'!G72*'Доп комплектация'!$AY$1,'Доп комплектация'!$AY$3) -> 3829 | H72: =CEILING('Шкафы (2)'!H72*'Доп комплектация'!$AY$1,'Доп комплектация'!$AY$3) -> 4609 | I72: =CEILING('Шкафы (2)'!I72*'Доп комплектация'!$AY$1,'Доп комплектация'!$AY$3) -> 4119 | J72: =CEILING('Шкафы (2)'!J72*'Доп комплектация'!$AY$1,'Доп комплектация'!$AY$3) -> 5169 | K72: =CEILING('Шкафы (2)'!K72*'Доп комплектация'!$AY$1,'Доп комплектация'!$AY$3) -> 5509 | L72: =CEILING('Шкафы (2)'!L72*'Доп комплектация'!$AY$1,'Доп комплектация'!$AY$3) -> 0 | M72: =CEILING('Шкафы (2)'!M72*'Доп комплектация'!$AY$1,'Доп комплектация'!$AY$3) -> 5949 | N72: =CEILING('Шкафы (2)'!N72*'Доп комплектация'!$AY$1,'Доп комплектация'!$AY$3) -> 6299 | O72: =CEILING('Шкафы (2)'!O72*'Доп комплектация'!$AY$1,'Доп комплектация'!$AY$3) -> 3629 | P72: =CEILING('Шкафы (2)'!P72*'Доп комплектация'!$AY$1,'Доп комплектация'!$AY$3) -> 0 | Q72: =CEILING('Шкафы (2)'!Q72*'Доп комплектация'!$AY$1,'Доп комплектация'!$AY$3) -> 3199 | R72: =CEILING('Шкафы (2)'!R72*'Доп комплектация'!$AY$1,'Доп комплектация'!$AY$3) -> 3219 | S72: =CEILING('Шкафы (2)'!S72*'Доп комплектация'!$AY$1,'Доп комплектация'!$AY$3) -> 3279 | T72: =CEILING('Шкафы (2)'!T72*'Доп комплектация'!$AY$1,'Доп комплектация'!$AY$3) -> 3429 | U72: =CEILING('Шкафы (2)'!U72*'Доп комплектация'!$AY$1,'Доп комплектация'!$AY$3) -> 0 | V72: =CEILING('Шкафы (2)'!V72*'Доп комплектация'!$AY$1,'Доп комплектация'!$AY$3) -> 4509 | W72: =CEILING('Шкафы (2)'!W72*'Доп комплектация'!$AY$1,'Доп комплектация'!$AY$3) -> 5049 | X72: =CEILING('Шкафы (2)'!X72*'Доп комплектация'!$AY$1,'Доп комплектация'!$AY$3) -> 4779 | Y72: =CEILING('Шкафы (2)'!Y72*'Доп комплектация'!$AY$1,'Доп комплектация'!$AY$3) -> 5089 | Z72: =CEILING('Шкафы (2)'!Z72*'Доп комплектация'!$AY$1,'Доп комплектация'!$AY$3) -> 4849 | AA72: =CEILING('Шкафы (2)'!AA72*'Доп комплектация'!$AY$1,'Доп комплектация'!$AY$3) -> 5739 | AB72: =CEILING('Шкафы (2)'!AB72*'Доп комплектация'!$AY$1,'Доп комплектация'!$AY$3) -> 4469 | AC72: =CEILING('Шкафы (2)'!AC72*'Доп комплектация'!$AY$1,'Доп комплектация'!$AY$3) -> 4549 | AD72: =CEILING('Шкафы (2)'!AD72*'Доп комплектация'!$AY$1,'Доп комплектация'!$AY$3) -> 4669 | AE72: =CEILING('Шкафы (2)'!AE72*'Доп комплектация'!$AY$1,'Доп комплектация'!$AY$3) -> 5379 | AF72: =CEILING('Шкафы (2)'!AF72*'Доп комплектация'!$AY$1,'Доп комплектация'!$AY$3) -> 4299 | AG72: =CEILING('Шкафы (2)'!AG72*'Доп комплектация'!$AY$1,'Доп комплектация'!$AY$3) -> 4639 | AH72: - | AI72: - | AJ72: - | AK72: * | AL72: =CEILING('Шкафы (2)'!AL72*'Доп комплектация'!$AY$1,'Доп комплектация'!$AY$3) -> 102 | AM72: =CEILING('Шкафы (2)'!AM72*'Доп комплектация'!$AY$1,'Доп комплектация'!$AY$3) -> 402 | AN72: =CEILING('Шкафы (2)'!AN72*'Доп комплектация'!$AY$1,'Доп комплектация'!$AY$3) -> 492 | AO72: =CEILING('Шкафы (2)'!AO72*'Доп комплектация'!$AY$1,'Доп комплектация'!$AY$3) -> 450 | AP72: =CEILING('Шкафы (2)'!AP72*'Доп комплектация'!$AY$1,'Доп комплектация'!$AY$3) -> 1202 | AQ72: =CEILING('Шкафы (2)'!AQ72*'Доп комплектация'!$AY$1,'Доп комплектация'!$AY$3) -> 1970 | AR72: =CEILING('Шкафы (2)'!AR72*'Доп комплектация'!$AY$1,'Доп комплектация'!$AY$3) -> 5092 | AS72: =CEILING('Шкафы (2)'!AS72*'Доп комплектация'!$AY$1,'Доп комплектация'!$AY$3) -> 1486 | AT72: * | AU72: =CEILING('Шкафы (2)'!AU72*'Доп комплектация'!$AY$1,'Доп комплектация'!$AY$3) -> 160 | AV72: =CEILING('Шкафы (2)'!AV72*'Доп комплектация'!$AY$1,'Доп комплектация'!$AY$3) -> 340 | AW72: =CEILING('Шкафы (2)'!AW72*'Доп комплектация'!$AY$1,'Доп комплектация'!$AY$3) -> 420 | AX72: =CEILING('Шкафы (2)'!AX72*'Доп комплектация'!$AY$1,'Доп комплектация'!$AY$3) -> 660 | AY72: =CEILING('Шкафы (2)'!AY72*'Доп комплектация'!$AY$1,'Доп комплектация'!$AY$3) -> 1280 | AZ72: * | BA72: =CEILING('Шкафы (2)'!BA72*'Доп комплектация'!$AY$1,'Доп комплектация'!$AY$3) -> 40 | BB72: =CEILING('Шкафы (2)'!BB72*'Доп комплектация'!$AY$1,'Доп комплектация'!$AY$3) -> 80 | BC72: =CEILING('Шкафы (2)'!BC72*'Доп комплектация'!$AY$1,'Доп комплектация'!$AY$3) -> 100 | BD72: =CEILING('Шкафы (2)'!BD72*'Доп комплектация'!$AY$1,'Доп комплектация'!$AY$3) -> 160
D73: L-500 | E73: =CEILING('Шкафы (2)'!E73*'Доп комплектация'!$AY$1,'Доп комплектация'!$AY$3) -> 3866 | F73: =CEILING('Шкафы (2)'!F73*'Доп комплектация'!$AY$1,'Доп комплектация'!$AY$3) -> 4736 | G73: =CEILING('Шкафы (2)'!G73*'Доп комплектация'!$AY$1,'Доп комплектация'!$AY$3) -> 3996 | H73: =CEILING('Шкафы (2)'!H73*'Доп комплектация'!$AY$1,'Доп комплектация'!$AY$3) -> 4876 | I73: =CEILING('Шкафы (2)'!I73*'Доп комплектация'!$AY$1,'Доп комплектация'!$AY$3) -> 4326 | J73: =CEILING('Шкафы (2)'!J73*'Доп комплектация'!$AY$1,'Доп комплектация'!$AY$3) -> 5496 | K73: =CEILING('Шкафы (2)'!K73*'Доп комплектация'!$AY$1,'Доп комплектация'!$AY$3) -> 5876 | L73: =CEILING('Шкафы (2)'!L73*'Доп комплектация'!$AY$1,'Доп комплектация'!$AY$3) -> 0 | M73: =CEILING('Шкафы (2)'!M73*'Доп комплектация'!$AY$1,'Доп комплектация'!$AY$3) -> 6366 | N73: =CEILING('Шкафы (2)'!N73*'Доп комплектация'!$AY$1,'Доп комплектация'!$AY$3) -> 6746 | O73: =CEILING('Шкафы (2)'!O73*'Доп комплектация'!$AY$1,'Доп комплектация'!$AY$3) -> 3739 | P73: =CEILING('Шкафы (2)'!P73*'Доп комплектация'!$AY$1,'Доп комплектация'!$AY$3) -> 0 | Q73: =CEILING('Шкафы (2)'!Q73*'Доп комплектация'!$AY$1,'Доп комплектация'!$AY$3) -> 3299 | R73: =CEILING('Шкафы (2)'!R73*'Доп комплектация'!$AY$1,'Доп комплектация'!$AY$3) -> 3319 | S73: =CEILING('Шкафы (2)'!S73*'Доп комплектация'!$AY$1,'Доп комплектация'!$AY$3) -> 3389 | T73: =CEILING('Шкафы (2)'!T73*'Доп комплектация'!$AY$1,'Доп комплектация'!$AY$3) -> 3559 | U73: =CEILING('Шкафы (2)'!U73*'Доп комплектация'!$AY$1,'Доп комплектация'!$AY$3) -> 0 | V73: =CEILING('Шкафы (2)'!V73*'Доп комплектация'!$AY$1,'Доп комплектация'!$AY$3) -> 4739 | W73: =CEILING('Шкафы (2)'!W73*'Доп комплектация'!$AY$1,'Доп комплектация'!$AY$3) -> 5319 | X73: =CEILING('Шкафы (2)'!X73*'Доп комплектация'!$AY$1,'Доп комплектация'!$AY$3) -> 5039 | Y73: =CEILING('Шкафы (2)'!Y73*'Доп комплектация'!$AY$1,'Доп комплектация'!$AY$3) -> 5379 | Z73: =CEILING('Шкафы (2)'!Z73*'Доп комплектация'!$AY$1,'Доп комплектация'!$AY$3) -> 5029 | AA73: =CEILING('Шкафы (2)'!AA73*'Доп комплектация'!$AY$1,'Доп комплектация'!$AY$3) -> 6099 | AB73: =CEILING('Шкафы (2)'!AB73*'Доп комплектация'!$AY$1,'Доп комплектация'!$AY$3) -> 4629 | AC73: =CEILING('Шкафы (2)'!AC73*'Доп комплектация'!$AY$1,'Доп комплектация'!$AY$3) -> 4729 | AD73: =CEILING('Шкафы (2)'!AD73*'Доп комплектация'!$AY$1,'Доп комплектация'!$AY$3) -> 4849 | AE73: =CEILING('Шкафы (2)'!AE73*'Доп комплектация'!$AY$1,'Доп комплектация'!$AY$3) -> 5609 | AF73: =CEILING('Шкафы (2)'!AF73*'Доп комплектация'!$AY$1,'Доп комплектация'!$AY$3) -> 4499 | AG73: =CEILING('Шкафы (2)'!AG73*'Доп комплектация'!$AY$1,'Доп комплектация'!$AY$3) -> 4879 | AH73: - | AI73: - | AJ73: - | AK73: * | AL73: =CEILING('Шкафы (2)'!AL73*'Доп комплектация'!$AY$1,'Доп комплектация'!$AY$3) -> 102 | AM73: =CEILING('Шкафы (2)'!AM73*'Доп комплектация'!$AY$1,'Доп комплектация'!$AY$3) -> 402 | AN73: =CEILING('Шкафы (2)'!AN73*'Доп комплектация'!$AY$1,'Доп комплектация'!$AY$3) -> 492 | AO73: =CEILING('Шкафы (2)'!AO73*'Доп комплектация'!$AY$1,'Доп комплектация'!$AY$3) -> 450 | AP73: =CEILING('Шкафы (2)'!AP73*'Доп комплектация'!$AY$1,'Доп комплектация'!$AY$3) -> 1202 | AQ73: =CEILING('Шкафы (2)'!AQ73*'Доп комплектация'!$AY$1,'Доп комплектация'!$AY$3) -> 1970 | AR73: =CEILING('Шкафы (2)'!AR73*'Доп комплектация'!$AY$1,'Доп комплектация'!$AY$3) -> 5092 | AS73: =CEILING('Шкафы (2)'!AS73*'Доп комплектация'!$AY$1,'Доп комплектация'!$AY$3) -> 1486 | AT73: * | AU73: =CEILING('Шкафы (2)'!AU73*'Доп комплектация'!$AY$1,'Доп комплектация'!$AY$3) -> 160 | AV73: =CEILING('Шкафы (2)'!AV73*'Доп комплектация'!$AY$1,'Доп комплектация'!$AY$3) -> 340 | AW73: =CEILING('Шкафы (2)'!AW73*'Доп комплектация'!$AY$1,'Доп комплектация'!$AY$3) -> 420 | AX73: =CEILING('Шкафы (2)'!AX73*'Доп комплектация'!$AY$1,'Доп комплектация'!$AY$3) -> 660 | AY73: =CEILING('Шкафы (2)'!AY73*'Доп комплектация'!$AY$1,'Доп комплектация'!$AY$3) -> 1280 | AZ73: * | BA73: =CEILING('Шкафы (2)'!BA73*'Доп комплектация'!$AY$1,'Доп комплектация'!$AY$3) -> 40 | BB73: =CEILING('Шкафы (2)'!BB73*'Доп комплектация'!$AY$1,'Доп комплектация'!$AY$3) -> 80 | BC73: =CEILING('Шкафы (2)'!BC73*'Доп комплектация'!$AY$1,'Доп комплектация'!$AY$3) -> 100 | BD73: =CEILING('Шкафы (2)'!BD73*'Доп комплектация'!$AY$1,'Доп комплектация'!$AY$3) -> 160
D74: L-550 | E74: =CEILING('Шкафы (2)'!E74*'Доп комплектация'!$AY$1,'Доп комплектация'!$AY$3) -> 4035 | F74: =CEILING('Шкафы (2)'!F74*'Доп комплектация'!$AY$1,'Доп комплектация'!$AY$3) -> 4995 | G74: =CEILING('Шкафы (2)'!G74*'Доп комплектация'!$AY$1,'Доп комплектация'!$AY$3) -> 4175 | H74: =CEILING('Шкафы (2)'!H74*'Доп комплектация'!$AY$1,'Доп комплектация'!$AY$3) -> 5135 | I74: =CEILING('Шкафы (2)'!I74*'Доп комплектация'!$AY$1,'Доп комплектация'!$AY$3) -> 4535 | J74: =CEILING('Шкафы (2)'!J74*'Доп комплектация'!$AY$1,'Доп комплектация'!$AY$3) -> 5825 | K74: =CEILING('Шкафы (2)'!K74*'Доп комплектация'!$AY$1,'Доп комплектация'!$AY$3) -> 6245 | L74: =CEILING('Шкафы (2)'!L74*'Доп комплектация'!$AY$1,'Доп комплектация'!$AY$3) -> 0 | M74: =CEILING('Шкафы (2)'!M74*'Доп комплектация'!$AY$1,'Доп комплектация'!$AY$3) -> 6785 | N74: =CEILING('Шкафы (2)'!N74*'Доп комплектация'!$AY$1,'Доп комплектация'!$AY$3) -> 7205 | O74: =CEILING('Шкафы (2)'!O74*'Доп комплектация'!$AY$1,'Доп комплектация'!$AY$3) -> 3839 | P74: =CEILING('Шкафы (2)'!P74*'Доп комплектация'!$AY$1,'Доп комплектация'!$AY$3) -> 0 | Q74: =CEILING('Шкафы (2)'!Q74*'Доп комплектация'!$AY$1,'Доп комплектация'!$AY$3) -> 3399 | R74: =CEILING('Шкафы (2)'!R74*'Доп комплектация'!$AY$1,'Доп комплектация'!$AY$3) -> 3419 | S74: =CEILING('Шкафы (2)'!S74*'Доп комплектация'!$AY$1,'Доп комплектация'!$AY$3) -> 3499 | T74: =CEILING('Шкафы (2)'!T74*'Доп комплектация'!$AY$1,'Доп комплектация'!$AY$3) -> 3679 | U74: =CEILING('Шкафы (2)'!U74*'Доп комплектация'!$AY$1,'Доп комплектация'!$AY$3) -> 0 | V74: =CEILING('Шкафы (2)'!V74*'Доп комплектация'!$AY$1,'Доп комплектация'!$AY$3) -> 4969 | W74: =CEILING('Шкафы (2)'!W74*'Доп комплектация'!$AY$1,'Доп комплектация'!$AY$3) -> 5589 | X74: =CEILING('Шкафы (2)'!X74*'Доп комплектация'!$AY$1,'Доп комплектация'!$AY$3) -> 5299 | Y74: =CEILING('Шкафы (2)'!Y74*'Доп комплектация'!$AY$1,'Доп комплектация'!$AY$3) -> 5679 | Z74: =CEILING('Шкафы (2)'!Z74*'Доп комплектация'!$AY$1,'Доп комплектация'!$AY$3) -> 5219 | AA74: =CEILING('Шкафы (2)'!AA74*'Доп комплектация'!$AY$1,'Доп комплектация'!$AY$3) -> 6459 | AB74: =CEILING('Шкафы (2)'!AB74*'Доп комплектация'!$AY$1,'Доп комплектация'!$AY$3) -> 4799 | AC74: =CEILING('Шкафы (2)'!AC74*'Доп комплектация'!$AY$1,'Доп комплектация'!$AY$3) -> 4899 | AD74: =CEILING('Шкафы (2)'!AD74*'Доп комплектация'!$AY$1,'Доп комплектация'!$AY$3) -> 5029 | AE74: =CEILING('Шкафы (2)'!AE74*'Доп комплектация'!$AY$1,'Доп комплектация'!$AY$3) -> 5839 | AF74: =CEILING('Шкафы (2)'!AF74*'Доп комплектация'!$AY$1,'Доп комплектация'!$AY$3) -> 4709 | AG74: =CEILING('Шкафы (2)'!AG74*'Доп комплектация'!$AY$1,'Доп комплектация'!$AY$3) -> 5129 | AH74: - | AI74: - | AJ74: - | AK74: * | AL74: =CEILING('Шкафы (2)'!AL74*'Доп комплектация'!$AY$1,'Доп комплектация'!$AY$3) -> 102 | AM74: =CEILING('Шкафы (2)'!AM74*'Доп комплектация'!$AY$1,'Доп комплектация'!$AY$3) -> 402 | AN74: =CEILING('Шкафы (2)'!AN74*'Доп комплектация'!$AY$1,'Доп комплектация'!$AY$3) -> 492 | AO74: =CEILING('Шкафы (2)'!AO74*'Доп комплектация'!$AY$1,'Доп комплектация'!$AY$3) -> 450 | AP74: =CEILING('Шкафы (2)'!AP74*'Доп комплектация'!$AY$1,'Доп комплектация'!$AY$3) -> 1202 | AQ74: =CEILING('Шкафы (2)'!AQ74*'Доп комплектация'!$AY$1,'Доп комплектация'!$AY$3) -> 1970 | AR74: =CEILING('Шкафы (2)'!AR74*'Доп комплектация'!$AY$1,'Доп комплектация'!$AY$3) -> 5092 | AS74: =CEILING('Шкафы (2)'!AS74*'Доп комплектация'!$AY$1,'Доп комплектация'!$AY$3) -> 1486 | AT74: * | AU74: =CEILING('Шкафы (2)'!AU74*'Доп комплектация'!$AY$1,'Доп комплектация'!$AY$3) -> 160 | AV74: =CEILING('Шкафы (2)'!AV74*'Доп комплектация'!$AY$1,'Доп комплектация'!$AY$3) -> 340 | AW74: =CEILING('Шкафы (2)'!AW74*'Доп комплектация'!$AY$1,'Доп комплектация'!$AY$3) -> 420 | AX74: =CEILING('Шкафы (2)'!AX74*'Доп комплектация'!$AY$1,'Доп комплектация'!$AY$3) -> 660 | AY74: =CEILING('Шкафы (2)'!AY74*'Доп комплектация'!$AY$1,'Доп комплектация'!$AY$3) -> 1280 | AZ74: * | BA74: =CEILING('Шкафы (2)'!BA74*'Доп комплектация'!$AY$1,'Доп комплектация'!$AY$3) -> 40 | BB74: =CEILING('Шкафы (2)'!BB74*'Доп комплектация'!$AY$1,'Доп комплектация'!$AY$3) -> 80 | BC74: =CEILING('Шкафы (2)'!BC74*'Доп комплектация'!$AY$1,'Доп комплектация'!$AY$3) -> 100 | BD74: =CEILING('Шкафы (2)'!BD74*'Доп комплектация'!$AY$1,'Доп комплектация'!$AY$3) -> 160
D75: L-600 | E75: =CEILING('Шкафы (2)'!E75*'Доп комплектация'!$AY$1,'Доп комплектация'!$AY$3) -> 4194 | F75: =CEILING('Шкафы (2)'!F75*'Доп комплектация'!$AY$1,'Доп комплектация'!$AY$3) -> 5244 | G75: =CEILING('Шкафы (2)'!G75*'Доп комплектация'!$AY$1,'Доп комплектация'!$AY$3) -> 4354 | H75: =CEILING('Шкафы (2)'!H75*'Доп комплектация'!$AY$1,'Доп комплектация'!$AY$3) -> 5404 | I75: =CEILING('Шкафы (2)'!I75*'Доп комплектация'!$AY$1,'Доп комплектация'!$AY$3) -> 4744 | J75: =CEILING('Шкафы (2)'!J75*'Доп комплектация'!$AY$1,'Доп комплектация'!$AY$3) -> 6154 | K75: =CEILING('Шкафы (2)'!K75*'Доп комплектация'!$AY$1,'Доп комплектация'!$AY$3) -> 6604 | L75: =CEILING('Шкафы (2)'!L75*'Доп комплектация'!$AY$1,'Доп комплектация'!$AY$3) -> 0 | M75: =CEILING('Шкафы (2)'!M75*'Доп комплектация'!$AY$1,'Доп комплектация'!$AY$3) -> 7194 | N75: =CEILING('Шкафы (2)'!N75*'Доп комплектация'!$AY$1,'Доп комплектация'!$AY$3) -> 7654 | O75: =CEILING('Шкафы (2)'!O75*'Доп комплектация'!$AY$1,'Доп комплектация'!$AY$3) -> 3940 | P75: =CEILING('Шкафы (2)'!P75*'Доп комплектация'!$AY$1,'Доп комплектация'!$AY$3) -> 0 | Q75: =CEILING('Шкафы (2)'!Q75*'Доп комплектация'!$AY$1,'Доп комплектация'!$AY$3) -> 3500 | R75: =CEILING('Шкафы (2)'!R75*'Доп комплектация'!$AY$1,'Доп комплектация'!$AY$3) -> 3530 | S75: =CEILING('Шкафы (2)'!S75*'Доп комплектация'!$AY$1,'Доп комплектация'!$AY$3) -> 3610 | T75: =CEILING('Шкафы (2)'!T75*'Доп комплектация'!$AY$1,'Доп комплектация'!$AY$3) -> 3810 | U75: =CEILING('Шкафы (2)'!U75*'Доп комплектация'!$AY$1,'Доп комплектация'!$AY$3) -> 0 | V75: =CEILING('Шкафы (2)'!V75*'Доп комплектация'!$AY$1,'Доп комплектация'!$AY$3) -> 5200 | W75: =CEILING('Шкафы (2)'!W75*'Доп комплектация'!$AY$1,'Доп комплектация'!$AY$3) -> 5870 | X75: =CEILING('Шкафы (2)'!X75*'Доп комплектация'!$AY$1,'Доп комплектация'!$AY$3) -> 5560 | Y75: =CEILING('Шкафы (2)'!Y75*'Доп комплектация'!$AY$1,'Доп комплектация'!$AY$3) -> 5970 | Z75: =CEILING('Шкафы (2)'!Z75*'Доп комплектация'!$AY$1,'Доп комплектация'!$AY$3) -> 5400 | AA75: =CEILING('Шкафы (2)'!AA75*'Доп комплектация'!$AY$1,'Доп комплектация'!$AY$3) -> 6820 | AB75: =CEILING('Шкафы (2)'!AB75*'Доп комплектация'!$AY$1,'Доп комплектация'!$AY$3) -> 4960 | AC75: =CEILING('Шкафы (2)'!AC75*'Доп комплектация'!$AY$1,'Доп комплектация'!$AY$3) -> 5070 | AD75: =CEILING('Шкафы (2)'!AD75*'Доп комплектация'!$AY$1,'Доп комплектация'!$AY$3) -> 5210 | AE75: =CEILING('Шкафы (2)'!AE75*'Доп комплектация'!$AY$1,'Доп комплектация'!$AY$3) -> 6070 | AF75: =CEILING('Шкафы (2)'!AF75*'Доп комплектация'!$AY$1,'Доп комплектация'!$AY$3) -> 4920 | AG75: =CEILING('Шкафы (2)'!AG75*'Доп комплектация'!$AY$1,'Доп комплектация'!$AY$3) -> 5370 | AH75: - | AI75: - | AJ75: - | AK75: * | AL75: =CEILING('Шкафы (2)'!AL75*'Доп комплектация'!$AY$1,'Доп комплектация'!$AY$3) -> 102 | AM75: =CEILING('Шкафы (2)'!AM75*'Доп комплектация'!$AY$1,'Доп комплектация'!$AY$3) -> 402 | AN75: =CEILING('Шкафы (2)'!AN75*'Доп комплектация'!$AY$1,'Доп комплектация'!$AY$3) -> 492 | AO75: =CEILING('Шкафы (2)'!AO75*'Доп комплектация'!$AY$1,'Доп комплектация'!$AY$3) -> 450 | AP75: =CEILING('Шкафы (2)'!AP75*'Доп комплектация'!$AY$1,'Доп комплектация'!$AY$3) -> 1202 | AQ75: =CEILING('Шкафы (2)'!AQ75*'Доп комплектация'!$AY$1,'Доп комплектация'!$AY$3) -> 1970 | AR75: =CEILING('Шкафы (2)'!AR75*'Доп комплектация'!$AY$1,'Доп комплектация'!$AY$3) -> 5092 | AS75: =CEILING('Шкафы (2)'!AS75*'Доп комплектация'!$AY$1,'Доп комплектация'!$AY$3) -> 1486 | AT75: * | AU75: =CEILING('Шкафы (2)'!AU75*'Доп комплектация'!$AY$1,'Доп комплектация'!$AY$3) -> 160 | AV75: =CEILING('Шкафы (2)'!AV75*'Доп комплектация'!$AY$1,'Доп комплектация'!$AY$3) -> 340 | AW75: =CEILING('Шкафы (2)'!AW75*'Доп комплектация'!$AY$1,'Доп комплектация'!$AY$3) -> 420 | AX75: =CEILING('Шкафы (2)'!AX75*'Доп комплектация'!$AY$1,'Доп комплектация'!$AY$3) -> 660 | AY75: =CEILING('Шкафы (2)'!AY75*'Доп комплектация'!$AY$1,'Доп комплектация'!$AY$3) -> 1280 | AZ75: * | BA75: =CEILING('Шкафы (2)'!BA75*'Доп комплектация'!$AY$1,'Доп комплектация'!$AY$3) -> 40 | BB75: =CEILING('Шкафы (2)'!BB75*'Доп комплектация'!$AY$1,'Доп комплектация'!$AY$3) -> 80 | BC75: =CEILING('Шкафы (2)'!BC75*'Доп комплектация'!$AY$1,'Доп комплектация'!$AY$3) -> 100 | BD75: =CEILING('Шкафы (2)'!BD75*'Доп комплектация'!$AY$1,'Доп комплектация'!$AY$3) -> 160
C76: Шкаф Н=460 2дв 2ст | D76: L=600 | E76: =CEILING('Шкафы (2)'!E76*'Доп комплектация'!$AY$1,'Доп комплектация'!$AY$3) -> 5041 | F76: =CEILING('Шкафы (2)'!F76*'Доп комплектация'!$AY$1,'Доп комплектация'!$AY$3) -> 6081 | G76: =CEILING('Шкафы (2)'!G76*'Доп комплектация'!$AY$1,'Доп комплектация'!$AY$3) -> 5201 | H76: =CEILING('Шкафы (2)'!H76*'Доп комплектация'!$AY$1,'Доп комплектация'!$AY$3) -> 6241 | I76: =CEILING('Шкафы (2)'!I76*'Доп комплектация'!$AY$1,'Доп комплектация'!$AY$3) -> 5601 | J76: =CEILING('Шкафы (2)'!J76*'Доп комплектация'!$AY$1,'Доп комплектация'!$AY$3) -> 6981 | K76: =CEILING('Шкафы (2)'!K76*'Доп комплектация'!$AY$1,'Доп комплектация'!$AY$3) -> 7441 | L76: =CEILING('Шкафы (2)'!L76*'Доп комплектация'!$AY$1,'Доп комплектация'!$AY$3) -> 0 | M76: =CEILING('Шкафы (2)'!M76*'Доп комплектация'!$AY$1,'Доп комплектация'!$AY$3) -> 8021 | N76: =CEILING('Шкафы (2)'!N76*'Доп комплектация'!$AY$1,'Доп комплектация'!$AY$3) -> 8481 | O76: =CEILING('Шкафы (2)'!O76*'Доп комплектация'!$AY$1,'Доп комплектация'!$AY$3) -> 5293 | P76: =CEILING('Шкафы (2)'!P76*'Доп комплектация'!$AY$1,'Доп комплектация'!$AY$3) -> 0 | Q76: =CEILING('Шкафы (2)'!Q76*'Доп комплектация'!$AY$1,'Доп комплектация'!$AY$3) -> 4413 | R76: =CEILING('Шкафы (2)'!R76*'Доп комплектация'!$AY$1,'Доп комплектация'!$AY$3) -> 4433 | S76: =CEILING('Шкафы (2)'!S76*'Доп комплектация'!$AY$1,'Доп комплектация'!$AY$3) -> 4513 | T76: =CEILING('Шкафы (2)'!T76*'Доп комплектация'!$AY$1,'Доп комплектация'!$AY$3) -> 4713 | U76: =CEILING('Шкафы (2)'!U76*'Доп комплектация'!$AY$1,'Доп комплектация'!$AY$3) -> 0 | V76: =CEILING('Шкафы (2)'!V76*'Доп комплектация'!$AY$1,'Доп комплектация'!$AY$3) -> 6253 | W76: =CEILING('Шкафы (2)'!W76*'Доп комплектация'!$AY$1,'Доп комплектация'!$AY$3) -> 7073 | X76: =CEILING('Шкафы (2)'!X76*'Доп комплектация'!$AY$1,'Доп комплектация'!$AY$3) -> 6613 | Y76: =CEILING('Шкафы (2)'!Y76*'Доп комплектация'!$AY$1,'Доп комплектация'!$AY$3) -> 7013 | Z76: =CEILING('Шкафы (2)'!Z76*'Доп комплектация'!$AY$1,'Доп комплектация'!$AY$3) -> 7253 | AA76: =CEILING('Шкафы (2)'!AA76*'Доп комплектация'!$AY$1,'Доп комплектация'!$AY$3) -> 7913 | AB76: =CEILING('Шкафы (2)'!AB76*'Доп комплектация'!$AY$1,'Доп комплектация'!$AY$3) -> 6553 | AC76: =CEILING('Шкафы (2)'!AC76*'Доп комплектация'!$AY$1,'Доп комплектация'!$AY$3) -> 6693 | AD76: =CEILING('Шкафы (2)'!AD76*'Доп комплектация'!$AY$1,'Доп комплектация'!$AY$3) -> 6873 | AE76: =CEILING('Шкафы (2)'!AE76*'Доп комплектация'!$AY$1,'Доп комплектация'!$AY$3) -> 7993 | AF76: =CEILING('Шкафы (2)'!AF76*'Доп комплектация'!$AY$1,'Доп комплектация'!$AY$3) -> 5973 | AG76: =CEILING('Шкафы (2)'!AG76*'Доп комплектация'!$AY$1,'Доп комплектация'!$AY$3) -> 6413 | AH76: - | AI76: - | AJ76: - | AK76: * | AL76: =CEILING('Шкафы (2)'!AL76*'Доп комплектация'!$AY$1,'Доп комплектация'!$AY$3) -> 102 | AM76: =CEILING('Шкафы (2)'!AM76*'Доп комплектация'!$AY$1,'Доп комплектация'!$AY$3) -> 402 | AN76: =CEILING('Шкафы (2)'!AN76*'Доп комплектация'!$AY$1,'Доп комплектация'!$AY$3) -> 492 | AO76: =CEILING('Шкафы (2)'!AO76*'Доп комплектация'!$AY$1,'Доп комплектация'!$AY$3) -> 450 | AP76: =CEILING('Шкафы (2)'!AP76*'Доп комплектация'!$AY$1,'Доп комплектация'!$AY$3) -> 1202 | AQ76: =CEILING('Шкафы (2)'!AQ76*'Доп комплектация'!$AY$1,'Доп комплектация'!$AY$3) -> 1970 | AR76: =CEILING('Шкафы (2)'!AR76*'Доп комплектация'!$AY$1,'Доп комплектация'!$AY$3) -> 5092 | AS76: =CEILING('Шкафы (2)'!AS76*'Доп комплектация'!$AY$1,'Доп комплектация'!$AY$3) -> 1486 | AT76: * | AU76: =CEILING('Шкафы (2)'!AU76*'Доп комплектация'!$AY$1,'Доп комплектация'!$AY$3) -> 160 | AV76: =CEILING('Шкафы (2)'!AV76*'Доп комплектация'!$AY$1,'Доп комплектация'!$AY$3) -> 340 | AW76: =CEILING('Шкафы (2)'!AW76*'Доп комплектация'!$AY$1,'Доп комплектация'!$AY$3) -> 420 | AX76: =CEILING('Шкафы (2)'!AX76*'Доп комплектация'!$AY$1,'Доп комплектация'!$AY$3) -> 660 | AY76: =CEILING('Шкафы (2)'!AY76*'Доп комплектация'!$AY$1,'Доп комплектация'!$AY$3) -> 1280 | AZ76: * | BA76: =CEILING('Шкафы (2)'!BA76*'Доп комплектация'!$AY$1,'Доп комплектация'!$AY$3) -> 40 | BB76: =CEILING('Шкафы (2)'!BB76*'Доп комплектация'!$AY$1,'Доп комплектация'!$AY$3) -> 80 | BC76: =CEILING('Шкафы (2)'!BC76*'Доп комплектация'!$AY$1,'Доп комплектация'!$AY$3) -> 100 | BD76: =CEILING('Шкафы (2)'!BD76*'Доп комплектация'!$AY$1,'Доп комплектация'!$AY$3) -> 160
D77: L=650 | E77: =CEILING('Шкафы (2)'!E77*'Доп комплектация'!$AY$1,'Доп комплектация'!$AY$3) -> 5218 | F77: =CEILING('Шкафы (2)'!F77*'Доп комплектация'!$AY$1,'Доп комплектация'!$AY$3) -> 6338 | G77: =CEILING('Шкафы (2)'!G77*'Доп комплектация'!$AY$1,'Доп комплектация'!$AY$3) -> 5378 | H77: =CEILING('Шкафы (2)'!H77*'Доп комплектация'!$AY$1,'Доп комплектация'!$AY$3) -> 6498 | I77: =CEILING('Шкафы (2)'!I77*'Доп комплектация'!$AY$1,'Доп комплектация'!$AY$3) -> 5798 | J77: =CEILING('Шкафы (2)'!J77*'Доп комплектация'!$AY$1,'Доп комплектация'!$AY$3) -> 7318 | K77: =CEILING('Шкафы (2)'!K77*'Доп комплектация'!$AY$1,'Доп комплектация'!$AY$3) -> 7798 | L77: =CEILING('Шкафы (2)'!L77*'Доп комплектация'!$AY$1,'Доп комплектация'!$AY$3) -> 0 | M77: =CEILING('Шкафы (2)'!M77*'Доп комплектация'!$AY$1,'Доп комплектация'!$AY$3) -> 8438 | N77: =CEILING('Шкафы (2)'!N77*'Доп комплектация'!$AY$1,'Доп комплектация'!$AY$3) -> 8938 | O77: =CEILING('Шкафы (2)'!O77*'Доп комплектация'!$AY$1,'Доп комплектация'!$AY$3) -> 5402 | P77: =CEILING('Шкафы (2)'!P77*'Доп комплектация'!$AY$1,'Доп комплектация'!$AY$3) -> 0 | Q77: =CEILING('Шкафы (2)'!Q77*'Доп комплектация'!$AY$1,'Доп комплектация'!$AY$3) -> 4502 | R77: =CEILING('Шкафы (2)'!R77*'Доп комплектация'!$AY$1,'Доп комплектация'!$AY$3) -> 4542 | S77: =CEILING('Шкафы (2)'!S77*'Доп комплектация'!$AY$1,'Доп комплектация'!$AY$3) -> 4622 | T77: =CEILING('Шкафы (2)'!T77*'Доп комплектация'!$AY$1,'Доп комплектация'!$AY$3) -> 4842 | U77: =CEILING('Шкафы (2)'!U77*'Доп комплектация'!$AY$1,'Доп комплектация'!$AY$3) -> 0 | V77: =CEILING('Шкафы (2)'!V77*'Доп комплектация'!$AY$1,'Доп комплектация'!$AY$3) -> 6482 | W77: =CEILING('Шкафы (2)'!W77*'Доп комплектация'!$AY$1,'Доп комплектация'!$AY$3) -> 7342 | X77: =CEILING('Шкафы (2)'!X77*'Доп комплектация'!$AY$1,'Доп комплектация'!$AY$3) -> 6862 | Y77: =CEILING('Шкафы (2)'!Y77*'Доп комплектация'!$AY$1,'Доп комплектация'!$AY$3) -> 7302 | Z77: =CEILING('Шкафы (2)'!Z77*'Доп комплектация'!$AY$1,'Доп комплектация'!$AY$3) -> 7442 | AA77: =CEILING('Шкафы (2)'!AA77*'Доп комплектация'!$AY$1,'Доп комплектация'!$AY$3) -> 8282 | AB77: =CEILING('Шкафы (2)'!AB77*'Доп комплектация'!$AY$1,'Доп комплектация'!$AY$3) -> 6722 | AC77: =CEILING('Шкафы (2)'!AC77*'Доп комплектация'!$AY$1,'Доп комплектация'!$AY$3) -> 6862 | AD77: =CEILING('Шкафы (2)'!AD77*'Доп комплектация'!$AY$1,'Доп комплектация'!$AY$3) -> 7042 | AE77: =CEILING('Шкафы (2)'!AE77*'Доп комплектация'!$AY$1,'Доп комплектация'!$AY$3) -> 8222 | AF77: =CEILING('Шкафы (2)'!AF77*'Доп комплектация'!$AY$1,'Доп комплектация'!$AY$3) -> 6162 | AG77: =CEILING('Шкафы (2)'!AG77*'Доп комплектация'!$AY$1,'Доп комплектация'!$AY$3) -> 6662 | AH77: - | AI77: - | AJ77: - | AK77: * | AL77: =CEILING('Шкафы (2)'!AL77*'Доп комплектация'!$AY$1,'Доп комплектация'!$AY$3) -> 102 | AM77: =CEILING('Шкафы (2)'!AM77*'Доп комплектация'!$AY$1,'Доп комплектация'!$AY$3) -> 402 | AN77: =CEILING('Шкафы (2)'!AN77*'Доп комплектация'!$AY$1,'Доп комплектация'!$AY$3) -> 492 | AO77: =CEILING('Шкафы (2)'!AO77*'Доп комплектация'!$AY$1,'Доп комплектация'!$AY$3) -> 450 | AP77: =CEILING('Шкафы (2)'!AP77*'Доп комплектация'!$AY$1,'Доп комплектация'!$AY$3) -> 1202 | AQ77: =CEILING('Шкафы (2)'!AQ77*'Доп комплектация'!$AY$1,'Доп комплектация'!$AY$3) -> 1970 | AR77: =CEILING('Шкафы (2)'!AR77*'Доп комплектация'!$AY$1,'Доп комплектация'!$AY$3) -> 5092 | AS77: =CEILING('Шкафы (2)'!AS77*'Доп комплектация'!$AY$1,'Доп комплектация'!$AY$3) -> 1486 | AT77: * | AU77: =CEILING('Шкафы (2)'!AU77*'Доп комплектация'!$AY$1,'Доп комплектация'!$AY$3) -> 160 | AV77: =CEILING('Шкафы (2)'!AV77*'Доп комплектация'!$AY$1,'Доп комплектация'!$AY$3) -> 340 | AW77: =CEILING('Шкафы (2)'!AW77*'Доп комплектация'!$AY$1,'Доп комплектация'!$AY$3) -> 420 | AX77: =CEILING('Шкафы (2)'!AX77*'Доп комплектация'!$AY$1,'Доп комплектация'!$AY$3) -> 660 | AY77: =CEILING('Шкафы (2)'!AY77*'Доп комплектация'!$AY$1,'Доп комплектация'!$AY$3) -> 1280 | AZ77: * | BA77: =CEILING('Шкафы (2)'!BA77*'Доп комплектация'!$AY$1,'Доп комплектация'!$AY$3) -> 40 | BB77: =CEILING('Шкафы (2)'!BB77*'Доп комплектация'!$AY$1,'Доп комплектация'!$AY$3) -> 80 | BC77: =CEILING('Шкафы (2)'!BC77*'Доп комплектация'!$AY$1,'Доп комплектация'!$AY$3) -> 100 | BD77: =CEILING('Шкафы (2)'!BD77*'Доп комплектация'!$AY$1,'Доп комплектация'!$AY$3) -> 160
